Workbook

Sheet Presentazione
B3: Il presente strumento di calcolo (EcoProfile Tool LCA) è stato sviluppato nell'ambito del progetto europeo LIFECO2PES&PEF, da parte dei ricercatori della Scuola Superiore Sant'Anna e in collaborazione con FLA (FederlegnoArredo). L'obiettivo del progetto è supportare la generazione di servizi ecosistemici da parte delle foreste italiane grazie ad una gestione forestale sostenibile e alla prevenzione del rischio di diffusione degli incendi e dei danni da tepesta. La gestione forestale sostenibile passa anche attraverso la valorizzazione delle risorse della foresta, come il legno, e una migliore conoscenza degli impatti generati dall'industria del legno. A questo scopo sono stati condotti studi LCA (Life Cycle Assessment), secondo la metodologia comunitaria delle PEF, su prodotti legnosi di diverso tipo, tra cui il pallet, per individuare le fasi del ciclo di vita e i processi più impattanti e definire un piano di miglioramento delle prestazioni ambientali. Il presente tool si inserisce nell'ambito di questa attività e vuole essere un ulteriore strumento di supporto alle decisioni delle aziende dei pallet. Il tool consente di calcolare in modo semplificato le performance ambientali dei diversi tipi di pallet immessi sul mercato dalle aziende federate. Il Tool LCA permette anche di comparare le performance ambientali di due varianti dello stesso prodotto (il prodotto nelle due versioni deve avere la medesima funzione all'uso, ovvero quella di trasportare la merce). Nel foglio di input è possibile infatti variare la tipologia di pallet (a perdere o in interscambio), la composizione e la provenienza della materia prima, la localizzazione dei produttori, il mix energetico utilizzato, gli scenari di fine vita. Per l'elaborazione del tool si è fatto riferimento all'analisi del ciclo di vita (Life Cycle Assessment) come da standard ISO 14040-14044. Il tool permette quindi di calcolare le performance ambientali del pallet lungo tutto il suo ciclo di vita: dalla produzione e approvvigionamento delle materie prime, alla produzione, distribuzione ed eventuale manutenzione del prodotto finito, fino al suo fine vita. Lo studio non ha incluso le infrastrutture e i macchinari necessari alla produzione del prodotto finito (ad esempio: lo stabilimento produttivo e i macchinari). I dati utilizzati per modellare i processi sono dati secondari, ottenuti da letteratura. La principale fonte utilizzata è stata: - Life Cycle Assessment del Pallet EUR/EPAL’ prodotto da Politecnico di Milano per conto di Comitato Nazionale EPAL del Consorzio Servizi Legno Sughero in collaborazione con Assoimballaggi/Federlegno Arredo (2011). Lo studio indica che la fase d'uso è dominante sugli impatti del ciclo di vita del pallet in interscambio, per via del consumo di combustibili fossili durante le attività di trasporto. Al fine di un confronto alla pari tra pallet a perdere e in interscambio si è deciso di omettere dalla fase d'uso il trasporto delle merci, per cui al pallet non sono imputate le relative emissioni. La base dati utilizzata è Ecoinvent 3.7, il software utilizzato è SimaPro versione 9.1 Il metodo usato per calcolare gli impatti è il metodo EF (adapted by PRé Sustainability), ovvero il metodo utilizzato dall'Unione Europea per calcolare gli impatti nell'ambito dell'iniziativa Environmental Footprint. L'analisi adotta le indicazioni delle PEF per la valutazione del fine vita del pallet, attraverso l'applicazione della CFF (Circular Footprint Formula) che divide gli impatti del processo di fine vita tra generatore del rifiuto e utilizzatore della materia prima seconda o dell'energia derivante dal recupero del prodotto. Si precisa che il seguente è un Tool ad uso esclusivo di FederlegnoArredo ed è pensato come strumento di gestione interna e non finalizzato all'ottenimento di certificazione ambientale di prodotto.

Sheet menu tendina (hidden)
A1: Tipologia:
A2: EPAL (interscambio)
A3: Su misura (a perdere)
A5: Mezzo di trasporto:
A6: Camion Euro3
A7: Camion Euro4
A8: Camion Euro5
A9: Treno
A10: Nave
A11: non noto
A13: Rifiuti:
A14: Riciclo o compostaggio
A15: Smaltimento in discarica
A16: Incenerimento

Sheet Foglio Input_Pallet
B2: EcoProfile Tool - PALLET
B3: Comparazione tra: | C3: Prodotto 1: Pallet "tipo A" | G3: Prodotto 2: Pallet "tipo B"
B5: Descrizione Prodotto
C7: =C3 -> Prodotto 1: Pallet "tipo A" | G7: =G3 -> Prodotto 2: Pallet "tipo B"
B8: Codice identificativo | C8: a | G8: b
B9: Dimensioni | C9: 1200x1000 | G9: 1200x1000
B10: Massa totale (kg) | C10: 19 | G10: 19
B11: di cui Legno (kg) | C11: 18.7 | G11: 18.7
B12: di cui Metallo (kg) | C12: 0.3 | G12: 0.3
B13: Portata | C13: 1000 | G13: 1000
B14: Tipologia | C14: EPAL (interscambio) | G14: EPAL (interscambio)
B15: Vita utile (n° di utilizzi) | C15: =_xlfn.IFS(C14="EPAL (interscambio)",22,C14="Su misura (a perdere)",1) -> 22 | G15: =_xlfn.IFS(G14="EPAL (interscambio)",22,G14="Su misura (a perdere)",1) -> 22
B17: Materie prime (acquisti)
C19: =C3 -> Prodotto 1: Pallet "tipo A" | G19: =G3 -> Prodotto 2: Pallet "tipo B"
C20: Quantità | D20: Unità di misura | E20: Mezzo di trasporto prevalente | F20: Note | G20: Quantità | H20: Unità di misura | I20: Mezzo di trasporto prevalente | J20: Note
B21: Tronchi decortecciati | C21: 0.0475 | D21: mc | F21: Esprimere i dati di quantità nelle unità di misura indicate con riferimento all'unità funzionale dichiarata (1 pallet) | G21: 0 | H21: mc | J21: Esprimere i dati di quantità nelle unità di misura indicate con riferimento all'unità funzionale dichiarata (1 pallet)
B22: Trasporto tronchi | C22: 200 | D22: km | E22: Camion Euro4 | G22: 0 | H22: km | I22: Camion Euro4
B23: Semilavorato in legno (da terzi) | C23: 0 | D23: mc | G23: 0.0475 | H23: mc
B24: Trasporto semilavorato | C24: 0 | D24: km | E24: Treno | G24: 500 | H24: km | I24: Camion Euro4
B25: Blocchetti (da terzi) | C25: 0.00898 | D25: mc | G25: 0.00898 | H25: mc
B26: Trasporto blocchetti | C26: 500 | D26: km | E26: Camion Euro4 | G26: 500 | H26: km | I26: Camion Euro4
B27: Chiodi in metallo | C27: 0.3 | D27: kg | G27: 0.3 | H27: kg
B28: Graffe in metallo | C28: 0 | D28: kg | G28: 0 | H28: kg
B29: Trasporto ferramenta | C29: 300 | D29: km | E29: Camion Euro4 | G29: 300 | H29: km | I29: Camion Euro4
B30: Vernice | C30: 0 | D30: kg | G30: 0 | H30: kg
B31: Trasporto vernice | C31: 0 | D31: km | E31: Camion Euro5 | G31: 0 | H31: km | I31: Camion Euro4
B33: Produzione Pallet
B35: Unità di riferimento per i dati di produzione | C35: Quantità Prodotto 1 | D35: Quantità Prodotto 2 | E35: Unità di misura | F35: Note
C36: 7000 | D36: 7000 | E36: pezzi | F36: Tutti i dati di produzione devono essere riferiti alla quantità qui riportata (es: 4.000 pezzi prodotti, 1.000 pezzi prodotti ecc..).
C38: =C3 -> Prodotto 1: Pallet "tipo A" | G38: =G3 -> Prodotto 2: Pallet "tipo B"
B39: Energia elettrica | C39: Mix (%) | D39: Quantità totale | E39: Unità di misura | F39: Note | G39: Mix (%) | H39: Quantità totale | I39: Unità di misura | J39: Note
E40: kWh | I40: kWh
B41: Rinnovabile - fotovoltaica | C41: 0 | D41: Se il dato di mix energetico non è noto inserire "100%" in corrispondenza di "Mix da rete o dato non disponibile". | G41: 0 | H41: Se il dato di mix energetico non è noto inserire "100%" in corrispondenza di "Mix da rete o dato non disponibile".
B42: Rinnovabile - geotermica | C42: 0 | G42: 0
B43: Rinnovabile - eolica | C43: 0 | G43: 0
B44: Mix da rete nazionale o dato non disponibile | C44: 1 | G44: 1
C46: =C3 -> Prodotto 1: Pallet "tipo A" | G46: =G3 -> Prodotto 2: Pallet "tipo B"
B47: Energia termica | C47: Mix (%) | D47: Quantità totale | E47: Unità di misura | F47: Note | G47: Mix (%) | H47: Quantità totale | I47: Unità di misura | J47: Note
E48: kWh | I48: kWh
B49: Rinnovabile - solare termica | C49: 0 | D49: Se il dato di mix energetico non è noto inserire "100%" in corrispondenza di "Gas metano da rete o dato non disponibile". | G49: 0 | H49: Se il dato di mix energetico non è noto inserire "100%" in corrispondenza di "Gas metano da rete o dato non disponibile".
B50: Rinnovabile - geotermica | C50: 0 | G50: 0
B51: Rinnovabile - pellet | C51: 1 | G51: 1
B52: Gas metano da rete o dato non disponibile | C52: 0 | G52: 0
C54: =C3 -> Prodotto 1: Pallet "tipo A" | G54: =G3 -> Prodotto 2: Pallet "tipo B"
B55: Acqua | C55: Mix (%) | D55: Quantità totale | E55: Unità di misura | F55: Note | G55: Mix (%) | H55: Quantità totale | I55: Unità di misura | J55: Note
E56: mc | I56: mc
B57: Da pozzo | C57: 0 | D57: Se il dato di mix idrico non è noto inserire "100%" in corrispondenza di "Da rete idrica o dato non disponibile". | G57: 0 | H57: Se il dato di mix idrico non è noto inserire "100%" in corrispondenza di "Da rete idrica o dato non disponibile".
B58: Da fonte superficiale | C58: 0 | G58: 0
B59: Da rete idrica o dato non disponibile | C59: 1 | G59: 1
C61: =C3 -> Prodotto 1: Pallet "tipo A" | G61: =G3 -> Prodotto 2: Pallet "tipo B"
B62: Altri combustibili | C62: Quantità totale | E62: Unità di misura | G62: Quantità totale | I62: Unità di misura
B63: Gasolio | C63: 0 | E63: litri | G63: 0 | I63: litri
C65: =C3 -> Prodotto 1: Pallet "tipo A" | G65: =G3 -> Prodotto 2: Pallet "tipo B"
B66: Emissioni segheria | C66: Quantità totale | D66: Unità di misura | E66: Note | G66: Quantità totale | H66: Unità di misura | I66: Note
B67: Particolato | D67: kg | E67: Se il dato non è noto lasciare il campo vuoto e i risultati d'impatto per le emissioni riporteranno automaticamente dei valori di default. | H67: kg | I67: Se il dato non è noto lasciare il campo vuoto e i risultati d'impatto per le emissioni riporteranno automaticamente dei valori di default.
C69: =C7 -> Prodotto 1: Pallet "tipo A" | G69: =G7 -> Prodotto 2: Pallet "tipo B"
B70: Emissioni fitotrattamento | C70: Quantità totale | D70: Unità di misura | E70: Note | G70: Quantità totale | H70: Unità di misura | I70: Note
B71: NO2 | D71: kg | E71: Se il dato di quantità totale non è noto lasciare il campo vuoto e i risultati d'impatto per le emissioni riporteranno automaticamente dei valori di default. | H71: kg | I71: Se il dato di quantità totale non è noto lasciare il campo vuoto e i risultati d'impatto per le emissioni riporteranno automaticamente dei valori di default.
B72: SO2 | D72: kg | H72: kg
C74: =C3 -> Prodotto 1: Pallet "tipo A" | G74: =G3 -> Prodotto 2: Pallet "tipo B"
B75: Rifiuti | C75: Quantità totale | D75: Unità di misura | E75: Trattamento a fine vita | F75: Note | G75: Quantità totale | H75: Unità di misura | I75: Trattamento a fine vita | J75: Note
B76: Plastica | D76: kg | E76: Smaltimento in discarica | F76: Inserire il dato di quantità totale solo se noto, in alternativa lasciare il campo vuoto. Inserire la distanza degli impianti, in alternativa lasciare il campo vuoto e i risultati d'impatto per le emissioni del trasporto riporteranno automaticamente dei valori di default. | H76: kg | I76: Riciclo o compostaggio | J76: Inserire il dato di quantità totale solo se noto, in alternativa lasciare il campo vuoto. Inserire la distanza degli impianti, in alternativa lasciare il campo vuoto e i risultati d'impatto per le emissioni del trasporto riporteranno automaticamente dei valori di default.
B77: Distanza impianto (plastica) | D77: km | H77: km
B78: Materiali metallici | D78: kg | E78: Smaltimento in discarica | H78: kg | I78: Riciclo o compostaggio
B79: Distanza impianto (metalli) | D79: km | H79: km
B80: Carta e cartone | D80: kg | E80: Incenerimento | H80: kg | I80: Riciclo o compostaggio
B81: Distanza impianto (carta) | D81: km | H81: km
B82: Olii esausti | D82: kg | E82: Smaltimento in discarica | H82: kg | I82: Smaltimento in discarica
B83: Distanza impianto (olii) | D83: km | H83: km
B84: Misti | D84: kg | E84: Riciclo o compostaggio | H84: kg | I84: Smaltimento in discarica
B85: Distanza impianto (misti) | D85: km | H85: km
B86: Segatura | D86: kg | E86: Riciclo o compostaggio | H86: kg | I86: Incenerimento
B87: Distanza impianto (segatura) | D87: km | H87: km
B88: Cippato | D88: kg | E88: Riciclo o compostaggio | H88: kg | I88: Incenerimento
B89: Distanza impianto (cippato) | D89: km | H89: km
B90: Pezzi di legno | D90: kg | E90: Riciclo o compostaggio | H90: kg | I90: Smaltimento in discarica
B91: Distanza impianto (legno) | D91: km | H91: km
B93: Distribuzione
C95: =C3 -> Prodotto 1: Pallet "tipo A" | G95: =G3 -> Prodotto 2: Pallet "tipo B"
B96: Distribuzione | C96: Quantità totale | D96: Unità di misura | E96: Mezzo di trasporto prevalente | F96: Note | G96: Quantità totale | H96: Unità di misura | I96: Mezzo di trasporto prevalente | J96: Note
B97: Distanza media verso cliente | C97: 200 | D97: km | E97: Camion Euro4 | F97: Se il dato di distanza non è noto lasciare il campo vuoto e selezionare "non noto" dal menù a tendina del Mezzo di trasporto prevalente. I risultati d'impatto per la distribuzione riporteranno automaticamente dei valori di default. | G97: 200 | H97: km | I97: Camion Euro4 | J97: Se il dato di distanza non è noto lasciare il campo vuoto e selezionare "non noto" dal menù a tendina del Mezzo di trasporto prevalente. I risultati d'impatto per la distribuzione riporteranno automaticamente dei valori di default.

Sheet Risultati_P1
B2: Prodotto 1: Pallet "tipo A"
B4: NOTA: PER IL TRASPORTO DEI MATERIALI LEGNOSI SI E' CONSIDERATO UN PESO SPECIFICO MEDIO DI 1.000 kg/mc
B6: Materie prime
B7: Categoria di impatto | C7: Unità di misura | D7: Totale Materie Prime | E7: Tronchi decortecciati softwood | F7: Semilavorato legno (da terzi) | G7: Blocchetti (da terzi) | H7: Chiodi metallo | I7: Graffa metallo | J7: Vernice | K7: Trasporto materie prime
B8: Climate change | C8: kg CO2 eq | D8: =SUM(E8:K8) -> 0.2306362988 | E8: ='Foglio Input_Pallet'!$C$21*'Materie prime'!C20/'Foglio Input_Pallet'!$C$15 -> 0.02377993148 | F8: ='Foglio Input_Pallet'!$C$23*'Materie prime'!D20/'Foglio Input_Pallet'!$C$15 -> 0 | G8: ='Foglio Input_Pallet'!$C$25*'Materie prime'!E20/'Foglio Input_Pallet'!$C$15 -> 0.12345624 | H8: ='Foglio Input_Pallet'!$C$27*'Materie prime'!F20/'Foglio Input_Pallet'!$C$15 -> 0.01819446273 | I8: ='Foglio Input_Pallet'!$C$28*'Materie prime'!G20/'Foglio Input_Pallet'!$C$15 -> 0 | J8: ='Foglio Input_Pallet'!$C$30*'Materie prime'!H20/'Foglio Input_Pallet'!$C$15 -> 0 | K8: =(1000/'Foglio Input_Pallet'!$C$15)*(_xlfn.IFS('Foglio Input_Pallet'!$E$22='menu tendina'!$A$6,'Foglio Input_Pallet'!$C$21*'Foglio Input_Pallet'!$C$22*'Mezzi di trasporto'!C20,'Foglio Input_Pallet'!$E$22='menu tendina'!$A$7,'Foglio Input_Pallet'!$C$21*'Foglio Input_Pallet'!$C$22*'Mezzi di trasporto'!D20,'Foglio Input_Pallet'!$E$22='menu tendina'!$A$8,'Foglio Input_Pallet'!$C$21*'Foglio Input_Pallet'!$C$22*'Mezzi di trasporto'!E20,'Foglio Input_Pallet'!$E$22='menu tendina'!$A$9,'Foglio Input_Pallet'!$C$21*'Foglio Input_Pallet'!$C$22*'Mezzi di trasporto'!F20,'Foglio Input_Pallet'!$E$22='menu tendina'!$A$10,'Foglio Input_Pallet'!$C$21*'Foglio Input_Pallet'!$C$22*'Mezzi di trasporto'!G20)+_xlfn.IFS('Foglio Input_Pallet'!$E$24='menu tendina'!$A$6,'Foglio Input_Pallet'!$C$23*'Foglio Input_Pallet'!$C$24*'Mezzi di trasporto'!C20,'Foglio Input_Pallet'!$E$24='menu tendina'!$A$7,'Foglio Input_Pallet'!$C$23*'Foglio Input_Pallet'!$C$24*'Mezzi di trasporto'!D20,'Foglio Input_Pallet'!$E$24='menu tendina'!$A$8,'Foglio Input_Pallet'!$C$23*'Foglio Input_Pallet'!$C$24*'Mezzi di trasporto'!E20,'Foglio Input_Pallet'!$E$24='menu tendina'!$A$9,'Foglio Input_Pallet'!$C$23*'Foglio Input_Pallet'!$C$24*'Mezzi di trasporto'!F20,'Foglio Input_Pallet'!$E$24='menu tendina'!$A$10,'Foglio Input_Pallet'!$C$23*'Foglio Input_Pallet'!$C$24*'Mezzi di trasporto'!G20)+_xlfn.IFS('Foglio Input_Pallet'!$E$26='menu tendina'!$A$6,'Foglio Input_Pallet'!$C$25*'Foglio Input_Pallet'!$C$26*'Mezzi di trasporto'!C20,'Foglio Input_Pallet'!$E$26='menu tendina'!$A$7,'Foglio Input_Pallet'!$C$25*'Foglio Input_Pallet'!$C$26*'Mezzi di trasporto'!D20,'Foglio Input_Pallet'!$E$26='menu tendina'!$A$8,'Foglio Input_Pallet'!$C$25*'Foglio Input_Pallet'!$C$26*'Mezzi di trasporto'!E20,'Foglio Input_Pallet'!$E$26='menu tendina'!$A$9,'Foglio Input_Pallet'!$C$25*'Foglio Input_Pallet'!$C$26*'Mezzi di trasporto'!F20,'Foglio Input_Pallet'!$E$26='menu tendina'!$A$10,'Foglio Input_Pallet'!$C$25*'Foglio Input_Pallet'!$C$26*'Mezzi di trasporto'!G20))+_xlfn.IFS('Foglio Input_Pallet'!$E$29='menu tendina'!$A$6,('Foglio Input_Pallet'!$C$27+'Foglio Input_Pallet'!$C$28)*'Foglio Input_Pallet'!$C$29*'Mezzi di trasporto'!C20,'Foglio Input_Pallet'!$E$29='menu tendina'!$A$7,('Foglio Input_Pallet'!$C$27+'Foglio Input_Pallet'!$C$28)*'Foglio Input_Pallet'!$C$29*'Mezzi di trasporto'!D20,'Foglio Input_Pallet'!$E$26='menu tendina'!$A$8,('Foglio Input_Pallet'!$C$27+'Foglio Input_Pallet'!$C$28)*'Foglio Input_Pallet'!$C$29*'Mezzi di trasporto'!E20,'Foglio Input_Pallet'!$E$26='menu tendina'!$A$9,('Foglio Input_Pallet'!$C$27+'Foglio Input_Pallet'!$C$28)*'Foglio Input_Pallet'!$C$29*'Mezzi di trasporto'!F20,'Foglio Input_Pallet'!$E$26='menu tendina'!$A$10,('Foglio Input_Pallet'!$C$27+'Foglio Input_Pallet'!$C$28)*'Foglio Input_Pallet'!$C$29*'Mezzi di trasporto'!G20)+_xlfn.IFS('Foglio Input_Pallet'!$E$31='menu tendina'!$A$6,'Foglio Input_Pallet'!$C$30*'Foglio Input_Pallet'!$C$31*'Mezzi di trasporto'!C20,'Foglio Input_Pallet'!$E$31='menu tendina'!$A$7,'Foglio Input_Pallet'!$C$30*'Foglio Input_Pallet'!$C$31*'Mezzi di trasporto'!D20,'Foglio Input_Pallet'!$E$31='menu tendina'!$A$8,'Foglio Input_Pallet'!$C$30*'Foglio Input_Pallet'!$C$31*'Mezzi di trasporto'!E20,'Foglio Input_Pallet'!$E$31='menu tendina'!$A$9,'Foglio Input_Pallet'!$C$30*'Foglio Input_Pallet'!$C$31*'Mezzi di trasporto'!F20,'Foglio Input_Pallet'!$E$31='menu tendina'!$A$10,'Foglio Input_Pallet'!$C$30*'Foglio Input_Pallet'!$C$31*'Mezzi di trasporto'!G20) -> 0.06520566462
B9: Ozone depletion | C9: kg CFC11 eq | D9: =SUM(E9:K9) -> 2.933797302e-08 | E9: ='Foglio Input_Pallet'!$C$21*'Materie prime'!C21/'Foglio Input_Pallet'!$C$15 -> 4.46583492e-09 | F9: ='Foglio Input_Pallet'!$C$23*'Materie prime'!D21/'Foglio Input_Pallet'!$C$15 -> 0 | G9: ='Foglio Input_Pallet'!$C$25*'Materie prime'!E21/'Foglio Input_Pallet'!$C$15 -> 8.387349797e-09 | H9: ='Foglio Input_Pallet'!$C$27*'Materie prime'!F21/'Foglio Input_Pallet'!$C$15 -> 1.059906832e-09 | I9: ='Foglio Input_Pallet'!$C$28*'Materie prime'!G21/'Foglio Input_Pallet'!$C$15 -> 0 | J9: ='Foglio Input_Pallet'!$C$30*'Materie prime'!H21/'Foglio Input_Pallet'!$C$15 -> 0 | K9: =(1000/'Foglio Input_Pallet'!$C$15)*(_xlfn.IFS('Foglio Input_Pallet'!$E$22='menu tendina'!$A$6,'Foglio Input_Pallet'!$C$21*'Foglio Input_Pallet'!$C$22*'Mezzi di trasporto'!C21,'Foglio Input_Pallet'!$E$22='menu tendina'!$A$7,'Foglio Input_Pallet'!$C$21*'Foglio Input_Pallet'!$C$22*'Mezzi di trasporto'!D21,'Foglio Input_Pallet'!$E$22='menu tendina'!$A$8,'Foglio Input_Pallet'!$C$21*'Foglio Input_Pallet'!$C$22*'Mezzi di trasporto'!E21,'Foglio Input_Pallet'!$E$22='menu tendina'!$A$9,'Foglio Input_Pallet'!$C$21*'Foglio Input_Pallet'!$C$22*'Mezzi di trasporto'!F21,'Foglio Input_Pallet'!$E$22='menu tendina'!$A$10,'Foglio Input_Pallet'!$C$21*'Foglio Input_Pallet'!$C$22*'Mezzi di trasporto'!G21)+_xlfn.IFS('Foglio Input_Pallet'!$E$24='menu tendina'!$A$6,'Foglio Input_Pallet'!$C$23*'Foglio Input_Pallet'!$C$24*'Mezzi di trasporto'!C21,'Foglio Input_Pallet'!$E$24='menu tendina'!$A$7,'Foglio Input_Pallet'!$C$23*'Foglio Input_Pallet'!$C$24*'Mezzi di trasporto'!D21,'Foglio Input_Pallet'!$E$24='menu tendina'!$A$8,'Foglio Input_Pallet'!$C$23*'Foglio Input_Pallet'!$C$24*'Mezzi di trasporto'!E21,'Foglio Input_Pallet'!$E$24='menu tendina'!$A$9,'Foglio Input_Pallet'!$C$23*'Foglio Input_Pallet'!$C$24*'Mezzi di trasporto'!F21,'Foglio Input_Pallet'!$E$24='menu tendina'!$A$10,'Foglio Input_Pallet'!$C$23*'Foglio Input_Pallet'!$C$24*'Mezzi di trasporto'!G21)+_xlfn.IFS('Foglio Input_Pallet'!$E$26='menu tendina'!$A$6,'Foglio Input_Pallet'!$C$25*'Foglio Input_Pallet'!$C$26*'Mezzi di trasporto'!C21,'Foglio Input_Pallet'!$E$26='menu tendina'!$A$7,'Foglio Input_Pallet'!$C$25*'Foglio Input_Pallet'!$C$26*'Mezzi di trasporto'!D21,'Foglio Input_Pallet'!$E$26='menu tendina'!$A$8,'Foglio Input_Pallet'!$C$25*'Foglio Input_Pallet'!$C$26*'Mezzi di trasporto'!E21,'Foglio Input_Pallet'!$E$26='menu tendina'!$A$9,'Foglio Input_Pallet'!$C$25*'Foglio Input_Pallet'!$C$26*'Mezzi di trasporto'!F21,'Foglio Input_Pallet'!$E$26='menu tendina'!$A$10,'Foglio Input_Pallet'!$C$25*'Foglio Input_Pallet'!$C$26*'Mezzi di trasporto'!G21))+_xlfn.IFS('Foglio Input_Pallet'!$E$29='menu tendina'!$A$6,('Foglio Input_Pallet'!$C$27+'Foglio Input_Pallet'!$C$28)*'Foglio Input_Pallet'!$C$29*'Mezzi di trasporto'!C21,'Foglio Input_Pallet'!$E$29='menu tendina'!$A$7,('Foglio Input_Pallet'!$C$27+'Foglio Input_Pallet'!$C$28)*'Foglio Input_Pallet'!$C$29*'Mezzi di trasporto'!D21,'Foglio Input_Pallet'!$E$26='menu tendina'!$A$8,('Foglio Input_Pallet'!$C$27+'Foglio Input_Pallet'!$C$28)*'Foglio Input_Pallet'!$C$29*'Mezzi di trasporto'!E21,'Foglio Input_Pallet'!$E$26='menu tendina'!$A$9,('Foglio Input_Pallet'!$C$27+'Foglio Input_Pallet'!$C$28)*'Foglio Input_Pallet'!$C$29*'Mezzi di trasporto'!F21,'Foglio Input_Pallet'!$E$26='menu tendina'!$A$10,('Foglio Input_Pallet'!$C$27+'Foglio Input_Pallet'!$C$28)*'Foglio Input_Pallet'!$C$29*'Mezzi di trasporto'!G21)+_xlfn.IFS('Foglio Input_Pallet'!$E$31='menu tendina'!$A$6,'Foglio Input_Pallet'!$C$30*'Foglio Input_Pallet'!$C$31*'Mezzi di trasporto'!C21,'Foglio Input_Pallet'!$E$31='menu tendina'!$A$7,'Foglio Input_Pallet'!$C$30*'Foglio Input_Pallet'!$C$31*'Mezzi di trasporto'!D21,'Foglio Input_Pallet'!$E$31='menu tendina'!$A$8,'Foglio Input_Pallet'!$C$30*'Foglio Input_Pallet'!$C$31*'Mezzi di trasporto'!E21,'Foglio Input_Pallet'!$E$31='menu tendina'!$A$9,'Foglio Input_Pallet'!$C$30*'Foglio Input_Pallet'!$C$31*'Mezzi di trasporto'!F21,'Foglio Input_Pallet'!$E$31='menu tendina'!$A$10,'Foglio Input_Pallet'!$C$30*'Foglio Input_Pallet'!$C$31*'Mezzi di trasporto'!G21) -> 1.542488147e-08
B10: Ionising radiation, HH | C10: kBq U-235 eq | D10: 0.02696949746 | E10: ='Foglio Input_Pallet'!$C$21*'Materie prime'!C22/'Foglio Input_Pallet'!$C$15 -> 0.00152842216 | F10: ='Foglio Input_Pallet'!$C$23*'Materie prime'!D22/'Foglio Input_Pallet'!$C$15 -> 0 | G10: ='Foglio Input_Pallet'!$C$25*'Materie prime'!E22/'Foglio Input_Pallet'!$C$15 -> 0.01880518454 | H10: ='Foglio Input_Pallet'!$C$27*'Materie prime'!F22/'Foglio Input_Pallet'!$C$15 -> 0.001383927818 | I10: ='Foglio Input_Pallet'!$C$28*'Materie prime'!G22/'Foglio Input_Pallet'!$C$15 -> 0 | J10: ='Foglio Input_Pallet'!$C$30*'Materie prime'!H22/'Foglio Input_Pallet'!$C$15 -> 0 | K10: =(1000/'Foglio Input_Pallet'!$C$15)*(_xlfn.IFS('Foglio Input_Pallet'!$E$22='menu tendina'!$A$6,'Foglio Input_Pallet'!$C$21*'Foglio Input_Pallet'!$C$22*'Mezzi di trasporto'!C22,'Foglio Input_Pallet'!$E$22='menu tendina'!$A$7,'Foglio Input_Pallet'!$C$21*'Foglio Input_Pallet'!$C$22*'Mezzi di trasporto'!D22,'Foglio Input_Pallet'!$E$22='menu tendina'!$A$8,'Foglio Input_Pallet'!$C$21*'Foglio Input_Pallet'!$C$22*'Mezzi di trasporto'!E22,'Foglio Input_Pallet'!$E$22='menu tendina'!$A$9,'Foglio Input_Pallet'!$C$21*'Foglio Input_Pallet'!$C$22*'Mezzi di trasporto'!F22,'Foglio Input_Pallet'!$E$22='menu tendina'!$A$10,'Foglio Input_Pallet'!$C$21*'Foglio Input_Pallet'!$C$22*'Mezzi di trasporto'!G22)+_xlfn.IFS('Foglio Input_Pallet'!$E$24='menu tendina'!$A$6,'Foglio Input_Pallet'!$C$23*'Foglio Input_Pallet'!$C$24*'Mezzi di trasporto'!C22,'Foglio Input_Pallet'!$E$24='menu tendina'!$A$7,'Foglio Input_Pallet'!$C$23*'Foglio Input_Pallet'!$C$24*'Mezzi di trasporto'!D22,'Foglio Input_Pallet'!$E$24='menu tendina'!$A$8,'Foglio Input_Pallet'!$C$23*'Foglio Input_Pallet'!$C$24*'Mezzi di trasporto'!E22,'Foglio Input_Pallet'!$E$24='menu tendina'!$A$9,'Foglio Input_Pallet'!$C$23*'Foglio Input_Pallet'!$C$24*'Mezzi di trasporto'!F22,'Foglio Input_Pallet'!$E$24='menu tendina'!$A$10,'Foglio Input_Pallet'!$C$23*'Foglio Input_Pallet'!$C$24*'Mezzi di trasporto'!G22)+_xlfn.IFS('Foglio Input_Pallet'!$E$26='menu tendina'!$A$6,'Foglio Input_Pallet'!$C$25*'Foglio Input_Pallet'!$C$26*'Mezzi di trasporto'!C22,'Foglio Input_Pallet'!$E$26='menu tendina'!$A$7,'Foglio Input_Pallet'!$C$25*'Foglio Input_Pallet'!$C$26*'Mezzi di trasporto'!D22,'Foglio Input_Pallet'!$E$26='menu tendina'!$A$8,'Foglio Input_Pallet'!$C$25*'Foglio Input_Pallet'!$C$26*'Mezzi di trasporto'!E22,'Foglio Input_Pallet'!$E$26='menu tendina'!$A$9,'Foglio Input_Pallet'!$C$25*'Foglio Input_Pallet'!$C$26*'Mezzi di trasporto'!F22,'Foglio Input_Pallet'!$E$26='menu tendina'!$A$10,'Foglio Input_Pallet'!$C$25*'Foglio Input_Pallet'!$C$26*'Mezzi di trasporto'!G22))+_xlfn.IFS('Foglio Input_Pallet'!$E$29='menu tendina'!$A$6,('Foglio Input_Pallet'!$C$27+'Foglio Input_Pallet'!$C$28)*'Foglio Input_Pallet'!$C$29*'Mezzi di trasporto'!C22,'Foglio Input_Pallet'!$E$29='menu tendina'!$A$7,('Foglio Input_Pallet'!$C$27+'Foglio Input_Pallet'!$C$28)*'Foglio Input_Pallet'!$C$29*'Mezzi di trasporto'!D22,'Foglio Input_Pallet'!$E$26='menu tendina'!$A$8,('Foglio Input_Pallet'!$C$27+'Foglio Input_Pallet'!$C$28)*'Foglio Input_Pallet'!$C$29*'Mezzi di trasporto'!E22,'Foglio Input_Pallet'!$E$26='menu tendina'!$A$9,('Foglio Input_Pallet'!$C$27+'Foglio Input_Pallet'!$C$28)*'Foglio Input_Pallet'!$C$29*'Mezzi di trasporto'!F22,'Foglio Input_Pallet'!$E$26='menu tendina'!$A$10,('Foglio Input_Pallet'!$C$27+'Foglio Input_Pallet'!$C$28)*'Foglio Input_Pallet'!$C$29*'Mezzi di trasporto'!G22)+_xlfn.IFS('Foglio Input_Pallet'!$E$31='menu tendina'!$A$6,'Foglio Input_Pallet'!$C$30*'Foglio Input_Pallet'!$C$31*'Mezzi di trasporto'!C22,'Foglio Input_Pallet'!$E$31='menu tendina'!$A$7,'Foglio Input_Pallet'!$C$30*'Foglio Input_Pallet'!$C$31*'Mezzi di trasporto'!D22,'Foglio Input_Pallet'!$E$31='menu tendina'!$A$8,'Foglio Input_Pallet'!$C$30*'Foglio Input_Pallet'!$C$31*'Mezzi di trasporto'!E22,'Foglio Input_Pallet'!$E$31='menu tendina'!$A$9,'Foglio Input_Pallet'!$C$30*'Foglio Input_Pallet'!$C$31*'Mezzi di trasporto'!F22,'Foglio Input_Pallet'!$E$31='menu tendina'!$A$10,'Foglio Input_Pallet'!$C$30*'Foglio Input_Pallet'!$C$31*'Mezzi di trasporto'!G22) -> 0.005251962944
B11: Photochemical ozone formation, HH | C11: kg NMVOC eq | D11: 0.001451501115 | E11: ='Foglio Input_Pallet'!$C$21*'Materie prime'!C23/'Foglio Input_Pallet'!$C$15 -> 0.0002497932807 | F11: ='Foglio Input_Pallet'!$C$23*'Materie prime'!D23/'Foglio Input_Pallet'!$C$15 -> 0 | G11: ='Foglio Input_Pallet'!$C$25*'Materie prime'!E23/'Foglio Input_Pallet'!$C$15 -> 0.0007537719343 | H11: ='Foglio Input_Pallet'!$C$27*'Materie prime'!F23/'Foglio Input_Pallet'!$C$15 -> 7.610895273e-05 | I11: ='Foglio Input_Pallet'!$C$28*'Materie prime'!G23/'Foglio Input_Pallet'!$C$15 -> 0 | J11: ='Foglio Input_Pallet'!$C$30*'Materie prime'!H23/'Foglio Input_Pallet'!$C$15 -> 0 | K11: =(1000/'Foglio Input_Pallet'!$C$15)*(_xlfn.IFS('Foglio Input_Pallet'!$E$22='menu tendina'!$A$6,'Foglio Input_Pallet'!$C$21*'Foglio Input_Pallet'!$C$22*'Mezzi di trasporto'!C23,'Foglio Input_Pallet'!$E$22='menu tendina'!$A$7,'Foglio Input_Pallet'!$C$21*'Foglio Input_Pallet'!$C$22*'Mezzi di trasporto'!D23,'Foglio Input_Pallet'!$E$22='menu tendina'!$A$8,'Foglio Input_Pallet'!$C$21*'Foglio Input_Pallet'!$C$22*'Mezzi di trasporto'!E23,'Foglio Input_Pallet'!$E$22='menu tendina'!$A$9,'Foglio Input_Pallet'!$C$21*'Foglio Input_Pallet'!$C$22*'Mezzi di trasporto'!F23,'Foglio Input_Pallet'!$E$22='menu tendina'!$A$10,'Foglio Input_Pallet'!$C$21*'Foglio Input_Pallet'!$C$22*'Mezzi di trasporto'!G23)+_xlfn.IFS('Foglio Input_Pallet'!$E$24='menu tendina'!$A$6,'Foglio Input_Pallet'!$C$23*'Foglio Input_Pallet'!$C$24*'Mezzi di trasporto'!C23,'Foglio Input_Pallet'!$E$24='menu tendina'!$A$7,'Foglio Input_Pallet'!$C$23*'Foglio Input_Pallet'!$C$24*'Mezzi di trasporto'!D23,'Foglio Input_Pallet'!$E$24='menu tendina'!$A$8,'Foglio Input_Pallet'!$C$23*'Foglio Input_Pallet'!$C$24*'Mezzi di trasporto'!E23,'Foglio Input_Pallet'!$E$24='menu tendina'!$A$9,'Foglio Input_Pallet'!$C$23*'Foglio Input_Pallet'!$C$24*'Mezzi di trasporto'!F23,'Foglio Input_Pallet'!$E$24='menu tendina'!$A$10,'Foglio Input_Pallet'!$C$23*'Foglio Input_Pallet'!$C$24*'Mezzi di trasporto'!G23)+_xlfn.IFS('Foglio Input_Pallet'!$E$26='menu tendina'!$A$6,'Foglio Input_Pallet'!$C$25*'Foglio Input_Pallet'!$C$26*'Mezzi di trasporto'!C23,'Foglio Input_Pallet'!$E$26='menu tendina'!$A$7,'Foglio Input_Pallet'!$C$25*'Foglio Input_Pallet'!$C$26*'Mezzi di trasporto'!D23,'Foglio Input_Pallet'!$E$26='menu tendina'!$A$8,'Foglio Input_Pallet'!$C$25*'Foglio Input_Pallet'!$C$26*'Mezzi di trasporto'!E23,'Foglio Input_Pallet'!$E$26='menu tendina'!$A$9,'Foglio Input_Pallet'!$C$25*'Foglio Input_Pallet'!$C$26*'Mezzi di trasporto'!F23,'Foglio Input_Pallet'!$E$26='menu tendina'!$A$10,'Foglio Input_Pallet'!$C$25*'Foglio Input_Pallet'!$C$26*'Mezzi di trasporto'!G23))+_xlfn.IFS('Foglio Input_Pallet'!$E$29='menu tendina'!$A$6,('Foglio Input_Pallet'!$C$27+'Foglio Input_Pallet'!$C$28)*'Foglio Input_Pallet'!$C$29*'Mezzi di trasporto'!C23,'Foglio Input_Pallet'!$E$29='menu tendina'!$A$7,('Foglio Input_Pallet'!$C$27+'Foglio Input_Pallet'!$C$28)*'Foglio Input_Pallet'!$C$29*'Mezzi di trasporto'!D23,'Foglio Input_Pallet'!$E$26='menu tendina'!$A$8,('Foglio Input_Pallet'!$C$27+'Foglio Input_Pallet'!$C$28)*'Foglio Input_Pallet'!$C$29*'Mezzi di trasporto'!E23,'Foglio Input_Pallet'!$E$26='menu tendina'!$A$9,('Foglio Input_Pallet'!$C$27+'Foglio Input_Pallet'!$C$28)*'Foglio Input_Pallet'!$C$29*'Mezzi di trasporto'!F23,'Foglio Input_Pallet'!$E$26='menu tendina'!$A$10,('Foglio Input_Pallet'!$C$27+'Foglio Input_Pallet'!$C$28)*'Foglio Input_Pallet'!$C$29*'Mezzi di trasporto'!G23)+_xlfn.IFS('Foglio Input_Pallet'!$E$31='menu tendina'!$A$6,'Foglio Input_Pallet'!$C$30*'Foglio Input_Pallet'!$C$31*'Mezzi di trasporto'!C23,'Foglio Input_Pallet'!$E$31='menu tendina'!$A$7,'Foglio Input_Pallet'!$C$30*'Foglio Input_Pallet'!$C$31*'Mezzi di trasporto'!D23,'Foglio Input_Pallet'!$E$31='menu tendina'!$A$8,'Foglio Input_Pallet'!$C$30*'Foglio Input_Pallet'!$C$31*'Mezzi di trasporto'!E23,'Foglio Input_Pallet'!$E$31='menu tendina'!$A$9,'Foglio Input_Pallet'!$C$30*'Foglio Input_Pallet'!$C$31*'Mezzi di trasporto'!F23,'Foglio Input_Pallet'!$E$31='menu tendina'!$A$10,'Foglio Input_Pallet'!$C$30*'Foglio Input_Pallet'!$C$31*'Mezzi di trasporto'!G23) -> 0.0003718269475
B12: Respiratory inorganics | C12: disease inc. | D12: 3.211113457e-08 | E12: ='Foglio Input_Pallet'!$C$21*'Materie prime'!C24/'Foglio Input_Pallet'!$C$15 -> 1.32182525e-09 | F12: ='Foglio Input_Pallet'!$C$23*'Materie prime'!D24/'Foglio Input_Pallet'!$C$15 -> 0 | G12: ='Foglio Input_Pallet'!$C$25*'Materie prime'!E24/'Foglio Input_Pallet'!$C$15 -> 2.317178913e-08 | H12: ='Foglio Input_Pallet'!$C$27*'Materie prime'!F24/'Foglio Input_Pallet'!$C$15 -> 1.573722682e-09 | I12: ='Foglio Input_Pallet'!$C$28*'Materie prime'!G24/'Foglio Input_Pallet'!$C$15 -> 0 | J12: ='Foglio Input_Pallet'!$C$30*'Materie prime'!H24/'Foglio Input_Pallet'!$C$15 -> 0 | K12: =(1000/'Foglio Input_Pallet'!$C$15)*(_xlfn.IFS('Foglio Input_Pallet'!$E$22='menu tendina'!$A$6,'Foglio Input_Pallet'!$C$21*'Foglio Input_Pallet'!$C$22*'Mezzi di trasporto'!C24,'Foglio Input_Pallet'!$E$22='menu tendina'!$A$7,'Foglio Input_Pallet'!$C$21*'Foglio Input_Pallet'!$C$22*'Mezzi di trasporto'!D24,'Foglio Input_Pallet'!$E$22='menu tendina'!$A$8,'Foglio Input_Pallet'!$C$21*'Foglio Input_Pallet'!$C$22*'Mezzi di trasporto'!E24,'Foglio Input_Pallet'!$E$22='menu tendina'!$A$9,'Foglio Input_Pallet'!$C$21*'Foglio Input_Pallet'!$C$22*'Mezzi di trasporto'!F24,'Foglio Input_Pallet'!$E$22='menu tendina'!$A$10,'Foglio Input_Pallet'!$C$21*'Foglio Input_Pallet'!$C$22*'Mezzi di trasporto'!G24)+_xlfn.IFS('Foglio Input_Pallet'!$E$24='menu tendina'!$A$6,'Foglio Input_Pallet'!$C$23*'Foglio Input_Pallet'!$C$24*'Mezzi di trasporto'!C24,'Foglio Input_Pallet'!$E$24='menu tendina'!$A$7,'Foglio Input_Pallet'!$C$23*'Foglio Input_Pallet'!$C$24*'Mezzi di trasporto'!D24,'Foglio Input_Pallet'!$E$24='menu tendina'!$A$8,'Foglio Input_Pallet'!$C$23*'Foglio Input_Pallet'!$C$24*'Mezzi di trasporto'!E24,'Foglio Input_Pallet'!$E$24='menu tendina'!$A$9,'Foglio Input_Pallet'!$C$23*'Foglio Input_Pallet'!$C$24*'Mezzi di trasporto'!F24,'Foglio Input_Pallet'!$E$24='menu tendina'!$A$10,'Foglio Input_Pallet'!$C$23*'Foglio Input_Pallet'!$C$24*'Mezzi di trasporto'!G24)+_xlfn.IFS('Foglio Input_Pallet'!$E$26='menu tendina'!$A$6,'Foglio Input_Pallet'!$C$25*'Foglio Input_Pallet'!$C$26*'Mezzi di trasporto'!C24,'Foglio Input_Pallet'!$E$26='menu tendina'!$A$7,'Foglio Input_Pallet'!$C$25*'Foglio Input_Pallet'!$C$26*'Mezzi di trasporto'!D24,'Foglio Input_Pallet'!$E$26='menu tendina'!$A$8,'Foglio Input_Pallet'!$C$25*'Foglio Input_Pallet'!$C$26*'Mezzi di trasporto'!E24,'Foglio Input_Pallet'!$E$26='menu tendina'!$A$9,'Foglio Input_Pallet'!$C$25*'Foglio Input_Pallet'!$C$26*'Mezzi di trasporto'!F24,'Foglio Input_Pallet'!$E$26='menu tendina'!$A$10,'Foglio Input_Pallet'!$C$25*'Foglio Input_Pallet'!$C$26*'Mezzi di trasporto'!G24))+_xlfn.IFS('Foglio Input_Pallet'!$E$29='menu tendina'!$A$6,('Foglio Input_Pallet'!$C$27+'Foglio Input_Pallet'!$C$28)*'Foglio Input_Pallet'!$C$29*'Mezzi di trasporto'!C24,'Foglio Input_Pallet'!$E$29='menu tendina'!$A$7,('Foglio Input_Pallet'!$C$27+'Foglio Input_Pallet'!$C$28)*'Foglio Input_Pallet'!$C$29*'Mezzi di trasporto'!D24,'Foglio Input_Pallet'!$E$26='menu tendina'!$A$8,('Foglio Input_Pallet'!$C$27+'Foglio Input_Pallet'!$C$28)*'Foglio Input_Pallet'!$C$29*'Mezzi di trasporto'!E24,'Foglio Input_Pallet'!$E$26='menu tendina'!$A$9,('Foglio Input_Pallet'!$C$27+'Foglio Input_Pallet'!$C$28)*'Foglio Input_Pallet'!$C$29*'Mezzi di trasporto'!F24,'Foglio Input_Pallet'!$E$26='menu tendina'!$A$10,('Foglio Input_Pallet'!$C$27+'Foglio Input_Pallet'!$C$28)*'Foglio Input_Pallet'!$C$29*'Mezzi di trasporto'!G24)+_xlfn.IFS('Foglio Input_Pallet'!$E$31='menu tendina'!$A$6,'Foglio Input_Pallet'!$C$30*'Foglio Input_Pallet'!$C$31*'Mezzi di trasporto'!C24,'Foglio Input_Pallet'!$E$31='menu tendina'!$A$7,'Foglio Input_Pallet'!$C$30*'Foglio Input_Pallet'!$C$31*'Mezzi di trasporto'!D24,'Foglio Input_Pallet'!$E$31='menu tendina'!$A$8,'Foglio Input_Pallet'!$C$30*'Foglio Input_Pallet'!$C$31*'Mezzi di trasporto'!E24,'Foglio Input_Pallet'!$E$31='menu tendina'!$A$9,'Foglio Input_Pallet'!$C$30*'Foglio Input_Pallet'!$C$31*'Mezzi di trasporto'!F24,'Foglio Input_Pallet'!$E$31='menu tendina'!$A$10,'Foglio Input_Pallet'!$C$30*'Foglio Input_Pallet'!$C$31*'Mezzi di trasporto'!G24) -> 6.043797501e-09
B13: Non-cancer human health effects | C13: CTUh | D13: 4.583681756e-08 | E13: ='Foglio Input_Pallet'!$C$21*'Materie prime'!C25/'Foglio Input_Pallet'!$C$15 -> 1.148389148e-09 | F13: ='Foglio Input_Pallet'!$C$23*'Materie prime'!D25/'Foglio Input_Pallet'!$C$15 -> 0 | G13: ='Foglio Input_Pallet'!$C$25*'Materie prime'!E25/'Foglio Input_Pallet'!$C$15 -> 2.759172146e-08 | H13: ='Foglio Input_Pallet'!$C$27*'Materie prime'!F25/'Foglio Input_Pallet'!$C$15 -> 5.367346636e-09 | I13: ='Foglio Input_Pallet'!$C$28*'Materie prime'!G25/'Foglio Input_Pallet'!$C$15 -> 0 | J13: ='Foglio Input_Pallet'!$C$30*'Materie prime'!H25/'Foglio Input_Pallet'!$C$15 -> 0 | K13: =(1000/'Foglio Input_Pallet'!$C$15)*(_xlfn.IFS('Foglio Input_Pallet'!$E$22='menu tendina'!$A$6,'Foglio Input_Pallet'!$C$21*'Foglio Input_Pallet'!$C$22*'Mezzi di trasporto'!C25,'Foglio Input_Pallet'!$E$22='menu tendina'!$A$7,'Foglio Input_Pallet'!$C$21*'Foglio Input_Pallet'!$C$22*'Mezzi di trasporto'!D25,'Foglio Input_Pallet'!$E$22='menu tendina'!$A$8,'Foglio Input_Pallet'!$C$21*'Foglio Input_Pallet'!$C$22*'Mezzi di trasporto'!E25,'Foglio Input_Pallet'!$E$22='menu tendina'!$A$9,'Foglio Input_Pallet'!$C$21*'Foglio Input_Pallet'!$C$22*'Mezzi di trasporto'!F25,'Foglio Input_Pallet'!$E$22='menu tendina'!$A$10,'Foglio Input_Pallet'!$C$21*'Foglio Input_Pallet'!$C$22*'Mezzi di trasporto'!G25)+_xlfn.IFS('Foglio Input_Pallet'!$E$24='menu tendina'!$A$6,'Foglio Input_Pallet'!$C$23*'Foglio Input_Pallet'!$C$24*'Mezzi di trasporto'!C25,'Foglio Input_Pallet'!$E$24='menu tendina'!$A$7,'Foglio Input_Pallet'!$C$23*'Foglio Input_Pallet'!$C$24*'Mezzi di trasporto'!D25,'Foglio Input_Pallet'!$E$24='menu tendina'!$A$8,'Foglio Input_Pallet'!$C$23*'Foglio Input_Pallet'!$C$24*'Mezzi di trasporto'!E25,'Foglio Input_Pallet'!$E$24='menu tendina'!$A$9,'Foglio Input_Pallet'!$C$23*'Foglio Input_Pallet'!$C$24*'Mezzi di trasporto'!F25,'Foglio Input_Pallet'!$E$24='menu tendina'!$A$10,'Foglio Input_Pallet'!$C$23*'Foglio Input_Pallet'!$C$24*'Mezzi di trasporto'!G25)+_xlfn.IFS('Foglio Input_Pallet'!$E$26='menu tendina'!$A$6,'Foglio Input_Pallet'!$C$25*'Foglio Input_Pallet'!$C$26*'Mezzi di trasporto'!C25,'Foglio Input_Pallet'!$E$26='menu tendina'!$A$7,'Foglio Input_Pallet'!$C$25*'Foglio Input_Pallet'!$C$26*'Mezzi di trasporto'!D25,'Foglio Input_Pallet'!$E$26='menu tendina'!$A$8,'Foglio Input_Pallet'!$C$25*'Foglio Input_Pallet'!$C$26*'Mezzi di trasporto'!E25,'Foglio Input_Pallet'!$E$26='menu tendina'!$A$9,'Foglio Input_Pallet'!$C$25*'Foglio Input_Pallet'!$C$26*'Mezzi di trasporto'!F25,'Foglio Input_Pallet'!$E$26='menu tendina'!$A$10,'Foglio Input_Pallet'!$C$25*'Foglio Input_Pallet'!$C$26*'Mezzi di trasporto'!G25))+_xlfn.IFS('Foglio Input_Pallet'!$E$29='menu tendina'!$A$6,('Foglio Input_Pallet'!$C$27+'Foglio Input_Pallet'!$C$28)*'Foglio Input_Pallet'!$C$29*'Mezzi di trasporto'!C25,'Foglio Input_Pallet'!$E$29='menu tendina'!$A$7,('Foglio Input_Pallet'!$C$27+'Foglio Input_Pallet'!$C$28)*'Foglio Input_Pallet'!$C$29*'Mezzi di trasporto'!D25,'Foglio Input_Pallet'!$E$26='menu tendina'!$A$8,('Foglio Input_Pallet'!$C$27+'Foglio Input_Pallet'!$C$28)*'Foglio Input_Pallet'!$C$29*'Mezzi di trasporto'!E25,'Foglio Input_Pallet'!$E$26='menu tendina'!$A$9,('Foglio Input_Pallet'!$C$27+'Foglio Input_Pallet'!$C$28)*'Foglio Input_Pallet'!$C$29*'Mezzi di trasporto'!F25,'Foglio Input_Pallet'!$E$26='menu tendina'!$A$10,('Foglio Input_Pallet'!$C$27+'Foglio Input_Pallet'!$C$28)*'Foglio Input_Pallet'!$C$29*'Mezzi di trasporto'!G25)+_xlfn.IFS('Foglio Input_Pallet'!$E$31='menu tendina'!$A$6,'Foglio Input_Pallet'!$C$30*'Foglio Input_Pallet'!$C$31*'Mezzi di trasporto'!C25,'Foglio Input_Pallet'!$E$31='menu tendina'!$A$7,'Foglio Input_Pallet'!$C$30*'Foglio Input_Pallet'!$C$31*'Mezzi di trasporto'!D25,'Foglio Input_Pallet'!$E$31='menu tendina'!$A$8,'Foglio Input_Pallet'!$C$30*'Foglio Input_Pallet'!$C$31*'Mezzi di trasporto'!E25,'Foglio Input_Pallet'!$E$31='menu tendina'!$A$9,'Foglio Input_Pallet'!$C$30*'Foglio Input_Pallet'!$C$31*'Mezzi di trasporto'!F25,'Foglio Input_Pallet'!$E$31='menu tendina'!$A$10,'Foglio Input_Pallet'!$C$30*'Foglio Input_Pallet'!$C$31*'Mezzi di trasporto'!G25) -> 1.172936032e-08
B14: Cancer human health effects | C14: CTUh | D14: 3.598828416e-08 | E14: ='Foglio Input_Pallet'!$C$21*'Materie prime'!C26/'Foglio Input_Pallet'!$C$15 -> 1.10253811e-09 | F14: ='Foglio Input_Pallet'!$C$23*'Materie prime'!D26/'Foglio Input_Pallet'!$C$15 -> 0 | G14: ='Foglio Input_Pallet'!$C$25*'Materie prime'!E26/'Foglio Input_Pallet'!$C$15 -> 3.523235242e-09 | H14: ='Foglio Input_Pallet'!$C$27*'Materie prime'!F26/'Foglio Input_Pallet'!$C$15 -> 3.019235864e-08 | I14: ='Foglio Input_Pallet'!$C$28*'Materie prime'!G26/'Foglio Input_Pallet'!$C$15 -> 0 | J14: ='Foglio Input_Pallet'!$C$30*'Materie prime'!H26/'Foglio Input_Pallet'!$C$15 -> 0 | K14: =(1000/'Foglio Input_Pallet'!$C$15)*(_xlfn.IFS('Foglio Input_Pallet'!$E$22='menu tendina'!$A$6,'Foglio Input_Pallet'!$C$21*'Foglio Input_Pallet'!$C$22*'Mezzi di trasporto'!C26,'Foglio Input_Pallet'!$E$22='menu tendina'!$A$7,'Foglio Input_Pallet'!$C$21*'Foglio Input_Pallet'!$C$22*'Mezzi di trasporto'!D26,'Foglio Input_Pallet'!$E$22='menu tendina'!$A$8,'Foglio Input_Pallet'!$C$21*'Foglio Input_Pallet'!$C$22*'Mezzi di trasporto'!E26,'Foglio Input_Pallet'!$E$22='menu tendina'!$A$9,'Foglio Input_Pallet'!$C$21*'Foglio Input_Pallet'!$C$22*'Mezzi di trasporto'!F26,'Foglio Input_Pallet'!$E$22='menu tendina'!$A$10,'Foglio Input_Pallet'!$C$21*'Foglio Input_Pallet'!$C$22*'Mezzi di trasporto'!G26)+_xlfn.IFS('Foglio Input_Pallet'!$E$24='menu tendina'!$A$6,'Foglio Input_Pallet'!$C$23*'Foglio Input_Pallet'!$C$24*'Mezzi di trasporto'!C26,'Foglio Input_Pallet'!$E$24='menu tendina'!$A$7,'Foglio Input_Pallet'!$C$23*'Foglio Input_Pallet'!$C$24*'Mezzi di trasporto'!D26,'Foglio Input_Pallet'!$E$24='menu tendina'!$A$8,'Foglio Input_Pallet'!$C$23*'Foglio Input_Pallet'!$C$24*'Mezzi di trasporto'!E26,'Foglio Input_Pallet'!$E$24='menu tendina'!$A$9,'Foglio Input_Pallet'!$C$23*'Foglio Input_Pallet'!$C$24*'Mezzi di trasporto'!F26,'Foglio Input_Pallet'!$E$24='menu tendina'!$A$10,'Foglio Input_Pallet'!$C$23*'Foglio Input_Pallet'!$C$24*'Mezzi di trasporto'!G26)+_xlfn.IFS('Foglio Input_Pallet'!$E$26='menu tendina'!$A$6,'Foglio Input_Pallet'!$C$25*'Foglio Input_Pallet'!$C$26*'Mezzi di trasporto'!C26,'Foglio Input_Pallet'!$E$26='menu tendina'!$A$7,'Foglio Input_Pallet'!$C$25*'Foglio Input_Pallet'!$C$26*'Mezzi di trasporto'!D26,'Foglio Input_Pallet'!$E$26='menu tendina'!$A$8,'Foglio Input_Pallet'!$C$25*'Foglio Input_Pallet'!$C$26*'Mezzi di trasporto'!E26,'Foglio Input_Pallet'!$E$26='menu tendina'!$A$9,'Foglio Input_Pallet'!$C$25*'Foglio Input_Pallet'!$C$26*'Mezzi di trasporto'!F26,'Foglio Input_Pallet'!$E$26='menu tendina'!$A$10,'Foglio Input_Pallet'!$C$25*'Foglio Input_Pallet'!$C$26*'Mezzi di trasporto'!G26))+_xlfn.IFS('Foglio Input_Pallet'!$E$29='menu tendina'!$A$6,('Foglio Input_Pallet'!$C$27+'Foglio Input_Pallet'!$C$28)*'Foglio Input_Pallet'!$C$29*'Mezzi di trasporto'!C26,'Foglio Input_Pallet'!$E$29='menu tendina'!$A$7,('Foglio Input_Pallet'!$C$27+'Foglio Input_Pallet'!$C$28)*'Foglio Input_Pallet'!$C$29*'Mezzi di trasporto'!D26,'Foglio Input_Pallet'!$E$26='menu tendina'!$A$8,('Foglio Input_Pallet'!$C$27+'Foglio Input_Pallet'!$C$28)*'Foglio Input_Pallet'!$C$29*'Mezzi di trasporto'!E26,'Foglio Input_Pallet'!$E$26='menu tendina'!$A$9,('Foglio Input_Pallet'!$C$27+'Foglio Input_Pallet'!$C$28)*'Foglio Input_Pallet'!$C$29*'Mezzi di trasporto'!F26,'Foglio Input_Pallet'!$E$26='menu tendina'!$A$10,('Foglio Input_Pallet'!$C$27+'Foglio Input_Pallet'!$C$28)*'Foglio Input_Pallet'!$C$29*'Mezzi di trasporto'!G26)+_xlfn.IFS('Foglio Input_Pallet'!$E$31='menu tendina'!$A$6,'Foglio Input_Pallet'!$C$30*'Foglio Input_Pallet'!$C$31*'Mezzi di trasporto'!C26,'Foglio Input_Pallet'!$E$31='menu tendina'!$A$7,'Foglio Input_Pallet'!$C$30*'Foglio Input_Pallet'!$C$31*'Mezzi di trasporto'!D26,'Foglio Input_Pallet'!$E$31='menu tendina'!$A$8,'Foglio Input_Pallet'!$C$30*'Foglio Input_Pallet'!$C$31*'Mezzi di trasporto'!E26,'Foglio Input_Pallet'!$E$31='menu tendina'!$A$9,'Foglio Input_Pallet'!$C$30*'Foglio Input_Pallet'!$C$31*'Mezzi di trasporto'!F26,'Foglio Input_Pallet'!$E$31='menu tendina'!$A$10,'Foglio Input_Pallet'!$C$30*'Foglio Input_Pallet'!$C$31*'Mezzi di trasporto'!G26) -> 1.17015217e-09
B15: Acidification terrestrial and freshwater | C15: mol H+ eq | D15: 0.001228497024 | E15: ='Foglio Input_Pallet'!$C$21*'Materie prime'!C27/'Foglio Input_Pallet'!$C$15 -> 0.0001511977293 | F15: ='Foglio Input_Pallet'!$C$23*'Materie prime'!D27/'Foglio Input_Pallet'!$C$15 -> 0 | G15: ='Foglio Input_Pallet'!$C$25*'Materie prime'!E27/'Foglio Input_Pallet'!$C$15 -> 0.0006607189701 | H15: ='Foglio Input_Pallet'!$C$27*'Materie prime'!F27/'Foglio Input_Pallet'!$C$15 -> 8.728894909e-05 | I15: ='Foglio Input_Pallet'!$C$28*'Materie prime'!G27/'Foglio Input_Pallet'!$C$15 -> 0 | J15: ='Foglio Input_Pallet'!$C$30*'Materie prime'!H27/'Foglio Input_Pallet'!$C$15 -> 0 | K15: =(1000/'Foglio Input_Pallet'!$C$15)*(_xlfn.IFS('Foglio Input_Pallet'!$E$22='menu tendina'!$A$6,'Foglio Input_Pallet'!$C$21*'Foglio Input_Pallet'!$C$22*'Mezzi di trasporto'!C27,'Foglio Input_Pallet'!$E$22='menu tendina'!$A$7,'Foglio Input_Pallet'!$C$21*'Foglio Input_Pallet'!$C$22*'Mezzi di trasporto'!D27,'Foglio Input_Pallet'!$E$22='menu tendina'!$A$8,'Foglio Input_Pallet'!$C$21*'Foglio Input_Pallet'!$C$22*'Mezzi di trasporto'!E27,'Foglio Input_Pallet'!$E$22='menu tendina'!$A$9,'Foglio Input_Pallet'!$C$21*'Foglio Input_Pallet'!$C$22*'Mezzi di trasporto'!F27,'Foglio Input_Pallet'!$E$22='menu tendina'!$A$10,'Foglio Input_Pallet'!$C$21*'Foglio Input_Pallet'!$C$22*'Mezzi di trasporto'!G27)+_xlfn.IFS('Foglio Input_Pallet'!$E$24='menu tendina'!$A$6,'Foglio Input_Pallet'!$C$23*'Foglio Input_Pallet'!$C$24*'Mezzi di trasporto'!C27,'Foglio Input_Pallet'!$E$24='menu tendina'!$A$7,'Foglio Input_Pallet'!$C$23*'Foglio Input_Pallet'!$C$24*'Mezzi di trasporto'!D27,'Foglio Input_Pallet'!$E$24='menu tendina'!$A$8,'Foglio Input_Pallet'!$C$23*'Foglio Input_Pallet'!$C$24*'Mezzi di trasporto'!E27,'Foglio Input_Pallet'!$E$24='menu tendina'!$A$9,'Foglio Input_Pallet'!$C$23*'Foglio Input_Pallet'!$C$24*'Mezzi di trasporto'!F27,'Foglio Input_Pallet'!$E$24='menu tendina'!$A$10,'Foglio Input_Pallet'!$C$23*'Foglio Input_Pallet'!$C$24*'Mezzi di trasporto'!G27)+_xlfn.IFS('Foglio Input_Pallet'!$E$26='menu tendina'!$A$6,'Foglio Input_Pallet'!$C$25*'Foglio Input_Pallet'!$C$26*'Mezzi di trasporto'!C27,'Foglio Input_Pallet'!$E$26='menu tendina'!$A$7,'Foglio Input_Pallet'!$C$25*'Foglio Input_Pallet'!$C$26*'Mezzi di trasporto'!D27,'Foglio Input_Pallet'!$E$26='menu tendina'!$A$8,'Foglio Input_Pallet'!$C$25*'Foglio Input_Pallet'!$C$26*'Mezzi di trasporto'!E27,'Foglio Input_Pallet'!$E$26='menu tendina'!$A$9,'Foglio Input_Pallet'!$C$25*'Foglio Input_Pallet'!$C$26*'Mezzi di trasporto'!F27,'Foglio Input_Pallet'!$E$26='menu tendina'!$A$10,'Foglio Input_Pallet'!$C$25*'Foglio Input_Pallet'!$C$26*'Mezzi di trasporto'!G27))+_xlfn.IFS('Foglio Input_Pallet'!$E$29='menu tendina'!$A$6,('Foglio Input_Pallet'!$C$27+'Foglio Input_Pallet'!$C$28)*'Foglio Input_Pallet'!$C$29*'Mezzi di trasporto'!C27,'Foglio Input_Pallet'!$E$29='menu tendina'!$A$7,('Foglio Input_Pallet'!$C$27+'Foglio Input_Pallet'!$C$28)*'Foglio Input_Pallet'!$C$29*'Mezzi di trasporto'!D27,'Foglio Input_Pallet'!$E$26='menu tendina'!$A$8,('Foglio Input_Pallet'!$C$27+'Foglio Input_Pallet'!$C$28)*'Foglio Input_Pallet'!$C$29*'Mezzi di trasporto'!E27,'Foglio Input_Pallet'!$E$26='menu tendina'!$A$9,('Foglio Input_Pallet'!$C$27+'Foglio Input_Pallet'!$C$28)*'Foglio Input_Pallet'!$C$29*'Mezzi di trasporto'!F27,'Foglio Input_Pallet'!$E$26='menu tendina'!$A$10,('Foglio Input_Pallet'!$C$27+'Foglio Input_Pallet'!$C$28)*'Foglio Input_Pallet'!$C$29*'Mezzi di trasporto'!G27)+_xlfn.IFS('Foglio Input_Pallet'!$E$31='menu tendina'!$A$6,'Foglio Input_Pallet'!$C$30*'Foglio Input_Pallet'!$C$31*'Mezzi di trasporto'!C27,'Foglio Input_Pallet'!$E$31='menu tendina'!$A$7,'Foglio Input_Pallet'!$C$30*'Foglio Input_Pallet'!$C$31*'Mezzi di trasporto'!D27,'Foglio Input_Pallet'!$E$31='menu tendina'!$A$8,'Foglio Input_Pallet'!$C$30*'Foglio Input_Pallet'!$C$31*'Mezzi di trasporto'!E27,'Foglio Input_Pallet'!$E$31='menu tendina'!$A$9,'Foglio Input_Pallet'!$C$30*'Foglio Input_Pallet'!$C$31*'Mezzi di trasporto'!F27,'Foglio Input_Pallet'!$E$31='menu tendina'!$A$10,'Foglio Input_Pallet'!$C$30*'Foglio Input_Pallet'!$C$31*'Mezzi di trasporto'!G27) -> 0.0003292913752
B16: Eutrophication freshwater | C16: kg P eq | D16: 7.162956001e-05 | E16: ='Foglio Input_Pallet'!$C$21*'Materie prime'!C28/'Foglio Input_Pallet'!$C$15 -> 5.9095225e-06 | F16: ='Foglio Input_Pallet'!$C$23*'Materie prime'!D28/'Foglio Input_Pallet'!$C$15 -> 0 | G16: ='Foglio Input_Pallet'!$C$25*'Materie prime'!E28/'Foglio Input_Pallet'!$C$15 -> 5.175355233e-05 | H16: ='Foglio Input_Pallet'!$C$27*'Materie prime'!F28/'Foglio Input_Pallet'!$C$15 -> 9.689923091e-06 | I16: ='Foglio Input_Pallet'!$C$28*'Materie prime'!G28/'Foglio Input_Pallet'!$C$15 -> 0 | J16: ='Foglio Input_Pallet'!$C$30*'Materie prime'!H28/'Foglio Input_Pallet'!$C$15 -> 0 | K16: =(1000/'Foglio Input_Pallet'!$C$15)*(_xlfn.IFS('Foglio Input_Pallet'!$E$22='menu tendina'!$A$6,'Foglio Input_Pallet'!$C$21*'Foglio Input_Pallet'!$C$22*'Mezzi di trasporto'!C28,'Foglio Input_Pallet'!$E$22='menu tendina'!$A$7,'Foglio Input_Pallet'!$C$21*'Foglio Input_Pallet'!$C$22*'Mezzi di trasporto'!D28,'Foglio Input_Pallet'!$E$22='menu tendina'!$A$8,'Foglio Input_Pallet'!$C$21*'Foglio Input_Pallet'!$C$22*'Mezzi di trasporto'!E28,'Foglio Input_Pallet'!$E$22='menu tendina'!$A$9,'Foglio Input_Pallet'!$C$21*'Foglio Input_Pallet'!$C$22*'Mezzi di trasporto'!F28,'Foglio Input_Pallet'!$E$22='menu tendina'!$A$10,'Foglio Input_Pallet'!$C$21*'Foglio Input_Pallet'!$C$22*'Mezzi di trasporto'!G28)+_xlfn.IFS('Foglio Input_Pallet'!$E$24='menu tendina'!$A$6,'Foglio Input_Pallet'!$C$23*'Foglio Input_Pallet'!$C$24*'Mezzi di trasporto'!C28,'Foglio Input_Pallet'!$E$24='menu tendina'!$A$7,'Foglio Input_Pallet'!$C$23*'Foglio Input_Pallet'!$C$24*'Mezzi di trasporto'!D28,'Foglio Input_Pallet'!$E$24='menu tendina'!$A$8,'Foglio Input_Pallet'!$C$23*'Foglio Input_Pallet'!$C$24*'Mezzi di trasporto'!E28,'Foglio Input_Pallet'!$E$24='menu tendina'!$A$9,'Foglio Input_Pallet'!$C$23*'Foglio Input_Pallet'!$C$24*'Mezzi di trasporto'!F28,'Foglio Input_Pallet'!$E$24='menu tendina'!$A$10,'Foglio Input_Pallet'!$C$23*'Foglio Input_Pallet'!$C$24*'Mezzi di trasporto'!G28)+_xlfn.IFS('Foglio Input_Pallet'!$E$26='menu tendina'!$A$6,'Foglio Input_Pallet'!$C$25*'Foglio Input_Pallet'!$C$26*'Mezzi di trasporto'!C28,'Foglio Input_Pallet'!$E$26='menu tendina'!$A$7,'Foglio Input_Pallet'!$C$25*'Foglio Input_Pallet'!$C$26*'Mezzi di trasporto'!D28,'Foglio Input_Pallet'!$E$26='menu tendina'!$A$8,'Foglio Input_Pallet'!$C$25*'Foglio Input_Pallet'!$C$26*'Mezzi di trasporto'!E28,'Foglio Input_Pallet'!$E$26='menu tendina'!$A$9,'Foglio Input_Pallet'!$C$25*'Foglio Input_Pallet'!$C$26*'Mezzi di trasporto'!F28,'Foglio Input_Pallet'!$E$26='menu tendina'!$A$10,'Foglio Input_Pallet'!$C$25*'Foglio Input_Pallet'!$C$26*'Mezzi di trasporto'!G28))+_xlfn.IFS('Foglio Input_Pallet'!$E$29='menu tendina'!$A$6,('Foglio Input_Pallet'!$C$27+'Foglio Input_Pallet'!$C$28)*'Foglio Input_Pallet'!$C$29*'Mezzi di trasporto'!C28,'Foglio Input_Pallet'!$E$29='menu tendina'!$A$7,('Foglio Input_Pallet'!$C$27+'Foglio Input_Pallet'!$C$28)*'Foglio Input_Pallet'!$C$29*'Mezzi di trasporto'!D28,'Foglio Input_Pallet'!$E$26='menu tendina'!$A$8,('Foglio Input_Pallet'!$C$27+'Foglio Input_Pallet'!$C$28)*'Foglio Input_Pallet'!$C$29*'Mezzi di trasporto'!E28,'Foglio Input_Pallet'!$E$26='menu tendina'!$A$9,('Foglio Input_Pallet'!$C$27+'Foglio Input_Pallet'!$C$28)*'Foglio Input_Pallet'!$C$29*'Mezzi di trasporto'!F28,'Foglio Input_Pallet'!$E$26='menu tendina'!$A$10,('Foglio Input_Pallet'!$C$27+'Foglio Input_Pallet'!$C$28)*'Foglio Input_Pallet'!$C$29*'Mezzi di trasporto'!G28)+_xlfn.IFS('Foglio Input_Pallet'!$E$31='menu tendina'!$A$6,'Foglio Input_Pallet'!$C$30*'Foglio Input_Pallet'!$C$31*'Mezzi di trasporto'!C28,'Foglio Input_Pallet'!$E$31='menu tendina'!$A$7,'Foglio Input_Pallet'!$C$30*'Foglio Input_Pallet'!$C$31*'Mezzi di trasporto'!D28,'Foglio Input_Pallet'!$E$31='menu tendina'!$A$8,'Foglio Input_Pallet'!$C$30*'Foglio Input_Pallet'!$C$31*'Mezzi di trasporto'!E28,'Foglio Input_Pallet'!$E$31='menu tendina'!$A$9,'Foglio Input_Pallet'!$C$30*'Foglio Input_Pallet'!$C$31*'Mezzi di trasporto'!F28,'Foglio Input_Pallet'!$E$31='menu tendina'!$A$10,'Foglio Input_Pallet'!$C$30*'Foglio Input_Pallet'!$C$31*'Mezzi di trasporto'!G28) -> 4.276562092e-06
B17: Eutrophication marine | C17: kg N eq | D17: 0.0003590975425 | E17: ='Foglio Input_Pallet'!$C$21*'Materie prime'!C29/'Foglio Input_Pallet'!$C$15 -> 6.02376367e-05 | F17: ='Foglio Input_Pallet'!$C$23*'Materie prime'!D29/'Foglio Input_Pallet'!$C$15 -> 0 | G17: ='Foglio Input_Pallet'!$C$25*'Materie prime'!E29/'Foglio Input_Pallet'!$C$15 -> 0.0001607789976 | H17: ='Foglio Input_Pallet'!$C$27*'Materie prime'!F29/'Foglio Input_Pallet'!$C$15 -> 2.401977818e-05 | I17: ='Foglio Input_Pallet'!$C$28*'Materie prime'!G29/'Foglio Input_Pallet'!$C$15 -> 0 | J17: ='Foglio Input_Pallet'!$C$30*'Materie prime'!H29/'Foglio Input_Pallet'!$C$15 -> 0 | K17: =(1000/'Foglio Input_Pallet'!$C$15)*(_xlfn.IFS('Foglio Input_Pallet'!$E$22='menu tendina'!$A$6,'Foglio Input_Pallet'!$C$21*'Foglio Input_Pallet'!$C$22*'Mezzi di trasporto'!C29,'Foglio Input_Pallet'!$E$22='menu tendina'!$A$7,'Foglio Input_Pallet'!$C$21*'Foglio Input_Pallet'!$C$22*'Mezzi di trasporto'!D29,'Foglio Input_Pallet'!$E$22='menu tendina'!$A$8,'Foglio Input_Pallet'!$C$21*'Foglio Input_Pallet'!$C$22*'Mezzi di trasporto'!E29,'Foglio Input_Pallet'!$E$22='menu tendina'!$A$9,'Foglio Input_Pallet'!$C$21*'Foglio Input_Pallet'!$C$22*'Mezzi di trasporto'!F29,'Foglio Input_Pallet'!$E$22='menu tendina'!$A$10,'Foglio Input_Pallet'!$C$21*'Foglio Input_Pallet'!$C$22*'Mezzi di trasporto'!G29)+_xlfn.IFS('Foglio Input_Pallet'!$E$24='menu tendina'!$A$6,'Foglio Input_Pallet'!$C$23*'Foglio Input_Pallet'!$C$24*'Mezzi di trasporto'!C29,'Foglio Input_Pallet'!$E$24='menu tendina'!$A$7,'Foglio Input_Pallet'!$C$23*'Foglio Input_Pallet'!$C$24*'Mezzi di trasporto'!D29,'Foglio Input_Pallet'!$E$24='menu tendina'!$A$8,'Foglio Input_Pallet'!$C$23*'Foglio Input_Pallet'!$C$24*'Mezzi di trasporto'!E29,'Foglio Input_Pallet'!$E$24='menu tendina'!$A$9,'Foglio Input_Pallet'!$C$23*'Foglio Input_Pallet'!$C$24*'Mezzi di trasporto'!F29,'Foglio Input_Pallet'!$E$24='menu tendina'!$A$10,'Foglio Input_Pallet'!$C$23*'Foglio Input_Pallet'!$C$24*'Mezzi di trasporto'!G29)+_xlfn.IFS('Foglio Input_Pallet'!$E$26='menu tendina'!$A$6,'Foglio Input_Pallet'!$C$25*'Foglio Input_Pallet'!$C$26*'Mezzi di trasporto'!C29,'Foglio Input_Pallet'!$E$26='menu tendina'!$A$7,'Foglio Input_Pallet'!$C$25*'Foglio Input_Pallet'!$C$26*'Mezzi di trasporto'!D29,'Foglio Input_Pallet'!$E$26='menu tendina'!$A$8,'Foglio Input_Pallet'!$C$25*'Foglio Input_Pallet'!$C$26*'Mezzi di trasporto'!E29,'Foglio Input_Pallet'!$E$26='menu tendina'!$A$9,'Foglio Input_Pallet'!$C$25*'Foglio Input_Pallet'!$C$26*'Mezzi di trasporto'!F29,'Foglio Input_Pallet'!$E$26='menu tendina'!$A$10,'Foglio Input_Pallet'!$C$25*'Foglio Input_Pallet'!$C$26*'Mezzi di trasporto'!G29))+_xlfn.IFS('Foglio Input_Pallet'!$E$29='menu tendina'!$A$6,('Foglio Input_Pallet'!$C$27+'Foglio Input_Pallet'!$C$28)*'Foglio Input_Pallet'!$C$29*'Mezzi di trasporto'!C29,'Foglio Input_Pallet'!$E$29='menu tendina'!$A$7,('Foglio Input_Pallet'!$C$27+'Foglio Input_Pallet'!$C$28)*'Foglio Input_Pallet'!$C$29*'Mezzi di trasporto'!D29,'Foglio Input_Pallet'!$E$26='menu tendina'!$A$8,('Foglio Input_Pallet'!$C$27+'Foglio Input_Pallet'!$C$28)*'Foglio Input_Pallet'!$C$29*'Mezzi di trasporto'!E29,'Foglio Input_Pallet'!$E$26='menu tendina'!$A$9,('Foglio Input_Pallet'!$C$27+'Foglio Input_Pallet'!$C$28)*'Foglio Input_Pallet'!$C$29*'Mezzi di trasporto'!F29,'Foglio Input_Pallet'!$E$26='menu tendina'!$A$10,('Foglio Input_Pallet'!$C$27+'Foglio Input_Pallet'!$C$28)*'Foglio Input_Pallet'!$C$29*'Mezzi di trasporto'!G29)+_xlfn.IFS('Foglio Input_Pallet'!$E$31='menu tendina'!$A$6,'Foglio Input_Pallet'!$C$30*'Foglio Input_Pallet'!$C$31*'Mezzi di trasporto'!C29,'Foglio Input_Pallet'!$E$31='menu tendina'!$A$7,'Foglio Input_Pallet'!$C$30*'Foglio Input_Pallet'!$C$31*'Mezzi di trasporto'!D29,'Foglio Input_Pallet'!$E$31='menu tendina'!$A$8,'Foglio Input_Pallet'!$C$30*'Foglio Input_Pallet'!$C$31*'Mezzi di trasporto'!E29,'Foglio Input_Pallet'!$E$31='menu tendina'!$A$9,'Foglio Input_Pallet'!$C$30*'Foglio Input_Pallet'!$C$31*'Mezzi di trasporto'!F29,'Foglio Input_Pallet'!$E$31='menu tendina'!$A$10,'Foglio Input_Pallet'!$C$30*'Foglio Input_Pallet'!$C$31*'Mezzi di trasporto'!G29) -> 0.00011406113
B18: Eutrophication terrestrial | C18: mol N eq | D18: 0.003796100273 | E18: ='Foglio Input_Pallet'!$C$21*'Materie prime'!C30/'Foglio Input_Pallet'!$C$15 -> 0.000628722933 | F18: ='Foglio Input_Pallet'!$C$23*'Materie prime'!D30/'Foglio Input_Pallet'!$C$15 -> 0 | G18: ='Foglio Input_Pallet'!$C$25*'Materie prime'!E30/'Foglio Input_Pallet'!$C$15 -> 0.001726024534 | H18: ='Foglio Input_Pallet'!$C$27*'Materie prime'!F30/'Foglio Input_Pallet'!$C$15 -> 0.0001948323136 | I18: ='Foglio Input_Pallet'!$C$28*'Materie prime'!G30/'Foglio Input_Pallet'!$C$15 -> 0 | J18: ='Foglio Input_Pallet'!$C$30*'Materie prime'!H30/'Foglio Input_Pallet'!$C$15 -> 0 | K18: =(1000/'Foglio Input_Pallet'!$C$15)*(_xlfn.IFS('Foglio Input_Pallet'!$E$22='menu tendina'!$A$6,'Foglio Input_Pallet'!$C$21*'Foglio Input_Pallet'!$C$22*'Mezzi di trasporto'!C30,'Foglio Input_Pallet'!$E$22='menu tendina'!$A$7,'Foglio Input_Pallet'!$C$21*'Foglio Input_Pallet'!$C$22*'Mezzi di trasporto'!D30,'Foglio Input_Pallet'!$E$22='menu tendina'!$A$8,'Foglio Input_Pallet'!$C$21*'Foglio Input_Pallet'!$C$22*'Mezzi di trasporto'!E30,'Foglio Input_Pallet'!$E$22='menu tendina'!$A$9,'Foglio Input_Pallet'!$C$21*'Foglio Input_Pallet'!$C$22*'Mezzi di trasporto'!F30,'Foglio Input_Pallet'!$E$22='menu tendina'!$A$10,'Foglio Input_Pallet'!$C$21*'Foglio Input_Pallet'!$C$22*'Mezzi di trasporto'!G30)+_xlfn.IFS('Foglio Input_Pallet'!$E$24='menu tendina'!$A$6,'Foglio Input_Pallet'!$C$23*'Foglio Input_Pallet'!$C$24*'Mezzi di trasporto'!C30,'Foglio Input_Pallet'!$E$24='menu tendina'!$A$7,'Foglio Input_Pallet'!$C$23*'Foglio Input_Pallet'!$C$24*'Mezzi di trasporto'!D30,'Foglio Input_Pallet'!$E$24='menu tendina'!$A$8,'Foglio Input_Pallet'!$C$23*'Foglio Input_Pallet'!$C$24*'Mezzi di trasporto'!E30,'Foglio Input_Pallet'!$E$24='menu tendina'!$A$9,'Foglio Input_Pallet'!$C$23*'Foglio Input_Pallet'!$C$24*'Mezzi di trasporto'!F30,'Foglio Input_Pallet'!$E$24='menu tendina'!$A$10,'Foglio Input_Pallet'!$C$23*'Foglio Input_Pallet'!$C$24*'Mezzi di trasporto'!G30)+_xlfn.IFS('Foglio Input_Pallet'!$E$26='menu tendina'!$A$6,'Foglio Input_Pallet'!$C$25*'Foglio Input_Pallet'!$C$26*'Mezzi di trasporto'!C30,'Foglio Input_Pallet'!$E$26='menu tendina'!$A$7,'Foglio Input_Pallet'!$C$25*'Foglio Input_Pallet'!$C$26*'Mezzi di trasporto'!D30,'Foglio Input_Pallet'!$E$26='menu tendina'!$A$8,'Foglio Input_Pallet'!$C$25*'Foglio Input_Pallet'!$C$26*'Mezzi di trasporto'!E30,'Foglio Input_Pallet'!$E$26='menu tendina'!$A$9,'Foglio Input_Pallet'!$C$25*'Foglio Input_Pallet'!$C$26*'Mezzi di trasporto'!F30,'Foglio Input_Pallet'!$E$26='menu tendina'!$A$10,'Foglio Input_Pallet'!$C$25*'Foglio Input_Pallet'!$C$26*'Mezzi di trasporto'!G30))+_xlfn.IFS('Foglio Input_Pallet'!$E$29='menu tendina'!$A$6,('Foglio Input_Pallet'!$C$27+'Foglio Input_Pallet'!$C$28)*'Foglio Input_Pallet'!$C$29*'Mezzi di trasporto'!C30,'Foglio Input_Pallet'!$E$29='menu tendina'!$A$7,('Foglio Input_Pallet'!$C$27+'Foglio Input_Pallet'!$C$28)*'Foglio Input_Pallet'!$C$29*'Mezzi di trasporto'!D30,'Foglio Input_Pallet'!$E$26='menu tendina'!$A$8,('Foglio Input_Pallet'!$C$27+'Foglio Input_Pallet'!$C$28)*'Foglio Input_Pallet'!$C$29*'Mezzi di trasporto'!E30,'Foglio Input_Pallet'!$E$26='menu tendina'!$A$9,('Foglio Input_Pallet'!$C$27+'Foglio Input_Pallet'!$C$28)*'Foglio Input_Pallet'!$C$29*'Mezzi di trasporto'!F30,'Foglio Input_Pallet'!$E$26='menu tendina'!$A$10,('Foglio Input_Pallet'!$C$27+'Foglio Input_Pallet'!$C$28)*'Foglio Input_Pallet'!$C$29*'Mezzi di trasporto'!G30)+_xlfn.IFS('Foglio Input_Pallet'!$E$31='menu tendina'!$A$6,'Foglio Input_Pallet'!$C$30*'Foglio Input_Pallet'!$C$31*'Mezzi di trasporto'!C30,'Foglio Input_Pallet'!$E$31='menu tendina'!$A$7,'Foglio Input_Pallet'!$C$30*'Foglio Input_Pallet'!$C$31*'Mezzi di trasporto'!D30,'Foglio Input_Pallet'!$E$31='menu tendina'!$A$8,'Foglio Input_Pallet'!$C$30*'Foglio Input_Pallet'!$C$31*'Mezzi di trasporto'!E30,'Foglio Input_Pallet'!$E$31='menu tendina'!$A$9,'Foglio Input_Pallet'!$C$30*'Foglio Input_Pallet'!$C$31*'Mezzi di trasporto'!F30,'Foglio Input_Pallet'!$E$31='menu tendina'!$A$10,'Foglio Input_Pallet'!$C$30*'Foglio Input_Pallet'!$C$31*'Mezzi di trasporto'!G30) -> 0.001246520493
B19: Ecotoxicity freshwater | C19: CTUe | D19: 0.7478384166 | E19: ='Foglio Input_Pallet'!$C$21*'Materie prime'!C31/'Foglio Input_Pallet'!$C$15 -> 0.02464634443 | F19: ='Foglio Input_Pallet'!$C$23*'Materie prime'!D31/'Foglio Input_Pallet'!$C$15 -> 0 | G19: ='Foglio Input_Pallet'!$C$25*'Materie prime'!E31/'Foglio Input_Pallet'!$C$15 -> 0.1760916773 | H19: ='Foglio Input_Pallet'!$C$27*'Materie prime'!F31/'Foglio Input_Pallet'!$C$15 -> 0.3151881273 | I19: ='Foglio Input_Pallet'!$C$28*'Materie prime'!G31/'Foglio Input_Pallet'!$C$15 -> 0 | J19: ='Foglio Input_Pallet'!$C$30*'Materie prime'!H31/'Foglio Input_Pallet'!$C$15 -> 0 | K19: =(1000/'Foglio Input_Pallet'!$C$15)*(_xlfn.IFS('Foglio Input_Pallet'!$E$22='menu tendina'!$A$6,'Foglio Input_Pallet'!$C$21*'Foglio Input_Pallet'!$C$22*'Mezzi di trasporto'!C31,'Foglio Input_Pallet'!$E$22='menu tendina'!$A$7,'Foglio Input_Pallet'!$C$21*'Foglio Input_Pallet'!$C$22*'Mezzi di trasporto'!D31,'Foglio Input_Pallet'!$E$22='menu tendina'!$A$8,'Foglio Input_Pallet'!$C$21*'Foglio Input_Pallet'!$C$22*'Mezzi di trasporto'!E31,'Foglio Input_Pallet'!$E$22='menu tendina'!$A$9,'Foglio Input_Pallet'!$C$21*'Foglio Input_Pallet'!$C$22*'Mezzi di trasporto'!F31,'Foglio Input_Pallet'!$E$22='menu tendina'!$A$10,'Foglio Input_Pallet'!$C$21*'Foglio Input_Pallet'!$C$22*'Mezzi di trasporto'!G31)+_xlfn.IFS('Foglio Input_Pallet'!$E$24='menu tendina'!$A$6,'Foglio Input_Pallet'!$C$23*'Foglio Input_Pallet'!$C$24*'Mezzi di trasporto'!C31,'Foglio Input_Pallet'!$E$24='menu tendina'!$A$7,'Foglio Input_Pallet'!$C$23*'Foglio Input_Pallet'!$C$24*'Mezzi di trasporto'!D31,'Foglio Input_Pallet'!$E$24='menu tendina'!$A$8,'Foglio Input_Pallet'!$C$23*'Foglio Input_Pallet'!$C$24*'Mezzi di trasporto'!E31,'Foglio Input_Pallet'!$E$24='menu tendina'!$A$9,'Foglio Input_Pallet'!$C$23*'Foglio Input_Pallet'!$C$24*'Mezzi di trasporto'!F31,'Foglio Input_Pallet'!$E$24='menu tendina'!$A$10,'Foglio Input_Pallet'!$C$23*'Foglio Input_Pallet'!$C$24*'Mezzi di trasporto'!G31)+_xlfn.IFS('Foglio Input_Pallet'!$E$26='menu tendina'!$A$6,'Foglio Input_Pallet'!$C$25*'Foglio Input_Pallet'!$C$26*'Mezzi di trasporto'!C31,'Foglio Input_Pallet'!$E$26='menu tendina'!$A$7,'Foglio Input_Pallet'!$C$25*'Foglio Input_Pallet'!$C$26*'Mezzi di trasporto'!D31,'Foglio Input_Pallet'!$E$26='menu tendina'!$A$8,'Foglio Input_Pallet'!$C$25*'Foglio Input_Pallet'!$C$26*'Mezzi di trasporto'!E31,'Foglio Input_Pallet'!$E$26='menu tendina'!$A$9,'Foglio Input_Pallet'!$C$25*'Foglio Input_Pallet'!$C$26*'Mezzi di trasporto'!F31,'Foglio Input_Pallet'!$E$26='menu tendina'!$A$10,'Foglio Input_Pallet'!$C$25*'Foglio Input_Pallet'!$C$26*'Mezzi di trasporto'!G31))+_xlfn.IFS('Foglio Input_Pallet'!$E$29='menu tendina'!$A$6,('Foglio Input_Pallet'!$C$27+'Foglio Input_Pallet'!$C$28)*'Foglio Input_Pallet'!$C$29*'Mezzi di trasporto'!C31,'Foglio Input_Pallet'!$E$29='menu tendina'!$A$7,('Foglio Input_Pallet'!$C$27+'Foglio Input_Pallet'!$C$28)*'Foglio Input_Pallet'!$C$29*'Mezzi di trasporto'!D31,'Foglio Input_Pallet'!$E$26='menu tendina'!$A$8,('Foglio Input_Pallet'!$C$27+'Foglio Input_Pallet'!$C$28)*'Foglio Input_Pallet'!$C$29*'Mezzi di trasporto'!E31,'Foglio Input_Pallet'!$E$26='menu tendina'!$A$9,('Foglio Input_Pallet'!$C$27+'Foglio Input_Pallet'!$C$28)*'Foglio Input_Pallet'!$C$29*'Mezzi di trasporto'!F31,'Foglio Input_Pallet'!$E$26='menu tendina'!$A$10,('Foglio Input_Pallet'!$C$27+'Foglio Input_Pallet'!$C$28)*'Foglio Input_Pallet'!$C$29*'Mezzi di trasporto'!G31)+_xlfn.IFS('Foglio Input_Pallet'!$E$31='menu tendina'!$A$6,'Foglio Input_Pallet'!$C$30*'Foglio Input_Pallet'!$C$31*'Mezzi di trasporto'!C31,'Foglio Input_Pallet'!$E$31='menu tendina'!$A$7,'Foglio Input_Pallet'!$C$30*'Foglio Input_Pallet'!$C$31*'Mezzi di trasporto'!D31,'Foglio Input_Pallet'!$E$31='menu tendina'!$A$8,'Foglio Input_Pallet'!$C$30*'Foglio Input_Pallet'!$C$31*'Mezzi di trasporto'!E31,'Foglio Input_Pallet'!$E$31='menu tendina'!$A$9,'Foglio Input_Pallet'!$C$30*'Foglio Input_Pallet'!$C$31*'Mezzi di trasporto'!F31,'Foglio Input_Pallet'!$E$31='menu tendina'!$A$10,'Foglio Input_Pallet'!$C$30*'Foglio Input_Pallet'!$C$31*'Mezzi di trasporto'!G31) -> 0.2319122677
B20: Land use | C20: Pt | D20: 321.9271761 | E20: ='Foglio Input_Pallet'!$C$21*'Materie prime'!C32/'Foglio Input_Pallet'!$C$15 -> 281.3482 | F20: ='Foglio Input_Pallet'!$C$23*'Materie prime'!D32/'Foglio Input_Pallet'!$C$15 -> 0 | G20: ='Foglio Input_Pallet'!$C$25*'Materie prime'!E32/'Foglio Input_Pallet'!$C$15 -> 38.63847091 | H20: ='Foglio Input_Pallet'!$C$27*'Materie prime'!F32/'Foglio Input_Pallet'!$C$15 -> 0.1265402086 | I20: ='Foglio Input_Pallet'!$C$28*'Materie prime'!G32/'Foglio Input_Pallet'!$C$15 -> 0 | J20: ='Foglio Input_Pallet'!$C$30*'Materie prime'!H32/'Foglio Input_Pallet'!$C$15 -> 0 | K20: =(1000/'Foglio Input_Pallet'!$C$15)*(_xlfn.IFS('Foglio Input_Pallet'!$E$22='menu tendina'!$A$6,'Foglio Input_Pallet'!$C$21*'Foglio Input_Pallet'!$C$22*'Mezzi di trasporto'!C32,'Foglio Input_Pallet'!$E$22='menu tendina'!$A$7,'Foglio Input_Pallet'!$C$21*'Foglio Input_Pallet'!$C$22*'Mezzi di trasporto'!D32,'Foglio Input_Pallet'!$E$22='menu tendina'!$A$8,'Foglio Input_Pallet'!$C$21*'Foglio Input_Pallet'!$C$22*'Mezzi di trasporto'!E32,'Foglio Input_Pallet'!$E$22='menu tendina'!$A$9,'Foglio Input_Pallet'!$C$21*'Foglio Input_Pallet'!$C$22*'Mezzi di trasporto'!F32,'Foglio Input_Pallet'!$E$22='menu tendina'!$A$10,'Foglio Input_Pallet'!$C$21*'Foglio Input_Pallet'!$C$22*'Mezzi di trasporto'!G32)+_xlfn.IFS('Foglio Input_Pallet'!$E$24='menu tendina'!$A$6,'Foglio Input_Pallet'!$C$23*'Foglio Input_Pallet'!$C$24*'Mezzi di trasporto'!C32,'Foglio Input_Pallet'!$E$24='menu tendina'!$A$7,'Foglio Input_Pallet'!$C$23*'Foglio Input_Pallet'!$C$24*'Mezzi di trasporto'!D32,'Foglio Input_Pallet'!$E$24='menu tendina'!$A$8,'Foglio Input_Pallet'!$C$23*'Foglio Input_Pallet'!$C$24*'Mezzi di trasporto'!E32,'Foglio Input_Pallet'!$E$24='menu tendina'!$A$9,'Foglio Input_Pallet'!$C$23*'Foglio Input_Pallet'!$C$24*'Mezzi di trasporto'!F32,'Foglio Input_Pallet'!$E$24='menu tendina'!$A$10,'Foglio Input_Pallet'!$C$23*'Foglio Input_Pallet'!$C$24*'Mezzi di trasporto'!G32)+_xlfn.IFS('Foglio Input_Pallet'!$E$26='menu tendina'!$A$6,'Foglio Input_Pallet'!$C$25*'Foglio Input_Pallet'!$C$26*'Mezzi di trasporto'!C32,'Foglio Input_Pallet'!$E$26='menu tendina'!$A$7,'Foglio Input_Pallet'!$C$25*'Foglio Input_Pallet'!$C$26*'Mezzi di trasporto'!D32,'Foglio Input_Pallet'!$E$26='menu tendina'!$A$8,'Foglio Input_Pallet'!$C$25*'Foglio Input_Pallet'!$C$26*'Mezzi di trasporto'!E32,'Foglio Input_Pallet'!$E$26='menu tendina'!$A$9,'Foglio Input_Pallet'!$C$25*'Foglio Input_Pallet'!$C$26*'Mezzi di trasporto'!F32,'Foglio Input_Pallet'!$E$26='menu tendina'!$A$10,'Foglio Input_Pallet'!$C$25*'Foglio Input_Pallet'!$C$26*'Mezzi di trasporto'!G32))+_xlfn.IFS('Foglio Input_Pallet'!$E$29='menu tendina'!$A$6,('Foglio Input_Pallet'!$C$27+'Foglio Input_Pallet'!$C$28)*'Foglio Input_Pallet'!$C$29*'Mezzi di trasporto'!C32,'Foglio Input_Pallet'!$E$29='menu tendina'!$A$7,('Foglio Input_Pallet'!$C$27+'Foglio Input_Pallet'!$C$28)*'Foglio Input_Pallet'!$C$29*'Mezzi di trasporto'!D32,'Foglio Input_Pallet'!$E$26='menu tendina'!$A$8,('Foglio Input_Pallet'!$C$27+'Foglio Input_Pallet'!$C$28)*'Foglio Input_Pallet'!$C$29*'Mezzi di trasporto'!E32,'Foglio Input_Pallet'!$E$26='menu tendina'!$A$9,('Foglio Input_Pallet'!$C$27+'Foglio Input_Pallet'!$C$28)*'Foglio Input_Pallet'!$C$29*'Mezzi di trasporto'!F32,'Foglio Input_Pallet'!$E$26='menu tendina'!$A$10,('Foglio Input_Pallet'!$C$27+'Foglio Input_Pallet'!$C$28)*'Foglio Input_Pallet'!$C$29*'Mezzi di trasporto'!G32)+_xlfn.IFS('Foglio Input_Pallet'!$E$31='menu tendina'!$A$6,'Foglio Input_Pallet'!$C$30*'Foglio Input_Pallet'!$C$31*'Mezzi di trasporto'!C32,'Foglio Input_Pallet'!$E$31='menu tendina'!$A$7,'Foglio Input_Pallet'!$C$30*'Foglio Input_Pallet'!$C$31*'Mezzi di trasporto'!D32,'Foglio Input_Pallet'!$E$31='menu tendina'!$A$8,'Foglio Input_Pallet'!$C$30*'Foglio Input_Pallet'!$C$31*'Mezzi di trasporto'!E32,'Foglio Input_Pallet'!$E$31='menu tendina'!$A$9,'Foglio Input_Pallet'!$C$30*'Foglio Input_Pallet'!$C$31*'Mezzi di trasporto'!F32,'Foglio Input_Pallet'!$E$31='menu tendina'!$A$10,'Foglio Input_Pallet'!$C$30*'Foglio Input_Pallet'!$C$31*'Mezzi di trasporto'!G32) -> 1.813965008
B21: Water scarcity | C21: m3 depriv. | D21: 0.07161433201 | E21: ='Foglio Input_Pallet'!$C$21*'Materie prime'!C33/'Foglio Input_Pallet'!$C$15 -> 0.002854805273 | F21: ='Foglio Input_Pallet'!$C$23*'Materie prime'!D33/'Foglio Input_Pallet'!$C$15 -> 0 | G21: ='Foglio Input_Pallet'!$C$25*'Materie prime'!E33/'Foglio Input_Pallet'!$C$15 -> 0.05926753467 | H21: ='Foglio Input_Pallet'!$C$27*'Materie prime'!F33/'Foglio Input_Pallet'!$C$15 -> 0.006112726636 | I21: ='Foglio Input_Pallet'!$C$28*'Materie prime'!G33/'Foglio Input_Pallet'!$C$15 -> 0 | J21: ='Foglio Input_Pallet'!$C$30*'Materie prime'!H33/'Foglio Input_Pallet'!$C$15 -> 0 | K21: =(1000/'Foglio Input_Pallet'!$C$15)*(_xlfn.IFS('Foglio Input_Pallet'!$E$22='menu tendina'!$A$6,'Foglio Input_Pallet'!$C$21*'Foglio Input_Pallet'!$C$22*'Mezzi di trasporto'!C33,'Foglio Input_Pallet'!$E$22='menu tendina'!$A$7,'Foglio Input_Pallet'!$C$21*'Foglio Input_Pallet'!$C$22*'Mezzi di trasporto'!D33,'Foglio Input_Pallet'!$E$22='menu tendina'!$A$8,'Foglio Input_Pallet'!$C$21*'Foglio Input_Pallet'!$C$22*'Mezzi di trasporto'!E33,'Foglio Input_Pallet'!$E$22='menu tendina'!$A$9,'Foglio Input_Pallet'!$C$21*'Foglio Input_Pallet'!$C$22*'Mezzi di trasporto'!F33,'Foglio Input_Pallet'!$E$22='menu tendina'!$A$10,'Foglio Input_Pallet'!$C$21*'Foglio Input_Pallet'!$C$22*'Mezzi di trasporto'!G33)+_xlfn.IFS('Foglio Input_Pallet'!$E$24='menu tendina'!$A$6,'Foglio Input_Pallet'!$C$23*'Foglio Input_Pallet'!$C$24*'Mezzi di trasporto'!C33,'Foglio Input_Pallet'!$E$24='menu tendina'!$A$7,'Foglio Input_Pallet'!$C$23*'Foglio Input_Pallet'!$C$24*'Mezzi di trasporto'!D33,'Foglio Input_Pallet'!$E$24='menu tendina'!$A$8,'Foglio Input_Pallet'!$C$23*'Foglio Input_Pallet'!$C$24*'Mezzi di trasporto'!E33,'Foglio Input_Pallet'!$E$24='menu tendina'!$A$9,'Foglio Input_Pallet'!$C$23*'Foglio Input_Pallet'!$C$24*'Mezzi di trasporto'!F33,'Foglio Input_Pallet'!$E$24='menu tendina'!$A$10,'Foglio Input_Pallet'!$C$23*'Foglio Input_Pallet'!$C$24*'Mezzi di trasporto'!G33)+_xlfn.IFS('Foglio Input_Pallet'!$E$26='menu tendina'!$A$6,'Foglio Input_Pallet'!$C$25*'Foglio Input_Pallet'!$C$26*'Mezzi di trasporto'!C33,'Foglio Input_Pallet'!$E$26='menu tendina'!$A$7,'Foglio Input_Pallet'!$C$25*'Foglio Input_Pallet'!$C$26*'Mezzi di trasporto'!D33,'Foglio Input_Pallet'!$E$26='menu tendina'!$A$8,'Foglio Input_Pallet'!$C$25*'Foglio Input_Pallet'!$C$26*'Mezzi di trasporto'!E33,'Foglio Input_Pallet'!$E$26='menu tendina'!$A$9,'Foglio Input_Pallet'!$C$25*'Foglio Input_Pallet'!$C$26*'Mezzi di trasporto'!F33,'Foglio Input_Pallet'!$E$26='menu tendina'!$A$10,'Foglio Input_Pallet'!$C$25*'Foglio Input_Pallet'!$C$26*'Mezzi di trasporto'!G33))+_xlfn.IFS('Foglio Input_Pallet'!$E$29='menu tendina'!$A$6,('Foglio Input_Pallet'!$C$27+'Foglio Input_Pallet'!$C$28)*'Foglio Input_Pallet'!$C$29*'Mezzi di trasporto'!C33,'Foglio Input_Pallet'!$E$29='menu tendina'!$A$7,('Foglio Input_Pallet'!$C$27+'Foglio Input_Pallet'!$C$28)*'Foglio Input_Pallet'!$C$29*'Mezzi di trasporto'!D33,'Foglio Input_Pallet'!$E$26='menu tendina'!$A$8,('Foglio Input_Pallet'!$C$27+'Foglio Input_Pallet'!$C$28)*'Foglio Input_Pallet'!$C$29*'Mezzi di trasporto'!E33,'Foglio Input_Pallet'!$E$26='menu tendina'!$A$9,('Foglio Input_Pallet'!$C$27+'Foglio Input_Pallet'!$C$28)*'Foglio Input_Pallet'!$C$29*'Mezzi di trasporto'!F33,'Foglio Input_Pallet'!$E$26='menu tendina'!$A$10,('Foglio Input_Pallet'!$C$27+'Foglio Input_Pallet'!$C$28)*'Foglio Input_Pallet'!$C$29*'Mezzi di trasporto'!G33)+_xlfn.IFS('Foglio Input_Pallet'!$E$31='menu tendina'!$A$6,'Foglio Input_Pallet'!$C$30*'Foglio Input_Pallet'!$C$31*'Mezzi di trasporto'!C33,'Foglio Input_Pallet'!$E$31='menu tendina'!$A$7,'Foglio Input_Pallet'!$C$30*'Foglio Input_Pallet'!$C$31*'Mezzi di trasporto'!D33,'Foglio Input_Pallet'!$E$31='menu tendina'!$A$8,'Foglio Input_Pallet'!$C$30*'Foglio Input_Pallet'!$C$31*'Mezzi di trasporto'!E33,'Foglio Input_Pallet'!$E$31='menu tendina'!$A$9,'Foglio Input_Pallet'!$C$30*'Foglio Input_Pallet'!$C$31*'Mezzi di trasporto'!F33,'Foglio Input_Pallet'!$E$31='menu tendina'!$A$10,'Foglio Input_Pallet'!$C$30*'Foglio Input_Pallet'!$C$31*'Mezzi di trasporto'!G33) -> 0.003379265429
B22: Resource use, energy carriers | C22: MJ | D22: 4.389478188 | E22: ='Foglio Input_Pallet'!$C$21*'Materie prime'!C34/'Foglio Input_Pallet'!$C$15 -> 0.3178909216 | F22: ='Foglio Input_Pallet'!$C$23*'Materie prime'!D34/'Foglio Input_Pallet'!$C$15 -> 0 | G22: ='Foglio Input_Pallet'!$C$25*'Materie prime'!E34/'Foglio Input_Pallet'!$C$15 -> 2.840402205 | H22: ='Foglio Input_Pallet'!$C$27*'Materie prime'!F34/'Foglio Input_Pallet'!$C$15 -> 0.2075042864 | I22: ='Foglio Input_Pallet'!$C$28*'Materie prime'!G34/'Foglio Input_Pallet'!$C$15 -> 0 | J22: ='Foglio Input_Pallet'!$C$30*'Materie prime'!H34/'Foglio Input_Pallet'!$C$15 -> 0 | K22: =(1000/'Foglio Input_Pallet'!$C$15)*(_xlfn.IFS('Foglio Input_Pallet'!$E$22='menu tendina'!$A$6,'Foglio Input_Pallet'!$C$21*'Foglio Input_Pallet'!$C$22*'Mezzi di trasporto'!C34,'Foglio Input_Pallet'!$E$22='menu tendina'!$A$7,'Foglio Input_Pallet'!$C$21*'Foglio Input_Pallet'!$C$22*'Mezzi di trasporto'!D34,'Foglio Input_Pallet'!$E$22='menu tendina'!$A$8,'Foglio Input_Pallet'!$C$21*'Foglio Input_Pallet'!$C$22*'Mezzi di trasporto'!E34,'Foglio Input_Pallet'!$E$22='menu tendina'!$A$9,'Foglio Input_Pallet'!$C$21*'Foglio Input_Pallet'!$C$22*'Mezzi di trasporto'!F34,'Foglio Input_Pallet'!$E$22='menu tendina'!$A$10,'Foglio Input_Pallet'!$C$21*'Foglio Input_Pallet'!$C$22*'Mezzi di trasporto'!G34)+_xlfn.IFS('Foglio Input_Pallet'!$E$24='menu tendina'!$A$6,'Foglio Input_Pallet'!$C$23*'Foglio Input_Pallet'!$C$24*'Mezzi di trasporto'!C34,'Foglio Input_Pallet'!$E$24='menu tendina'!$A$7,'Foglio Input_Pallet'!$C$23*'Foglio Input_Pallet'!$C$24*'Mezzi di trasporto'!D34,'Foglio Input_Pallet'!$E$24='menu tendina'!$A$8,'Foglio Input_Pallet'!$C$23*'Foglio Input_Pallet'!$C$24*'Mezzi di trasporto'!E34,'Foglio Input_Pallet'!$E$24='menu tendina'!$A$9,'Foglio Input_Pallet'!$C$23*'Foglio Input_Pallet'!$C$24*'Mezzi di trasporto'!F34,'Foglio Input_Pallet'!$E$24='menu tendina'!$A$10,'Foglio Input_Pallet'!$C$23*'Foglio Input_Pallet'!$C$24*'Mezzi di trasporto'!G34)+_xlfn.IFS('Foglio Input_Pallet'!$E$26='menu tendina'!$A$6,'Foglio Input_Pallet'!$C$25*'Foglio Input_Pallet'!$C$26*'Mezzi di trasporto'!C34,'Foglio Input_Pallet'!$E$26='menu tendina'!$A$7,'Foglio Input_Pallet'!$C$25*'Foglio Input_Pallet'!$C$26*'Mezzi di trasporto'!D34,'Foglio Input_Pallet'!$E$26='menu tendina'!$A$8,'Foglio Input_Pallet'!$C$25*'Foglio Input_Pallet'!$C$26*'Mezzi di trasporto'!E34,'Foglio Input_Pallet'!$E$26='menu tendina'!$A$9,'Foglio Input_Pallet'!$C$25*'Foglio Input_Pallet'!$C$26*'Mezzi di trasporto'!F34,'Foglio Input_Pallet'!$E$26='menu tendina'!$A$10,'Foglio Input_Pallet'!$C$25*'Foglio Input_Pallet'!$C$26*'Mezzi di trasporto'!G34))+_xlfn.IFS('Foglio Input_Pallet'!$E$29='menu tendina'!$A$6,('Foglio Input_Pallet'!$C$27+'Foglio Input_Pallet'!$C$28)*'Foglio Input_Pallet'!$C$29*'Mezzi di trasporto'!C34,'Foglio Input_Pallet'!$E$29='menu tendina'!$A$7,('Foglio Input_Pallet'!$C$27+'Foglio Input_Pallet'!$C$28)*'Foglio Input_Pallet'!$C$29*'Mezzi di trasporto'!D34,'Foglio Input_Pallet'!$E$26='menu tendina'!$A$8,('Foglio Input_Pallet'!$C$27+'Foglio Input_Pallet'!$C$28)*'Foglio Input_Pallet'!$C$29*'Mezzi di trasporto'!E34,'Foglio Input_Pallet'!$E$26='menu tendina'!$A$9,('Foglio Input_Pallet'!$C$27+'Foglio Input_Pallet'!$C$28)*'Foglio Input_Pallet'!$C$29*'Mezzi di trasporto'!F34,'Foglio Input_Pallet'!$E$26='menu tendina'!$A$10,('Foglio Input_Pallet'!$C$27+'Foglio Input_Pallet'!$C$28)*'Foglio Input_Pallet'!$C$29*'Mezzi di trasporto'!G34)+_xlfn.IFS('Foglio Input_Pallet'!$E$31='menu tendina'!$A$6,'Foglio Input_Pallet'!$C$30*'Foglio Input_Pallet'!$C$31*'Mezzi di trasporto'!C34,'Foglio Input_Pallet'!$E$31='menu tendina'!$A$7,'Foglio Input_Pallet'!$C$30*'Foglio Input_Pallet'!$C$31*'Mezzi di trasporto'!D34,'Foglio Input_Pallet'!$E$31='menu tendina'!$A$8,'Foglio Input_Pallet'!$C$30*'Foglio Input_Pallet'!$C$31*'Mezzi di trasporto'!E34,'Foglio Input_Pallet'!$E$31='menu tendina'!$A$9,'Foglio Input_Pallet'!$C$30*'Foglio Input_Pallet'!$C$31*'Mezzi di trasporto'!F34,'Foglio Input_Pallet'!$E$31='menu tendina'!$A$10,'Foglio Input_Pallet'!$C$30*'Foglio Input_Pallet'!$C$31*'Mezzi di trasporto'!G34) -> 1.023680775
B23: Resource use, mineral and metals | C23: kg Sb eq | D23: 1.461297464e-06 | E23: ='Foglio Input_Pallet'!$C$21*'Materie prime'!C35/'Foglio Input_Pallet'!$C$15 -> 5.731917625e-08 | F23: ='Foglio Input_Pallet'!$C$23*'Materie prime'!D35/'Foglio Input_Pallet'!$C$15 -> 0 | G23: ='Foglio Input_Pallet'!$C$25*'Materie prime'!E35/'Foglio Input_Pallet'!$C$15 -> 1.083730075e-06 | H23: ='Foglio Input_Pallet'!$C$27*'Materie prime'!F35/'Foglio Input_Pallet'!$C$15 -> 1.661726727e-07 | I23: ='Foglio Input_Pallet'!$C$28*'Materie prime'!G35/'Foglio Input_Pallet'!$C$15 -> 0 | J23: ='Foglio Input_Pallet'!$C$30*'Materie prime'!H35/'Foglio Input_Pallet'!$C$15 -> 0 | K23: =(1000/'Foglio Input_Pallet'!$C$15)*(_xlfn.IFS('Foglio Input_Pallet'!$E$22='menu tendina'!$A$6,'Foglio Input_Pallet'!$C$21*'Foglio Input_Pallet'!$C$22*'Mezzi di trasporto'!C35,'Foglio Input_Pallet'!$E$22='menu tendina'!$A$7,'Foglio Input_Pallet'!$C$21*'Foglio Input_Pallet'!$C$22*'Mezzi di trasporto'!D35,'Foglio Input_Pallet'!$E$22='menu tendina'!$A$8,'Foglio Input_Pallet'!$C$21*'Foglio Input_Pallet'!$C$22*'Mezzi di trasporto'!E35,'Foglio Input_Pallet'!$E$22='menu tendina'!$A$9,'Foglio Input_Pallet'!$C$21*'Foglio Input_Pallet'!$C$22*'Mezzi di trasporto'!F35,'Foglio Input_Pallet'!$E$22='menu tendina'!$A$10,'Foglio Input_Pallet'!$C$21*'Foglio Input_Pallet'!$C$22*'Mezzi di trasporto'!G35)+_xlfn.IFS('Foglio Input_Pallet'!$E$24='menu tendina'!$A$6,'Foglio Input_Pallet'!$C$23*'Foglio Input_Pallet'!$C$24*'Mezzi di trasporto'!C35,'Foglio Input_Pallet'!$E$24='menu tendina'!$A$7,'Foglio Input_Pallet'!$C$23*'Foglio Input_Pallet'!$C$24*'Mezzi di trasporto'!D35,'Foglio Input_Pallet'!$E$24='menu tendina'!$A$8,'Foglio Input_Pallet'!$C$23*'Foglio Input_Pallet'!$C$24*'Mezzi di trasporto'!E35,'Foglio Input_Pallet'!$E$24='menu tendina'!$A$9,'Foglio Input_Pallet'!$C$23*'Foglio Input_Pallet'!$C$24*'Mezzi di trasporto'!F35,'Foglio Input_Pallet'!$E$24='menu tendina'!$A$10,'Foglio Input_Pallet'!$C$23*'Foglio Input_Pallet'!$C$24*'Mezzi di trasporto'!G35)+_xlfn.IFS('Foglio Input_Pallet'!$E$26='menu tendina'!$A$6,'Foglio Input_Pallet'!$C$25*'Foglio Input_Pallet'!$C$26*'Mezzi di trasporto'!C35,'Foglio Input_Pallet'!$E$26='menu tendina'!$A$7,'Foglio Input_Pallet'!$C$25*'Foglio Input_Pallet'!$C$26*'Mezzi di trasporto'!D35,'Foglio Input_Pallet'!$E$26='menu tendina'!$A$8,'Foglio Input_Pallet'!$C$25*'Foglio Input_Pallet'!$C$26*'Mezzi di trasporto'!E35,'Foglio Input_Pallet'!$E$26='menu tendina'!$A$9,'Foglio Input_Pallet'!$C$25*'Foglio Input_Pallet'!$C$26*'Mezzi di trasporto'!F35,'Foglio Input_Pallet'!$E$26='menu tendina'!$A$10,'Foglio Input_Pallet'!$C$25*'Foglio Input_Pallet'!$C$26*'Mezzi di trasporto'!G35))+_xlfn.IFS('Foglio Input_Pallet'!$E$29='menu tendina'!$A$6,('Foglio Input_Pallet'!$C$27+'Foglio Input_Pallet'!$C$28)*'Foglio Input_Pallet'!$C$29*'Mezzi di trasporto'!C35,'Foglio Input_Pallet'!$E$29='menu tendina'!$A$7,('Foglio Input_Pallet'!$C$27+'Foglio Input_Pallet'!$C$28)*'Foglio Input_Pallet'!$C$29*'Mezzi di trasporto'!D35,'Foglio Input_Pallet'!$E$26='menu tendina'!$A$8,('Foglio Input_Pallet'!$C$27+'Foglio Input_Pallet'!$C$28)*'Foglio Input_Pallet'!$C$29*'Mezzi di trasporto'!E35,'Foglio Input_Pallet'!$E$26='menu tendina'!$A$9,('Foglio Input_Pallet'!$C$27+'Foglio Input_Pallet'!$C$28)*'Foglio Input_Pallet'!$C$29*'Mezzi di trasporto'!F35,'Foglio Input_Pallet'!$E$26='menu tendina'!$A$10,('Foglio Input_Pallet'!$C$27+'Foglio Input_Pallet'!$C$28)*'Foglio Input_Pallet'!$C$29*'Mezzi di trasporto'!G35)+_xlfn.IFS('Foglio Input_Pallet'!$E$31='menu tendina'!$A$6,'Foglio Input_Pallet'!$C$30*'Foglio Input_Pallet'!$C$31*'Mezzi di trasporto'!C35,'Foglio Input_Pallet'!$E$31='menu tendina'!$A$7,'Foglio Input_Pallet'!$C$30*'Foglio Input_Pallet'!$C$31*'Mezzi di trasporto'!D35,'Foglio Input_Pallet'!$E$31='menu tendina'!$A$8,'Foglio Input_Pallet'!$C$30*'Foglio Input_Pallet'!$C$31*'Mezzi di trasporto'!E35,'Foglio Input_Pallet'!$E$31='menu tendina'!$A$9,'Foglio Input_Pallet'!$C$30*'Foglio Input_Pallet'!$C$31*'Mezzi di trasporto'!F35,'Foglio Input_Pallet'!$E$31='menu tendina'!$A$10,'Foglio Input_Pallet'!$C$30*'Foglio Input_Pallet'!$C$31*'Mezzi di trasporto'!G35) -> 1.540755402e-07
B24: Climate change - fossil | C24: kg CO2 eq | D24: 0.2282983682 | E24: ='Foglio Input_Pallet'!$C$21*'Materie prime'!C36/'Foglio Input_Pallet'!$C$15 -> 0.02310722136 | F24: ='Foglio Input_Pallet'!$C$23*'Materie prime'!D36/'Foglio Input_Pallet'!$C$15 -> 0 | G24: ='Foglio Input_Pallet'!$C$25*'Materie prime'!E36/'Foglio Input_Pallet'!$C$15 -> 0.1218839399 | H24: ='Foglio Input_Pallet'!$C$27*'Materie prime'!F36/'Foglio Input_Pallet'!$C$15 -> 0.01814219318 | I24: ='Foglio Input_Pallet'!$C$28*'Materie prime'!G36/'Foglio Input_Pallet'!$C$15 -> 0 | J24: ='Foglio Input_Pallet'!$C$30*'Materie prime'!H36/'Foglio Input_Pallet'!$C$15 -> 0 | K24: =(1000/'Foglio Input_Pallet'!$C$15)*(_xlfn.IFS('Foglio Input_Pallet'!$E$22='menu tendina'!$A$6,'Foglio Input_Pallet'!$C$21*'Foglio Input_Pallet'!$C$22*'Mezzi di trasporto'!C36,'Foglio Input_Pallet'!$E$22='menu tendina'!$A$7,'Foglio Input_Pallet'!$C$21*'Foglio Input_Pallet'!$C$22*'Mezzi di trasporto'!D36,'Foglio Input_Pallet'!$E$22='menu tendina'!$A$8,'Foglio Input_Pallet'!$C$21*'Foglio Input_Pallet'!$C$22*'Mezzi di trasporto'!E36,'Foglio Input_Pallet'!$E$22='menu tendina'!$A$9,'Foglio Input_Pallet'!$C$21*'Foglio Input_Pallet'!$C$22*'Mezzi di trasporto'!F36,'Foglio Input_Pallet'!$E$22='menu tendina'!$A$10,'Foglio Input_Pallet'!$C$21*'Foglio Input_Pallet'!$C$22*'Mezzi di trasporto'!G36)+_xlfn.IFS('Foglio Input_Pallet'!$E$24='menu tendina'!$A$6,'Foglio Input_Pallet'!$C$23*'Foglio Input_Pallet'!$C$24*'Mezzi di trasporto'!C36,'Foglio Input_Pallet'!$E$24='menu tendina'!$A$7,'Foglio Input_Pallet'!$C$23*'Foglio Input_Pallet'!$C$24*'Mezzi di trasporto'!D36,'Foglio Input_Pallet'!$E$24='menu tendina'!$A$8,'Foglio Input_Pallet'!$C$23*'Foglio Input_Pallet'!$C$24*'Mezzi di trasporto'!E36,'Foglio Input_Pallet'!$E$24='menu tendina'!$A$9,'Foglio Input_Pallet'!$C$23*'Foglio Input_Pallet'!$C$24*'Mezzi di trasporto'!F36,'Foglio Input_Pallet'!$E$24='menu tendina'!$A$10,'Foglio Input_Pallet'!$C$23*'Foglio Input_Pallet'!$C$24*'Mezzi di trasporto'!G36)+_xlfn.IFS('Foglio Input_Pallet'!$E$26='menu tendina'!$A$6,'Foglio Input_Pallet'!$C$25*'Foglio Input_Pallet'!$C$26*'Mezzi di trasporto'!C36,'Foglio Input_Pallet'!$E$26='menu tendina'!$A$7,'Foglio Input_Pallet'!$C$25*'Foglio Input_Pallet'!$C$26*'Mezzi di trasporto'!D36,'Foglio Input_Pallet'!$E$26='menu tendina'!$A$8,'Foglio Input_Pallet'!$C$25*'Foglio Input_Pallet'!$C$26*'Mezzi di trasporto'!E36,'Foglio Input_Pallet'!$E$26='menu tendina'!$A$9,'Foglio Input_Pallet'!$C$25*'Foglio Input_Pallet'!$C$26*'Mezzi di trasporto'!F36,'Foglio Input_Pallet'!$E$26='menu tendina'!$A$10,'Foglio Input_Pallet'!$C$25*'Foglio Input_Pallet'!$C$26*'Mezzi di trasporto'!G36))+_xlfn.IFS('Foglio Input_Pallet'!$E$29='menu tendina'!$A$6,('Foglio Input_Pallet'!$C$27+'Foglio Input_Pallet'!$C$28)*'Foglio Input_Pallet'!$C$29*'Mezzi di trasporto'!C36,'Foglio Input_Pallet'!$E$29='menu tendina'!$A$7,('Foglio Input_Pallet'!$C$27+'Foglio Input_Pallet'!$C$28)*'Foglio Input_Pallet'!$C$29*'Mezzi di trasporto'!D36,'Foglio Input_Pallet'!$E$26='menu tendina'!$A$8,('Foglio Input_Pallet'!$C$27+'Foglio Input_Pallet'!$C$28)*'Foglio Input_Pallet'!$C$29*'Mezzi di trasporto'!E36,'Foglio Input_Pallet'!$E$26='menu tendina'!$A$9,('Foglio Input_Pallet'!$C$27+'Foglio Input_Pallet'!$C$28)*'Foglio Input_Pallet'!$C$29*'Mezzi di trasporto'!F36,'Foglio Input_Pallet'!$E$26='menu tendina'!$A$10,('Foglio Input_Pallet'!$C$27+'Foglio Input_Pallet'!$C$28)*'Foglio Input_Pallet'!$C$29*'Mezzi di trasporto'!G36)+_xlfn.IFS('Foglio Input_Pallet'!$E$31='menu tendina'!$A$6,'Foglio Input_Pallet'!$C$30*'Foglio Input_Pallet'!$C$31*'Mezzi di trasporto'!C36,'Foglio Input_Pallet'!$E$31='menu tendina'!$A$7,'Foglio Input_Pallet'!$C$30*'Foglio Input_Pallet'!$C$31*'Mezzi di trasporto'!D36,'Foglio Input_Pallet'!$E$31='menu tendina'!$A$8,'Foglio Input_Pallet'!$C$30*'Foglio Input_Pallet'!$C$31*'Mezzi di trasporto'!E36,'Foglio Input_Pallet'!$E$31='menu tendina'!$A$9,'Foglio Input_Pallet'!$C$30*'Foglio Input_Pallet'!$C$31*'Mezzi di trasporto'!F36,'Foglio Input_Pallet'!$E$31='menu tendina'!$A$10,'Foglio Input_Pallet'!$C$30*'Foglio Input_Pallet'!$C$31*'Mezzi di trasporto'!G36) -> 0.06516501371
B25: Climate change - biogenic | C25: kg CO2 eq | D25: 0.00138736504 | E25: ='Foglio Input_Pallet'!$C$21*'Materie prime'!C37/'Foglio Input_Pallet'!$C$15 -> 9.056776205e-05 | F25: ='Foglio Input_Pallet'!$C$23*'Materie prime'!D37/'Foglio Input_Pallet'!$C$15 -> 0 | G25: ='Foglio Input_Pallet'!$C$25*'Materie prime'!E37/'Foglio Input_Pallet'!$C$15 -> 0.001238790755 | H25: ='Foglio Input_Pallet'!$C$27*'Materie prime'!F37/'Foglio Input_Pallet'!$C$15 -> 3.568186909e-05 | I25: ='Foglio Input_Pallet'!$C$28*'Materie prime'!G37/'Foglio Input_Pallet'!$C$15 -> 0 | J25: ='Foglio Input_Pallet'!$C$30*'Materie prime'!H37/'Foglio Input_Pallet'!$C$15 -> 0 | K25: =(1000/'Foglio Input_Pallet'!$C$15)*(_xlfn.IFS('Foglio Input_Pallet'!$E$22='menu tendina'!$A$6,'Foglio Input_Pallet'!$C$21*'Foglio Input_Pallet'!$C$22*'Mezzi di trasporto'!C37,'Foglio Input_Pallet'!$E$22='menu tendina'!$A$7,'Foglio Input_Pallet'!$C$21*'Foglio Input_Pallet'!$C$22*'Mezzi di trasporto'!D37,'Foglio Input_Pallet'!$E$22='menu tendina'!$A$8,'Foglio Input_Pallet'!$C$21*'Foglio Input_Pallet'!$C$22*'Mezzi di trasporto'!E37,'Foglio Input_Pallet'!$E$22='menu tendina'!$A$9,'Foglio Input_Pallet'!$C$21*'Foglio Input_Pallet'!$C$22*'Mezzi di trasporto'!F37,'Foglio Input_Pallet'!$E$22='menu tendina'!$A$10,'Foglio Input_Pallet'!$C$21*'Foglio Input_Pallet'!$C$22*'Mezzi di trasporto'!G37)+_xlfn.IFS('Foglio Input_Pallet'!$E$24='menu tendina'!$A$6,'Foglio Input_Pallet'!$C$23*'Foglio Input_Pallet'!$C$24*'Mezzi di trasporto'!C37,'Foglio Input_Pallet'!$E$24='menu tendina'!$A$7,'Foglio Input_Pallet'!$C$23*'Foglio Input_Pallet'!$C$24*'Mezzi di trasporto'!D37,'Foglio Input_Pallet'!$E$24='menu tendina'!$A$8,'Foglio Input_Pallet'!$C$23*'Foglio Input_Pallet'!$C$24*'Mezzi di trasporto'!E37,'Foglio Input_Pallet'!$E$24='menu tendina'!$A$9,'Foglio Input_Pallet'!$C$23*'Foglio Input_Pallet'!$C$24*'Mezzi di trasporto'!F37,'Foglio Input_Pallet'!$E$24='menu tendina'!$A$10,'Foglio Input_Pallet'!$C$23*'Foglio Input_Pallet'!$C$24*'Mezzi di trasporto'!G37)+_xlfn.IFS('Foglio Input_Pallet'!$E$26='menu tendina'!$A$6,'Foglio Input_Pallet'!$C$25*'Foglio Input_Pallet'!$C$26*'Mezzi di trasporto'!C37,'Foglio Input_Pallet'!$E$26='menu tendina'!$A$7,'Foglio Input_Pallet'!$C$25*'Foglio Input_Pallet'!$C$26*'Mezzi di trasporto'!D37,'Foglio Input_Pallet'!$E$26='menu tendina'!$A$8,'Foglio Input_Pallet'!$C$25*'Foglio Input_Pallet'!$C$26*'Mezzi di trasporto'!E37,'Foglio Input_Pallet'!$E$26='menu tendina'!$A$9,'Foglio Input_Pallet'!$C$25*'Foglio Input_Pallet'!$C$26*'Mezzi di trasporto'!F37,'Foglio Input_Pallet'!$E$26='menu tendina'!$A$10,'Foglio Input_Pallet'!$C$25*'Foglio Input_Pallet'!$C$26*'Mezzi di trasporto'!G37))+_xlfn.IFS('Foglio Input_Pallet'!$E$29='menu tendina'!$A$6,('Foglio Input_Pallet'!$C$27+'Foglio Input_Pallet'!$C$28)*'Foglio Input_Pallet'!$C$29*'Mezzi di trasporto'!C37,'Foglio Input_Pallet'!$E$29='menu tendina'!$A$7,('Foglio Input_Pallet'!$C$27+'Foglio Input_Pallet'!$C$28)*'Foglio Input_Pallet'!$C$29*'Mezzi di trasporto'!D37,'Foglio Input_Pallet'!$E$26='menu tendina'!$A$8,('Foglio Input_Pallet'!$C$27+'Foglio Input_Pallet'!$C$28)*'Foglio Input_Pallet'!$C$29*'Mezzi di trasporto'!E37,'Foglio Input_Pallet'!$E$26='menu tendina'!$A$9,('Foglio Input_Pallet'!$C$27+'Foglio Input_Pallet'!$C$28)*'Foglio Input_Pallet'!$C$29*'Mezzi di trasporto'!F37,'Foglio Input_Pallet'!$E$26='menu tendina'!$A$10,('Foglio Input_Pallet'!$C$27+'Foglio Input_Pallet'!$C$28)*'Foglio Input_Pallet'!$C$29*'Mezzi di trasporto'!G37)+_xlfn.IFS('Foglio Input_Pallet'!$E$31='menu tendina'!$A$6,'Foglio Input_Pallet'!$C$30*'Foglio Input_Pallet'!$C$31*'Mezzi di trasporto'!C37,'Foglio Input_Pallet'!$E$31='menu tendina'!$A$7,'Foglio Input_Pallet'!$C$30*'Foglio Input_Pallet'!$C$31*'Mezzi di trasporto'!D37,'Foglio Input_Pallet'!$E$31='menu tendina'!$A$8,'Foglio Input_Pallet'!$C$30*'Foglio Input_Pallet'!$C$31*'Mezzi di trasporto'!E37,'Foglio Input_Pallet'!$E$31='menu tendina'!$A$9,'Foglio Input_Pallet'!$C$30*'Foglio Input_Pallet'!$C$31*'Mezzi di trasporto'!F37,'Foglio Input_Pallet'!$E$31='menu tendina'!$A$10,'Foglio Input_Pallet'!$C$30*'Foglio Input_Pallet'!$C$31*'Mezzi di trasporto'!G37) -> 2.232465391e-05
B26: Climate change - land use and transform. | C26: kg CO2 eq | D26: 0.0009505675127 | E26: ='Foglio Input_Pallet'!$C$21*'Materie prime'!C38/'Foglio Input_Pallet'!$C$15 -> 0.0005821421659 | F26: ='Foglio Input_Pallet'!$C$23*'Materie prime'!D38/'Foglio Input_Pallet'!$C$15 -> 0 | G26: ='Foglio Input_Pallet'!$C$25*'Materie prime'!E38/'Foglio Input_Pallet'!$C$15 -> 0.0003335117549 | H26: ='Foglio Input_Pallet'!$C$27*'Materie prime'!F38/'Foglio Input_Pallet'!$C$15 -> 1.6587405e-05 | I26: ='Foglio Input_Pallet'!$C$28*'Materie prime'!G38/'Foglio Input_Pallet'!$C$15 -> 0 | J26: ='Foglio Input_Pallet'!$C$30*'Materie prime'!H38/'Foglio Input_Pallet'!$C$15 -> 0 | K26: =(1000/'Foglio Input_Pallet'!$C$15)*(_xlfn.IFS('Foglio Input_Pallet'!$E$22='menu tendina'!$A$6,'Foglio Input_Pallet'!$C$21*'Foglio Input_Pallet'!$C$22*'Mezzi di trasporto'!C38,'Foglio Input_Pallet'!$E$22='menu tendina'!$A$7,'Foglio Input_Pallet'!$C$21*'Foglio Input_Pallet'!$C$22*'Mezzi di trasporto'!D38,'Foglio Input_Pallet'!$E$22='menu tendina'!$A$8,'Foglio Input_Pallet'!$C$21*'Foglio Input_Pallet'!$C$22*'Mezzi di trasporto'!E38,'Foglio Input_Pallet'!$E$22='menu tendina'!$A$9,'Foglio Input_Pallet'!$C$21*'Foglio Input_Pallet'!$C$22*'Mezzi di trasporto'!F38,'Foglio Input_Pallet'!$E$22='menu tendina'!$A$10,'Foglio Input_Pallet'!$C$21*'Foglio Input_Pallet'!$C$22*'Mezzi di trasporto'!G38)+_xlfn.IFS('Foglio Input_Pallet'!$E$24='menu tendina'!$A$6,'Foglio Input_Pallet'!$C$23*'Foglio Input_Pallet'!$C$24*'Mezzi di trasporto'!C38,'Foglio Input_Pallet'!$E$24='menu tendina'!$A$7,'Foglio Input_Pallet'!$C$23*'Foglio Input_Pallet'!$C$24*'Mezzi di trasporto'!D38,'Foglio Input_Pallet'!$E$24='menu tendina'!$A$8,'Foglio Input_Pallet'!$C$23*'Foglio Input_Pallet'!$C$24*'Mezzi di trasporto'!E38,'Foglio Input_Pallet'!$E$24='menu tendina'!$A$9,'Foglio Input_Pallet'!$C$23*'Foglio Input_Pallet'!$C$24*'Mezzi di trasporto'!F38,'Foglio Input_Pallet'!$E$24='menu tendina'!$A$10,'Foglio Input_Pallet'!$C$23*'Foglio Input_Pallet'!$C$24*'Mezzi di trasporto'!G38)+_xlfn.IFS('Foglio Input_Pallet'!$E$26='menu tendina'!$A$6,'Foglio Input_Pallet'!$C$25*'Foglio Input_Pallet'!$C$26*'Mezzi di trasporto'!C38,'Foglio Input_Pallet'!$E$26='menu tendina'!$A$7,'Foglio Input_Pallet'!$C$25*'Foglio Input_Pallet'!$C$26*'Mezzi di trasporto'!D38,'Foglio Input_Pallet'!$E$26='menu tendina'!$A$8,'Foglio Input_Pallet'!$C$25*'Foglio Input_Pallet'!$C$26*'Mezzi di trasporto'!E38,'Foglio Input_Pallet'!$E$26='menu tendina'!$A$9,'Foglio Input_Pallet'!$C$25*'Foglio Input_Pallet'!$C$26*'Mezzi di trasporto'!F38,'Foglio Input_Pallet'!$E$26='menu tendina'!$A$10,'Foglio Input_Pallet'!$C$25*'Foglio Input_Pallet'!$C$26*'Mezzi di trasporto'!G38))+_xlfn.IFS('Foglio Input_Pallet'!$E$29='menu tendina'!$A$6,('Foglio Input_Pallet'!$C$27+'Foglio Input_Pallet'!$C$28)*'Foglio Input_Pallet'!$C$29*'Mezzi di trasporto'!C38,'Foglio Input_Pallet'!$E$29='menu tendina'!$A$7,('Foglio Input_Pallet'!$C$27+'Foglio Input_Pallet'!$C$28)*'Foglio Input_Pallet'!$C$29*'Mezzi di trasporto'!D38,'Foglio Input_Pallet'!$E$26='menu tendina'!$A$8,('Foglio Input_Pallet'!$C$27+'Foglio Input_Pallet'!$C$28)*'Foglio Input_Pallet'!$C$29*'Mezzi di trasporto'!E38,'Foglio Input_Pallet'!$E$26='menu tendina'!$A$9,('Foglio Input_Pallet'!$C$27+'Foglio Input_Pallet'!$C$28)*'Foglio Input_Pallet'!$C$29*'Mezzi di trasporto'!F38,'Foglio Input_Pallet'!$E$26='menu tendina'!$A$10,('Foglio Input_Pallet'!$C$27+'Foglio Input_Pallet'!$C$28)*'Foglio Input_Pallet'!$C$29*'Mezzi di trasporto'!G38)+_xlfn.IFS('Foglio Input_Pallet'!$E$31='menu tendina'!$A$6,'Foglio Input_Pallet'!$C$30*'Foglio Input_Pallet'!$C$31*'Mezzi di trasporto'!C38,'Foglio Input_Pallet'!$E$31='menu tendina'!$A$7,'Foglio Input_Pallet'!$C$30*'Foglio Input_Pallet'!$C$31*'Mezzi di trasporto'!D38,'Foglio Input_Pallet'!$E$31='menu tendina'!$A$8,'Foglio Input_Pallet'!$C$30*'Foglio Input_Pallet'!$C$31*'Mezzi di trasporto'!E38,'Foglio Input_Pallet'!$E$31='menu tendina'!$A$9,'Foglio Input_Pallet'!$C$30*'Foglio Input_Pallet'!$C$31*'Mezzi di trasporto'!F38,'Foglio Input_Pallet'!$E$31='menu tendina'!$A$10,'Foglio Input_Pallet'!$C$30*'Foglio Input_Pallet'!$C$31*'Mezzi di trasporto'!G38) -> 1.832618694e-05
B28: Produzione Pallet
B29: Categoria di impatto | C29: Unità di misura | D29: Totale Produzione | E29: Energia elettrica | F29: Energia termica | G29: Acqua | H29: Altri combustibili | I29: Emissioni | J29: Rifiuti
B30: Climate change | C30: kg CO2 eq | D30: =SUM(E30:J30) -> 0 | E30: ='Foglio Input_Pallet'!$D$40/'Foglio Input_Pallet'!$C$36*SUMPRODUCT('Energia elettrica'!$C$18:$F$18,'Energia elettrica'!C22:F22)/'Foglio Input_Pallet'!$C$15 -> 0 | F30: ='Foglio Input_Pallet'!$D$48/'Foglio Input_Pallet'!$C$36*SUMPRODUCT('Energia termica'!$C$18:$F$18,'Energia termica'!C22:F22)/'Foglio Input_Pallet'!$C$15 -> 0 | G30: ='Foglio Input_Pallet'!$D$56/'Foglio Input_Pallet'!$C$36*SUMPRODUCT('Acqua e altri combustibili'!$C$17:$E$17,'Acqua e altri combustibili'!C21:E21)/'Foglio Input_Pallet'!$C$15 -> 0 | H30: ='Foglio Input_Pallet'!$C$63/'Foglio Input_Pallet'!$C$36*'Foglio Input_Pallet'!$C$10*'Acqua e altri combustibili'!E55/'Foglio Input_Pallet'!$C$15 -> 0 | I30: =SUMPRODUCT('Emissioni aria'!$C$18:$E$18,'Emissioni aria'!C23:E23)/'Foglio Input_Pallet'!$C$15 -> 0 | J30: =SUM(Rifiuti!B48:J48)/'Foglio Input_Pallet'!$C$15 -> 0
B31: Ozone depletion | C31: kg CFC11 eq | D31: =SUM(E31:J31) -> 0 | E31: ='Foglio Input_Pallet'!$D$40/'Foglio Input_Pallet'!$C$36*SUMPRODUCT('Energia elettrica'!$C$18:$F$18,'Energia elettrica'!C23:F23)/'Foglio Input_Pallet'!$C$15 -> 0 | F31: ='Foglio Input_Pallet'!$D$48/'Foglio Input_Pallet'!$C$36*SUMPRODUCT('Energia termica'!$C$18:$F$18,'Energia termica'!C23:F23)/'Foglio Input_Pallet'!$C$15 -> 0 | G31: ='Foglio Input_Pallet'!$D$56/'Foglio Input_Pallet'!$C$36*SUMPRODUCT('Acqua e altri combustibili'!$C$17:$E$17,'Acqua e altri combustibili'!C22:E22)/'Foglio Input_Pallet'!$C$15 -> 0 | H31: ='Foglio Input_Pallet'!$C$63/'Foglio Input_Pallet'!$C$36*'Foglio Input_Pallet'!$C$10*'Acqua e altri combustibili'!E56/'Foglio Input_Pallet'!$C$15 -> 0 | I31: =SUMPRODUCT('Emissioni aria'!$C$18:$E$18,'Emissioni aria'!C24:E24)/'Foglio Input_Pallet'!$C$15 -> 0 | J31: =SUM(Rifiuti!B49:J49)/'Foglio Input_Pallet'!$C$15 -> 0
B32: Ionising radiation, HH | C32: kBq U-235 eq | D32: =SUM(E32:J32) -> 0 | E32: ='Foglio Input_Pallet'!$D$40/'Foglio Input_Pallet'!$C$36*SUMPRODUCT('Energia elettrica'!$C$18:$F$18,'Energia elettrica'!C24:F24)/'Foglio Input_Pallet'!$C$15 -> 0 | F32: ='Foglio Input_Pallet'!$D$48/'Foglio Input_Pallet'!$C$36*SUMPRODUCT('Energia termica'!$C$18:$F$18,'Energia termica'!C24:F24)/'Foglio Input_Pallet'!$C$15 -> 0 | G32: ='Foglio Input_Pallet'!$D$56/'Foglio Input_Pallet'!$C$36*SUMPRODUCT('Acqua e altri combustibili'!$C$17:$E$17,'Acqua e altri combustibili'!C23:E23)/'Foglio Input_Pallet'!$C$15 -> 0 | H32: ='Foglio Input_Pallet'!$C$63/'Foglio Input_Pallet'!$C$36*'Foglio Input_Pallet'!$C$10*'Acqua e altri combustibili'!E57/'Foglio Input_Pallet'!$C$15 -> 0 | I32: =SUMPRODUCT('Emissioni aria'!$C$18:$E$18,'Emissioni aria'!C25:E25)/'Foglio Input_Pallet'!$C$15 -> 0 | J32: =SUM(Rifiuti!B50:J50)/'Foglio Input_Pallet'!$C$15 -> 0
B33: Photochemical ozone formation, HH | C33: kg NMVOC eq | D33: 2.870525e-05 | E33: ='Foglio Input_Pallet'!$D$40/'Foglio Input_Pallet'!$C$36*SUMPRODUCT('Energia elettrica'!$C$18:$F$18,'Energia elettrica'!C25:F25)/'Foglio Input_Pallet'!$C$15 -> 0 | F33: ='Foglio Input_Pallet'!$D$48/'Foglio Input_Pallet'!$C$36*SUMPRODUCT('Energia termica'!$C$18:$F$18,'Energia termica'!C25:F25)/'Foglio Input_Pallet'!$C$15 -> 0 | G33: ='Foglio Input_Pallet'!$D$56/'Foglio Input_Pallet'!$C$36*SUMPRODUCT('Acqua e altri combustibili'!$C$17:$E$17,'Acqua e altri combustibili'!C24:E24)/'Foglio Input_Pallet'!$C$15 -> 0 | H33: ='Foglio Input_Pallet'!$C$63/'Foglio Input_Pallet'!$C$36*'Foglio Input_Pallet'!$C$10*'Acqua e altri combustibili'!E58/'Foglio Input_Pallet'!$C$15 -> 0 | I33: =SUMPRODUCT('Emissioni aria'!$C$18:$E$18,'Emissioni aria'!C26:E26)/'Foglio Input_Pallet'!$C$15 -> 2.870525e-05 | J33: =SUM(Rifiuti!B51:J51)/'Foglio Input_Pallet'!$C$15 -> 0
B34: Respiratory inorganics | C34: disease inc. | D34: 4.300709818e-10 | E34: ='Foglio Input_Pallet'!$D$40/'Foglio Input_Pallet'!$C$36*SUMPRODUCT('Energia elettrica'!$C$18:$F$18,'Energia elettrica'!C26:F26)/'Foglio Input_Pallet'!$C$15 -> 0 | F34: ='Foglio Input_Pallet'!$D$48/'Foglio Input_Pallet'!$C$36*SUMPRODUCT('Energia termica'!$C$18:$F$18,'Energia termica'!C26:F26)/'Foglio Input_Pallet'!$C$15 -> 0 | G34: ='Foglio Input_Pallet'!$D$56/'Foglio Input_Pallet'!$C$36*SUMPRODUCT('Acqua e altri combustibili'!$C$17:$E$17,'Acqua e altri combustibili'!C25:E25)/'Foglio Input_Pallet'!$C$15 -> 0 | H34: ='Foglio Input_Pallet'!$C$63/'Foglio Input_Pallet'!$C$36*'Foglio Input_Pallet'!$C$10*'Acqua e altri combustibili'!E59/'Foglio Input_Pallet'!$C$15 -> 0 | I34: =SUMPRODUCT('Emissioni aria'!$C$18:$E$18,'Emissioni aria'!C27:E27)/'Foglio Input_Pallet'!$C$15 -> 4.300709818e-10 | J34: =SUM(Rifiuti!B52:J52)/'Foglio Input_Pallet'!$C$15 -> 0
B35: Non-cancer human health effects | C35: CTUh | D35: 0 | E35: ='Foglio Input_Pallet'!$D$40/'Foglio Input_Pallet'!$C$36*SUMPRODUCT('Energia elettrica'!$C$18:$F$18,'Energia elettrica'!C27:F27)/'Foglio Input_Pallet'!$C$15 -> 0 | F35: ='Foglio Input_Pallet'!$D$48/'Foglio Input_Pallet'!$C$36*SUMPRODUCT('Energia termica'!$C$18:$F$18,'Energia termica'!C27:F27)/'Foglio Input_Pallet'!$C$15 -> 0 | G35: ='Foglio Input_Pallet'!$D$56/'Foglio Input_Pallet'!$C$36*SUMPRODUCT('Acqua e altri combustibili'!$C$17:$E$17,'Acqua e altri combustibili'!C26:E26)/'Foglio Input_Pallet'!$C$15 -> 0 | H35: ='Foglio Input_Pallet'!$C$63/'Foglio Input_Pallet'!$C$36*'Foglio Input_Pallet'!$C$10*'Acqua e altri combustibili'!E60/'Foglio Input_Pallet'!$C$15 -> 0 | I35: =SUMPRODUCT('Emissioni aria'!$C$18:$E$18,'Emissioni aria'!C28:E28)/'Foglio Input_Pallet'!$C$15 -> 0 | J35: =SUM(Rifiuti!B53:J53)/'Foglio Input_Pallet'!$C$15 -> 0
B36: Cancer human health effects | C36: CTUh | D36: 0 | E36: ='Foglio Input_Pallet'!$D$40/'Foglio Input_Pallet'!$C$36*SUMPRODUCT('Energia elettrica'!$C$18:$F$18,'Energia elettrica'!C28:F28)/'Foglio Input_Pallet'!$C$15 -> 0 | F36: ='Foglio Input_Pallet'!$D$48/'Foglio Input_Pallet'!$C$36*SUMPRODUCT('Energia termica'!$C$18:$F$18,'Energia termica'!C28:F28)/'Foglio Input_Pallet'!$C$15 -> 0 | G36: ='Foglio Input_Pallet'!$D$56/'Foglio Input_Pallet'!$C$36*SUMPRODUCT('Acqua e altri combustibili'!$C$17:$E$17,'Acqua e altri combustibili'!C27:E27)/'Foglio Input_Pallet'!$C$15 -> 0 | H36: ='Foglio Input_Pallet'!$C$63/'Foglio Input_Pallet'!$C$36*'Foglio Input_Pallet'!$C$10*'Acqua e altri combustibili'!E61/'Foglio Input_Pallet'!$C$15 -> 0 | I36: =SUMPRODUCT('Emissioni aria'!$C$18:$E$18,'Emissioni aria'!C29:E29)/'Foglio Input_Pallet'!$C$15 -> 0 | J36: =SUM(Rifiuti!B54:J54)/'Foglio Input_Pallet'!$C$15 -> 0
B37: Acidification terrestrial and freshwater | C37: mol H+ eq | D37: 2.720772727e-05 | E37: ='Foglio Input_Pallet'!$D$40/'Foglio Input_Pallet'!$C$36*SUMPRODUCT('Energia elettrica'!$C$18:$F$18,'Energia elettrica'!C29:F29)/'Foglio Input_Pallet'!$C$15 -> 0 | F37: ='Foglio Input_Pallet'!$D$48/'Foglio Input_Pallet'!$C$36*SUMPRODUCT('Energia termica'!$C$18:$F$18,'Energia termica'!C29:F29)/'Foglio Input_Pallet'!$C$15 -> 0 | G37: ='Foglio Input_Pallet'!$D$56/'Foglio Input_Pallet'!$C$36*SUMPRODUCT('Acqua e altri combustibili'!$C$17:$E$17,'Acqua e altri combustibili'!C28:E28)/'Foglio Input_Pallet'!$C$15 -> 0 | H37: ='Foglio Input_Pallet'!$C$63/'Foglio Input_Pallet'!$C$36*'Foglio Input_Pallet'!$C$10*'Acqua e altri combustibili'!E62/'Foglio Input_Pallet'!$C$15 -> 0 | I37: =SUMPRODUCT('Emissioni aria'!$C$18:$E$18,'Emissioni aria'!C30:E30)/'Foglio Input_Pallet'!$C$15 -> 2.720772727e-05 | J37: =SUM(Rifiuti!B55:J55)/'Foglio Input_Pallet'!$C$15 -> 0
B38: Eutrophication freshwater | C38: kg P eq | D38: 0 | E38: ='Foglio Input_Pallet'!$D$40/'Foglio Input_Pallet'!$C$36*SUMPRODUCT('Energia elettrica'!$C$18:$F$18,'Energia elettrica'!C30:F30)/'Foglio Input_Pallet'!$C$15 -> 0 | F38: ='Foglio Input_Pallet'!$D$48/'Foglio Input_Pallet'!$C$36*SUMPRODUCT('Energia termica'!$C$18:$F$18,'Energia termica'!C30:F30)/'Foglio Input_Pallet'!$C$15 -> 0 | G38: ='Foglio Input_Pallet'!$D$56/'Foglio Input_Pallet'!$C$36*SUMPRODUCT('Acqua e altri combustibili'!$C$17:$E$17,'Acqua e altri combustibili'!C29:E29)/'Foglio Input_Pallet'!$C$15 -> 0 | H38: ='Foglio Input_Pallet'!$C$63/'Foglio Input_Pallet'!$C$36*'Foglio Input_Pallet'!$C$10*'Acqua e altri combustibili'!E63/'Foglio Input_Pallet'!$C$15 -> 0 | I38: =SUMPRODUCT('Emissioni aria'!$C$18:$E$18,'Emissioni aria'!C31:E31)/'Foglio Input_Pallet'!$C$15 -> 0 | J38: =SUM(Rifiuti!B56:J56)/'Foglio Input_Pallet'!$C$15 -> 0
B39: Eutrophication marine | C39: kg N eq | D39: 1.101577273e-05 | E39: ='Foglio Input_Pallet'!$D$40/'Foglio Input_Pallet'!$C$36*SUMPRODUCT('Energia elettrica'!$C$18:$F$18,'Energia elettrica'!C31:F31)/'Foglio Input_Pallet'!$C$15 -> 0 | F39: ='Foglio Input_Pallet'!$D$48/'Foglio Input_Pallet'!$C$36*SUMPRODUCT('Energia termica'!$C$18:$F$18,'Energia termica'!C31:F31)/'Foglio Input_Pallet'!$C$15 -> 0 | G39: ='Foglio Input_Pallet'!$D$56/'Foglio Input_Pallet'!$C$36*SUMPRODUCT('Acqua e altri combustibili'!$C$17:$E$17,'Acqua e altri combustibili'!C30:E30)/'Foglio Input_Pallet'!$C$15 -> 0 | H39: ='Foglio Input_Pallet'!$C$63/'Foglio Input_Pallet'!$C$36*'Foglio Input_Pallet'!$C$10*'Acqua e altri combustibili'!E64/'Foglio Input_Pallet'!$C$15 -> 0 | I39: =SUMPRODUCT('Emissioni aria'!$C$18:$E$18,'Emissioni aria'!C32:E32)/'Foglio Input_Pallet'!$C$15 -> 1.101577273e-05 | J39: =SUM(Rifiuti!B57:J57)/'Foglio Input_Pallet'!$C$15 -> 0
B40: Eutrophication terrestrial | C40: mol N eq | D40: 0.0001206354545 | E40: ='Foglio Input_Pallet'!$D$40/'Foglio Input_Pallet'!$C$36*SUMPRODUCT('Energia elettrica'!$C$18:$F$18,'Energia elettrica'!C32:F32)/'Foglio Input_Pallet'!$C$15 -> 0 | F40: ='Foglio Input_Pallet'!$D$48/'Foglio Input_Pallet'!$C$36*SUMPRODUCT('Energia termica'!$C$18:$F$18,'Energia termica'!C32:F32)/'Foglio Input_Pallet'!$C$15 -> 0 | G40: ='Foglio Input_Pallet'!$D$56/'Foglio Input_Pallet'!$C$36*SUMPRODUCT('Acqua e altri combustibili'!$C$17:$E$17,'Acqua e altri combustibili'!C31:E31)/'Foglio Input_Pallet'!$C$15 -> 0 | H40: ='Foglio Input_Pallet'!$C$63/'Foglio Input_Pallet'!$C$36*'Foglio Input_Pallet'!$C$10*'Acqua e altri combustibili'!E65/'Foglio Input_Pallet'!$C$15 -> 0 | I40: =SUMPRODUCT('Emissioni aria'!$C$18:$E$18,'Emissioni aria'!C33:E33)/'Foglio Input_Pallet'!$C$15 -> 0.0001206354545 | J40: =SUM(Rifiuti!B58:J58)/'Foglio Input_Pallet'!$C$15 -> 0
B41: Ecotoxicity freshwater | C41: CTUe | D41: 0 | E41: ='Foglio Input_Pallet'!$D$40/'Foglio Input_Pallet'!$C$36*SUMPRODUCT('Energia elettrica'!$C$18:$F$18,'Energia elettrica'!C33:F33)/'Foglio Input_Pallet'!$C$15 -> 0 | F41: ='Foglio Input_Pallet'!$D$48/'Foglio Input_Pallet'!$C$36*SUMPRODUCT('Energia termica'!$C$18:$F$18,'Energia termica'!C33:F33)/'Foglio Input_Pallet'!$C$15 -> 0 | G41: ='Foglio Input_Pallet'!$D$56/'Foglio Input_Pallet'!$C$36*SUMPRODUCT('Acqua e altri combustibili'!$C$17:$E$17,'Acqua e altri combustibili'!C32:E32)/'Foglio Input_Pallet'!$C$15 -> 0 | H41: ='Foglio Input_Pallet'!$C$63/'Foglio Input_Pallet'!$C$36*'Foglio Input_Pallet'!$C$10*'Acqua e altri combustibili'!E66/'Foglio Input_Pallet'!$C$15 -> 0 | I41: =SUMPRODUCT('Emissioni aria'!$C$18:$E$18,'Emissioni aria'!C34:E34)/'Foglio Input_Pallet'!$C$15 -> 0 | J41: =SUM(Rifiuti!B59:J59)/'Foglio Input_Pallet'!$C$15 -> 0
B42: Land use | C42: Pt | D42: 0 | E42: ='Foglio Input_Pallet'!$D$40/'Foglio Input_Pallet'!$C$36*SUMPRODUCT('Energia elettrica'!$C$18:$F$18,'Energia elettrica'!C34:F34)/'Foglio Input_Pallet'!$C$15 -> 0 | F42: ='Foglio Input_Pallet'!$D$48/'Foglio Input_Pallet'!$C$36*SUMPRODUCT('Energia termica'!$C$18:$F$18,'Energia termica'!C34:F34)/'Foglio Input_Pallet'!$C$15 -> 0 | G42: ='Foglio Input_Pallet'!$D$56/'Foglio Input_Pallet'!$C$36*SUMPRODUCT('Acqua e altri combustibili'!$C$17:$E$17,'Acqua e altri combustibili'!C33:E33)/'Foglio Input_Pallet'!$C$15 -> 0 | H42: ='Foglio Input_Pallet'!$C$63/'Foglio Input_Pallet'!$C$36*'Foglio Input_Pallet'!$C$10*'Acqua e altri combustibili'!E67/'Foglio Input_Pallet'!$C$15 -> 0 | I42: =SUMPRODUCT('Emissioni aria'!$C$18:$E$18,'Emissioni aria'!C35:E35)/'Foglio Input_Pallet'!$C$15 -> 0 | J42: =SUM(Rifiuti!B60:J60)/'Foglio Input_Pallet'!$C$15 -> 0
B43: Water scarcity | C43: m3 depriv. | D43: 0 | E43: ='Foglio Input_Pallet'!$D$40/'Foglio Input_Pallet'!$C$36*SUMPRODUCT('Energia elettrica'!$C$18:$F$18,'Energia elettrica'!C35:F35)/'Foglio Input_Pallet'!$C$15 -> 0 | F43: ='Foglio Input_Pallet'!$D$48/'Foglio Input_Pallet'!$C$36*SUMPRODUCT('Energia termica'!$C$18:$F$18,'Energia termica'!C35:F35)/'Foglio Input_Pallet'!$C$15 -> 0 | G43: ='Foglio Input_Pallet'!$D$56/'Foglio Input_Pallet'!$C$36*SUMPRODUCT('Acqua e altri combustibili'!$C$17:$E$17,'Acqua e altri combustibili'!C34:E34)/'Foglio Input_Pallet'!$C$15 -> 0 | H43: ='Foglio Input_Pallet'!$C$63/'Foglio Input_Pallet'!$C$36*'Foglio Input_Pallet'!$C$10*'Acqua e altri combustibili'!E68/'Foglio Input_Pallet'!$C$15 -> 0 | I43: =SUMPRODUCT('Emissioni aria'!$C$18:$E$18,'Emissioni aria'!C36:E36)/'Foglio Input_Pallet'!$C$15 -> 0 | J43: =SUM(Rifiuti!B61:J61)/'Foglio Input_Pallet'!$C$15 -> 0
B44: Resource use, energy carriers | C44: MJ | D44: 0 | E44: ='Foglio Input_Pallet'!$D$40/'Foglio Input_Pallet'!$C$36*SUMPRODUCT('Energia elettrica'!$C$18:$F$18,'Energia elettrica'!C36:F36)/'Foglio Input_Pallet'!$C$15 -> 0 | F44: ='Foglio Input_Pallet'!$D$48/'Foglio Input_Pallet'!$C$36*SUMPRODUCT('Energia termica'!$C$18:$F$18,'Energia termica'!C36:F36)/'Foglio Input_Pallet'!$C$15 -> 0 | G44: ='Foglio Input_Pallet'!$D$56/'Foglio Input_Pallet'!$C$36*SUMPRODUCT('Acqua e altri combustibili'!$C$17:$E$17,'Acqua e altri combustibili'!C35:E35)/'Foglio Input_Pallet'!$C$15 -> 0 | H44: ='Foglio Input_Pallet'!$C$63/'Foglio Input_Pallet'!$C$36*'Foglio Input_Pallet'!$C$10*'Acqua e altri combustibili'!E69/'Foglio Input_Pallet'!$C$15 -> 0 | I44: =SUMPRODUCT('Emissioni aria'!$C$18:$E$18,'Emissioni aria'!C37:E37)/'Foglio Input_Pallet'!$C$15 -> 0 | J44: =SUM(Rifiuti!B62:J62)/'Foglio Input_Pallet'!$C$15 -> 0
B45: Resource use, mineral and metals | C45: kg Sb eq | D45: 0 | E45: ='Foglio Input_Pallet'!$D$40/'Foglio Input_Pallet'!$C$36*SUMPRODUCT('Energia elettrica'!$C$18:$F$18,'Energia elettrica'!C37:F37)/'Foglio Input_Pallet'!$C$15 -> 0 | F45: ='Foglio Input_Pallet'!$D$48/'Foglio Input_Pallet'!$C$36*SUMPRODUCT('Energia termica'!$C$18:$F$18,'Energia termica'!C37:F37)/'Foglio Input_Pallet'!$C$15 -> 0 | G45: ='Foglio Input_Pallet'!$D$56/'Foglio Input_Pallet'!$C$36*SUMPRODUCT('Acqua e altri combustibili'!$C$17:$E$17,'Acqua e altri combustibili'!C36:E36)/'Foglio Input_Pallet'!$C$15 -> 0 | H45: ='Foglio Input_Pallet'!$C$63/'Foglio Input_Pallet'!$C$36*'Foglio Input_Pallet'!$C$10*'Acqua e altri combustibili'!E70/'Foglio Input_Pallet'!$C$15 -> 0 | I45: =SUMPRODUCT('Emissioni aria'!$C$18:$E$18,'Emissioni aria'!C38:E38)/'Foglio Input_Pallet'!$C$15 -> 0 | J45: =SUM(Rifiuti!B63:J63)/'Foglio Input_Pallet'!$C$15 -> 0
B46: Climate change - fossil | C46: kg CO2 eq | D46: 0 | E46: ='Foglio Input_Pallet'!$D$40/'Foglio Input_Pallet'!$C$36*SUMPRODUCT('Energia elettrica'!$C$18:$F$18,'Energia elettrica'!C38:F38)/'Foglio Input_Pallet'!$C$15 -> 0 | F46: ='Foglio Input_Pallet'!$D$48/'Foglio Input_Pallet'!$C$36*SUMPRODUCT('Energia termica'!$C$18:$F$18,'Energia termica'!C38:F38)/'Foglio Input_Pallet'!$C$15 -> 0 | G46: ='Foglio Input_Pallet'!$D$56/'Foglio Input_Pallet'!$C$36*SUMPRODUCT('Acqua e altri combustibili'!$C$17:$E$17,'Acqua e altri combustibili'!C37:E37)/'Foglio Input_Pallet'!$C$15 -> 0 | H46: ='Foglio Input_Pallet'!$C$63/'Foglio Input_Pallet'!$C$36*'Foglio Input_Pallet'!$C$10*'Acqua e altri combustibili'!E71/'Foglio Input_Pallet'!$C$15 -> 0 | I46: =SUMPRODUCT('Emissioni aria'!$C$18:$E$18,'Emissioni aria'!C39:E39)/'Foglio Input_Pallet'!$C$15 -> 0 | J46: =SUM(Rifiuti!B64:J64)/'Foglio Input_Pallet'!$C$15 -> 0
B47: Climate change - biogenic | C47: kg CO2 eq | D47: 0 | E47: ='Foglio Input_Pallet'!$D$40/'Foglio Input_Pallet'!$C$36*SUMPRODUCT('Energia elettrica'!$C$18:$F$18,'Energia elettrica'!C39:F39)/'Foglio Input_Pallet'!$C$15 -> 0 | F47: ='Foglio Input_Pallet'!$D$48/'Foglio Input_Pallet'!$C$36*SUMPRODUCT('Energia termica'!$C$18:$F$18,'Energia termica'!C39:F39)/'Foglio Input_Pallet'!$C$15 -> 0 | G47: ='Foglio Input_Pallet'!$D$56/'Foglio Input_Pallet'!$C$36*SUMPRODUCT('Acqua e altri combustibili'!$C$17:$E$17,'Acqua e altri combustibili'!C38:E38)/'Foglio Input_Pallet'!$C$15 -> 0 | H47: ='Foglio Input_Pallet'!$C$63/'Foglio Input_Pallet'!$C$36*'Foglio Input_Pallet'!$C$10*'Acqua e altri combustibili'!E72/'Foglio Input_Pallet'!$C$15 -> 0 | I47: =SUMPRODUCT('Emissioni aria'!$C$18:$E$18,'Emissioni aria'!C40:E40)/'Foglio Input_Pallet'!$C$15 -> 0 | J47: =SUM(Rifiuti!B65:J65)/'Foglio Input_Pallet'!$C$15 -> 0
B48: Climate change - land use and transform. | C48: kg CO2 eq | D48: 0 | E48: ='Foglio Input_Pallet'!$D$40/'Foglio Input_Pallet'!$C$36*SUMPRODUCT('Energia elettrica'!$C$18:$F$18,'Energia elettrica'!C40:F40)/'Foglio Input_Pallet'!$C$15 -> 0 | F48: ='Foglio Input_Pallet'!$D$48/'Foglio Input_Pallet'!$C$36*SUMPRODUCT('Energia termica'!$C$18:$F$18,'Energia termica'!C40:F40)/'Foglio Input_Pallet'!$C$15 -> 0 | G48: ='Foglio Input_Pallet'!$D$56/'Foglio Input_Pallet'!$C$36*SUMPRODUCT('Acqua e altri combustibili'!$C$17:$E$17,'Acqua e altri combustibili'!C39:E39)/'Foglio Input_Pallet'!$C$15 -> 0 | H48: ='Foglio Input_Pallet'!$C$63/'Foglio Input_Pallet'!$C$36*'Foglio Input_Pallet'!$C$10*'Acqua e altri combustibili'!E73/'Foglio Input_Pallet'!$C$15 -> 0 | I48: =SUMPRODUCT('Emissioni aria'!$C$18:$E$18,'Emissioni aria'!C41:E41)/'Foglio Input_Pallet'!$C$15 -> 0 | J48: =SUM(Rifiuti!B66:J66)/'Foglio Input_Pallet'!$C$15 -> 0
B50: Distribuzione
B51: Categoria di impatto | C51: Unità di misura | D51: Totale Distribuzione
B52: Climate change | C52: kg CO2 eq | D52: =_xlfn.IFS('Foglio Input_Pallet'!$E$97='menu tendina'!$A$6,'Foglio Input_Pallet'!$C$97*'Foglio Input_Pallet'!$C$10*'Mezzi di trasporto'!C20,'Foglio Input_Pallet'!$E$97='menu tendina'!$A$7,'Foglio Input_Pallet'!$C$97*'Foglio Input_Pallet'!$C$10*'Mezzi di trasporto'!D20,'Foglio Input_Pallet'!$E$97='menu tendina'!$A$8,'Foglio Input_Pallet'!$C$97*'Foglio Input_Pallet'!$C$10*'Mezzi di trasporto'!E20,'Foglio Input_Pallet'!$E$97='menu tendina'!$A$9,'Foglio Input_Pallet'!$C$97*'Foglio Input_Pallet'!$C$10*'Mezzi di trasporto'!F20,'Foglio Input_Pallet'!$E$97='menu tendina'!$A$10,'Foglio Input_Pallet'!$C$97*'Foglio Input_Pallet'!$C$10*'Mezzi di trasporto'!G20,'Foglio Input_Pallet'!$E$97='menu tendina'!$A$11,'Foglio Input_Pallet'!$C$10*'Mezzi di trasporto'!E20*'Altri valori_default'!$B$5) -> 0.3413396094
B53: Ozone depletion | C53: kg CFC11 eq | D53: =_xlfn.IFS('Foglio Input_Pallet'!$E$97='menu tendina'!$A$6,'Foglio Input_Pallet'!$C$97*'Foglio Input_Pallet'!$C$10*'Mezzi di trasporto'!C21,'Foglio Input_Pallet'!$E$97='menu tendina'!$A$7,'Foglio Input_Pallet'!$C$97*'Foglio Input_Pallet'!$C$10*'Mezzi di trasporto'!D21,'Foglio Input_Pallet'!$E$97='menu tendina'!$A$8,'Foglio Input_Pallet'!$C$97*'Foglio Input_Pallet'!$C$10*'Mezzi di trasporto'!E21,'Foglio Input_Pallet'!$E$97='menu tendina'!$A$9,'Foglio Input_Pallet'!$C$97*'Foglio Input_Pallet'!$C$10*'Mezzi di trasporto'!F21,'Foglio Input_Pallet'!$E$97='menu tendina'!$A$10,'Foglio Input_Pallet'!$C$97*'Foglio Input_Pallet'!$C$10*'Mezzi di trasporto'!G21,'Foglio Input_Pallet'!$E$97='menu tendina'!$A$11,'Foglio Input_Pallet'!$C$10*'Mezzi di trasporto'!E21*'Altri valori_default'!$B$5) -> 8.07464052e-08
B54: Ionising radiation, HH | C54: kBq U-235 eq | D54: =_xlfn.IFS('Foglio Input_Pallet'!$E$97='menu tendina'!$A$6,'Foglio Input_Pallet'!$C$97*'Foglio Input_Pallet'!$C$10*'Mezzi di trasporto'!C22,'Foglio Input_Pallet'!$E$97='menu tendina'!$A$7,'Foglio Input_Pallet'!$C$97*'Foglio Input_Pallet'!$C$10*'Mezzi di trasporto'!D22,'Foglio Input_Pallet'!$E$97='menu tendina'!$A$8,'Foglio Input_Pallet'!$C$97*'Foglio Input_Pallet'!$C$10*'Mezzi di trasporto'!E22,'Foglio Input_Pallet'!$E$97='menu tendina'!$A$9,'Foglio Input_Pallet'!$C$97*'Foglio Input_Pallet'!$C$10*'Mezzi di trasporto'!F22,'Foglio Input_Pallet'!$E$97='menu tendina'!$A$10,'Foglio Input_Pallet'!$C$97*'Foglio Input_Pallet'!$C$10*'Mezzi di trasporto'!G22,'Foglio Input_Pallet'!$E$97='menu tendina'!$A$11,'Foglio Input_Pallet'!$C$10*'Mezzi di trasporto'!E22*'Altri valori_default'!$B$5) -> 0.02749305586
B55: Photochemical ozone formation, HH | C55: kg NMVOC eq | D55: =_xlfn.IFS('Foglio Input_Pallet'!$E$97='menu tendina'!$A$6,'Foglio Input_Pallet'!$C$97*'Foglio Input_Pallet'!$C$10*'Mezzi di trasporto'!C23,'Foglio Input_Pallet'!$E$97='menu tendina'!$A$7,'Foglio Input_Pallet'!$C$97*'Foglio Input_Pallet'!$C$10*'Mezzi di trasporto'!D23,'Foglio Input_Pallet'!$E$97='menu tendina'!$A$8,'Foglio Input_Pallet'!$C$97*'Foglio Input_Pallet'!$C$10*'Mezzi di trasporto'!E23,'Foglio Input_Pallet'!$E$97='menu tendina'!$A$9,'Foglio Input_Pallet'!$C$97*'Foglio Input_Pallet'!$C$10*'Mezzi di trasporto'!F23,'Foglio Input_Pallet'!$E$97='menu tendina'!$A$10,'Foglio Input_Pallet'!$C$97*'Foglio Input_Pallet'!$C$10*'Mezzi di trasporto'!G23,'Foglio Input_Pallet'!$E$97='menu tendina'!$A$11,'Foglio Input_Pallet'!$C$10*'Mezzi di trasporto'!E23*'Altri valori_default'!$B$5) -> 0.001946445386
B56: Respiratory inorganics | C56: disease inc. | D56: =_xlfn.IFS('Foglio Input_Pallet'!$E$97='menu tendina'!$A$6,'Foglio Input_Pallet'!$C$97*'Foglio Input_Pallet'!$C$10*'Mezzi di trasporto'!C24,'Foglio Input_Pallet'!$E$97='menu tendina'!$A$7,'Foglio Input_Pallet'!$C$97*'Foglio Input_Pallet'!$C$10*'Mezzi di trasporto'!D24,'Foglio Input_Pallet'!$E$97='menu tendina'!$A$8,'Foglio Input_Pallet'!$C$97*'Foglio Input_Pallet'!$C$10*'Mezzi di trasporto'!E24,'Foglio Input_Pallet'!$E$97='menu tendina'!$A$9,'Foglio Input_Pallet'!$C$97*'Foglio Input_Pallet'!$C$10*'Mezzi di trasporto'!F24,'Foglio Input_Pallet'!$E$97='menu tendina'!$A$10,'Foglio Input_Pallet'!$C$97*'Foglio Input_Pallet'!$C$10*'Mezzi di trasporto'!G24,'Foglio Input_Pallet'!$E$97='menu tendina'!$A$11,'Foglio Input_Pallet'!$C$10*'Mezzi di trasporto'!E24*'Altri valori_default'!$B$5) -> 3.16381635e-08
B57: Non-cancer human health effects | C57: CTUh | D57: =_xlfn.IFS('Foglio Input_Pallet'!$E$97='menu tendina'!$A$6,'Foglio Input_Pallet'!$C$97*'Foglio Input_Pallet'!$C$10*'Mezzi di trasporto'!C25,'Foglio Input_Pallet'!$E$97='menu tendina'!$A$7,'Foglio Input_Pallet'!$C$97*'Foglio Input_Pallet'!$C$10*'Mezzi di trasporto'!D25,'Foglio Input_Pallet'!$E$97='menu tendina'!$A$8,'Foglio Input_Pallet'!$C$97*'Foglio Input_Pallet'!$C$10*'Mezzi di trasporto'!E25,'Foglio Input_Pallet'!$E$97='menu tendina'!$A$9,'Foglio Input_Pallet'!$C$97*'Foglio Input_Pallet'!$C$10*'Mezzi di trasporto'!F25,'Foglio Input_Pallet'!$E$97='menu tendina'!$A$10,'Foglio Input_Pallet'!$C$97*'Foglio Input_Pallet'!$C$10*'Mezzi di trasporto'!G25,'Foglio Input_Pallet'!$E$97='menu tendina'!$A$11,'Foglio Input_Pallet'!$C$10*'Mezzi di trasporto'!E25*'Altri valori_default'!$B$5) -> 6.14010346e-08
B58: Cancer human health effects | C58: CTUh | D58: =_xlfn.IFS('Foglio Input_Pallet'!$E$97='menu tendina'!$A$6,'Foglio Input_Pallet'!$C$97*'Foglio Input_Pallet'!$C$10*'Mezzi di trasporto'!C26,'Foglio Input_Pallet'!$E$97='menu tendina'!$A$7,'Foglio Input_Pallet'!$C$97*'Foglio Input_Pallet'!$C$10*'Mezzi di trasporto'!D26,'Foglio Input_Pallet'!$E$97='menu tendina'!$A$8,'Foglio Input_Pallet'!$C$97*'Foglio Input_Pallet'!$C$10*'Mezzi di trasporto'!E26,'Foglio Input_Pallet'!$E$97='menu tendina'!$A$9,'Foglio Input_Pallet'!$C$97*'Foglio Input_Pallet'!$C$10*'Mezzi di trasporto'!F26,'Foglio Input_Pallet'!$E$97='menu tendina'!$A$10,'Foglio Input_Pallet'!$C$97*'Foglio Input_Pallet'!$C$10*'Mezzi di trasporto'!G26,'Foglio Input_Pallet'!$E$97='menu tendina'!$A$11,'Foglio Input_Pallet'!$C$10*'Mezzi di trasporto'!E26*'Altri valori_default'!$B$5) -> 6.12553046e-09
B59: Acidification terrestrial and freshwater | C59: mol H+ eq | D59: =_xlfn.IFS('Foglio Input_Pallet'!$E$97='menu tendina'!$A$6,'Foglio Input_Pallet'!$C$97*'Foglio Input_Pallet'!$C$10*'Mezzi di trasporto'!C27,'Foglio Input_Pallet'!$E$97='menu tendina'!$A$7,'Foglio Input_Pallet'!$C$97*'Foglio Input_Pallet'!$C$10*'Mezzi di trasporto'!D27,'Foglio Input_Pallet'!$E$97='menu tendina'!$A$8,'Foglio Input_Pallet'!$C$97*'Foglio Input_Pallet'!$C$10*'Mezzi di trasporto'!E27,'Foglio Input_Pallet'!$E$97='menu tendina'!$A$9,'Foglio Input_Pallet'!$C$97*'Foglio Input_Pallet'!$C$10*'Mezzi di trasporto'!F27,'Foglio Input_Pallet'!$E$97='menu tendina'!$A$10,'Foglio Input_Pallet'!$C$97*'Foglio Input_Pallet'!$C$10*'Mezzi di trasporto'!G27,'Foglio Input_Pallet'!$E$97='menu tendina'!$A$11,'Foglio Input_Pallet'!$C$10*'Mezzi di trasporto'!E27*'Altri valori_default'!$B$5) -> 0.001723779522
B60: Eutrophication freshwater | C60: kg P eq | D60: =_xlfn.IFS('Foglio Input_Pallet'!$E$97='menu tendina'!$A$6,'Foglio Input_Pallet'!$C$97*'Foglio Input_Pallet'!$C$10*'Mezzi di trasporto'!C28,'Foglio Input_Pallet'!$E$97='menu tendina'!$A$7,'Foglio Input_Pallet'!$C$97*'Foglio Input_Pallet'!$C$10*'Mezzi di trasporto'!D28,'Foglio Input_Pallet'!$E$97='menu tendina'!$A$8,'Foglio Input_Pallet'!$C$97*'Foglio Input_Pallet'!$C$10*'Mezzi di trasporto'!E28,'Foglio Input_Pallet'!$E$97='menu tendina'!$A$9,'Foglio Input_Pallet'!$C$97*'Foglio Input_Pallet'!$C$10*'Mezzi di trasporto'!F28,'Foglio Input_Pallet'!$E$97='menu tendina'!$A$10,'Foglio Input_Pallet'!$C$97*'Foglio Input_Pallet'!$C$10*'Mezzi di trasporto'!G28,'Foglio Input_Pallet'!$E$97='menu tendina'!$A$11,'Foglio Input_Pallet'!$C$10*'Mezzi di trasporto'!E28*'Altri valori_default'!$B$5) -> 2.238701258e-05
B61: Eutrophication marine | C61: kg N eq | D61: =_xlfn.IFS('Foglio Input_Pallet'!$E$97='menu tendina'!$A$6,'Foglio Input_Pallet'!$C$97*'Foglio Input_Pallet'!$C$10*'Mezzi di trasporto'!C29,'Foglio Input_Pallet'!$E$97='menu tendina'!$A$7,'Foglio Input_Pallet'!$C$97*'Foglio Input_Pallet'!$C$10*'Mezzi di trasporto'!D29,'Foglio Input_Pallet'!$E$97='menu tendina'!$A$8,'Foglio Input_Pallet'!$C$97*'Foglio Input_Pallet'!$C$10*'Mezzi di trasporto'!E29,'Foglio Input_Pallet'!$E$97='menu tendina'!$A$9,'Foglio Input_Pallet'!$C$97*'Foglio Input_Pallet'!$C$10*'Mezzi di trasporto'!F29,'Foglio Input_Pallet'!$E$97='menu tendina'!$A$10,'Foglio Input_Pallet'!$C$97*'Foglio Input_Pallet'!$C$10*'Mezzi di trasporto'!G29,'Foglio Input_Pallet'!$E$97='menu tendina'!$A$11,'Foglio Input_Pallet'!$C$10*'Mezzi di trasporto'!E29*'Altri valori_default'!$B$5) -> 0.000597088946
B62: Eutrophication terrestrial | C62: mol N eq | D62: =_xlfn.IFS('Foglio Input_Pallet'!$E$97='menu tendina'!$A$6,'Foglio Input_Pallet'!$C$97*'Foglio Input_Pallet'!$C$10*'Mezzi di trasporto'!C30,'Foglio Input_Pallet'!$E$97='menu tendina'!$A$7,'Foglio Input_Pallet'!$C$97*'Foglio Input_Pallet'!$C$10*'Mezzi di trasporto'!D30,'Foglio Input_Pallet'!$E$97='menu tendina'!$A$8,'Foglio Input_Pallet'!$C$97*'Foglio Input_Pallet'!$C$10*'Mezzi di trasporto'!E30,'Foglio Input_Pallet'!$E$97='menu tendina'!$A$9,'Foglio Input_Pallet'!$C$97*'Foglio Input_Pallet'!$C$10*'Mezzi di trasporto'!F30,'Foglio Input_Pallet'!$E$97='menu tendina'!$A$10,'Foglio Input_Pallet'!$C$97*'Foglio Input_Pallet'!$C$10*'Mezzi di trasporto'!G30,'Foglio Input_Pallet'!$E$97='menu tendina'!$A$11,'Foglio Input_Pallet'!$C$10*'Mezzi di trasporto'!E30*'Altri valori_default'!$B$5) -> 0.00652530452
B63: Ecotoxicity freshwater | C63: CTUe | D63: =_xlfn.IFS('Foglio Input_Pallet'!$E$97='menu tendina'!$A$6,'Foglio Input_Pallet'!$C$97*'Foglio Input_Pallet'!$C$10*'Mezzi di trasporto'!C31,'Foglio Input_Pallet'!$E$97='menu tendina'!$A$7,'Foglio Input_Pallet'!$C$97*'Foglio Input_Pallet'!$C$10*'Mezzi di trasporto'!D31,'Foglio Input_Pallet'!$E$97='menu tendina'!$A$8,'Foglio Input_Pallet'!$C$97*'Foglio Input_Pallet'!$C$10*'Mezzi di trasporto'!E31,'Foglio Input_Pallet'!$E$97='menu tendina'!$A$9,'Foglio Input_Pallet'!$C$97*'Foglio Input_Pallet'!$C$10*'Mezzi di trasporto'!F31,'Foglio Input_Pallet'!$E$97='menu tendina'!$A$10,'Foglio Input_Pallet'!$C$97*'Foglio Input_Pallet'!$C$10*'Mezzi di trasporto'!G31,'Foglio Input_Pallet'!$E$97='menu tendina'!$A$11,'Foglio Input_Pallet'!$C$10*'Mezzi di trasporto'!E31*'Altri valori_default'!$B$5) -> 1.214017882
B64: Land use | C64: Pt | D64: =_xlfn.IFS('Foglio Input_Pallet'!$E$97='menu tendina'!$A$6,'Foglio Input_Pallet'!$C$97*'Foglio Input_Pallet'!$C$10*'Mezzi di trasporto'!C32,'Foglio Input_Pallet'!$E$97='menu tendina'!$A$7,'Foglio Input_Pallet'!$C$97*'Foglio Input_Pallet'!$C$10*'Mezzi di trasporto'!D32,'Foglio Input_Pallet'!$E$97='menu tendina'!$A$8,'Foglio Input_Pallet'!$C$97*'Foglio Input_Pallet'!$C$10*'Mezzi di trasporto'!E32,'Foglio Input_Pallet'!$E$97='menu tendina'!$A$9,'Foglio Input_Pallet'!$C$97*'Foglio Input_Pallet'!$C$10*'Mezzi di trasporto'!F32,'Foglio Input_Pallet'!$E$97='menu tendina'!$A$10,'Foglio Input_Pallet'!$C$97*'Foglio Input_Pallet'!$C$10*'Mezzi di trasporto'!G32,'Foglio Input_Pallet'!$E$97='menu tendina'!$A$11,'Foglio Input_Pallet'!$C$10*'Mezzi di trasporto'!E32*'Altri valori_default'!$B$5) -> 9.49577174
B65: Water scarcity | C65: m3 depriv. | D65: =_xlfn.IFS('Foglio Input_Pallet'!$E$97='menu tendina'!$A$6,'Foglio Input_Pallet'!$C$97*'Foglio Input_Pallet'!$C$10*'Mezzi di trasporto'!C33,'Foglio Input_Pallet'!$E$97='menu tendina'!$A$7,'Foglio Input_Pallet'!$C$97*'Foglio Input_Pallet'!$C$10*'Mezzi di trasporto'!D33,'Foglio Input_Pallet'!$E$97='menu tendina'!$A$8,'Foglio Input_Pallet'!$C$97*'Foglio Input_Pallet'!$C$10*'Mezzi di trasporto'!E33,'Foglio Input_Pallet'!$E$97='menu tendina'!$A$9,'Foglio Input_Pallet'!$C$97*'Foglio Input_Pallet'!$C$10*'Mezzi di trasporto'!F33,'Foglio Input_Pallet'!$E$97='menu tendina'!$A$10,'Foglio Input_Pallet'!$C$97*'Foglio Input_Pallet'!$C$10*'Mezzi di trasporto'!G33,'Foglio Input_Pallet'!$E$97='menu tendina'!$A$11,'Foglio Input_Pallet'!$C$10*'Mezzi di trasporto'!E33*'Altri valori_default'!$B$5) -> 0.0176898303
B66: Resource use, energy carriers | C66: MJ | D66: =_xlfn.IFS('Foglio Input_Pallet'!$E$97='menu tendina'!$A$6,'Foglio Input_Pallet'!$C$97*'Foglio Input_Pallet'!$C$10*'Mezzi di trasporto'!C34,'Foglio Input_Pallet'!$E$97='menu tendina'!$A$7,'Foglio Input_Pallet'!$C$97*'Foglio Input_Pallet'!$C$10*'Mezzi di trasporto'!D34,'Foglio Input_Pallet'!$E$97='menu tendina'!$A$8,'Foglio Input_Pallet'!$C$97*'Foglio Input_Pallet'!$C$10*'Mezzi di trasporto'!E34,'Foglio Input_Pallet'!$E$97='menu tendina'!$A$9,'Foglio Input_Pallet'!$C$97*'Foglio Input_Pallet'!$C$10*'Mezzi di trasporto'!F34,'Foglio Input_Pallet'!$E$97='menu tendina'!$A$10,'Foglio Input_Pallet'!$C$97*'Foglio Input_Pallet'!$C$10*'Mezzi di trasporto'!G34,'Foglio Input_Pallet'!$E$97='menu tendina'!$A$11,'Foglio Input_Pallet'!$C$10*'Mezzi di trasporto'!E34*'Altri valori_default'!$B$5) -> 5.35877976
B67: Resource use, mineral and metals | C67: kg Sb eq | D67: =_xlfn.IFS('Foglio Input_Pallet'!$E$97='menu tendina'!$A$6,'Foglio Input_Pallet'!$C$97*'Foglio Input_Pallet'!$C$10*'Mezzi di trasporto'!C35,'Foglio Input_Pallet'!$E$97='menu tendina'!$A$7,'Foglio Input_Pallet'!$C$97*'Foglio Input_Pallet'!$C$10*'Mezzi di trasporto'!D35,'Foglio Input_Pallet'!$E$97='menu tendina'!$A$8,'Foglio Input_Pallet'!$C$97*'Foglio Input_Pallet'!$C$10*'Mezzi di trasporto'!E35,'Foglio Input_Pallet'!$E$97='menu tendina'!$A$9,'Foglio Input_Pallet'!$C$97*'Foglio Input_Pallet'!$C$10*'Mezzi di trasporto'!F35,'Foglio Input_Pallet'!$E$97='menu tendina'!$A$10,'Foglio Input_Pallet'!$C$97*'Foglio Input_Pallet'!$C$10*'Mezzi di trasporto'!G35,'Foglio Input_Pallet'!$E$97='menu tendina'!$A$11,'Foglio Input_Pallet'!$C$10*'Mezzi di trasporto'!E35*'Altri valori_default'!$B$5) -> 8.06556992e-07
B68: Climate change - fossil | C68: kg CO2 eq | D68: =_xlfn.IFS('Foglio Input_Pallet'!$E$97='menu tendina'!$A$6,'Foglio Input_Pallet'!$C$97*'Foglio Input_Pallet'!$C$10*'Mezzi di trasporto'!C36,'Foglio Input_Pallet'!$E$97='menu tendina'!$A$7,'Foglio Input_Pallet'!$C$97*'Foglio Input_Pallet'!$C$10*'Mezzi di trasporto'!D36,'Foglio Input_Pallet'!$E$97='menu tendina'!$A$8,'Foglio Input_Pallet'!$C$97*'Foglio Input_Pallet'!$C$10*'Mezzi di trasporto'!E36,'Foglio Input_Pallet'!$E$97='menu tendina'!$A$9,'Foglio Input_Pallet'!$C$97*'Foglio Input_Pallet'!$C$10*'Mezzi di trasporto'!F36,'Foglio Input_Pallet'!$E$97='menu tendina'!$A$10,'Foglio Input_Pallet'!$C$97*'Foglio Input_Pallet'!$C$10*'Mezzi di trasporto'!G36,'Foglio Input_Pallet'!$E$97='menu tendina'!$A$11,'Foglio Input_Pallet'!$C$10*'Mezzi di trasporto'!E36*'Altri valori_default'!$B$5) -> 0.3411268094
B69: Climate change - biogenic | C69: kg CO2 eq | D69: =_xlfn.IFS('Foglio Input_Pallet'!$E$97='menu tendina'!$A$6,'Foglio Input_Pallet'!$C$97*'Foglio Input_Pallet'!$C$10*'Mezzi di trasporto'!C37,'Foglio Input_Pallet'!$E$97='menu tendina'!$A$7,'Foglio Input_Pallet'!$C$97*'Foglio Input_Pallet'!$C$10*'Mezzi di trasporto'!D37,'Foglio Input_Pallet'!$E$97='menu tendina'!$A$8,'Foglio Input_Pallet'!$C$97*'Foglio Input_Pallet'!$C$10*'Mezzi di trasporto'!E37,'Foglio Input_Pallet'!$E$97='menu tendina'!$A$9,'Foglio Input_Pallet'!$C$97*'Foglio Input_Pallet'!$C$10*'Mezzi di trasporto'!F37,'Foglio Input_Pallet'!$E$97='menu tendina'!$A$10,'Foglio Input_Pallet'!$C$97*'Foglio Input_Pallet'!$C$10*'Mezzi di trasporto'!G37,'Foglio Input_Pallet'!$E$97='menu tendina'!$A$11,'Foglio Input_Pallet'!$C$10*'Mezzi di trasporto'!E37*'Altri valori_default'!$B$5) -> 0.0001168654394
B70: Climate change - land use and transform. | C70: kg CO2 eq | D70: =_xlfn.IFS('Foglio Input_Pallet'!$E$97='menu tendina'!$A$6,'Foglio Input_Pallet'!$C$97*'Foglio Input_Pallet'!$C$10*'Mezzi di trasporto'!C38,'Foglio Input_Pallet'!$E$97='menu tendina'!$A$7,'Foglio Input_Pallet'!$C$97*'Foglio Input_Pallet'!$C$10*'Mezzi di trasporto'!D38,'Foglio Input_Pallet'!$E$97='menu tendina'!$A$8,'Foglio Input_Pallet'!$C$97*'Foglio Input_Pallet'!$C$10*'Mezzi di trasporto'!E38,'Foglio Input_Pallet'!$E$97='menu tendina'!$A$9,'Foglio Input_Pallet'!$C$97*'Foglio Input_Pallet'!$C$10*'Mezzi di trasporto'!F38,'Foglio Input_Pallet'!$E$97='menu tendina'!$A$10,'Foglio Input_Pallet'!$C$97*'Foglio Input_Pallet'!$C$10*'Mezzi di trasporto'!G38,'Foglio Input_Pallet'!$E$97='menu tendina'!$A$11,'Foglio Input_Pallet'!$C$10*'Mezzi di trasporto'!E38*'Altri valori_default'!$B$5) -> 9.59342034e-05
B72: Fase d'uso (manutenzione)
B73: Categoria di impatto | C73: Unità di misura | D73: Totale Fase d'uso | E73: Trasporto a riparazione | F73: Materie prime riparazione | G73: Rifiuti riparazione | H73: Fitotrattamento
B74: Climate change | C74: kg CO2 eq | D74: =SUM(E74:H74)/22 -> 0.01000026499 | E74: =_xlfn.IFS('Foglio Input_Pallet'!$C$14='menu tendina'!$A$3,0,'Foglio Input_Pallet'!$C$14='menu tendina'!$A$2,'Mezzi di trasporto'!H20*'Altri valori_default'!$B$8) -> 0.016607419 | F74: =_xlfn.IFS('Foglio Input_Pallet'!$C$14='menu tendina'!$A$3,0,'Foglio Input_Pallet'!$C$14='menu tendina'!$A$2,SUM(Riparazione_default!C21+Riparazione_default!D21+Riparazione_default!E21+Riparazione_default!F21))/'Foglio Input_Pallet'!$C$15 -> 0.06956073917 | G74: =_xlfn.IFS('Foglio Input_Pallet'!$C$14='menu tendina'!$A$3,0,'Foglio Input_Pallet'!$C$14='menu tendina'!$A$2,SUM(Riparazione_default!D21+Riparazione_default!E21+Riparazione_default!F21+Riparazione_default!G21))/'Foglio Input_Pallet'!$C$15 -> 0.08933767826 | H74: =_xlfn.IFS('Foglio Input_Pallet'!$C$14='menu tendina'!$A$3,0,'Foglio Input_Pallet'!$C$14='menu tendina'!$A$2,SUM(Riparazione_default!E21+Riparazione_default!F21+Riparazione_default!G21+Riparazione_default!H21))/'Foglio Input_Pallet'!$C$15 -> 0.04449999326
B75: Ozone depletion | C75: kg CFC11 eq | D75: =SUM(E75:H75) -> 2.384467925e-08 | E75: =_xlfn.IFS('Foglio Input_Pallet'!$C$14='menu tendina'!$A$3,0,'Foglio Input_Pallet'!$C$14='menu tendina'!$A$2,'Mezzi di trasporto'!H21*'Altri valori_default'!$B$8) -> 3.7686715e-09 | F75: =_xlfn.IFS('Foglio Input_Pallet'!$C$14='menu tendina'!$A$3,0,'Foglio Input_Pallet'!$C$14='menu tendina'!$A$2,SUM(Riparazione_default!C22+Riparazione_default!D22+Riparazione_default!E22+Riparazione_default!F22))/'Foglio Input_Pallet'!$C$15 -> 5.783502795e-09 | G75: =_xlfn.IFS('Foglio Input_Pallet'!$C$14='menu tendina'!$A$3,0,'Foglio Input_Pallet'!$C$14='menu tendina'!$A$2,SUM(Riparazione_default!D22+Riparazione_default!E22+Riparazione_default!F22+Riparazione_default!G22))/'Foglio Input_Pallet'!$C$15 -> 8.285938022e-09 | H75: =_xlfn.IFS('Foglio Input_Pallet'!$C$14='menu tendina'!$A$3,0,'Foglio Input_Pallet'!$C$14='menu tendina'!$A$2,SUM(Riparazione_default!E22+Riparazione_default!F22+Riparazione_default!G22+Riparazione_default!H22))/'Foglio Input_Pallet'!$C$15 -> 6.006566931e-09
B76: Ionising radiation, HH | C76: kBq U-235 eq | D76: 0.02704528767 | E76: =_xlfn.IFS('Foglio Input_Pallet'!$C$14='menu tendina'!$A$3,0,'Foglio Input_Pallet'!$C$14='menu tendina'!$A$2,'Mezzi di trasporto'!H22*'Altri valori_default'!$B$8) -> 0.0013106348 | F76: =_xlfn.IFS('Foglio Input_Pallet'!$C$14='menu tendina'!$A$3,0,'Foglio Input_Pallet'!$C$14='menu tendina'!$A$2,SUM(Riparazione_default!C23+Riparazione_default!D23+Riparazione_default!E23+Riparazione_default!F23))/'Foglio Input_Pallet'!$C$15 -> 0.009419260031 | G76: =_xlfn.IFS('Foglio Input_Pallet'!$C$14='menu tendina'!$A$3,0,'Foglio Input_Pallet'!$C$14='menu tendina'!$A$2,SUM(Riparazione_default!D23+Riparazione_default!E23+Riparazione_default!F23+Riparazione_default!G23))/'Foglio Input_Pallet'!$C$15 -> 0.01205771653 | H76: =_xlfn.IFS('Foglio Input_Pallet'!$C$14='menu tendina'!$A$3,0,'Foglio Input_Pallet'!$C$14='menu tendina'!$A$2,SUM(Riparazione_default!E23+Riparazione_default!F23+Riparazione_default!G23+Riparazione_default!H23))/'Foglio Input_Pallet'!$C$15 -> 0.004257676304
B77: Photochemical ozone formation, HH | C77: kg NMVOC eq | D77: 0.00108257215 | E77: =_xlfn.IFS('Foglio Input_Pallet'!$C$14='menu tendina'!$A$3,0,'Foglio Input_Pallet'!$C$14='menu tendina'!$A$2,'Mezzi di trasporto'!H23*'Altri valori_default'!$B$8) -> 6.7849706e-05 | F77: =_xlfn.IFS('Foglio Input_Pallet'!$C$14='menu tendina'!$A$3,0,'Foglio Input_Pallet'!$C$14='menu tendina'!$A$2,SUM(Riparazione_default!C24+Riparazione_default!D24+Riparazione_default!E24+Riparazione_default!F24))/'Foglio Input_Pallet'!$C$15 -> 0.0004229932451 | G77: =_xlfn.IFS('Foglio Input_Pallet'!$C$14='menu tendina'!$A$3,0,'Foglio Input_Pallet'!$C$14='menu tendina'!$A$2,SUM(Riparazione_default!D24+Riparazione_default!E24+Riparazione_default!F24+Riparazione_default!G24))/'Foglio Input_Pallet'!$C$15 -> 0.0004225054451 | H77: =_xlfn.IFS('Foglio Input_Pallet'!$C$14='menu tendina'!$A$3,0,'Foglio Input_Pallet'!$C$14='menu tendina'!$A$2,SUM(Riparazione_default!E24+Riparazione_default!F24+Riparazione_default!G24+Riparazione_default!H24))/'Foglio Input_Pallet'!$C$15 -> 0.0001692237542
B78: Respiratory inorganics | C78: disease inc. | D78: 2.657284257e-08 | E78: =_xlfn.IFS('Foglio Input_Pallet'!$C$14='menu tendina'!$A$3,0,'Foglio Input_Pallet'!$C$14='menu tendina'!$A$2,'Mezzi di trasporto'!H24*'Altri valori_default'!$B$8) -> 1.149146e-09 | F78: =_xlfn.IFS('Foglio Input_Pallet'!$C$14='menu tendina'!$A$3,0,'Foglio Input_Pallet'!$C$14='menu tendina'!$A$2,SUM(Riparazione_default!C25+Riparazione_default!D25+Riparazione_default!E25+Riparazione_default!F25))/'Foglio Input_Pallet'!$C$15 -> 1.220437964e-08 | G78: =_xlfn.IFS('Foglio Input_Pallet'!$C$14='menu tendina'!$A$3,0,'Foglio Input_Pallet'!$C$14='menu tendina'!$A$2,SUM(Riparazione_default!D25+Riparazione_default!E25+Riparazione_default!F25+Riparazione_default!G25))/'Foglio Input_Pallet'!$C$15 -> 1.115204214e-08 | H78: =_xlfn.IFS('Foglio Input_Pallet'!$C$14='menu tendina'!$A$3,0,'Foglio Input_Pallet'!$C$14='menu tendina'!$A$2,SUM(Riparazione_default!E25+Riparazione_default!F25+Riparazione_default!G25+Riparazione_default!H25))/'Foglio Input_Pallet'!$C$15 -> 2.06727478e-09
B79: Non-cancer human health effects | C79: CTUh | D79: 3.731693821e-08 | E79: =_xlfn.IFS('Foglio Input_Pallet'!$C$14='menu tendina'!$A$3,0,'Foglio Input_Pallet'!$C$14='menu tendina'!$A$2,'Mezzi di trasporto'!H25*'Altri valori_default'!$B$8) -> 2.4034287e-09 | F79: =_xlfn.IFS('Foglio Input_Pallet'!$C$14='menu tendina'!$A$3,0,'Foglio Input_Pallet'!$C$14='menu tendina'!$A$2,SUM(Riparazione_default!C26+Riparazione_default!D26+Riparazione_default!E26+Riparazione_default!F26))/'Foglio Input_Pallet'!$C$15 -> 1.566210006e-08 | G79: =_xlfn.IFS('Foglio Input_Pallet'!$C$14='menu tendina'!$A$3,0,'Foglio Input_Pallet'!$C$14='menu tendina'!$A$2,SUM(Riparazione_default!D26+Riparazione_default!E26+Riparazione_default!F26+Riparazione_default!G26))/'Foglio Input_Pallet'!$C$15 -> 1.549253184e-08 | H79: =_xlfn.IFS('Foglio Input_Pallet'!$C$14='menu tendina'!$A$3,0,'Foglio Input_Pallet'!$C$14='menu tendina'!$A$2,SUM(Riparazione_default!E26+Riparazione_default!F26+Riparazione_default!G26+Riparazione_default!H26))/'Foglio Input_Pallet'!$C$15 -> 3.758877609e-09
B80: Cancer human health effects | C80: CTUh | D80: 3.251733762e-08 | E80: =_xlfn.IFS('Foglio Input_Pallet'!$C$14='menu tendina'!$A$3,0,'Foglio Input_Pallet'!$C$14='menu tendina'!$A$2,'Mezzi di trasporto'!H26*'Altri valori_default'!$B$8) -> 3.2664593e-10 | F80: =_xlfn.IFS('Foglio Input_Pallet'!$C$14='menu tendina'!$A$3,0,'Foglio Input_Pallet'!$C$14='menu tendina'!$A$2,SUM(Riparazione_default!C27+Riparazione_default!D27+Riparazione_default!E27+Riparazione_default!F27))/'Foglio Input_Pallet'!$C$15 -> 1.129740457e-08 | G80: =_xlfn.IFS('Foglio Input_Pallet'!$C$14='menu tendina'!$A$3,0,'Foglio Input_Pallet'!$C$14='menu tendina'!$A$2,SUM(Riparazione_default!D27+Riparazione_default!E27+Riparazione_default!F27+Riparazione_default!G27))/'Foglio Input_Pallet'!$C$15 -> 1.11935064e-08 | H80: =_xlfn.IFS('Foglio Input_Pallet'!$C$14='menu tendina'!$A$3,0,'Foglio Input_Pallet'!$C$14='menu tendina'!$A$2,SUM(Riparazione_default!E27+Riparazione_default!F27+Riparazione_default!G27+Riparazione_default!H27))/'Foglio Input_Pallet'!$C$15 -> 9.699780709e-09
B81: Acidification terrestrial and freshwater | C81: mol H+ eq | D81: 0.001096843568 | E81: =_xlfn.IFS('Foglio Input_Pallet'!$C$14='menu tendina'!$A$3,0,'Foglio Input_Pallet'!$C$14='menu tendina'!$A$2,'Mezzi di trasporto'!H27*'Altri valori_default'!$B$8) -> 6.6451457e-05 | F81: =_xlfn.IFS('Foglio Input_Pallet'!$C$14='menu tendina'!$A$3,0,'Foglio Input_Pallet'!$C$14='menu tendina'!$A$2,SUM(Riparazione_default!C28+Riparazione_default!D28+Riparazione_default!E28+Riparazione_default!F28))/'Foglio Input_Pallet'!$C$15 -> 0.0003797887871 | G81: =_xlfn.IFS('Foglio Input_Pallet'!$C$14='menu tendina'!$A$3,0,'Foglio Input_Pallet'!$C$14='menu tendina'!$A$2,SUM(Riparazione_default!D28+Riparazione_default!E28+Riparazione_default!F28+Riparazione_default!G28))/'Foglio Input_Pallet'!$C$15 -> 0.000446194219 | H81: =_xlfn.IFS('Foglio Input_Pallet'!$C$14='menu tendina'!$A$3,0,'Foglio Input_Pallet'!$C$14='menu tendina'!$A$2,SUM(Riparazione_default!E28+Riparazione_default!F28+Riparazione_default!G28+Riparazione_default!H28))/'Foglio Input_Pallet'!$C$15 -> 0.0002044091053
B82: Eutrophication freshwater | C82: kg P eq | D82: 6.940462513e-05 | E82: =_xlfn.IFS('Foglio Input_Pallet'!$C$14='menu tendina'!$A$3,0,'Foglio Input_Pallet'!$C$14='menu tendina'!$A$2,'Mezzi di trasporto'!H28*'Altri valori_default'!$B$8) -> 1.1146833e-06 | F82: =_xlfn.IFS('Foglio Input_Pallet'!$C$14='menu tendina'!$A$3,0,'Foglio Input_Pallet'!$C$14='menu tendina'!$A$2,SUM(Riparazione_default!C29+Riparazione_default!D29+Riparazione_default!E29+Riparazione_default!F29))/'Foglio Input_Pallet'!$C$15 -> 2.725825206e-05 | G82: =_xlfn.IFS('Foglio Input_Pallet'!$C$14='menu tendina'!$A$3,0,'Foglio Input_Pallet'!$C$14='menu tendina'!$A$2,SUM(Riparazione_default!D29+Riparazione_default!E29+Riparazione_default!F29+Riparazione_default!G29))/'Foglio Input_Pallet'!$C$15 -> 3.16916722e-05 | H82: =_xlfn.IFS('Foglio Input_Pallet'!$C$14='menu tendina'!$A$3,0,'Foglio Input_Pallet'!$C$14='menu tendina'!$A$2,SUM(Riparazione_default!E29+Riparazione_default!F29+Riparazione_default!G29+Riparazione_default!H29))/'Foglio Input_Pallet'!$C$15 -> 9.340017577e-06
B83: Eutrophication marine | C83: kg N eq | D83: 0.0002759419842 | E83: =_xlfn.IFS('Foglio Input_Pallet'!$C$14='menu tendina'!$A$3,0,'Foglio Input_Pallet'!$C$14='menu tendina'!$A$2,'Mezzi di trasporto'!H29*'Altri valori_default'!$B$8) -> 2.0347118e-05 | F83: =_xlfn.IFS('Foglio Input_Pallet'!$C$14='menu tendina'!$A$3,0,'Foglio Input_Pallet'!$C$14='menu tendina'!$A$2,SUM(Riparazione_default!C30+Riparazione_default!D30+Riparazione_default!E30+Riparazione_default!F30))/'Foglio Input_Pallet'!$C$15 -> 0.0001003068491 | G83: =_xlfn.IFS('Foglio Input_Pallet'!$C$14='menu tendina'!$A$3,0,'Foglio Input_Pallet'!$C$14='menu tendina'!$A$2,SUM(Riparazione_default!D30+Riparazione_default!E30+Riparazione_default!F30+Riparazione_default!G30))/'Foglio Input_Pallet'!$C$15 -> 0.0001002657936 | H83: =_xlfn.IFS('Foglio Input_Pallet'!$C$14='menu tendina'!$A$3,0,'Foglio Input_Pallet'!$C$14='menu tendina'!$A$2,SUM(Riparazione_default!E30+Riparazione_default!F30+Riparazione_default!G30+Riparazione_default!H30))/'Foglio Input_Pallet'!$C$15 -> 5.50222236e-05
B84: Eutrophication terrestrial | C84: mol N eq | D84: 0.002871942294 | E84: =_xlfn.IFS('Foglio Input_Pallet'!$C$14='menu tendina'!$A$3,0,'Foglio Input_Pallet'!$C$14='menu tendina'!$A$2,'Mezzi di trasporto'!H30*'Altri valori_default'!$B$8) -> 0.00022200957 | F84: =_xlfn.IFS('Foglio Input_Pallet'!$C$14='menu tendina'!$A$3,0,'Foglio Input_Pallet'!$C$14='menu tendina'!$A$2,SUM(Riparazione_default!C31+Riparazione_default!D31+Riparazione_default!E31+Riparazione_default!F31))/'Foglio Input_Pallet'!$C$15 -> 0.001063641126 | G84: =_xlfn.IFS('Foglio Input_Pallet'!$C$14='menu tendina'!$A$3,0,'Foglio Input_Pallet'!$C$14='menu tendina'!$A$2,SUM(Riparazione_default!D31+Riparazione_default!E31+Riparazione_default!F31+Riparazione_default!G31))/'Foglio Input_Pallet'!$C$15 -> 0.001064366272 | H84: =_xlfn.IFS('Foglio Input_Pallet'!$C$14='menu tendina'!$A$3,0,'Foglio Input_Pallet'!$C$14='menu tendina'!$A$2,SUM(Riparazione_default!E31+Riparazione_default!F31+Riparazione_default!G31+Riparazione_default!H31))/'Foglio Input_Pallet'!$C$15 -> 0.0005219253262
B85: Ecotoxicity freshwater | C85: CTUe | D85: 0.5360409967 | E85: =_xlfn.IFS('Foglio Input_Pallet'!$C$14='menu tendina'!$A$3,0,'Foglio Input_Pallet'!$C$14='menu tendina'!$A$2,'Mezzi di trasporto'!H31*'Altri valori_default'!$B$8) -> 0.044051207 | F85: =_xlfn.IFS('Foglio Input_Pallet'!$C$14='menu tendina'!$A$3,0,'Foglio Input_Pallet'!$C$14='menu tendina'!$A$2,SUM(Riparazione_default!C32+Riparazione_default!D32+Riparazione_default!E32+Riparazione_default!F32))/'Foglio Input_Pallet'!$C$15 -> 0.1960375841 | G85: =_xlfn.IFS('Foglio Input_Pallet'!$C$14='menu tendina'!$A$3,0,'Foglio Input_Pallet'!$C$14='menu tendina'!$A$2,SUM(Riparazione_default!D32+Riparazione_default!E32+Riparazione_default!F32+Riparazione_default!G32))/'Foglio Input_Pallet'!$C$15 -> 0.1871636328 | H85: =_xlfn.IFS('Foglio Input_Pallet'!$C$14='menu tendina'!$A$3,0,'Foglio Input_Pallet'!$C$14='menu tendina'!$A$2,SUM(Riparazione_default!E32+Riparazione_default!F32+Riparazione_default!G32+Riparazione_default!H32))/'Foglio Input_Pallet'!$C$15 -> 0.1087885728
B86: Land use | C86: Pt | D86: 47.70349746 | E86: =_xlfn.IFS('Foglio Input_Pallet'!$C$14='menu tendina'!$A$3,0,'Foglio Input_Pallet'!$C$14='menu tendina'!$A$2,'Mezzi di trasporto'!H32*'Altri valori_default'!$B$8) -> 0.25269623 | F86: =_xlfn.IFS('Foglio Input_Pallet'!$C$14='menu tendina'!$A$3,0,'Foglio Input_Pallet'!$C$14='menu tendina'!$A$2,SUM(Riparazione_default!C33+Riparazione_default!D33+Riparazione_default!E33+Riparazione_default!F33))/'Foglio Input_Pallet'!$C$15 -> 30.24873804 | G86: =_xlfn.IFS('Foglio Input_Pallet'!$C$14='menu tendina'!$A$3,0,'Foglio Input_Pallet'!$C$14='menu tendina'!$A$2,SUM(Riparazione_default!D33+Riparazione_default!E33+Riparazione_default!F33+Riparazione_default!G33))/'Foglio Input_Pallet'!$C$15 -> 16.9953812 | H86: =_xlfn.IFS('Foglio Input_Pallet'!$C$14='menu tendina'!$A$3,0,'Foglio Input_Pallet'!$C$14='menu tendina'!$A$2,SUM(Riparazione_default!E33+Riparazione_default!F33+Riparazione_default!G33+Riparazione_default!H33))/'Foglio Input_Pallet'!$C$15 -> 0.2066819887
B87: Water scarcity | C87: m3 depriv. | D87: 0.08698218839 | E87: =_xlfn.IFS('Foglio Input_Pallet'!$C$14='menu tendina'!$A$3,0,'Foglio Input_Pallet'!$C$14='menu tendina'!$A$2,'Mezzi di trasporto'!H33*'Altri valori_default'!$B$8) -> 0.00071368632 | F87: =_xlfn.IFS('Foglio Input_Pallet'!$C$14='menu tendina'!$A$3,0,'Foglio Input_Pallet'!$C$14='menu tendina'!$A$2,SUM(Riparazione_default!C34+Riparazione_default!D34+Riparazione_default!E34+Riparazione_default!F34))/'Foglio Input_Pallet'!$C$15 -> 0.0284984536 | G87: =_xlfn.IFS('Foglio Input_Pallet'!$C$14='menu tendina'!$A$3,0,'Foglio Input_Pallet'!$C$14='menu tendina'!$A$2,SUM(Riparazione_default!D34+Riparazione_default!E34+Riparazione_default!F34+Riparazione_default!G34))/'Foglio Input_Pallet'!$C$15 -> 0.04173237273 | H87: =_xlfn.IFS('Foglio Input_Pallet'!$C$14='menu tendina'!$A$3,0,'Foglio Input_Pallet'!$C$14='menu tendina'!$A$2,SUM(Riparazione_default!E34+Riparazione_default!F34+Riparazione_default!G34+Riparazione_default!H34))/'Foglio Input_Pallet'!$C$15 -> 0.01603767575
B88: Resource use, energy carriers | C88: MJ | D88: 4.03413741 | E88: =_xlfn.IFS('Foglio Input_Pallet'!$C$14='menu tendina'!$A$3,0,'Foglio Input_Pallet'!$C$14='menu tendina'!$A$2,'Mezzi di trasporto'!H34*'Altri valori_default'!$B$8) -> 0.25102711 | F88: =_xlfn.IFS('Foglio Input_Pallet'!$C$14='menu tendina'!$A$3,0,'Foglio Input_Pallet'!$C$14='menu tendina'!$A$2,SUM(Riparazione_default!C35+Riparazione_default!D35+Riparazione_default!E35+Riparazione_default!F35))/'Foglio Input_Pallet'!$C$15 -> 1.443242156 | G88: =_xlfn.IFS('Foglio Input_Pallet'!$C$14='menu tendina'!$A$3,0,'Foglio Input_Pallet'!$C$14='menu tendina'!$A$2,SUM(Riparazione_default!D35+Riparazione_default!E35+Riparazione_default!F35+Riparazione_default!G35))/'Foglio Input_Pallet'!$C$15 -> 1.744732992 | H88: =_xlfn.IFS('Foglio Input_Pallet'!$C$14='menu tendina'!$A$3,0,'Foglio Input_Pallet'!$C$14='menu tendina'!$A$2,SUM(Riparazione_default!E35+Riparazione_default!F35+Riparazione_default!G35+Riparazione_default!H35))/'Foglio Input_Pallet'!$C$15 -> 0.5951351514
B89: Resource use, mineral and metals | C89: kg Sb eq | D89: 1.322362039e-06 | E89: =_xlfn.IFS('Foglio Input_Pallet'!$C$14='menu tendina'!$A$3,0,'Foglio Input_Pallet'!$C$14='menu tendina'!$A$2,'Mezzi di trasporto'!H35*'Altri valori_default'!$B$8) -> 5.9775049e-08 | F89: =_xlfn.IFS('Foglio Input_Pallet'!$C$14='menu tendina'!$A$3,0,'Foglio Input_Pallet'!$C$14='menu tendina'!$A$2,SUM(Riparazione_default!C36+Riparazione_default!D36+Riparazione_default!E36+Riparazione_default!F36))/'Foglio Input_Pallet'!$C$15 -> 5.568848924e-07 | G89: =_xlfn.IFS('Foglio Input_Pallet'!$C$14='menu tendina'!$A$3,0,'Foglio Input_Pallet'!$C$14='menu tendina'!$A$2,SUM(Riparazione_default!D36+Riparazione_default!E36+Riparazione_default!F36+Riparazione_default!G36))/'Foglio Input_Pallet'!$C$15 -> 5.874828015e-07 | H89: =_xlfn.IFS('Foglio Input_Pallet'!$C$14='menu tendina'!$A$3,0,'Foglio Input_Pallet'!$C$14='menu tendina'!$A$2,SUM(Riparazione_default!E36+Riparazione_default!F36+Riparazione_default!G36+Riparazione_default!H36))/'Foglio Input_Pallet'!$C$15 -> 1.18219296e-07
B90: Climate change - fossil | C90: kg CO2 eq | D90: 0.2155344155 | E90: =_xlfn.IFS('Foglio Input_Pallet'!$C$14='menu tendina'!$A$3,0,'Foglio Input_Pallet'!$C$14='menu tendina'!$A$2,'Mezzi di trasporto'!H36*'Altri valori_default'!$B$8) -> 0.016596284 | F90: =_xlfn.IFS('Foglio Input_Pallet'!$C$14='menu tendina'!$A$3,0,'Foglio Input_Pallet'!$C$14='menu tendina'!$A$2,SUM(Riparazione_default!C37+Riparazione_default!D37+Riparazione_default!E37+Riparazione_default!F37))/'Foglio Input_Pallet'!$C$15 -> 0.06881241368 | G90: =_xlfn.IFS('Foglio Input_Pallet'!$C$14='menu tendina'!$A$3,0,'Foglio Input_Pallet'!$C$14='menu tendina'!$A$2,SUM(Riparazione_default!D37+Riparazione_default!E37+Riparazione_default!F37+Riparazione_default!G37))/'Foglio Input_Pallet'!$C$15 -> 0.08828812186 | H90: =_xlfn.IFS('Foglio Input_Pallet'!$C$14='menu tendina'!$A$3,0,'Foglio Input_Pallet'!$C$14='menu tendina'!$A$2,SUM(Riparazione_default!E37+Riparazione_default!F37+Riparazione_default!G37+Riparazione_default!H37))/'Foglio Input_Pallet'!$C$15 -> 0.04183759595
B91: Climate change - biogenic | C91: kg CO2 eq | D91: 0.004117897975 | E91: =_xlfn.IFS('Foglio Input_Pallet'!$C$14='menu tendina'!$A$3,0,'Foglio Input_Pallet'!$C$14='menu tendina'!$A$2,'Mezzi di trasporto'!H37*'Altri valori_default'!$B$8) -> 5.5502553e-06 | F91: =_xlfn.IFS('Foglio Input_Pallet'!$C$14='menu tendina'!$A$3,0,'Foglio Input_Pallet'!$C$14='menu tendina'!$A$2,SUM(Riparazione_default!C38+Riparazione_default!D38+Riparazione_default!E38+Riparazione_default!F38))/'Foglio Input_Pallet'!$C$15 -> 0.0005648806918 | G91: =_xlfn.IFS('Foglio Input_Pallet'!$C$14='menu tendina'!$A$3,0,'Foglio Input_Pallet'!$C$14='menu tendina'!$A$2,SUM(Riparazione_default!D38+Riparazione_default!E38+Riparazione_default!F38+Riparazione_default!G38))/'Foglio Input_Pallet'!$C$15 -> 0.0008949877413 | H91: =_xlfn.IFS('Foglio Input_Pallet'!$C$14='menu tendina'!$A$3,0,'Foglio Input_Pallet'!$C$14='menu tendina'!$A$2,SUM(Riparazione_default!E38+Riparazione_default!F38+Riparazione_default!G38+Riparazione_default!H38))/'Foglio Input_Pallet'!$C$15 -> 0.002652479287
B92: Climate change - land use and transform. | C92: kg CO2 eq | D92: 0.0003535083461 | E92: =_xlfn.IFS('Foglio Input_Pallet'!$C$14='menu tendina'!$A$3,0,'Foglio Input_Pallet'!$C$14='menu tendina'!$A$2,'Mezzi di trasporto'!H38*'Altri valori_default'!$B$8) -> 5.5846328e-06 | F92: =_xlfn.IFS('Foglio Input_Pallet'!$C$14='menu tendina'!$A$3,0,'Foglio Input_Pallet'!$C$14='menu tendina'!$A$2,SUM(Riparazione_default!C39+Riparazione_default!D39+Riparazione_default!E39+Riparazione_default!F39))/'Foglio Input_Pallet'!$C$15 -> 0.0001834408214 | G92: =_xlfn.IFS('Foglio Input_Pallet'!$C$14='menu tendina'!$A$3,0,'Foglio Input_Pallet'!$C$14='menu tendina'!$A$2,SUM(Riparazione_default!D39+Riparazione_default!E39+Riparazione_default!F39+Riparazione_default!G39))/'Foglio Input_Pallet'!$C$15 -> 0.0001545646426 | H92: =_xlfn.IFS('Foglio Input_Pallet'!$C$14='menu tendina'!$A$3,0,'Foglio Input_Pallet'!$C$14='menu tendina'!$A$2,SUM(Riparazione_default!E39+Riparazione_default!F39+Riparazione_default!G39+Riparazione_default!H39))/'Foglio Input_Pallet'!$C$15 -> 9.91824925e-06
B94: Fine vita
B95: Categoria di impatto | C95: Unità di misura | D95: Totale fine vita | E95: Fine vita legno | F95: Fine vita metallo
B96: Climate change | C96: kg CO2 eq | D96: =SUM(E96:F96) -> -0.2405332541 | E96: ='Fine vita_default'!C16*'Foglio Input_Pallet'!$C$11/'Foglio Input_Pallet'!$C$15 -> -0.186145614 | F96: ='Fine vita_default'!D16*'Foglio Input_Pallet'!$C$11/'Foglio Input_Pallet'!$C$15 -> -0.05438764015
B97: Ozone depletion | C97: kg CFC11 eq | D97: =SUM(E97:F97) -> -3.205772365e-08 | E97: ='Fine vita_default'!C17*'Foglio Input_Pallet'!$C$11/'Foglio Input_Pallet'!$C$15 -> -2.841690505e-08 | F97: ='Fine vita_default'!D17*'Foglio Input_Pallet'!$C$11/'Foglio Input_Pallet'!$C$15 -> -3.6408186e-09
B98: Ionising radiation, HH | C98: kBq U-235 eq | D98: -0.009879299505 | E98: ='Fine vita_default'!C18*'Foglio Input_Pallet'!$C$11/'Foglio Input_Pallet'!$C$15 -> -0.008012400645 | F98: ='Fine vita_default'!D18*'Foglio Input_Pallet'!$C$11/'Foglio Input_Pallet'!$C$15 -> -0.00186689886
B99: Photochemical ozone formation, HH | C99: kg NMVOC eq | D99: -0.000837810762 | E99: ='Fine vita_default'!C19*'Foglio Input_Pallet'!$C$11/'Foglio Input_Pallet'!$C$15 -> -0.0003668906 | F99: ='Fine vita_default'!D19*'Foglio Input_Pallet'!$C$11/'Foglio Input_Pallet'!$C$15 -> -0.000470920162
B100: Respiratory inorganics | C100: disease inc. | D100: -1.721576001e-08 | E100: ='Fine vita_default'!C20*'Foglio Input_Pallet'!$C$11/'Foglio Input_Pallet'!$C$15 -> -2.593406355e-09 | F100: ='Fine vita_default'!D20*'Foglio Input_Pallet'!$C$11/'Foglio Input_Pallet'!$C$15 -> -1.462235365e-08
B101: Non-cancer human health effects | C101: CTUh | D101: -3.04643383e-08 | E101: ='Fine vita_default'!C21*'Foglio Input_Pallet'!$C$11/'Foglio Input_Pallet'!$C$15 -> -1.421958625e-08 | F101: ='Fine vita_default'!D21*'Foglio Input_Pallet'!$C$11/'Foglio Input_Pallet'!$C$15 -> -1.624475205e-08
B102: Cancer human health effects | C102: CTUh | D102: -4.24907333e-09 | E102: ='Fine vita_default'!C22*'Foglio Input_Pallet'!$C$11/'Foglio Input_Pallet'!$C$15 -> -3.083830855e-09 | F102: ='Fine vita_default'!D22*'Foglio Input_Pallet'!$C$11/'Foglio Input_Pallet'!$C$15 -> -1.165242475e-09
B103: Acidification terrestrial and freshwater | C103: mol H+ eq | D103: -0.001518654549 | E103: ='Fine vita_default'!C23*'Foglio Input_Pallet'!$C$11/'Foglio Input_Pallet'!$C$15 -> -0.00086223439 | F103: ='Fine vita_default'!D23*'Foglio Input_Pallet'!$C$11/'Foglio Input_Pallet'!$C$15 -> -0.0006564201585
B104: Eutrophication freshwater | C104: kg P eq | D104: -1.442984319e-05 | E104: ='Fine vita_default'!C24*'Foglio Input_Pallet'!$C$11/'Foglio Input_Pallet'!$C$15 -> -6.17660269e-06 | F104: ='Fine vita_default'!D24*'Foglio Input_Pallet'!$C$11/'Foglio Input_Pallet'!$C$15 -> -8.253240495e-06
B105: Eutrophication marine | C105: kg N eq | D105: -0.0003441476685 | E105: ='Fine vita_default'!C25*'Foglio Input_Pallet'!$C$11/'Foglio Input_Pallet'!$C$15 -> -9.2286285e-05 | F105: ='Fine vita_default'!D25*'Foglio Input_Pallet'!$C$11/'Foglio Input_Pallet'!$C$15 -> -0.0002518613835
B106: Eutrophication terrestrial | C106: mol N eq | D106: -0.00321537813 | E106: ='Fine vita_default'!C26*'Foglio Input_Pallet'!$C$11/'Foglio Input_Pallet'!$C$15 -> -0.00125101113 | F106: ='Fine vita_default'!D26*'Foglio Input_Pallet'!$C$11/'Foglio Input_Pallet'!$C$15 -> -0.001964367
B107: Ecotoxicity freshwater | C107: CTUe | D107: -0.1489832247 | E107: ='Fine vita_default'!C27*'Foglio Input_Pallet'!$C$11/'Foglio Input_Pallet'!$C$15 -> -0.074144922 | F107: ='Fine vita_default'!D27*'Foglio Input_Pallet'!$C$11/'Foglio Input_Pallet'!$C$15 -> -0.0748383027
B108: Land use | C108: Pt | D108: -11.22779751 | E108: ='Fine vita_default'!C28*'Foglio Input_Pallet'!$C$11/'Foglio Input_Pallet'!$C$15 -> -11.416469 | F108: ='Fine vita_default'!D28*'Foglio Input_Pallet'!$C$11/'Foglio Input_Pallet'!$C$15 -> 0.188671491
B109: Water scarcity | C109: m3 depriv. | D109: 0.0177600955 | E109: ='Fine vita_default'!C29*'Foglio Input_Pallet'!$C$11/'Foglio Input_Pallet'!$C$15 -> -0.1045683345 | F109: ='Fine vita_default'!D29*'Foglio Input_Pallet'!$C$11/'Foglio Input_Pallet'!$C$15 -> 0.12232843
B110: Resource use, energy carriers | C110: MJ | D110: -3.866551706 | E110: ='Fine vita_default'!C30*'Foglio Input_Pallet'!$C$11/'Foglio Input_Pallet'!$C$15 -> -3.162154445 | F110: ='Fine vita_default'!D30*'Foglio Input_Pallet'!$C$11/'Foglio Input_Pallet'!$C$15 -> -0.704397261
B111: Resource use, mineral and metals | C111: kg Sb eq | D111: -5.94673685e-07 | E111: ='Fine vita_default'!C31*'Foglio Input_Pallet'!$C$11/'Foglio Input_Pallet'!$C$15 -> -1.95705751e-06 | F111: ='Fine vita_default'!D31*'Foglio Input_Pallet'!$C$11/'Foglio Input_Pallet'!$C$15 -> 1.362383825e-06
B112: Climate change - fossil | C112: kg CO2 eq | D112: -0.2679882533 | E112: ='Fine vita_default'!C32*'Foglio Input_Pallet'!$C$11/'Foglio Input_Pallet'!$C$15 -> -0.213893082 | F112: ='Fine vita_default'!D32*'Foglio Input_Pallet'!$C$11/'Foglio Input_Pallet'!$C$15 -> -0.0540951713
B113: Climate change - biogenic | C113: kg CO2 eq | D113: 0.02766241343 | E113: ='Fine vita_default'!C33*'Foglio Input_Pallet'!$C$11/'Foglio Input_Pallet'!$C$15 -> 0.0278550066 | F113: ='Fine vita_default'!D33*'Foglio Input_Pallet'!$C$11/'Foglio Input_Pallet'!$C$15 -> -0.00019259317
B114: Climate change - land use and transform. | C114: kg CO2 eq | D114: -0.0002074101405 | E114: ='Fine vita_default'!C34*'Foglio Input_Pallet'!$C$11/'Foglio Input_Pallet'!$C$15 -> -0.0001075342225 | F114: ='Fine vita_default'!D34*'Foglio Input_Pallet'!$C$11/'Foglio Input_Pallet'!$C$15 -> -9.9875918e-05
B117: Risultati di potenziale impatto ambientale per fase del ciclo di vita per le categorie rilevanti
B118: Categoria di impatto | C118: Unità di misura | D118: Totale impatto del ciclo di vita | E118: Materie prime | F118: Produzione | G118: Distribuzione | H118: Manutenzione | I118: Fine vita
B119: Climate change | C119: kg CO2 eq | D119: =SUM(E119:I119) -> 0.341442919 | E119: =(D8) -> 0.2306362988 | F119: =(D30) -> 0 | G119: =(D52) -> 0.3413396094 | H119: =(D74) -> 0.01000026499 | I119: =(D96) -> -0.2405332541
C120: % | D120: =D119/$D$119 -> 1 | E120: =(E119/(ABS($D$119))) -> 0.675475419 | F120: =(F119/(ABS($D$119))) -> 0 | G120: 0.9996974322 | H120: 0.02928824828 | I120: -0.7044610995
B121: Photochemical ozone formation, HH | C121: kg NMVOC eq | D121: =SUM(E121:I121) -> 0.00367141314 | E121: =D11 -> 0.001451501115 | F121: =D33 -> 2.870525e-05 | G121: =D55 -> 0.001946445386 | H121: =D77 -> 0.00108257215 | I121: =(D99) -> -0.000837810762
C122: % | D122: =D121/$D$121 -> 1 | E122: =E121/(ABS($D$121)) -> 0.39535216 | F122: =F121/(ABS($D$121)) -> 0.007818583447 | G122: 0.5301624502 | H122: 0.2948652492 | I122: -0.228198443
B123: Respiratory inorganics | C123: disease inc. | D123: =SUM(E123:I123) -> 7.353645161e-08 | E123: =D12 -> 3.211113457e-08 | F123: =D34 -> 4.300709818e-10 | G123: =D56 -> 3.16381635e-08 | H123: =D78 -> 2.657284257e-08 | I123: =(D100) -> -1.721576001e-08
C124: % | D124: =D123/$D$123 -> 1 | E124: =E123/(ABS($D$123)) -> 0.4366696225 | F124: =F123/(ABS($D$123)) -> 0.005848405415 | G124: 0.4302378318 | H124: 0.361356062 | I124: -0.2341119217
B125: Land use | C125: Pt | D125: =SUM(E125:I125) -> 367.8986478 | E125: =D20 -> 321.9271761 | F125: =D42 -> 0 | G125: =D64 -> 9.49577174 | H125: =D86 -> 47.70349746 | I125: =(D108) -> -11.22779751
C126: % | D126: =D125/$D$125 -> 1 | E126: =E125/(ABS($D$125)) -> 0.8750431078 | F126: =F125/(ABS($D$125)) -> 0 | G126: =G125/(ABS($D$125)) -> 0.02581083621 | H126: 0.1296647806 | I126: -0.03051872459
B127: Resource use, energy carriers | C127: MJ | D127: =SUM(E127:I127) -> 9.915843652 | E127: =D22 -> 4.389478188 | F127: =D44 -> 0 | G127: =D66 -> 5.35877976 | H127: =D88 -> 4.03413741 | I127: =(D110) -> -3.866551706
C128: % | D128: =D127/$D$127 -> 1 | E128: =E127/(ABS($D$127)) -> 0.4426731948 | F128: =F127/(ABS($D$127)) -> 0 | G128: 0.5404260039 | H128: 0.4068375371 | I128: -0.3899367358
B129: Resource use, mineral and metals | C129: kg Sb eq | D129: =SUM(E129:I129) -> 2.99554281e-06 | E129: =D23 -> 1.461297464e-06 | F129: =D45 -> 0 | G129: =D67 -> 8.06556992e-07 | H129: =D89 -> 1.322362039e-06 | I129: =(D111) -> -5.94673685e-07
C130: % | D130: =D129/$D$129 -> 1 | E130: =E129/(ABS($D$129)) -> 0.4878239293 | F130: =F129/(ABS($D$129)) -> 0 | G130: 0.269252367 | H130: 0.4414432118 | I130: =I129/(ABS($D$129)) -> -0.1985195081

Sheet Risultati_P2
B2: Prodotto 2: Pallet "tipo B"
B4: NOTA: PER IL TRASPORTO DEI MATERIALI LEGNOSI SI E' CONSIDERATO UN PESO SPECIFICO MEDIO DI 1.000 kg/mc
B6: Materie prime
B7: Categoria di impatto | C7: Unità di misura | D7: Totale Materie Prime | E7: Tronchi decortecciati softwood | F7: Semilavorato legno (da terzi) | G7: Blocchetti (da terzi) | H7: Chiodi metallo | I7: Graffa metallo | J7: Vernice | K7: Trasporto materie prime
B8: Climate change | C8: kg CO2 eq | D8: =SUM(E8:K8) -> 0.40350961 | E8: ='Foglio Input_Pallet'!$G$21*'Materie prime'!C20/'Foglio Input_Pallet'!$G$15 -> 0 | F8: ='Foglio Input_Pallet'!$G$23*'Materie prime'!D20/'Foglio Input_Pallet'!$G$15 -> 0.1384703548 | G8: ='Foglio Input_Pallet'!$G$25*'Materie prime'!E20/'Foglio Input_Pallet'!$G$15 -> 0.12345624 | H8: ='Foglio Input_Pallet'!$G$27*'Materie prime'!F20/'Foglio Input_Pallet'!$G$15 -> 0.01819446273 | I8: ='Foglio Input_Pallet'!$G$28*'Materie prime'!G20/'Foglio Input_Pallet'!$G$15 -> 0 | J8: ='Foglio Input_Pallet'!$G$30*'Materie prime'!H20/'Foglio Input_Pallet'!$G$15 -> 0 | K8: =(1000/'Foglio Input_Pallet'!$G$15)*(_xlfn.IFS('Foglio Input_Pallet'!$I$22='menu tendina'!$A$6,'Foglio Input_Pallet'!$G$21*'Foglio Input_Pallet'!$G$22*'Mezzi di trasporto'!C20,'Foglio Input_Pallet'!$I$22='menu tendina'!$A$7,'Foglio Input_Pallet'!$G$21*'Foglio Input_Pallet'!$G$22*'Mezzi di trasporto'!D20,'Foglio Input_Pallet'!$I$22='menu tendina'!$A$8,'Foglio Input_Pallet'!$G$21*'Foglio Input_Pallet'!$G$22*'Mezzi di trasporto'!E20,'Foglio Input_Pallet'!$I$22='menu tendina'!$A$9,'Foglio Input_Pallet'!$G$21*'Foglio Input_Pallet'!$G$22*'Mezzi di trasporto'!F20,'Foglio Input_Pallet'!$I$22='menu tendina'!$A$10,'Foglio Input_Pallet'!$G$21*'Foglio Input_Pallet'!$G$22*'Mezzi di trasporto'!G20)+_xlfn.IFS('Foglio Input_Pallet'!$I$24='menu tendina'!$A$6,'Foglio Input_Pallet'!$G$23*'Foglio Input_Pallet'!$G$24*'Mezzi di trasporto'!C20,'Foglio Input_Pallet'!$I$24='menu tendina'!$A$7,'Foglio Input_Pallet'!$G$23*'Foglio Input_Pallet'!$G$24*'Mezzi di trasporto'!D20,'Foglio Input_Pallet'!$I$24='menu tendina'!$A$8,'Foglio Input_Pallet'!$G$23*'Foglio Input_Pallet'!$G$24*'Mezzi di trasporto'!E20,'Foglio Input_Pallet'!$I$24='menu tendina'!$A$9,'Foglio Input_Pallet'!$G$23*'Foglio Input_Pallet'!$G$24*'Mezzi di trasporto'!F20,'Foglio Input_Pallet'!$I$24='menu tendina'!$A$10,'Foglio Input_Pallet'!$G$23*'Foglio Input_Pallet'!$CG$24*'Mezzi di trasporto'!G20)+_xlfn.IFS('Foglio Input_Pallet'!$I$26='menu tendina'!$A$6,'Foglio Input_Pallet'!$G$25*'Foglio Input_Pallet'!$G$26*'Mezzi di trasporto'!C20,'Foglio Input_Pallet'!$I$26='menu tendina'!$A$7,'Foglio Input_Pallet'!$G$25*'Foglio Input_Pallet'!$G$26*'Mezzi di trasporto'!D20,'Foglio Input_Pallet'!$I$26='menu tendina'!$A$8,'Foglio Input_Pallet'!$G$25*'Foglio Input_Pallet'!$G$26*'Mezzi di trasporto'!E20,'Foglio Input_Pallet'!$I$26='menu tendina'!$A$9,'Foglio Input_Pallet'!$G$25*'Foglio Input_Pallet'!$G$26*'Mezzi di trasporto'!F20,'Foglio Input_Pallet'!$I$26='menu tendina'!$A$10,'Foglio Input_Pallet'!$G$25*'Foglio Input_Pallet'!$G$26*'Mezzi di trasporto'!G20))+_xlfn.IFS('Foglio Input_Pallet'!$I$29='menu tendina'!$A$6,('Foglio Input_Pallet'!$G$27+'Foglio Input_Pallet'!$G$28)*'Foglio Input_Pallet'!$G$29*'Mezzi di trasporto'!C20,'Foglio Input_Pallet'!$I$29='menu tendina'!$A$7,('Foglio Input_Pallet'!$G$27+'Foglio Input_Pallet'!$G$28)*'Foglio Input_Pallet'!$G$29*'Mezzi di trasporto'!D20,'Foglio Input_Pallet'!$I$26='menu tendina'!$A$8,('Foglio Input_Pallet'!$G$27+'Foglio Input_Pallet'!$G$28)*'Foglio Input_Pallet'!$G$29*'Mezzi di trasporto'!E20,'Foglio Input_Pallet'!$I$26='menu tendina'!$A$9,('Foglio Input_Pallet'!$G$27+'Foglio Input_Pallet'!$G$28)*'Foglio Input_Pallet'!$G$29*'Mezzi di trasporto'!F20,'Foglio Input_Pallet'!$I$26='menu tendina'!$A$10,('Foglio Input_Pallet'!$G$27+'Foglio Input_Pallet'!$G$28)*'Foglio Input_Pallet'!$G$29*'Mezzi di trasporto'!G20)+_xlfn.IFS('Foglio Input_Pallet'!$I$31='menu tendina'!$A$6,'Foglio Input_Pallet'!$G$30*'Foglio Input_Pallet'!$G$31*'Mezzi di trasporto'!C20,'Foglio Input_Pallet'!$I$31='menu tendina'!$A$7,'Foglio Input_Pallet'!$G$30*'Foglio Input_Pallet'!$G$31*'Mezzi di trasporto'!D20,'Foglio Input_Pallet'!$I$31='menu tendina'!$A$8,'Foglio Input_Pallet'!$G$30*'Foglio Input_Pallet'!$G$31*'Mezzi di trasporto'!E20,'Foglio Input_Pallet'!$I$31='menu tendina'!$A$9,'Foglio Input_Pallet'!$G$30*'Foglio Input_Pallet'!$G$31*'Mezzi di trasporto'!F20,'Foglio Input_Pallet'!$I$31='menu tendina'!$A$10,'Foglio Input_Pallet'!$G$30*'Foglio Input_Pallet'!$G$31*'Mezzi di trasporto'!G20) -> 0.1233885526
B9: Ozone depletion | C9: kg CFC11 eq | D9: =SUM(E9:K9) -> 5.128138911e-08 | E9: ='Foglio Input_Pallet'!$G$21*'Materie prime'!C21/'Foglio Input_Pallet'!$G$15 -> 0 | F9: ='Foglio Input_Pallet'!$G$23*'Materie prime'!D21/'Foglio Input_Pallet'!$G$15 -> 1.264565922e-08 | G9: ='Foglio Input_Pallet'!$G$25*'Materie prime'!E21/'Foglio Input_Pallet'!$G$15 -> 8.387349797e-09 | H9: ='Foglio Input_Pallet'!$G$27*'Materie prime'!F21/'Foglio Input_Pallet'!$G$15 -> 1.059906832e-09 | I9: ='Foglio Input_Pallet'!$G$28*'Materie prime'!G21/'Foglio Input_Pallet'!$G$15 -> 0 | J9: ='Foglio Input_Pallet'!$G$30*'Materie prime'!H21/'Foglio Input_Pallet'!$G$15 -> 0 | K9: =(1000/'Foglio Input_Pallet'!$G$15)*(_xlfn.IFS('Foglio Input_Pallet'!$I$22='menu tendina'!$A$6,'Foglio Input_Pallet'!$G$21*'Foglio Input_Pallet'!$G$22*'Mezzi di trasporto'!C21,'Foglio Input_Pallet'!$I$22='menu tendina'!$A$7,'Foglio Input_Pallet'!$G$21*'Foglio Input_Pallet'!$G$22*'Mezzi di trasporto'!D21,'Foglio Input_Pallet'!$I$22='menu tendina'!$A$8,'Foglio Input_Pallet'!$G$21*'Foglio Input_Pallet'!$G$22*'Mezzi di trasporto'!E21,'Foglio Input_Pallet'!$I$22='menu tendina'!$A$9,'Foglio Input_Pallet'!$G$21*'Foglio Input_Pallet'!$G$22*'Mezzi di trasporto'!F21,'Foglio Input_Pallet'!$I$22='menu tendina'!$A$10,'Foglio Input_Pallet'!$G$21*'Foglio Input_Pallet'!$G$22*'Mezzi di trasporto'!G21)+_xlfn.IFS('Foglio Input_Pallet'!$I$24='menu tendina'!$A$6,'Foglio Input_Pallet'!$G$23*'Foglio Input_Pallet'!$G$24*'Mezzi di trasporto'!C21,'Foglio Input_Pallet'!$I$24='menu tendina'!$A$7,'Foglio Input_Pallet'!$G$23*'Foglio Input_Pallet'!$G$24*'Mezzi di trasporto'!D21,'Foglio Input_Pallet'!$I$24='menu tendina'!$A$8,'Foglio Input_Pallet'!$G$23*'Foglio Input_Pallet'!$G$24*'Mezzi di trasporto'!E21,'Foglio Input_Pallet'!$I$24='menu tendina'!$A$9,'Foglio Input_Pallet'!$G$23*'Foglio Input_Pallet'!$G$24*'Mezzi di trasporto'!F21,'Foglio Input_Pallet'!$I$24='menu tendina'!$A$10,'Foglio Input_Pallet'!$G$23*'Foglio Input_Pallet'!$CG$24*'Mezzi di trasporto'!G21)+_xlfn.IFS('Foglio Input_Pallet'!$I$26='menu tendina'!$A$6,'Foglio Input_Pallet'!$G$25*'Foglio Input_Pallet'!$G$26*'Mezzi di trasporto'!C21,'Foglio Input_Pallet'!$I$26='menu tendina'!$A$7,'Foglio Input_Pallet'!$G$25*'Foglio Input_Pallet'!$G$26*'Mezzi di trasporto'!D21,'Foglio Input_Pallet'!$I$26='menu tendina'!$A$8,'Foglio Input_Pallet'!$G$25*'Foglio Input_Pallet'!$G$26*'Mezzi di trasporto'!E21,'Foglio Input_Pallet'!$I$26='menu tendina'!$A$9,'Foglio Input_Pallet'!$G$25*'Foglio Input_Pallet'!$G$26*'Mezzi di trasporto'!F21,'Foglio Input_Pallet'!$I$26='menu tendina'!$A$10,'Foglio Input_Pallet'!$G$25*'Foglio Input_Pallet'!$G$26*'Mezzi di trasporto'!G21))+_xlfn.IFS('Foglio Input_Pallet'!$I$29='menu tendina'!$A$6,('Foglio Input_Pallet'!$G$27+'Foglio Input_Pallet'!$G$28)*'Foglio Input_Pallet'!$G$29*'Mezzi di trasporto'!C21,'Foglio Input_Pallet'!$I$29='menu tendina'!$A$7,('Foglio Input_Pallet'!$G$27+'Foglio Input_Pallet'!$G$28)*'Foglio Input_Pallet'!$G$29*'Mezzi di trasporto'!D21,'Foglio Input_Pallet'!$I$26='menu tendina'!$A$8,('Foglio Input_Pallet'!$G$27+'Foglio Input_Pallet'!$G$28)*'Foglio Input_Pallet'!$G$29*'Mezzi di trasporto'!E21,'Foglio Input_Pallet'!$I$26='menu tendina'!$A$9,('Foglio Input_Pallet'!$G$27+'Foglio Input_Pallet'!$G$28)*'Foglio Input_Pallet'!$G$29*'Mezzi di trasporto'!F21,'Foglio Input_Pallet'!$I$26='menu tendina'!$A$10,('Foglio Input_Pallet'!$G$27+'Foglio Input_Pallet'!$G$28)*'Foglio Input_Pallet'!$G$29*'Mezzi di trasporto'!G21)+_xlfn.IFS('Foglio Input_Pallet'!$I$31='menu tendina'!$A$6,'Foglio Input_Pallet'!$G$30*'Foglio Input_Pallet'!$G$31*'Mezzi di trasporto'!C21,'Foglio Input_Pallet'!$I$31='menu tendina'!$A$7,'Foglio Input_Pallet'!$G$30*'Foglio Input_Pallet'!$G$31*'Mezzi di trasporto'!D21,'Foglio Input_Pallet'!$I$31='menu tendina'!$A$8,'Foglio Input_Pallet'!$G$30*'Foglio Input_Pallet'!$G$31*'Mezzi di trasporto'!E21,'Foglio Input_Pallet'!$I$31='menu tendina'!$A$9,'Foglio Input_Pallet'!$G$30*'Foglio Input_Pallet'!$G$31*'Mezzi di trasporto'!F21,'Foglio Input_Pallet'!$I$31='menu tendina'!$A$10,'Foglio Input_Pallet'!$G$30*'Foglio Input_Pallet'!$G$31*'Mezzi di trasporto'!G21) -> 2.918847327e-08
B10: Ionising radiation, HH | C10: kBq U-235 eq | D10: 0.04127615939 | E10: ='Foglio Input_Pallet'!$G$21*'Materie prime'!C22/'Foglio Input_Pallet'!$G$15 -> 0 | F10: ='Foglio Input_Pallet'!$G$23*'Materie prime'!D22/'Foglio Input_Pallet'!$G$15 -> 0.01114876775 | G10: ='Foglio Input_Pallet'!$G$25*'Materie prime'!E22/'Foglio Input_Pallet'!$G$15 -> 0.01880518454 | H10: ='Foglio Input_Pallet'!$G$27*'Materie prime'!F22/'Foglio Input_Pallet'!$G$15 -> 0.001383927818 | I10: ='Foglio Input_Pallet'!$G$28*'Materie prime'!G22/'Foglio Input_Pallet'!$G$15 -> 0 | J10: ='Foglio Input_Pallet'!$G$30*'Materie prime'!H22/'Foglio Input_Pallet'!$G$15 -> 0 | K10: =(1000/'Foglio Input_Pallet'!$G$15)*(_xlfn.IFS('Foglio Input_Pallet'!$I$22='menu tendina'!$A$6,'Foglio Input_Pallet'!$G$21*'Foglio Input_Pallet'!$G$22*'Mezzi di trasporto'!C22,'Foglio Input_Pallet'!$I$22='menu tendina'!$A$7,'Foglio Input_Pallet'!$G$21*'Foglio Input_Pallet'!$G$22*'Mezzi di trasporto'!D22,'Foglio Input_Pallet'!$I$22='menu tendina'!$A$8,'Foglio Input_Pallet'!$G$21*'Foglio Input_Pallet'!$G$22*'Mezzi di trasporto'!E22,'Foglio Input_Pallet'!$I$22='menu tendina'!$A$9,'Foglio Input_Pallet'!$G$21*'Foglio Input_Pallet'!$G$22*'Mezzi di trasporto'!F22,'Foglio Input_Pallet'!$I$22='menu tendina'!$A$10,'Foglio Input_Pallet'!$G$21*'Foglio Input_Pallet'!$G$22*'Mezzi di trasporto'!G22)+_xlfn.IFS('Foglio Input_Pallet'!$I$24='menu tendina'!$A$6,'Foglio Input_Pallet'!$G$23*'Foglio Input_Pallet'!$G$24*'Mezzi di trasporto'!C22,'Foglio Input_Pallet'!$I$24='menu tendina'!$A$7,'Foglio Input_Pallet'!$G$23*'Foglio Input_Pallet'!$G$24*'Mezzi di trasporto'!D22,'Foglio Input_Pallet'!$I$24='menu tendina'!$A$8,'Foglio Input_Pallet'!$G$23*'Foglio Input_Pallet'!$G$24*'Mezzi di trasporto'!E22,'Foglio Input_Pallet'!$I$24='menu tendina'!$A$9,'Foglio Input_Pallet'!$G$23*'Foglio Input_Pallet'!$G$24*'Mezzi di trasporto'!F22,'Foglio Input_Pallet'!$I$24='menu tendina'!$A$10,'Foglio Input_Pallet'!$G$23*'Foglio Input_Pallet'!$CG$24*'Mezzi di trasporto'!G22)+_xlfn.IFS('Foglio Input_Pallet'!$I$26='menu tendina'!$A$6,'Foglio Input_Pallet'!$G$25*'Foglio Input_Pallet'!$G$26*'Mezzi di trasporto'!C22,'Foglio Input_Pallet'!$I$26='menu tendina'!$A$7,'Foglio Input_Pallet'!$G$25*'Foglio Input_Pallet'!$G$26*'Mezzi di trasporto'!D22,'Foglio Input_Pallet'!$I$26='menu tendina'!$A$8,'Foglio Input_Pallet'!$G$25*'Foglio Input_Pallet'!$G$26*'Mezzi di trasporto'!E22,'Foglio Input_Pallet'!$I$26='menu tendina'!$A$9,'Foglio Input_Pallet'!$G$25*'Foglio Input_Pallet'!$G$26*'Mezzi di trasporto'!F22,'Foglio Input_Pallet'!$I$26='menu tendina'!$A$10,'Foglio Input_Pallet'!$G$25*'Foglio Input_Pallet'!$G$26*'Mezzi di trasporto'!G22))+_xlfn.IFS('Foglio Input_Pallet'!$I$29='menu tendina'!$A$6,('Foglio Input_Pallet'!$G$27+'Foglio Input_Pallet'!$G$28)*'Foglio Input_Pallet'!$G$29*'Mezzi di trasporto'!C22,'Foglio Input_Pallet'!$I$29='menu tendina'!$A$7,('Foglio Input_Pallet'!$G$27+'Foglio Input_Pallet'!$G$28)*'Foglio Input_Pallet'!$G$29*'Mezzi di trasporto'!D22,'Foglio Input_Pallet'!$I$26='menu tendina'!$A$8,('Foglio Input_Pallet'!$G$27+'Foglio Input_Pallet'!$G$28)*'Foglio Input_Pallet'!$G$29*'Mezzi di trasporto'!E22,'Foglio Input_Pallet'!$I$26='menu tendina'!$A$9,('Foglio Input_Pallet'!$G$27+'Foglio Input_Pallet'!$G$28)*'Foglio Input_Pallet'!$G$29*'Mezzi di trasporto'!F22,'Foglio Input_Pallet'!$I$26='menu tendina'!$A$10,('Foglio Input_Pallet'!$G$27+'Foglio Input_Pallet'!$G$28)*'Foglio Input_Pallet'!$G$29*'Mezzi di trasporto'!G22)+_xlfn.IFS('Foglio Input_Pallet'!$I$31='menu tendina'!$A$6,'Foglio Input_Pallet'!$G$30*'Foglio Input_Pallet'!$G$31*'Mezzi di trasporto'!C22,'Foglio Input_Pallet'!$I$31='menu tendina'!$A$7,'Foglio Input_Pallet'!$G$30*'Foglio Input_Pallet'!$G$31*'Mezzi di trasporto'!D22,'Foglio Input_Pallet'!$I$31='menu tendina'!$A$8,'Foglio Input_Pallet'!$G$30*'Foglio Input_Pallet'!$G$31*'Mezzi di trasporto'!E22,'Foglio Input_Pallet'!$I$31='menu tendina'!$A$9,'Foglio Input_Pallet'!$G$30*'Foglio Input_Pallet'!$G$31*'Mezzi di trasporto'!F22,'Foglio Input_Pallet'!$I$31='menu tendina'!$A$10,'Foglio Input_Pallet'!$G$30*'Foglio Input_Pallet'!$G$31*'Mezzi di trasporto'!G22) -> 0.009938279283
B11: Photochemical ozone formation, HH | C11: kg NMVOC eq | D11: 0.002599136462 | E11: ='Foglio Input_Pallet'!$G$21*'Materie prime'!C23/'Foglio Input_Pallet'!$G$15 -> 0 | F11: ='Foglio Input_Pallet'!$G$23*'Materie prime'!D23/'Foglio Input_Pallet'!$G$15 -> 0.001065648164 | G11: ='Foglio Input_Pallet'!$G$25*'Materie prime'!E23/'Foglio Input_Pallet'!$G$15 -> 0.0007537719343 | H11: ='Foglio Input_Pallet'!$G$27*'Materie prime'!F23/'Foglio Input_Pallet'!$G$15 -> 7.610895273e-05 | I11: ='Foglio Input_Pallet'!$G$28*'Materie prime'!G23/'Foglio Input_Pallet'!$G$15 -> 0 | J11: ='Foglio Input_Pallet'!$G$30*'Materie prime'!H23/'Foglio Input_Pallet'!$G$15 -> 0 | K11: =(1000/'Foglio Input_Pallet'!$G$15)*(_xlfn.IFS('Foglio Input_Pallet'!$I$22='menu tendina'!$A$6,'Foglio Input_Pallet'!$G$21*'Foglio Input_Pallet'!$G$22*'Mezzi di trasporto'!C23,'Foglio Input_Pallet'!$I$22='menu tendina'!$A$7,'Foglio Input_Pallet'!$G$21*'Foglio Input_Pallet'!$G$22*'Mezzi di trasporto'!D23,'Foglio Input_Pallet'!$I$22='menu tendina'!$A$8,'Foglio Input_Pallet'!$G$21*'Foglio Input_Pallet'!$G$22*'Mezzi di trasporto'!E23,'Foglio Input_Pallet'!$I$22='menu tendina'!$A$9,'Foglio Input_Pallet'!$G$21*'Foglio Input_Pallet'!$G$22*'Mezzi di trasporto'!F23,'Foglio Input_Pallet'!$I$22='menu tendina'!$A$10,'Foglio Input_Pallet'!$G$21*'Foglio Input_Pallet'!$G$22*'Mezzi di trasporto'!G23)+_xlfn.IFS('Foglio Input_Pallet'!$I$24='menu tendina'!$A$6,'Foglio Input_Pallet'!$G$23*'Foglio Input_Pallet'!$G$24*'Mezzi di trasporto'!C23,'Foglio Input_Pallet'!$I$24='menu tendina'!$A$7,'Foglio Input_Pallet'!$G$23*'Foglio Input_Pallet'!$G$24*'Mezzi di trasporto'!D23,'Foglio Input_Pallet'!$I$24='menu tendina'!$A$8,'Foglio Input_Pallet'!$G$23*'Foglio Input_Pallet'!$G$24*'Mezzi di trasporto'!E23,'Foglio Input_Pallet'!$I$24='menu tendina'!$A$9,'Foglio Input_Pallet'!$G$23*'Foglio Input_Pallet'!$G$24*'Mezzi di trasporto'!F23,'Foglio Input_Pallet'!$I$24='menu tendina'!$A$10,'Foglio Input_Pallet'!$G$23*'Foglio Input_Pallet'!$CG$24*'Mezzi di trasporto'!G23)+_xlfn.IFS('Foglio Input_Pallet'!$I$26='menu tendina'!$A$6,'Foglio Input_Pallet'!$G$25*'Foglio Input_Pallet'!$G$26*'Mezzi di trasporto'!C23,'Foglio Input_Pallet'!$I$26='menu tendina'!$A$7,'Foglio Input_Pallet'!$G$25*'Foglio Input_Pallet'!$G$26*'Mezzi di trasporto'!D23,'Foglio Input_Pallet'!$I$26='menu tendina'!$A$8,'Foglio Input_Pallet'!$G$25*'Foglio Input_Pallet'!$G$26*'Mezzi di trasporto'!E23,'Foglio Input_Pallet'!$I$26='menu tendina'!$A$9,'Foglio Input_Pallet'!$G$25*'Foglio Input_Pallet'!$G$26*'Mezzi di trasporto'!F23,'Foglio Input_Pallet'!$I$26='menu tendina'!$A$10,'Foglio Input_Pallet'!$G$25*'Foglio Input_Pallet'!$G$26*'Mezzi di trasporto'!G23))+_xlfn.IFS('Foglio Input_Pallet'!$I$29='menu tendina'!$A$6,('Foglio Input_Pallet'!$G$27+'Foglio Input_Pallet'!$G$28)*'Foglio Input_Pallet'!$G$29*'Mezzi di trasporto'!C23,'Foglio Input_Pallet'!$I$29='menu tendina'!$A$7,('Foglio Input_Pallet'!$G$27+'Foglio Input_Pallet'!$G$28)*'Foglio Input_Pallet'!$G$29*'Mezzi di trasporto'!D23,'Foglio Input_Pallet'!$I$26='menu tendina'!$A$8,('Foglio Input_Pallet'!$G$27+'Foglio Input_Pallet'!$G$28)*'Foglio Input_Pallet'!$G$29*'Mezzi di trasporto'!E23,'Foglio Input_Pallet'!$I$26='menu tendina'!$A$9,('Foglio Input_Pallet'!$G$27+'Foglio Input_Pallet'!$G$28)*'Foglio Input_Pallet'!$G$29*'Mezzi di trasporto'!F23,'Foglio Input_Pallet'!$I$26='menu tendina'!$A$10,('Foglio Input_Pallet'!$G$27+'Foglio Input_Pallet'!$G$28)*'Foglio Input_Pallet'!$G$29*'Mezzi di trasporto'!G23)+_xlfn.IFS('Foglio Input_Pallet'!$I$31='menu tendina'!$A$6,'Foglio Input_Pallet'!$G$30*'Foglio Input_Pallet'!$G$31*'Mezzi di trasporto'!C23,'Foglio Input_Pallet'!$I$31='menu tendina'!$A$7,'Foglio Input_Pallet'!$G$30*'Foglio Input_Pallet'!$G$31*'Mezzi di trasporto'!D23,'Foglio Input_Pallet'!$I$31='menu tendina'!$A$8,'Foglio Input_Pallet'!$G$30*'Foglio Input_Pallet'!$G$31*'Mezzi di trasporto'!E23,'Foglio Input_Pallet'!$I$31='menu tendina'!$A$9,'Foglio Input_Pallet'!$G$30*'Foglio Input_Pallet'!$G$31*'Mezzi di trasporto'!F23,'Foglio Input_Pallet'!$I$31='menu tendina'!$A$10,'Foglio Input_Pallet'!$G$30*'Foglio Input_Pallet'!$G$31*'Mezzi di trasporto'!G23) -> 0.0007036074111
B12: Respiratory inorganics | C12: disease inc. | D12: 7.489044196e-08 | E12: ='Foglio Input_Pallet'!$G$21*'Materie prime'!C24/'Foglio Input_Pallet'!$G$15 -> 0 | F12: ='Foglio Input_Pallet'!$G$23*'Materie prime'!D24/'Foglio Input_Pallet'!$G$15 -> 3.870826386e-08 | G12: ='Foglio Input_Pallet'!$G$25*'Materie prime'!E24/'Foglio Input_Pallet'!$G$15 -> 2.317178913e-08 | H12: ='Foglio Input_Pallet'!$G$27*'Materie prime'!F24/'Foglio Input_Pallet'!$G$15 -> 1.573722682e-09 | I12: ='Foglio Input_Pallet'!$G$28*'Materie prime'!G24/'Foglio Input_Pallet'!$G$15 -> 0 | J12: ='Foglio Input_Pallet'!$G$30*'Materie prime'!H24/'Foglio Input_Pallet'!$G$15 -> 0 | K12: =(1000/'Foglio Input_Pallet'!$G$15)*(_xlfn.IFS('Foglio Input_Pallet'!$I$22='menu tendina'!$A$6,'Foglio Input_Pallet'!$G$21*'Foglio Input_Pallet'!$G$22*'Mezzi di trasporto'!C24,'Foglio Input_Pallet'!$I$22='menu tendina'!$A$7,'Foglio Input_Pallet'!$G$21*'Foglio Input_Pallet'!$G$22*'Mezzi di trasporto'!D24,'Foglio Input_Pallet'!$I$22='menu tendina'!$A$8,'Foglio Input_Pallet'!$G$21*'Foglio Input_Pallet'!$G$22*'Mezzi di trasporto'!E24,'Foglio Input_Pallet'!$I$22='menu tendina'!$A$9,'Foglio Input_Pallet'!$G$21*'Foglio Input_Pallet'!$G$22*'Mezzi di trasporto'!F24,'Foglio Input_Pallet'!$I$22='menu tendina'!$A$10,'Foglio Input_Pallet'!$G$21*'Foglio Input_Pallet'!$G$22*'Mezzi di trasporto'!G24)+_xlfn.IFS('Foglio Input_Pallet'!$I$24='menu tendina'!$A$6,'Foglio Input_Pallet'!$G$23*'Foglio Input_Pallet'!$G$24*'Mezzi di trasporto'!C24,'Foglio Input_Pallet'!$I$24='menu tendina'!$A$7,'Foglio Input_Pallet'!$G$23*'Foglio Input_Pallet'!$G$24*'Mezzi di trasporto'!D24,'Foglio Input_Pallet'!$I$24='menu tendina'!$A$8,'Foglio Input_Pallet'!$G$23*'Foglio Input_Pallet'!$G$24*'Mezzi di trasporto'!E24,'Foglio Input_Pallet'!$I$24='menu tendina'!$A$9,'Foglio Input_Pallet'!$G$23*'Foglio Input_Pallet'!$G$24*'Mezzi di trasporto'!F24,'Foglio Input_Pallet'!$I$24='menu tendina'!$A$10,'Foglio Input_Pallet'!$G$23*'Foglio Input_Pallet'!$CG$24*'Mezzi di trasporto'!G24)+_xlfn.IFS('Foglio Input_Pallet'!$I$26='menu tendina'!$A$6,'Foglio Input_Pallet'!$G$25*'Foglio Input_Pallet'!$G$26*'Mezzi di trasporto'!C24,'Foglio Input_Pallet'!$I$26='menu tendina'!$A$7,'Foglio Input_Pallet'!$G$25*'Foglio Input_Pallet'!$G$26*'Mezzi di trasporto'!D24,'Foglio Input_Pallet'!$I$26='menu tendina'!$A$8,'Foglio Input_Pallet'!$G$25*'Foglio Input_Pallet'!$G$26*'Mezzi di trasporto'!E24,'Foglio Input_Pallet'!$I$26='menu tendina'!$A$9,'Foglio Input_Pallet'!$G$25*'Foglio Input_Pallet'!$G$26*'Mezzi di trasporto'!F24,'Foglio Input_Pallet'!$I$26='menu tendina'!$A$10,'Foglio Input_Pallet'!$G$25*'Foglio Input_Pallet'!$G$26*'Mezzi di trasporto'!G24))+_xlfn.IFS('Foglio Input_Pallet'!$I$29='menu tendina'!$A$6,('Foglio Input_Pallet'!$G$27+'Foglio Input_Pallet'!$G$28)*'Foglio Input_Pallet'!$G$29*'Mezzi di trasporto'!C24,'Foglio Input_Pallet'!$I$29='menu tendina'!$A$7,('Foglio Input_Pallet'!$G$27+'Foglio Input_Pallet'!$G$28)*'Foglio Input_Pallet'!$G$29*'Mezzi di trasporto'!D24,'Foglio Input_Pallet'!$I$26='menu tendina'!$A$8,('Foglio Input_Pallet'!$G$27+'Foglio Input_Pallet'!$G$28)*'Foglio Input_Pallet'!$G$29*'Mezzi di trasporto'!E24,'Foglio Input_Pallet'!$I$26='menu tendina'!$A$9,('Foglio Input_Pallet'!$G$27+'Foglio Input_Pallet'!$G$28)*'Foglio Input_Pallet'!$G$29*'Mezzi di trasporto'!F24,'Foglio Input_Pallet'!$I$26='menu tendina'!$A$10,('Foglio Input_Pallet'!$G$27+'Foglio Input_Pallet'!$G$28)*'Foglio Input_Pallet'!$G$29*'Mezzi di trasporto'!G24)+_xlfn.IFS('Foglio Input_Pallet'!$I$31='menu tendina'!$A$6,'Foglio Input_Pallet'!$G$30*'Foglio Input_Pallet'!$G$31*'Mezzi di trasporto'!C24,'Foglio Input_Pallet'!$I$31='menu tendina'!$A$7,'Foglio Input_Pallet'!$G$30*'Foglio Input_Pallet'!$G$31*'Mezzi di trasporto'!D24,'Foglio Input_Pallet'!$I$31='menu tendina'!$A$8,'Foglio Input_Pallet'!$G$30*'Foglio Input_Pallet'!$G$31*'Mezzi di trasporto'!E24,'Foglio Input_Pallet'!$I$31='menu tendina'!$A$9,'Foglio Input_Pallet'!$G$30*'Foglio Input_Pallet'!$G$31*'Mezzi di trasporto'!F24,'Foglio Input_Pallet'!$I$31='menu tendina'!$A$10,'Foglio Input_Pallet'!$G$30*'Foglio Input_Pallet'!$G$31*'Mezzi di trasporto'!G24) -> 1.143666628e-08
B13: Non-cancer human health effects | C13: CTUh | D13: 9.304410658e-08 | E13: ='Foglio Input_Pallet'!$G$21*'Materie prime'!C25/'Foglio Input_Pallet'!$G$15 -> 0 | F13: ='Foglio Input_Pallet'!$G$23*'Materie prime'!D25/'Foglio Input_Pallet'!$G$15 -> 3.788959273e-08 | G13: ='Foglio Input_Pallet'!$G$25*'Materie prime'!E25/'Foglio Input_Pallet'!$G$15 -> 2.759172146e-08 | H13: ='Foglio Input_Pallet'!$G$27*'Materie prime'!F25/'Foglio Input_Pallet'!$G$15 -> 5.367346636e-09 | I13: ='Foglio Input_Pallet'!$G$28*'Materie prime'!G25/'Foglio Input_Pallet'!$G$15 -> 0 | J13: ='Foglio Input_Pallet'!$G$30*'Materie prime'!H25/'Foglio Input_Pallet'!$G$15 -> 0 | K13: =(1000/'Foglio Input_Pallet'!$G$15)*(_xlfn.IFS('Foglio Input_Pallet'!$I$22='menu tendina'!$A$6,'Foglio Input_Pallet'!$G$21*'Foglio Input_Pallet'!$G$22*'Mezzi di trasporto'!C25,'Foglio Input_Pallet'!$I$22='menu tendina'!$A$7,'Foglio Input_Pallet'!$G$21*'Foglio Input_Pallet'!$G$22*'Mezzi di trasporto'!D25,'Foglio Input_Pallet'!$I$22='menu tendina'!$A$8,'Foglio Input_Pallet'!$G$21*'Foglio Input_Pallet'!$G$22*'Mezzi di trasporto'!E25,'Foglio Input_Pallet'!$I$22='menu tendina'!$A$9,'Foglio Input_Pallet'!$G$21*'Foglio Input_Pallet'!$G$22*'Mezzi di trasporto'!F25,'Foglio Input_Pallet'!$I$22='menu tendina'!$A$10,'Foglio Input_Pallet'!$G$21*'Foglio Input_Pallet'!$G$22*'Mezzi di trasporto'!G25)+_xlfn.IFS('Foglio Input_Pallet'!$I$24='menu tendina'!$A$6,'Foglio Input_Pallet'!$G$23*'Foglio Input_Pallet'!$G$24*'Mezzi di trasporto'!C25,'Foglio Input_Pallet'!$I$24='menu tendina'!$A$7,'Foglio Input_Pallet'!$G$23*'Foglio Input_Pallet'!$G$24*'Mezzi di trasporto'!D25,'Foglio Input_Pallet'!$I$24='menu tendina'!$A$8,'Foglio Input_Pallet'!$G$23*'Foglio Input_Pallet'!$G$24*'Mezzi di trasporto'!E25,'Foglio Input_Pallet'!$I$24='menu tendina'!$A$9,'Foglio Input_Pallet'!$G$23*'Foglio Input_Pallet'!$G$24*'Mezzi di trasporto'!F25,'Foglio Input_Pallet'!$I$24='menu tendina'!$A$10,'Foglio Input_Pallet'!$G$23*'Foglio Input_Pallet'!$CG$24*'Mezzi di trasporto'!G25)+_xlfn.IFS('Foglio Input_Pallet'!$I$26='menu tendina'!$A$6,'Foglio Input_Pallet'!$G$25*'Foglio Input_Pallet'!$G$26*'Mezzi di trasporto'!C25,'Foglio Input_Pallet'!$I$26='menu tendina'!$A$7,'Foglio Input_Pallet'!$G$25*'Foglio Input_Pallet'!$G$26*'Mezzi di trasporto'!D25,'Foglio Input_Pallet'!$I$26='menu tendina'!$A$8,'Foglio Input_Pallet'!$G$25*'Foglio Input_Pallet'!$G$26*'Mezzi di trasporto'!E25,'Foglio Input_Pallet'!$I$26='menu tendina'!$A$9,'Foglio Input_Pallet'!$G$25*'Foglio Input_Pallet'!$G$26*'Mezzi di trasporto'!F25,'Foglio Input_Pallet'!$I$26='menu tendina'!$A$10,'Foglio Input_Pallet'!$G$25*'Foglio Input_Pallet'!$G$26*'Mezzi di trasporto'!G25))+_xlfn.IFS('Foglio Input_Pallet'!$I$29='menu tendina'!$A$6,('Foglio Input_Pallet'!$G$27+'Foglio Input_Pallet'!$G$28)*'Foglio Input_Pallet'!$G$29*'Mezzi di trasporto'!C25,'Foglio Input_Pallet'!$I$29='menu tendina'!$A$7,('Foglio Input_Pallet'!$G$27+'Foglio Input_Pallet'!$G$28)*'Foglio Input_Pallet'!$G$29*'Mezzi di trasporto'!D25,'Foglio Input_Pallet'!$I$26='menu tendina'!$A$8,('Foglio Input_Pallet'!$G$27+'Foglio Input_Pallet'!$G$28)*'Foglio Input_Pallet'!$G$29*'Mezzi di trasporto'!E25,'Foglio Input_Pallet'!$I$26='menu tendina'!$A$9,('Foglio Input_Pallet'!$G$27+'Foglio Input_Pallet'!$G$28)*'Foglio Input_Pallet'!$G$29*'Mezzi di trasporto'!F25,'Foglio Input_Pallet'!$I$26='menu tendina'!$A$10,('Foglio Input_Pallet'!$G$27+'Foglio Input_Pallet'!$G$28)*'Foglio Input_Pallet'!$G$29*'Mezzi di trasporto'!G25)+_xlfn.IFS('Foglio Input_Pallet'!$I$31='menu tendina'!$A$6,'Foglio Input_Pallet'!$G$30*'Foglio Input_Pallet'!$G$31*'Mezzi di trasporto'!C25,'Foglio Input_Pallet'!$I$31='menu tendina'!$A$7,'Foglio Input_Pallet'!$G$30*'Foglio Input_Pallet'!$G$31*'Mezzi di trasporto'!D25,'Foglio Input_Pallet'!$I$31='menu tendina'!$A$8,'Foglio Input_Pallet'!$G$30*'Foglio Input_Pallet'!$G$31*'Mezzi di trasporto'!E25,'Foglio Input_Pallet'!$I$31='menu tendina'!$A$9,'Foglio Input_Pallet'!$G$30*'Foglio Input_Pallet'!$G$31*'Mezzi di trasporto'!F25,'Foglio Input_Pallet'!$I$31='menu tendina'!$A$10,'Foglio Input_Pallet'!$G$30*'Foglio Input_Pallet'!$G$31*'Mezzi di trasporto'!G25) -> 2.219544576e-08
B14: Cancer human health effects | C14: CTUh | D14: 4.576544057e-08 | E14: ='Foglio Input_Pallet'!$G$21*'Materie prime'!C26/'Foglio Input_Pallet'!$G$15 -> 0 | F14: ='Foglio Input_Pallet'!$G$23*'Materie prime'!D26/'Foglio Input_Pallet'!$G$15 -> 9.835570011e-09 | G14: ='Foglio Input_Pallet'!$G$25*'Materie prime'!E26/'Foglio Input_Pallet'!$G$15 -> 3.523235242e-09 | H14: ='Foglio Input_Pallet'!$G$27*'Materie prime'!F26/'Foglio Input_Pallet'!$G$15 -> 3.019235864e-08 | I14: ='Foglio Input_Pallet'!$G$28*'Materie prime'!G26/'Foglio Input_Pallet'!$G$15 -> 0 | J14: ='Foglio Input_Pallet'!$G$30*'Materie prime'!H26/'Foglio Input_Pallet'!$G$15 -> 0 | K14: =(1000/'Foglio Input_Pallet'!$G$15)*(_xlfn.IFS('Foglio Input_Pallet'!$I$22='menu tendina'!$A$6,'Foglio Input_Pallet'!$G$21*'Foglio Input_Pallet'!$G$22*'Mezzi di trasporto'!C26,'Foglio Input_Pallet'!$I$22='menu tendina'!$A$7,'Foglio Input_Pallet'!$G$21*'Foglio Input_Pallet'!$G$22*'Mezzi di trasporto'!D26,'Foglio Input_Pallet'!$I$22='menu tendina'!$A$8,'Foglio Input_Pallet'!$G$21*'Foglio Input_Pallet'!$G$22*'Mezzi di trasporto'!E26,'Foglio Input_Pallet'!$I$22='menu tendina'!$A$9,'Foglio Input_Pallet'!$G$21*'Foglio Input_Pallet'!$G$22*'Mezzi di trasporto'!F26,'Foglio Input_Pallet'!$I$22='menu tendina'!$A$10,'Foglio Input_Pallet'!$G$21*'Foglio Input_Pallet'!$G$22*'Mezzi di trasporto'!G26)+_xlfn.IFS('Foglio Input_Pallet'!$I$24='menu tendina'!$A$6,'Foglio Input_Pallet'!$G$23*'Foglio Input_Pallet'!$G$24*'Mezzi di trasporto'!C26,'Foglio Input_Pallet'!$I$24='menu tendina'!$A$7,'Foglio Input_Pallet'!$G$23*'Foglio Input_Pallet'!$G$24*'Mezzi di trasporto'!D26,'Foglio Input_Pallet'!$I$24='menu tendina'!$A$8,'Foglio Input_Pallet'!$G$23*'Foglio Input_Pallet'!$G$24*'Mezzi di trasporto'!E26,'Foglio Input_Pallet'!$I$24='menu tendina'!$A$9,'Foglio Input_Pallet'!$G$23*'Foglio Input_Pallet'!$G$24*'Mezzi di trasporto'!F26,'Foglio Input_Pallet'!$I$24='menu tendina'!$A$10,'Foglio Input_Pallet'!$G$23*'Foglio Input_Pallet'!$CG$24*'Mezzi di trasporto'!G26)+_xlfn.IFS('Foglio Input_Pallet'!$I$26='menu tendina'!$A$6,'Foglio Input_Pallet'!$G$25*'Foglio Input_Pallet'!$G$26*'Mezzi di trasporto'!C26,'Foglio Input_Pallet'!$I$26='menu tendina'!$A$7,'Foglio Input_Pallet'!$G$25*'Foglio Input_Pallet'!$G$26*'Mezzi di trasporto'!D26,'Foglio Input_Pallet'!$I$26='menu tendina'!$A$8,'Foglio Input_Pallet'!$G$25*'Foglio Input_Pallet'!$G$26*'Mezzi di trasporto'!E26,'Foglio Input_Pallet'!$I$26='menu tendina'!$A$9,'Foglio Input_Pallet'!$G$25*'Foglio Input_Pallet'!$G$26*'Mezzi di trasporto'!F26,'Foglio Input_Pallet'!$I$26='menu tendina'!$A$10,'Foglio Input_Pallet'!$G$25*'Foglio Input_Pallet'!$G$26*'Mezzi di trasporto'!G26))+_xlfn.IFS('Foglio Input_Pallet'!$I$29='menu tendina'!$A$6,('Foglio Input_Pallet'!$G$27+'Foglio Input_Pallet'!$G$28)*'Foglio Input_Pallet'!$G$29*'Mezzi di trasporto'!C26,'Foglio Input_Pallet'!$I$29='menu tendina'!$A$7,('Foglio Input_Pallet'!$G$27+'Foglio Input_Pallet'!$G$28)*'Foglio Input_Pallet'!$G$29*'Mezzi di trasporto'!D26,'Foglio Input_Pallet'!$I$26='menu tendina'!$A$8,('Foglio Input_Pallet'!$G$27+'Foglio Input_Pallet'!$G$28)*'Foglio Input_Pallet'!$G$29*'Mezzi di trasporto'!E26,'Foglio Input_Pallet'!$I$26='menu tendina'!$A$9,('Foglio Input_Pallet'!$G$27+'Foglio Input_Pallet'!$G$28)*'Foglio Input_Pallet'!$G$29*'Mezzi di trasporto'!F26,'Foglio Input_Pallet'!$I$26='menu tendina'!$A$10,('Foglio Input_Pallet'!$G$27+'Foglio Input_Pallet'!$G$28)*'Foglio Input_Pallet'!$G$29*'Mezzi di trasporto'!G26)+_xlfn.IFS('Foglio Input_Pallet'!$I$31='menu tendina'!$A$6,'Foglio Input_Pallet'!$G$30*'Foglio Input_Pallet'!$G$31*'Mezzi di trasporto'!C26,'Foglio Input_Pallet'!$I$31='menu tendina'!$A$7,'Foglio Input_Pallet'!$G$30*'Foglio Input_Pallet'!$G$31*'Mezzi di trasporto'!D26,'Foglio Input_Pallet'!$I$31='menu tendina'!$A$8,'Foglio Input_Pallet'!$G$30*'Foglio Input_Pallet'!$G$31*'Mezzi di trasporto'!E26,'Foglio Input_Pallet'!$I$31='menu tendina'!$A$9,'Foglio Input_Pallet'!$G$30*'Foglio Input_Pallet'!$G$31*'Mezzi di trasporto'!F26,'Foglio Input_Pallet'!$I$31='menu tendina'!$A$10,'Foglio Input_Pallet'!$G$30*'Foglio Input_Pallet'!$G$31*'Mezzi di trasporto'!G26) -> 2.214276681e-09
B15: Acidification terrestrial and freshwater | C15: mol H+ eq | D15: 0.002393521783 | E15: ='Foglio Input_Pallet'!$G$21*'Materie prime'!C27/'Foglio Input_Pallet'!$G$15 -> 0 | F15: ='Foglio Input_Pallet'!$G$23*'Materie prime'!D27/'Foglio Input_Pallet'!$G$15 -> 0.001022396434 | G15: ='Foglio Input_Pallet'!$G$25*'Materie prime'!E27/'Foglio Input_Pallet'!$G$15 -> 0.0006607189701 | H15: ='Foglio Input_Pallet'!$G$27*'Materie prime'!F27/'Foglio Input_Pallet'!$G$15 -> 8.728894909e-05 | I15: ='Foglio Input_Pallet'!$G$28*'Materie prime'!G27/'Foglio Input_Pallet'!$G$15 -> 0 | J15: ='Foglio Input_Pallet'!$G$30*'Materie prime'!H27/'Foglio Input_Pallet'!$G$15 -> 0 | K15: =(1000/'Foglio Input_Pallet'!$G$15)*(_xlfn.IFS('Foglio Input_Pallet'!$I$22='menu tendina'!$A$6,'Foglio Input_Pallet'!$G$21*'Foglio Input_Pallet'!$G$22*'Mezzi di trasporto'!C27,'Foglio Input_Pallet'!$I$22='menu tendina'!$A$7,'Foglio Input_Pallet'!$G$21*'Foglio Input_Pallet'!$G$22*'Mezzi di trasporto'!D27,'Foglio Input_Pallet'!$I$22='menu tendina'!$A$8,'Foglio Input_Pallet'!$G$21*'Foglio Input_Pallet'!$G$22*'Mezzi di trasporto'!E27,'Foglio Input_Pallet'!$I$22='menu tendina'!$A$9,'Foglio Input_Pallet'!$G$21*'Foglio Input_Pallet'!$G$22*'Mezzi di trasporto'!F27,'Foglio Input_Pallet'!$I$22='menu tendina'!$A$10,'Foglio Input_Pallet'!$G$21*'Foglio Input_Pallet'!$G$22*'Mezzi di trasporto'!G27)+_xlfn.IFS('Foglio Input_Pallet'!$I$24='menu tendina'!$A$6,'Foglio Input_Pallet'!$G$23*'Foglio Input_Pallet'!$G$24*'Mezzi di trasporto'!C27,'Foglio Input_Pallet'!$I$24='menu tendina'!$A$7,'Foglio Input_Pallet'!$G$23*'Foglio Input_Pallet'!$G$24*'Mezzi di trasporto'!D27,'Foglio Input_Pallet'!$I$24='menu tendina'!$A$8,'Foglio Input_Pallet'!$G$23*'Foglio Input_Pallet'!$G$24*'Mezzi di trasporto'!E27,'Foglio Input_Pallet'!$I$24='menu tendina'!$A$9,'Foglio Input_Pallet'!$G$23*'Foglio Input_Pallet'!$G$24*'Mezzi di trasporto'!F27,'Foglio Input_Pallet'!$I$24='menu tendina'!$A$10,'Foglio Input_Pallet'!$G$23*'Foglio Input_Pallet'!$CG$24*'Mezzi di trasporto'!G27)+_xlfn.IFS('Foglio Input_Pallet'!$I$26='menu tendina'!$A$6,'Foglio Input_Pallet'!$G$25*'Foglio Input_Pallet'!$G$26*'Mezzi di trasporto'!C27,'Foglio Input_Pallet'!$I$26='menu tendina'!$A$7,'Foglio Input_Pallet'!$G$25*'Foglio Input_Pallet'!$G$26*'Mezzi di trasporto'!D27,'Foglio Input_Pallet'!$I$26='menu tendina'!$A$8,'Foglio Input_Pallet'!$G$25*'Foglio Input_Pallet'!$G$26*'Mezzi di trasporto'!E27,'Foglio Input_Pallet'!$I$26='menu tendina'!$A$9,'Foglio Input_Pallet'!$G$25*'Foglio Input_Pallet'!$G$26*'Mezzi di trasporto'!F27,'Foglio Input_Pallet'!$I$26='menu tendina'!$A$10,'Foglio Input_Pallet'!$G$25*'Foglio Input_Pallet'!$G$26*'Mezzi di trasporto'!G27))+_xlfn.IFS('Foglio Input_Pallet'!$I$29='menu tendina'!$A$6,('Foglio Input_Pallet'!$G$27+'Foglio Input_Pallet'!$G$28)*'Foglio Input_Pallet'!$G$29*'Mezzi di trasporto'!C27,'Foglio Input_Pallet'!$I$29='menu tendina'!$A$7,('Foglio Input_Pallet'!$G$27+'Foglio Input_Pallet'!$G$28)*'Foglio Input_Pallet'!$G$29*'Mezzi di trasporto'!D27,'Foglio Input_Pallet'!$I$26='menu tendina'!$A$8,('Foglio Input_Pallet'!$G$27+'Foglio Input_Pallet'!$G$28)*'Foglio Input_Pallet'!$G$29*'Mezzi di trasporto'!E27,'Foglio Input_Pallet'!$I$26='menu tendina'!$A$9,('Foglio Input_Pallet'!$G$27+'Foglio Input_Pallet'!$G$28)*'Foglio Input_Pallet'!$G$29*'Mezzi di trasporto'!F27,'Foglio Input_Pallet'!$I$26='menu tendina'!$A$10,('Foglio Input_Pallet'!$G$27+'Foglio Input_Pallet'!$G$28)*'Foglio Input_Pallet'!$G$29*'Mezzi di trasporto'!G27)+_xlfn.IFS('Foglio Input_Pallet'!$I$31='menu tendina'!$A$6,'Foglio Input_Pallet'!$G$30*'Foglio Input_Pallet'!$G$31*'Mezzi di trasporto'!C27,'Foglio Input_Pallet'!$I$31='menu tendina'!$A$7,'Foglio Input_Pallet'!$G$30*'Foglio Input_Pallet'!$G$31*'Mezzi di trasporto'!D27,'Foglio Input_Pallet'!$I$31='menu tendina'!$A$8,'Foglio Input_Pallet'!$G$30*'Foglio Input_Pallet'!$G$31*'Mezzi di trasporto'!E27,'Foglio Input_Pallet'!$I$31='menu tendina'!$A$9,'Foglio Input_Pallet'!$G$30*'Foglio Input_Pallet'!$G$31*'Mezzi di trasporto'!F27,'Foglio Input_Pallet'!$I$31='menu tendina'!$A$10,'Foglio Input_Pallet'!$G$30*'Foglio Input_Pallet'!$G$31*'Mezzi di trasporto'!G27) -> 0.0006231174301
B16: Eutrophication freshwater | C16: kg P eq | D16: 0.0001166986476 | E16: ='Foglio Input_Pallet'!$G$21*'Materie prime'!C28/'Foglio Input_Pallet'!$G$15 -> 0 | F16: ='Foglio Input_Pallet'!$G$23*'Materie prime'!D28/'Foglio Input_Pallet'!$G$15 -> 4.716264205e-05 | G16: ='Foglio Input_Pallet'!$G$25*'Materie prime'!E28/'Foglio Input_Pallet'!$G$15 -> 5.175355233e-05 | H16: ='Foglio Input_Pallet'!$G$27*'Materie prime'!F28/'Foglio Input_Pallet'!$G$15 -> 9.689923091e-06 | I16: ='Foglio Input_Pallet'!$G$28*'Materie prime'!G28/'Foglio Input_Pallet'!$G$15 -> 0 | J16: ='Foglio Input_Pallet'!$G$30*'Materie prime'!H28/'Foglio Input_Pallet'!$G$15 -> 0 | K16: =(1000/'Foglio Input_Pallet'!$G$15)*(_xlfn.IFS('Foglio Input_Pallet'!$I$22='menu tendina'!$A$6,'Foglio Input_Pallet'!$G$21*'Foglio Input_Pallet'!$G$22*'Mezzi di trasporto'!C28,'Foglio Input_Pallet'!$I$22='menu tendina'!$A$7,'Foglio Input_Pallet'!$G$21*'Foglio Input_Pallet'!$G$22*'Mezzi di trasporto'!D28,'Foglio Input_Pallet'!$I$22='menu tendina'!$A$8,'Foglio Input_Pallet'!$G$21*'Foglio Input_Pallet'!$G$22*'Mezzi di trasporto'!E28,'Foglio Input_Pallet'!$I$22='menu tendina'!$A$9,'Foglio Input_Pallet'!$G$21*'Foglio Input_Pallet'!$G$22*'Mezzi di trasporto'!F28,'Foglio Input_Pallet'!$I$22='menu tendina'!$A$10,'Foglio Input_Pallet'!$G$21*'Foglio Input_Pallet'!$G$22*'Mezzi di trasporto'!G28)+_xlfn.IFS('Foglio Input_Pallet'!$I$24='menu tendina'!$A$6,'Foglio Input_Pallet'!$G$23*'Foglio Input_Pallet'!$G$24*'Mezzi di trasporto'!C28,'Foglio Input_Pallet'!$I$24='menu tendina'!$A$7,'Foglio Input_Pallet'!$G$23*'Foglio Input_Pallet'!$G$24*'Mezzi di trasporto'!D28,'Foglio Input_Pallet'!$I$24='menu tendina'!$A$8,'Foglio Input_Pallet'!$G$23*'Foglio Input_Pallet'!$G$24*'Mezzi di trasporto'!E28,'Foglio Input_Pallet'!$I$24='menu tendina'!$A$9,'Foglio Input_Pallet'!$G$23*'Foglio Input_Pallet'!$G$24*'Mezzi di trasporto'!F28,'Foglio Input_Pallet'!$I$24='menu tendina'!$A$10,'Foglio Input_Pallet'!$G$23*'Foglio Input_Pallet'!$CG$24*'Mezzi di trasporto'!G28)+_xlfn.IFS('Foglio Input_Pallet'!$I$26='menu tendina'!$A$6,'Foglio Input_Pallet'!$G$25*'Foglio Input_Pallet'!$G$26*'Mezzi di trasporto'!C28,'Foglio Input_Pallet'!$I$26='menu tendina'!$A$7,'Foglio Input_Pallet'!$G$25*'Foglio Input_Pallet'!$G$26*'Mezzi di trasporto'!D28,'Foglio Input_Pallet'!$I$26='menu tendina'!$A$8,'Foglio Input_Pallet'!$G$25*'Foglio Input_Pallet'!$G$26*'Mezzi di trasporto'!E28,'Foglio Input_Pallet'!$I$26='menu tendina'!$A$9,'Foglio Input_Pallet'!$G$25*'Foglio Input_Pallet'!$G$26*'Mezzi di trasporto'!F28,'Foglio Input_Pallet'!$I$26='menu tendina'!$A$10,'Foglio Input_Pallet'!$G$25*'Foglio Input_Pallet'!$G$26*'Mezzi di trasporto'!G28))+_xlfn.IFS('Foglio Input_Pallet'!$I$29='menu tendina'!$A$6,('Foglio Input_Pallet'!$G$27+'Foglio Input_Pallet'!$G$28)*'Foglio Input_Pallet'!$G$29*'Mezzi di trasporto'!C28,'Foglio Input_Pallet'!$I$29='menu tendina'!$A$7,('Foglio Input_Pallet'!$G$27+'Foglio Input_Pallet'!$G$28)*'Foglio Input_Pallet'!$G$29*'Mezzi di trasporto'!D28,'Foglio Input_Pallet'!$I$26='menu tendina'!$A$8,('Foglio Input_Pallet'!$G$27+'Foglio Input_Pallet'!$G$28)*'Foglio Input_Pallet'!$G$29*'Mezzi di trasporto'!E28,'Foglio Input_Pallet'!$I$26='menu tendina'!$A$9,('Foglio Input_Pallet'!$G$27+'Foglio Input_Pallet'!$G$28)*'Foglio Input_Pallet'!$G$29*'Mezzi di trasporto'!F28,'Foglio Input_Pallet'!$I$26='menu tendina'!$A$10,('Foglio Input_Pallet'!$G$27+'Foglio Input_Pallet'!$G$28)*'Foglio Input_Pallet'!$G$29*'Mezzi di trasporto'!G28)+_xlfn.IFS('Foglio Input_Pallet'!$I$31='menu tendina'!$A$6,'Foglio Input_Pallet'!$G$30*'Foglio Input_Pallet'!$G$31*'Mezzi di trasporto'!C28,'Foglio Input_Pallet'!$I$31='menu tendina'!$A$7,'Foglio Input_Pallet'!$G$30*'Foglio Input_Pallet'!$G$31*'Mezzi di trasporto'!D28,'Foglio Input_Pallet'!$I$31='menu tendina'!$A$8,'Foglio Input_Pallet'!$G$30*'Foglio Input_Pallet'!$G$31*'Mezzi di trasporto'!E28,'Foglio Input_Pallet'!$I$31='menu tendina'!$A$9,'Foglio Input_Pallet'!$G$30*'Foglio Input_Pallet'!$G$31*'Mezzi di trasporto'!F28,'Foglio Input_Pallet'!$I$31='menu tendina'!$A$10,'Foglio Input_Pallet'!$G$30*'Foglio Input_Pallet'!$G$31*'Mezzi di trasporto'!G28) -> 8.092530146e-06
B17: Eutrophication marine | C17: kg N eq | D17: 0.0007307579977 | E17: ='Foglio Input_Pallet'!$G$21*'Materie prime'!C29/'Foglio Input_Pallet'!$G$15 -> 0 | F17: ='Foglio Input_Pallet'!$G$23*'Materie prime'!D29/'Foglio Input_Pallet'!$G$15 -> 0.000330121567 | G17: ='Foglio Input_Pallet'!$G$25*'Materie prime'!E29/'Foglio Input_Pallet'!$G$15 -> 0.0001607789976 | H17: ='Foglio Input_Pallet'!$G$27*'Materie prime'!F29/'Foglio Input_Pallet'!$G$15 -> 2.401977818e-05 | I17: ='Foglio Input_Pallet'!$G$28*'Materie prime'!G29/'Foglio Input_Pallet'!$G$15 -> 0 | J17: ='Foglio Input_Pallet'!$G$30*'Materie prime'!H29/'Foglio Input_Pallet'!$G$15 -> 0 | K17: =(1000/'Foglio Input_Pallet'!$G$15)*(_xlfn.IFS('Foglio Input_Pallet'!$I$22='menu tendina'!$A$6,'Foglio Input_Pallet'!$G$21*'Foglio Input_Pallet'!$G$22*'Mezzi di trasporto'!C29,'Foglio Input_Pallet'!$I$22='menu tendina'!$A$7,'Foglio Input_Pallet'!$G$21*'Foglio Input_Pallet'!$G$22*'Mezzi di trasporto'!D29,'Foglio Input_Pallet'!$I$22='menu tendina'!$A$8,'Foglio Input_Pallet'!$G$21*'Foglio Input_Pallet'!$G$22*'Mezzi di trasporto'!E29,'Foglio Input_Pallet'!$I$22='menu tendina'!$A$9,'Foglio Input_Pallet'!$G$21*'Foglio Input_Pallet'!$G$22*'Mezzi di trasporto'!F29,'Foglio Input_Pallet'!$I$22='menu tendina'!$A$10,'Foglio Input_Pallet'!$G$21*'Foglio Input_Pallet'!$G$22*'Mezzi di trasporto'!G29)+_xlfn.IFS('Foglio Input_Pallet'!$I$24='menu tendina'!$A$6,'Foglio Input_Pallet'!$G$23*'Foglio Input_Pallet'!$G$24*'Mezzi di trasporto'!C29,'Foglio Input_Pallet'!$I$24='menu tendina'!$A$7,'Foglio Input_Pallet'!$G$23*'Foglio Input_Pallet'!$G$24*'Mezzi di trasporto'!D29,'Foglio Input_Pallet'!$I$24='menu tendina'!$A$8,'Foglio Input_Pallet'!$G$23*'Foglio Input_Pallet'!$G$24*'Mezzi di trasporto'!E29,'Foglio Input_Pallet'!$I$24='menu tendina'!$A$9,'Foglio Input_Pallet'!$G$23*'Foglio Input_Pallet'!$G$24*'Mezzi di trasporto'!F29,'Foglio Input_Pallet'!$I$24='menu tendina'!$A$10,'Foglio Input_Pallet'!$G$23*'Foglio Input_Pallet'!$CG$24*'Mezzi di trasporto'!G29)+_xlfn.IFS('Foglio Input_Pallet'!$I$26='menu tendina'!$A$6,'Foglio Input_Pallet'!$G$25*'Foglio Input_Pallet'!$G$26*'Mezzi di trasporto'!C29,'Foglio Input_Pallet'!$I$26='menu tendina'!$A$7,'Foglio Input_Pallet'!$G$25*'Foglio Input_Pallet'!$G$26*'Mezzi di trasporto'!D29,'Foglio Input_Pallet'!$I$26='menu tendina'!$A$8,'Foglio Input_Pallet'!$G$25*'Foglio Input_Pallet'!$G$26*'Mezzi di trasporto'!E29,'Foglio Input_Pallet'!$I$26='menu tendina'!$A$9,'Foglio Input_Pallet'!$G$25*'Foglio Input_Pallet'!$G$26*'Mezzi di trasporto'!F29,'Foglio Input_Pallet'!$I$26='menu tendina'!$A$10,'Foglio Input_Pallet'!$G$25*'Foglio Input_Pallet'!$G$26*'Mezzi di trasporto'!G29))+_xlfn.IFS('Foglio Input_Pallet'!$I$29='menu tendina'!$A$6,('Foglio Input_Pallet'!$G$27+'Foglio Input_Pallet'!$G$28)*'Foglio Input_Pallet'!$G$29*'Mezzi di trasporto'!C29,'Foglio Input_Pallet'!$I$29='menu tendina'!$A$7,('Foglio Input_Pallet'!$G$27+'Foglio Input_Pallet'!$G$28)*'Foglio Input_Pallet'!$G$29*'Mezzi di trasporto'!D29,'Foglio Input_Pallet'!$I$26='menu tendina'!$A$8,('Foglio Input_Pallet'!$G$27+'Foglio Input_Pallet'!$G$28)*'Foglio Input_Pallet'!$G$29*'Mezzi di trasporto'!E29,'Foglio Input_Pallet'!$I$26='menu tendina'!$A$9,('Foglio Input_Pallet'!$G$27+'Foglio Input_Pallet'!$G$28)*'Foglio Input_Pallet'!$G$29*'Mezzi di trasporto'!F29,'Foglio Input_Pallet'!$I$26='menu tendina'!$A$10,('Foglio Input_Pallet'!$G$27+'Foglio Input_Pallet'!$G$28)*'Foglio Input_Pallet'!$G$29*'Mezzi di trasporto'!G29)+_xlfn.IFS('Foglio Input_Pallet'!$I$31='menu tendina'!$A$6,'Foglio Input_Pallet'!$G$30*'Foglio Input_Pallet'!$G$31*'Mezzi di trasporto'!C29,'Foglio Input_Pallet'!$I$31='menu tendina'!$A$7,'Foglio Input_Pallet'!$G$30*'Foglio Input_Pallet'!$G$31*'Mezzi di trasporto'!D29,'Foglio Input_Pallet'!$I$31='menu tendina'!$A$8,'Foglio Input_Pallet'!$G$30*'Foglio Input_Pallet'!$G$31*'Mezzi di trasporto'!E29,'Foglio Input_Pallet'!$I$31='menu tendina'!$A$9,'Foglio Input_Pallet'!$G$30*'Foglio Input_Pallet'!$G$31*'Mezzi di trasporto'!F29,'Foglio Input_Pallet'!$I$31='menu tendina'!$A$10,'Foglio Input_Pallet'!$G$30*'Foglio Input_Pallet'!$G$31*'Mezzi di trasporto'!G29) -> 0.0002158376549
B18: Eutrophication terrestrial | C18: mol N eq | D18: 0.00795387336 | E18: ='Foglio Input_Pallet'!$G$21*'Materie prime'!C30/'Foglio Input_Pallet'!$G$15 -> 0 | F18: ='Foglio Input_Pallet'!$G$23*'Materie prime'!D30/'Foglio Input_Pallet'!$G$15 -> 0.003674228205 | G18: ='Foglio Input_Pallet'!$G$25*'Materie prime'!E30/'Foglio Input_Pallet'!$G$15 -> 0.001726024534 | H18: ='Foglio Input_Pallet'!$G$27*'Materie prime'!F30/'Foglio Input_Pallet'!$G$15 -> 0.0001948323136 | I18: ='Foglio Input_Pallet'!$G$28*'Materie prime'!G30/'Foglio Input_Pallet'!$G$15 -> 0 | J18: ='Foglio Input_Pallet'!$G$30*'Materie prime'!H30/'Foglio Input_Pallet'!$G$15 -> 0 | K18: =(1000/'Foglio Input_Pallet'!$G$15)*(_xlfn.IFS('Foglio Input_Pallet'!$I$22='menu tendina'!$A$6,'Foglio Input_Pallet'!$G$21*'Foglio Input_Pallet'!$G$22*'Mezzi di trasporto'!C30,'Foglio Input_Pallet'!$I$22='menu tendina'!$A$7,'Foglio Input_Pallet'!$G$21*'Foglio Input_Pallet'!$G$22*'Mezzi di trasporto'!D30,'Foglio Input_Pallet'!$I$22='menu tendina'!$A$8,'Foglio Input_Pallet'!$G$21*'Foglio Input_Pallet'!$G$22*'Mezzi di trasporto'!E30,'Foglio Input_Pallet'!$I$22='menu tendina'!$A$9,'Foglio Input_Pallet'!$G$21*'Foglio Input_Pallet'!$G$22*'Mezzi di trasporto'!F30,'Foglio Input_Pallet'!$I$22='menu tendina'!$A$10,'Foglio Input_Pallet'!$G$21*'Foglio Input_Pallet'!$G$22*'Mezzi di trasporto'!G30)+_xlfn.IFS('Foglio Input_Pallet'!$I$24='menu tendina'!$A$6,'Foglio Input_Pallet'!$G$23*'Foglio Input_Pallet'!$G$24*'Mezzi di trasporto'!C30,'Foglio Input_Pallet'!$I$24='menu tendina'!$A$7,'Foglio Input_Pallet'!$G$23*'Foglio Input_Pallet'!$G$24*'Mezzi di trasporto'!D30,'Foglio Input_Pallet'!$I$24='menu tendina'!$A$8,'Foglio Input_Pallet'!$G$23*'Foglio Input_Pallet'!$G$24*'Mezzi di trasporto'!E30,'Foglio Input_Pallet'!$I$24='menu tendina'!$A$9,'Foglio Input_Pallet'!$G$23*'Foglio Input_Pallet'!$G$24*'Mezzi di trasporto'!F30,'Foglio Input_Pallet'!$I$24='menu tendina'!$A$10,'Foglio Input_Pallet'!$G$23*'Foglio Input_Pallet'!$CG$24*'Mezzi di trasporto'!G30)+_xlfn.IFS('Foglio Input_Pallet'!$I$26='menu tendina'!$A$6,'Foglio Input_Pallet'!$G$25*'Foglio Input_Pallet'!$G$26*'Mezzi di trasporto'!C30,'Foglio Input_Pallet'!$I$26='menu tendina'!$A$7,'Foglio Input_Pallet'!$G$25*'Foglio Input_Pallet'!$G$26*'Mezzi di trasporto'!D30,'Foglio Input_Pallet'!$I$26='menu tendina'!$A$8,'Foglio Input_Pallet'!$G$25*'Foglio Input_Pallet'!$G$26*'Mezzi di trasporto'!E30,'Foglio Input_Pallet'!$I$26='menu tendina'!$A$9,'Foglio Input_Pallet'!$G$25*'Foglio Input_Pallet'!$G$26*'Mezzi di trasporto'!F30,'Foglio Input_Pallet'!$I$26='menu tendina'!$A$10,'Foglio Input_Pallet'!$G$25*'Foglio Input_Pallet'!$G$26*'Mezzi di trasporto'!G30))+_xlfn.IFS('Foglio Input_Pallet'!$I$29='menu tendina'!$A$6,('Foglio Input_Pallet'!$G$27+'Foglio Input_Pallet'!$G$28)*'Foglio Input_Pallet'!$G$29*'Mezzi di trasporto'!C30,'Foglio Input_Pallet'!$I$29='menu tendina'!$A$7,('Foglio Input_Pallet'!$G$27+'Foglio Input_Pallet'!$G$28)*'Foglio Input_Pallet'!$G$29*'Mezzi di trasporto'!D30,'Foglio Input_Pallet'!$I$26='menu tendina'!$A$8,('Foglio Input_Pallet'!$G$27+'Foglio Input_Pallet'!$G$28)*'Foglio Input_Pallet'!$G$29*'Mezzi di trasporto'!E30,'Foglio Input_Pallet'!$I$26='menu tendina'!$A$9,('Foglio Input_Pallet'!$G$27+'Foglio Input_Pallet'!$G$28)*'Foglio Input_Pallet'!$G$29*'Mezzi di trasporto'!F30,'Foglio Input_Pallet'!$I$26='menu tendina'!$A$10,('Foglio Input_Pallet'!$G$27+'Foglio Input_Pallet'!$G$28)*'Foglio Input_Pallet'!$G$29*'Mezzi di trasporto'!G30)+_xlfn.IFS('Foglio Input_Pallet'!$I$31='menu tendina'!$A$6,'Foglio Input_Pallet'!$G$30*'Foglio Input_Pallet'!$G$31*'Mezzi di trasporto'!C30,'Foglio Input_Pallet'!$I$31='menu tendina'!$A$7,'Foglio Input_Pallet'!$G$30*'Foglio Input_Pallet'!$G$31*'Mezzi di trasporto'!D30,'Foglio Input_Pallet'!$I$31='menu tendina'!$A$8,'Foglio Input_Pallet'!$G$30*'Foglio Input_Pallet'!$G$31*'Mezzi di trasporto'!E30,'Foglio Input_Pallet'!$I$31='menu tendina'!$A$9,'Foglio Input_Pallet'!$G$30*'Foglio Input_Pallet'!$G$31*'Mezzi di trasporto'!F30,'Foglio Input_Pallet'!$I$31='menu tendina'!$A$10,'Foglio Input_Pallet'!$G$30*'Foglio Input_Pallet'!$G$31*'Mezzi di trasporto'!G30) -> 0.002358788309
B19: Ecotoxicity freshwater | C19: CTUe | D19: 1.103358113 | E19: ='Foglio Input_Pallet'!$G$21*'Materie prime'!C31/'Foglio Input_Pallet'!$G$15 -> 0 | F19: ='Foglio Input_Pallet'!$G$23*'Materie prime'!D31/'Foglio Input_Pallet'!$G$15 -> 0.1732311743 | G19: ='Foglio Input_Pallet'!$G$25*'Materie prime'!E31/'Foglio Input_Pallet'!$G$15 -> 0.1760916773 | H19: ='Foglio Input_Pallet'!$G$27*'Materie prime'!F31/'Foglio Input_Pallet'!$G$15 -> 0.3151881273 | I19: ='Foglio Input_Pallet'!$G$28*'Materie prime'!G31/'Foglio Input_Pallet'!$G$15 -> 0 | J19: ='Foglio Input_Pallet'!$G$30*'Materie prime'!H31/'Foglio Input_Pallet'!$G$15 -> 0 | K19: =(1000/'Foglio Input_Pallet'!$G$15)*(_xlfn.IFS('Foglio Input_Pallet'!$I$22='menu tendina'!$A$6,'Foglio Input_Pallet'!$G$21*'Foglio Input_Pallet'!$G$22*'Mezzi di trasporto'!C31,'Foglio Input_Pallet'!$I$22='menu tendina'!$A$7,'Foglio Input_Pallet'!$G$21*'Foglio Input_Pallet'!$G$22*'Mezzi di trasporto'!D31,'Foglio Input_Pallet'!$I$22='menu tendina'!$A$8,'Foglio Input_Pallet'!$G$21*'Foglio Input_Pallet'!$G$22*'Mezzi di trasporto'!E31,'Foglio Input_Pallet'!$I$22='menu tendina'!$A$9,'Foglio Input_Pallet'!$G$21*'Foglio Input_Pallet'!$G$22*'Mezzi di trasporto'!F31,'Foglio Input_Pallet'!$I$22='menu tendina'!$A$10,'Foglio Input_Pallet'!$G$21*'Foglio Input_Pallet'!$G$22*'Mezzi di trasporto'!G31)+_xlfn.IFS('Foglio Input_Pallet'!$I$24='menu tendina'!$A$6,'Foglio Input_Pallet'!$G$23*'Foglio Input_Pallet'!$G$24*'Mezzi di trasporto'!C31,'Foglio Input_Pallet'!$I$24='menu tendina'!$A$7,'Foglio Input_Pallet'!$G$23*'Foglio Input_Pallet'!$G$24*'Mezzi di trasporto'!D31,'Foglio Input_Pallet'!$I$24='menu tendina'!$A$8,'Foglio Input_Pallet'!$G$23*'Foglio Input_Pallet'!$G$24*'Mezzi di trasporto'!E31,'Foglio Input_Pallet'!$I$24='menu tendina'!$A$9,'Foglio Input_Pallet'!$G$23*'Foglio Input_Pallet'!$G$24*'Mezzi di trasporto'!F31,'Foglio Input_Pallet'!$I$24='menu tendina'!$A$10,'Foglio Input_Pallet'!$G$23*'Foglio Input_Pallet'!$CG$24*'Mezzi di trasporto'!G31)+_xlfn.IFS('Foglio Input_Pallet'!$I$26='menu tendina'!$A$6,'Foglio Input_Pallet'!$G$25*'Foglio Input_Pallet'!$G$26*'Mezzi di trasporto'!C31,'Foglio Input_Pallet'!$I$26='menu tendina'!$A$7,'Foglio Input_Pallet'!$G$25*'Foglio Input_Pallet'!$G$26*'Mezzi di trasporto'!D31,'Foglio Input_Pallet'!$I$26='menu tendina'!$A$8,'Foglio Input_Pallet'!$G$25*'Foglio Input_Pallet'!$G$26*'Mezzi di trasporto'!E31,'Foglio Input_Pallet'!$I$26='menu tendina'!$A$9,'Foglio Input_Pallet'!$G$25*'Foglio Input_Pallet'!$G$26*'Mezzi di trasporto'!F31,'Foglio Input_Pallet'!$I$26='menu tendina'!$A$10,'Foglio Input_Pallet'!$G$25*'Foglio Input_Pallet'!$G$26*'Mezzi di trasporto'!G31))+_xlfn.IFS('Foglio Input_Pallet'!$I$29='menu tendina'!$A$6,('Foglio Input_Pallet'!$G$27+'Foglio Input_Pallet'!$G$28)*'Foglio Input_Pallet'!$G$29*'Mezzi di trasporto'!C31,'Foglio Input_Pallet'!$I$29='menu tendina'!$A$7,('Foglio Input_Pallet'!$G$27+'Foglio Input_Pallet'!$G$28)*'Foglio Input_Pallet'!$G$29*'Mezzi di trasporto'!D31,'Foglio Input_Pallet'!$I$26='menu tendina'!$A$8,('Foglio Input_Pallet'!$G$27+'Foglio Input_Pallet'!$G$28)*'Foglio Input_Pallet'!$G$29*'Mezzi di trasporto'!E31,'Foglio Input_Pallet'!$I$26='menu tendina'!$A$9,('Foglio Input_Pallet'!$G$27+'Foglio Input_Pallet'!$G$28)*'Foglio Input_Pallet'!$G$29*'Mezzi di trasporto'!F31,'Foglio Input_Pallet'!$I$26='menu tendina'!$A$10,('Foglio Input_Pallet'!$G$27+'Foglio Input_Pallet'!$G$28)*'Foglio Input_Pallet'!$G$29*'Mezzi di trasporto'!G31)+_xlfn.IFS('Foglio Input_Pallet'!$I$31='menu tendina'!$A$6,'Foglio Input_Pallet'!$G$30*'Foglio Input_Pallet'!$G$31*'Mezzi di trasporto'!C31,'Foglio Input_Pallet'!$I$31='menu tendina'!$A$7,'Foglio Input_Pallet'!$G$30*'Foglio Input_Pallet'!$G$31*'Mezzi di trasporto'!D31,'Foglio Input_Pallet'!$I$31='menu tendina'!$A$8,'Foglio Input_Pallet'!$G$30*'Foglio Input_Pallet'!$G$31*'Mezzi di trasporto'!E31,'Foglio Input_Pallet'!$I$31='menu tendina'!$A$9,'Foglio Input_Pallet'!$G$30*'Foglio Input_Pallet'!$G$31*'Mezzi di trasporto'!F31,'Foglio Input_Pallet'!$I$31='menu tendina'!$A$10,'Foglio Input_Pallet'!$G$30*'Foglio Input_Pallet'!$G$31*'Mezzi di trasporto'!G31) -> 0.4388471339
B20: Land use | C20: Pt | D20: 507.8374611 | E20: ='Foglio Input_Pallet'!$G$21*'Materie prime'!C32/'Foglio Input_Pallet'!$G$15 -> 0 | F20: ='Foglio Input_Pallet'!$G$23*'Materie prime'!D32/'Foglio Input_Pallet'!$G$15 -> 465.6398875 | G20: ='Foglio Input_Pallet'!$G$25*'Materie prime'!E32/'Foglio Input_Pallet'!$G$15 -> 38.63847091 | H20: ='Foglio Input_Pallet'!$G$27*'Materie prime'!F32/'Foglio Input_Pallet'!$G$15 -> 0.1265402086 | I20: ='Foglio Input_Pallet'!$G$28*'Materie prime'!G32/'Foglio Input_Pallet'!$G$15 -> 0 | J20: ='Foglio Input_Pallet'!$G$30*'Materie prime'!H32/'Foglio Input_Pallet'!$G$15 -> 0 | K20: =(1000/'Foglio Input_Pallet'!$G$15)*(_xlfn.IFS('Foglio Input_Pallet'!$I$22='menu tendina'!$A$6,'Foglio Input_Pallet'!$G$21*'Foglio Input_Pallet'!$G$22*'Mezzi di trasporto'!C32,'Foglio Input_Pallet'!$I$22='menu tendina'!$A$7,'Foglio Input_Pallet'!$G$21*'Foglio Input_Pallet'!$G$22*'Mezzi di trasporto'!D32,'Foglio Input_Pallet'!$I$22='menu tendina'!$A$8,'Foglio Input_Pallet'!$G$21*'Foglio Input_Pallet'!$G$22*'Mezzi di trasporto'!E32,'Foglio Input_Pallet'!$I$22='menu tendina'!$A$9,'Foglio Input_Pallet'!$G$21*'Foglio Input_Pallet'!$G$22*'Mezzi di trasporto'!F32,'Foglio Input_Pallet'!$I$22='menu tendina'!$A$10,'Foglio Input_Pallet'!$G$21*'Foglio Input_Pallet'!$G$22*'Mezzi di trasporto'!G32)+_xlfn.IFS('Foglio Input_Pallet'!$I$24='menu tendina'!$A$6,'Foglio Input_Pallet'!$G$23*'Foglio Input_Pallet'!$G$24*'Mezzi di trasporto'!C32,'Foglio Input_Pallet'!$I$24='menu tendina'!$A$7,'Foglio Input_Pallet'!$G$23*'Foglio Input_Pallet'!$G$24*'Mezzi di trasporto'!D32,'Foglio Input_Pallet'!$I$24='menu tendina'!$A$8,'Foglio Input_Pallet'!$G$23*'Foglio Input_Pallet'!$G$24*'Mezzi di trasporto'!E32,'Foglio Input_Pallet'!$I$24='menu tendina'!$A$9,'Foglio Input_Pallet'!$G$23*'Foglio Input_Pallet'!$G$24*'Mezzi di trasporto'!F32,'Foglio Input_Pallet'!$I$24='menu tendina'!$A$10,'Foglio Input_Pallet'!$G$23*'Foglio Input_Pallet'!$CG$24*'Mezzi di trasporto'!G32)+_xlfn.IFS('Foglio Input_Pallet'!$I$26='menu tendina'!$A$6,'Foglio Input_Pallet'!$G$25*'Foglio Input_Pallet'!$G$26*'Mezzi di trasporto'!C32,'Foglio Input_Pallet'!$I$26='menu tendina'!$A$7,'Foglio Input_Pallet'!$G$25*'Foglio Input_Pallet'!$G$26*'Mezzi di trasporto'!D32,'Foglio Input_Pallet'!$I$26='menu tendina'!$A$8,'Foglio Input_Pallet'!$G$25*'Foglio Input_Pallet'!$G$26*'Mezzi di trasporto'!E32,'Foglio Input_Pallet'!$I$26='menu tendina'!$A$9,'Foglio Input_Pallet'!$G$25*'Foglio Input_Pallet'!$G$26*'Mezzi di trasporto'!F32,'Foglio Input_Pallet'!$I$26='menu tendina'!$A$10,'Foglio Input_Pallet'!$G$25*'Foglio Input_Pallet'!$G$26*'Mezzi di trasporto'!G32))+_xlfn.IFS('Foglio Input_Pallet'!$I$29='menu tendina'!$A$6,('Foglio Input_Pallet'!$G$27+'Foglio Input_Pallet'!$G$28)*'Foglio Input_Pallet'!$G$29*'Mezzi di trasporto'!C32,'Foglio Input_Pallet'!$I$29='menu tendina'!$A$7,('Foglio Input_Pallet'!$G$27+'Foglio Input_Pallet'!$G$28)*'Foglio Input_Pallet'!$G$29*'Mezzi di trasporto'!D32,'Foglio Input_Pallet'!$I$26='menu tendina'!$A$8,('Foglio Input_Pallet'!$G$27+'Foglio Input_Pallet'!$G$28)*'Foglio Input_Pallet'!$G$29*'Mezzi di trasporto'!E32,'Foglio Input_Pallet'!$I$26='menu tendina'!$A$9,('Foglio Input_Pallet'!$G$27+'Foglio Input_Pallet'!$G$28)*'Foglio Input_Pallet'!$G$29*'Mezzi di trasporto'!F32,'Foglio Input_Pallet'!$I$26='menu tendina'!$A$10,('Foglio Input_Pallet'!$G$27+'Foglio Input_Pallet'!$G$28)*'Foglio Input_Pallet'!$G$29*'Mezzi di trasporto'!G32)+_xlfn.IFS('Foglio Input_Pallet'!$I$31='menu tendina'!$A$6,'Foglio Input_Pallet'!$G$30*'Foglio Input_Pallet'!$G$31*'Mezzi di trasporto'!C32,'Foglio Input_Pallet'!$I$31='menu tendina'!$A$7,'Foglio Input_Pallet'!$G$30*'Foglio Input_Pallet'!$G$31*'Mezzi di trasporto'!D32,'Foglio Input_Pallet'!$I$31='menu tendina'!$A$8,'Foglio Input_Pallet'!$G$30*'Foglio Input_Pallet'!$G$31*'Mezzi di trasporto'!E32,'Foglio Input_Pallet'!$I$31='menu tendina'!$A$9,'Foglio Input_Pallet'!$G$30*'Foglio Input_Pallet'!$G$31*'Mezzi di trasporto'!F32,'Foglio Input_Pallet'!$I$31='menu tendina'!$A$10,'Foglio Input_Pallet'!$G$30*'Foglio Input_Pallet'!$G$31*'Mezzi di trasporto'!G32) -> 3.432562464
B21: Water scarcity | C21: m3 depriv. | D21: 0.0923844954 | E21: ='Foglio Input_Pallet'!$G$21*'Materie prime'!C33/'Foglio Input_Pallet'!$G$15 -> 0 | F21: ='Foglio Input_Pallet'!$G$23*'Materie prime'!D33/'Foglio Input_Pallet'!$G$15 -> 0.02060965668 | G21: ='Foglio Input_Pallet'!$G$25*'Materie prime'!E33/'Foglio Input_Pallet'!$G$15 -> 0.05926753467 | H21: ='Foglio Input_Pallet'!$G$27*'Materie prime'!F33/'Foglio Input_Pallet'!$G$15 -> 0.006112726636 | I21: ='Foglio Input_Pallet'!$G$28*'Materie prime'!G33/'Foglio Input_Pallet'!$G$15 -> 0 | J21: ='Foglio Input_Pallet'!$G$30*'Materie prime'!H33/'Foglio Input_Pallet'!$G$15 -> 0 | K21: =(1000/'Foglio Input_Pallet'!$G$15)*(_xlfn.IFS('Foglio Input_Pallet'!$I$22='menu tendina'!$A$6,'Foglio Input_Pallet'!$G$21*'Foglio Input_Pallet'!$G$22*'Mezzi di trasporto'!C33,'Foglio Input_Pallet'!$I$22='menu tendina'!$A$7,'Foglio Input_Pallet'!$G$21*'Foglio Input_Pallet'!$G$22*'Mezzi di trasporto'!D33,'Foglio Input_Pallet'!$I$22='menu tendina'!$A$8,'Foglio Input_Pallet'!$G$21*'Foglio Input_Pallet'!$G$22*'Mezzi di trasporto'!E33,'Foglio Input_Pallet'!$I$22='menu tendina'!$A$9,'Foglio Input_Pallet'!$G$21*'Foglio Input_Pallet'!$G$22*'Mezzi di trasporto'!F33,'Foglio Input_Pallet'!$I$22='menu tendina'!$A$10,'Foglio Input_Pallet'!$G$21*'Foglio Input_Pallet'!$G$22*'Mezzi di trasporto'!G33)+_xlfn.IFS('Foglio Input_Pallet'!$I$24='menu tendina'!$A$6,'Foglio Input_Pallet'!$G$23*'Foglio Input_Pallet'!$G$24*'Mezzi di trasporto'!C33,'Foglio Input_Pallet'!$I$24='menu tendina'!$A$7,'Foglio Input_Pallet'!$G$23*'Foglio Input_Pallet'!$G$24*'Mezzi di trasporto'!D33,'Foglio Input_Pallet'!$I$24='menu tendina'!$A$8,'Foglio Input_Pallet'!$G$23*'Foglio Input_Pallet'!$G$24*'Mezzi di trasporto'!E33,'Foglio Input_Pallet'!$I$24='menu tendina'!$A$9,'Foglio Input_Pallet'!$G$23*'Foglio Input_Pallet'!$G$24*'Mezzi di trasporto'!F33,'Foglio Input_Pallet'!$I$24='menu tendina'!$A$10,'Foglio Input_Pallet'!$G$23*'Foglio Input_Pallet'!$CG$24*'Mezzi di trasporto'!G33)+_xlfn.IFS('Foglio Input_Pallet'!$I$26='menu tendina'!$A$6,'Foglio Input_Pallet'!$G$25*'Foglio Input_Pallet'!$G$26*'Mezzi di trasporto'!C33,'Foglio Input_Pallet'!$I$26='menu tendina'!$A$7,'Foglio Input_Pallet'!$G$25*'Foglio Input_Pallet'!$G$26*'Mezzi di trasporto'!D33,'Foglio Input_Pallet'!$I$26='menu tendina'!$A$8,'Foglio Input_Pallet'!$G$25*'Foglio Input_Pallet'!$G$26*'Mezzi di trasporto'!E33,'Foglio Input_Pallet'!$I$26='menu tendina'!$A$9,'Foglio Input_Pallet'!$G$25*'Foglio Input_Pallet'!$G$26*'Mezzi di trasporto'!F33,'Foglio Input_Pallet'!$I$26='menu tendina'!$A$10,'Foglio Input_Pallet'!$G$25*'Foglio Input_Pallet'!$G$26*'Mezzi di trasporto'!G33))+_xlfn.IFS('Foglio Input_Pallet'!$I$29='menu tendina'!$A$6,('Foglio Input_Pallet'!$G$27+'Foglio Input_Pallet'!$G$28)*'Foglio Input_Pallet'!$G$29*'Mezzi di trasporto'!C33,'Foglio Input_Pallet'!$I$29='menu tendina'!$A$7,('Foglio Input_Pallet'!$G$27+'Foglio Input_Pallet'!$G$28)*'Foglio Input_Pallet'!$G$29*'Mezzi di trasporto'!D33,'Foglio Input_Pallet'!$I$26='menu tendina'!$A$8,('Foglio Input_Pallet'!$G$27+'Foglio Input_Pallet'!$G$28)*'Foglio Input_Pallet'!$G$29*'Mezzi di trasporto'!E33,'Foglio Input_Pallet'!$I$26='menu tendina'!$A$9,('Foglio Input_Pallet'!$G$27+'Foglio Input_Pallet'!$G$28)*'Foglio Input_Pallet'!$G$29*'Mezzi di trasporto'!F33,'Foglio Input_Pallet'!$I$26='menu tendina'!$A$10,('Foglio Input_Pallet'!$G$27+'Foglio Input_Pallet'!$G$28)*'Foglio Input_Pallet'!$G$29*'Mezzi di trasporto'!G33)+_xlfn.IFS('Foglio Input_Pallet'!$I$31='menu tendina'!$A$6,'Foglio Input_Pallet'!$G$30*'Foglio Input_Pallet'!$G$31*'Mezzi di trasporto'!C33,'Foglio Input_Pallet'!$I$31='menu tendina'!$A$7,'Foglio Input_Pallet'!$G$30*'Foglio Input_Pallet'!$G$31*'Mezzi di trasporto'!D33,'Foglio Input_Pallet'!$I$31='menu tendina'!$A$8,'Foglio Input_Pallet'!$G$30*'Foglio Input_Pallet'!$G$31*'Mezzi di trasporto'!E33,'Foglio Input_Pallet'!$I$31='menu tendina'!$A$9,'Foglio Input_Pallet'!$G$30*'Foglio Input_Pallet'!$G$31*'Mezzi di trasporto'!F33,'Foglio Input_Pallet'!$I$31='menu tendina'!$A$10,'Foglio Input_Pallet'!$G$30*'Foglio Input_Pallet'!$G$31*'Mezzi di trasporto'!G33) -> 0.006394577412
B22: Resource use, energy carriers | C22: MJ | D22: 6.688088321 | E22: ='Foglio Input_Pallet'!$G$21*'Materie prime'!C34/'Foglio Input_Pallet'!$G$15 -> 0 | F22: ='Foglio Input_Pallet'!$G$23*'Materie prime'!D34/'Foglio Input_Pallet'!$G$15 -> 1.703072686 | G22: ='Foglio Input_Pallet'!$G$25*'Materie prime'!E34/'Foglio Input_Pallet'!$G$15 -> 2.840402205 | H22: ='Foglio Input_Pallet'!$G$27*'Materie prime'!F34/'Foglio Input_Pallet'!$G$15 -> 0.2075042864 | I22: ='Foglio Input_Pallet'!$G$28*'Materie prime'!G34/'Foglio Input_Pallet'!$G$15 -> 0 | J22: ='Foglio Input_Pallet'!$G$30*'Materie prime'!H34/'Foglio Input_Pallet'!$G$15 -> 0 | K22: =(1000/'Foglio Input_Pallet'!$G$15)*(_xlfn.IFS('Foglio Input_Pallet'!$I$22='menu tendina'!$A$6,'Foglio Input_Pallet'!$G$21*'Foglio Input_Pallet'!$G$22*'Mezzi di trasporto'!C34,'Foglio Input_Pallet'!$I$22='menu tendina'!$A$7,'Foglio Input_Pallet'!$G$21*'Foglio Input_Pallet'!$G$22*'Mezzi di trasporto'!D34,'Foglio Input_Pallet'!$I$22='menu tendina'!$A$8,'Foglio Input_Pallet'!$G$21*'Foglio Input_Pallet'!$G$22*'Mezzi di trasporto'!E34,'Foglio Input_Pallet'!$I$22='menu tendina'!$A$9,'Foglio Input_Pallet'!$G$21*'Foglio Input_Pallet'!$G$22*'Mezzi di trasporto'!F34,'Foglio Input_Pallet'!$I$22='menu tendina'!$A$10,'Foglio Input_Pallet'!$G$21*'Foglio Input_Pallet'!$G$22*'Mezzi di trasporto'!G34)+_xlfn.IFS('Foglio Input_Pallet'!$I$24='menu tendina'!$A$6,'Foglio Input_Pallet'!$G$23*'Foglio Input_Pallet'!$G$24*'Mezzi di trasporto'!C34,'Foglio Input_Pallet'!$I$24='menu tendina'!$A$7,'Foglio Input_Pallet'!$G$23*'Foglio Input_Pallet'!$G$24*'Mezzi di trasporto'!D34,'Foglio Input_Pallet'!$I$24='menu tendina'!$A$8,'Foglio Input_Pallet'!$G$23*'Foglio Input_Pallet'!$G$24*'Mezzi di trasporto'!E34,'Foglio Input_Pallet'!$I$24='menu tendina'!$A$9,'Foglio Input_Pallet'!$G$23*'Foglio Input_Pallet'!$G$24*'Mezzi di trasporto'!F34,'Foglio Input_Pallet'!$I$24='menu tendina'!$A$10,'Foglio Input_Pallet'!$G$23*'Foglio Input_Pallet'!$CG$24*'Mezzi di trasporto'!G34)+_xlfn.IFS('Foglio Input_Pallet'!$I$26='menu tendina'!$A$6,'Foglio Input_Pallet'!$G$25*'Foglio Input_Pallet'!$G$26*'Mezzi di trasporto'!C34,'Foglio Input_Pallet'!$I$26='menu tendina'!$A$7,'Foglio Input_Pallet'!$G$25*'Foglio Input_Pallet'!$G$26*'Mezzi di trasporto'!D34,'Foglio Input_Pallet'!$I$26='menu tendina'!$A$8,'Foglio Input_Pallet'!$G$25*'Foglio Input_Pallet'!$G$26*'Mezzi di trasporto'!E34,'Foglio Input_Pallet'!$I$26='menu tendina'!$A$9,'Foglio Input_Pallet'!$G$25*'Foglio Input_Pallet'!$G$26*'Mezzi di trasporto'!F34,'Foglio Input_Pallet'!$I$26='menu tendina'!$A$10,'Foglio Input_Pallet'!$G$25*'Foglio Input_Pallet'!$G$26*'Mezzi di trasporto'!G34))+_xlfn.IFS('Foglio Input_Pallet'!$I$29='menu tendina'!$A$6,('Foglio Input_Pallet'!$G$27+'Foglio Input_Pallet'!$G$28)*'Foglio Input_Pallet'!$G$29*'Mezzi di trasporto'!C34,'Foglio Input_Pallet'!$I$29='menu tendina'!$A$7,('Foglio Input_Pallet'!$G$27+'Foglio Input_Pallet'!$G$28)*'Foglio Input_Pallet'!$G$29*'Mezzi di trasporto'!D34,'Foglio Input_Pallet'!$I$26='menu tendina'!$A$8,('Foglio Input_Pallet'!$G$27+'Foglio Input_Pallet'!$G$28)*'Foglio Input_Pallet'!$G$29*'Mezzi di trasporto'!E34,'Foglio Input_Pallet'!$I$26='menu tendina'!$A$9,('Foglio Input_Pallet'!$G$27+'Foglio Input_Pallet'!$G$28)*'Foglio Input_Pallet'!$G$29*'Mezzi di trasporto'!F34,'Foglio Input_Pallet'!$I$26='menu tendina'!$A$10,('Foglio Input_Pallet'!$G$27+'Foglio Input_Pallet'!$G$28)*'Foglio Input_Pallet'!$G$29*'Mezzi di trasporto'!G34)+_xlfn.IFS('Foglio Input_Pallet'!$I$31='menu tendina'!$A$6,'Foglio Input_Pallet'!$G$30*'Foglio Input_Pallet'!$G$31*'Mezzi di trasporto'!C34,'Foglio Input_Pallet'!$I$31='menu tendina'!$A$7,'Foglio Input_Pallet'!$G$30*'Foglio Input_Pallet'!$G$31*'Mezzi di trasporto'!D34,'Foglio Input_Pallet'!$I$31='menu tendina'!$A$8,'Foglio Input_Pallet'!$G$30*'Foglio Input_Pallet'!$G$31*'Mezzi di trasporto'!E34,'Foglio Input_Pallet'!$I$31='menu tendina'!$A$9,'Foglio Input_Pallet'!$G$30*'Foglio Input_Pallet'!$G$31*'Mezzi di trasporto'!F34,'Foglio Input_Pallet'!$I$31='menu tendina'!$A$10,'Foglio Input_Pallet'!$G$30*'Foglio Input_Pallet'!$G$31*'Mezzi di trasporto'!G34) -> 1.937109143
B23: Resource use, mineral and metals | C23: kg Sb eq | D23: 1.953312445e-06 | E23: ='Foglio Input_Pallet'!$G$21*'Materie prime'!C35/'Foglio Input_Pallet'!$G$15 -> 0 | F23: ='Foglio Input_Pallet'!$G$23*'Materie prime'!D35/'Foglio Input_Pallet'!$G$15 -> 4.118528523e-07 | G23: ='Foglio Input_Pallet'!$G$25*'Materie prime'!E35/'Foglio Input_Pallet'!$G$15 -> 1.083730075e-06 | H23: ='Foglio Input_Pallet'!$G$27*'Materie prime'!F35/'Foglio Input_Pallet'!$G$15 -> 1.661726727e-07 | I23: ='Foglio Input_Pallet'!$G$28*'Materie prime'!G35/'Foglio Input_Pallet'!$G$15 -> 0 | J23: ='Foglio Input_Pallet'!$G$30*'Materie prime'!H35/'Foglio Input_Pallet'!$G$15 -> 0 | K23: =(1000/'Foglio Input_Pallet'!$G$15)*(_xlfn.IFS('Foglio Input_Pallet'!$I$22='menu tendina'!$A$6,'Foglio Input_Pallet'!$G$21*'Foglio Input_Pallet'!$G$22*'Mezzi di trasporto'!C35,'Foglio Input_Pallet'!$I$22='menu tendina'!$A$7,'Foglio Input_Pallet'!$G$21*'Foglio Input_Pallet'!$G$22*'Mezzi di trasporto'!D35,'Foglio Input_Pallet'!$I$22='menu tendina'!$A$8,'Foglio Input_Pallet'!$G$21*'Foglio Input_Pallet'!$G$22*'Mezzi di trasporto'!E35,'Foglio Input_Pallet'!$I$22='menu tendina'!$A$9,'Foglio Input_Pallet'!$G$21*'Foglio Input_Pallet'!$G$22*'Mezzi di trasporto'!F35,'Foglio Input_Pallet'!$I$22='menu tendina'!$A$10,'Foglio Input_Pallet'!$G$21*'Foglio Input_Pallet'!$G$22*'Mezzi di trasporto'!G35)+_xlfn.IFS('Foglio Input_Pallet'!$I$24='menu tendina'!$A$6,'Foglio Input_Pallet'!$G$23*'Foglio Input_Pallet'!$G$24*'Mezzi di trasporto'!C35,'Foglio Input_Pallet'!$I$24='menu tendina'!$A$7,'Foglio Input_Pallet'!$G$23*'Foglio Input_Pallet'!$G$24*'Mezzi di trasporto'!D35,'Foglio Input_Pallet'!$I$24='menu tendina'!$A$8,'Foglio Input_Pallet'!$G$23*'Foglio Input_Pallet'!$G$24*'Mezzi di trasporto'!E35,'Foglio Input_Pallet'!$I$24='menu tendina'!$A$9,'Foglio Input_Pallet'!$G$23*'Foglio Input_Pallet'!$G$24*'Mezzi di trasporto'!F35,'Foglio Input_Pallet'!$I$24='menu tendina'!$A$10,'Foglio Input_Pallet'!$G$23*'Foglio Input_Pallet'!$CG$24*'Mezzi di trasporto'!G35)+_xlfn.IFS('Foglio Input_Pallet'!$I$26='menu tendina'!$A$6,'Foglio Input_Pallet'!$G$25*'Foglio Input_Pallet'!$G$26*'Mezzi di trasporto'!C35,'Foglio Input_Pallet'!$I$26='menu tendina'!$A$7,'Foglio Input_Pallet'!$G$25*'Foglio Input_Pallet'!$G$26*'Mezzi di trasporto'!D35,'Foglio Input_Pallet'!$I$26='menu tendina'!$A$8,'Foglio Input_Pallet'!$G$25*'Foglio Input_Pallet'!$G$26*'Mezzi di trasporto'!E35,'Foglio Input_Pallet'!$I$26='menu tendina'!$A$9,'Foglio Input_Pallet'!$G$25*'Foglio Input_Pallet'!$G$26*'Mezzi di trasporto'!F35,'Foglio Input_Pallet'!$I$26='menu tendina'!$A$10,'Foglio Input_Pallet'!$G$25*'Foglio Input_Pallet'!$G$26*'Mezzi di trasporto'!G35))+_xlfn.IFS('Foglio Input_Pallet'!$I$29='menu tendina'!$A$6,('Foglio Input_Pallet'!$G$27+'Foglio Input_Pallet'!$G$28)*'Foglio Input_Pallet'!$G$29*'Mezzi di trasporto'!C35,'Foglio Input_Pallet'!$I$29='menu tendina'!$A$7,('Foglio Input_Pallet'!$G$27+'Foglio Input_Pallet'!$G$28)*'Foglio Input_Pallet'!$G$29*'Mezzi di trasporto'!D35,'Foglio Input_Pallet'!$I$26='menu tendina'!$A$8,('Foglio Input_Pallet'!$G$27+'Foglio Input_Pallet'!$G$28)*'Foglio Input_Pallet'!$G$29*'Mezzi di trasporto'!E35,'Foglio Input_Pallet'!$I$26='menu tendina'!$A$9,('Foglio Input_Pallet'!$G$27+'Foglio Input_Pallet'!$G$28)*'Foglio Input_Pallet'!$G$29*'Mezzi di trasporto'!F35,'Foglio Input_Pallet'!$I$26='menu tendina'!$A$10,('Foglio Input_Pallet'!$G$27+'Foglio Input_Pallet'!$G$28)*'Foglio Input_Pallet'!$G$29*'Mezzi di trasporto'!G35)+_xlfn.IFS('Foglio Input_Pallet'!$I$31='menu tendina'!$A$6,'Foglio Input_Pallet'!$G$30*'Foglio Input_Pallet'!$G$31*'Mezzi di trasporto'!C35,'Foglio Input_Pallet'!$I$31='menu tendina'!$A$7,'Foglio Input_Pallet'!$G$30*'Foglio Input_Pallet'!$G$31*'Mezzi di trasporto'!D35,'Foglio Input_Pallet'!$I$31='menu tendina'!$A$8,'Foglio Input_Pallet'!$G$30*'Foglio Input_Pallet'!$G$31*'Mezzi di trasporto'!E35,'Foglio Input_Pallet'!$I$31='menu tendina'!$A$9,'Foglio Input_Pallet'!$G$30*'Foglio Input_Pallet'!$G$31*'Mezzi di trasporto'!F35,'Foglio Input_Pallet'!$I$31='menu tendina'!$A$10,'Foglio Input_Pallet'!$G$30*'Foglio Input_Pallet'!$G$31*'Mezzi di trasporto'!G35) -> 2.915568457e-07
B24: Climate change - fossil | C24: kg CO2 eq | D24: 0.4002364951 | E24: ='Foglio Input_Pallet'!$G$21*'Materie prime'!C36/'Foglio Input_Pallet'!$G$15 -> 0 | F24: ='Foglio Input_Pallet'!$G$23*'Materie prime'!D36/'Foglio Input_Pallet'!$G$15 -> 0.1368987331 | G24: ='Foglio Input_Pallet'!$G$25*'Materie prime'!E36/'Foglio Input_Pallet'!$G$15 -> 0.1218839399 | H24: ='Foglio Input_Pallet'!$G$27*'Materie prime'!F36/'Foglio Input_Pallet'!$G$15 -> 0.01814219318 | I24: ='Foglio Input_Pallet'!$G$28*'Materie prime'!G36/'Foglio Input_Pallet'!$G$15 -> 0 | J24: ='Foglio Input_Pallet'!$G$30*'Materie prime'!H36/'Foglio Input_Pallet'!$G$15 -> 0 | K24: =(1000/'Foglio Input_Pallet'!$G$15)*(_xlfn.IFS('Foglio Input_Pallet'!$I$22='menu tendina'!$A$6,'Foglio Input_Pallet'!$G$21*'Foglio Input_Pallet'!$G$22*'Mezzi di trasporto'!C36,'Foglio Input_Pallet'!$I$22='menu tendina'!$A$7,'Foglio Input_Pallet'!$G$21*'Foglio Input_Pallet'!$G$22*'Mezzi di trasporto'!D36,'Foglio Input_Pallet'!$I$22='menu tendina'!$A$8,'Foglio Input_Pallet'!$G$21*'Foglio Input_Pallet'!$G$22*'Mezzi di trasporto'!E36,'Foglio Input_Pallet'!$I$22='menu tendina'!$A$9,'Foglio Input_Pallet'!$G$21*'Foglio Input_Pallet'!$G$22*'Mezzi di trasporto'!F36,'Foglio Input_Pallet'!$I$22='menu tendina'!$A$10,'Foglio Input_Pallet'!$G$21*'Foglio Input_Pallet'!$G$22*'Mezzi di trasporto'!G36)+_xlfn.IFS('Foglio Input_Pallet'!$I$24='menu tendina'!$A$6,'Foglio Input_Pallet'!$G$23*'Foglio Input_Pallet'!$G$24*'Mezzi di trasporto'!C36,'Foglio Input_Pallet'!$I$24='menu tendina'!$A$7,'Foglio Input_Pallet'!$G$23*'Foglio Input_Pallet'!$G$24*'Mezzi di trasporto'!D36,'Foglio Input_Pallet'!$I$24='menu tendina'!$A$8,'Foglio Input_Pallet'!$G$23*'Foglio Input_Pallet'!$G$24*'Mezzi di trasporto'!E36,'Foglio Input_Pallet'!$I$24='menu tendina'!$A$9,'Foglio Input_Pallet'!$G$23*'Foglio Input_Pallet'!$G$24*'Mezzi di trasporto'!F36,'Foglio Input_Pallet'!$I$24='menu tendina'!$A$10,'Foglio Input_Pallet'!$G$23*'Foglio Input_Pallet'!$CG$24*'Mezzi di trasporto'!G36)+_xlfn.IFS('Foglio Input_Pallet'!$I$26='menu tendina'!$A$6,'Foglio Input_Pallet'!$G$25*'Foglio Input_Pallet'!$G$26*'Mezzi di trasporto'!C36,'Foglio Input_Pallet'!$I$26='menu tendina'!$A$7,'Foglio Input_Pallet'!$G$25*'Foglio Input_Pallet'!$G$26*'Mezzi di trasporto'!D36,'Foglio Input_Pallet'!$I$26='menu tendina'!$A$8,'Foglio Input_Pallet'!$G$25*'Foglio Input_Pallet'!$G$26*'Mezzi di trasporto'!E36,'Foglio Input_Pallet'!$I$26='menu tendina'!$A$9,'Foglio Input_Pallet'!$G$25*'Foglio Input_Pallet'!$G$26*'Mezzi di trasporto'!F36,'Foglio Input_Pallet'!$I$26='menu tendina'!$A$10,'Foglio Input_Pallet'!$G$25*'Foglio Input_Pallet'!$G$26*'Mezzi di trasporto'!G36))+_xlfn.IFS('Foglio Input_Pallet'!$I$29='menu tendina'!$A$6,('Foglio Input_Pallet'!$G$27+'Foglio Input_Pallet'!$G$28)*'Foglio Input_Pallet'!$G$29*'Mezzi di trasporto'!C36,'Foglio Input_Pallet'!$I$29='menu tendina'!$A$7,('Foglio Input_Pallet'!$G$27+'Foglio Input_Pallet'!$G$28)*'Foglio Input_Pallet'!$G$29*'Mezzi di trasporto'!D36,'Foglio Input_Pallet'!$I$26='menu tendina'!$A$8,('Foglio Input_Pallet'!$G$27+'Foglio Input_Pallet'!$G$28)*'Foglio Input_Pallet'!$G$29*'Mezzi di trasporto'!E36,'Foglio Input_Pallet'!$I$26='menu tendina'!$A$9,('Foglio Input_Pallet'!$G$27+'Foglio Input_Pallet'!$G$28)*'Foglio Input_Pallet'!$G$29*'Mezzi di trasporto'!F36,'Foglio Input_Pallet'!$I$26='menu tendina'!$A$10,('Foglio Input_Pallet'!$G$27+'Foglio Input_Pallet'!$G$28)*'Foglio Input_Pallet'!$G$29*'Mezzi di trasporto'!G36)+_xlfn.IFS('Foglio Input_Pallet'!$I$31='menu tendina'!$A$6,'Foglio Input_Pallet'!$G$30*'Foglio Input_Pallet'!$G$31*'Mezzi di trasporto'!C36,'Foglio Input_Pallet'!$I$31='menu tendina'!$A$7,'Foglio Input_Pallet'!$G$30*'Foglio Input_Pallet'!$G$31*'Mezzi di trasporto'!D36,'Foglio Input_Pallet'!$I$31='menu tendina'!$A$8,'Foglio Input_Pallet'!$G$30*'Foglio Input_Pallet'!$G$31*'Mezzi di trasporto'!E36,'Foglio Input_Pallet'!$I$31='menu tendina'!$A$9,'Foglio Input_Pallet'!$G$30*'Foglio Input_Pallet'!$G$31*'Mezzi di trasporto'!F36,'Foglio Input_Pallet'!$I$31='menu tendina'!$A$10,'Foglio Input_Pallet'!$G$30*'Foglio Input_Pallet'!$G$31*'Mezzi di trasporto'!G36) -> 0.1233116289
B25: Climate change - biogenic | C25: kg CO2 eq | D25: 0.001794672131 | E25: ='Foglio Input_Pallet'!$G$21*'Materie prime'!C37/'Foglio Input_Pallet'!$G$15 -> 0 | F25: ='Foglio Input_Pallet'!$G$23*'Materie prime'!D37/'Foglio Input_Pallet'!$G$15 -> 0.000477954608 | G25: ='Foglio Input_Pallet'!$G$25*'Materie prime'!E37/'Foglio Input_Pallet'!$G$15 -> 0.001238790755 | H25: ='Foglio Input_Pallet'!$G$27*'Materie prime'!F37/'Foglio Input_Pallet'!$G$15 -> 3.568186909e-05 | I25: ='Foglio Input_Pallet'!$G$28*'Materie prime'!G37/'Foglio Input_Pallet'!$G$15 -> 0 | J25: ='Foglio Input_Pallet'!$G$30*'Materie prime'!H37/'Foglio Input_Pallet'!$G$15 -> 0 | K25: =(1000/'Foglio Input_Pallet'!$G$15)*(_xlfn.IFS('Foglio Input_Pallet'!$I$22='menu tendina'!$A$6,'Foglio Input_Pallet'!$G$21*'Foglio Input_Pallet'!$G$22*'Mezzi di trasporto'!C37,'Foglio Input_Pallet'!$I$22='menu tendina'!$A$7,'Foglio Input_Pallet'!$G$21*'Foglio Input_Pallet'!$G$22*'Mezzi di trasporto'!D37,'Foglio Input_Pallet'!$I$22='menu tendina'!$A$8,'Foglio Input_Pallet'!$G$21*'Foglio Input_Pallet'!$G$22*'Mezzi di trasporto'!E37,'Foglio Input_Pallet'!$I$22='menu tendina'!$A$9,'Foglio Input_Pallet'!$G$21*'Foglio Input_Pallet'!$G$22*'Mezzi di trasporto'!F37,'Foglio Input_Pallet'!$I$22='menu tendina'!$A$10,'Foglio Input_Pallet'!$G$21*'Foglio Input_Pallet'!$G$22*'Mezzi di trasporto'!G37)+_xlfn.IFS('Foglio Input_Pallet'!$I$24='menu tendina'!$A$6,'Foglio Input_Pallet'!$G$23*'Foglio Input_Pallet'!$G$24*'Mezzi di trasporto'!C37,'Foglio Input_Pallet'!$I$24='menu tendina'!$A$7,'Foglio Input_Pallet'!$G$23*'Foglio Input_Pallet'!$G$24*'Mezzi di trasporto'!D37,'Foglio Input_Pallet'!$I$24='menu tendina'!$A$8,'Foglio Input_Pallet'!$G$23*'Foglio Input_Pallet'!$G$24*'Mezzi di trasporto'!E37,'Foglio Input_Pallet'!$I$24='menu tendina'!$A$9,'Foglio Input_Pallet'!$G$23*'Foglio Input_Pallet'!$G$24*'Mezzi di trasporto'!F37,'Foglio Input_Pallet'!$I$24='menu tendina'!$A$10,'Foglio Input_Pallet'!$G$23*'Foglio Input_Pallet'!$CG$24*'Mezzi di trasporto'!G37)+_xlfn.IFS('Foglio Input_Pallet'!$I$26='menu tendina'!$A$6,'Foglio Input_Pallet'!$G$25*'Foglio Input_Pallet'!$G$26*'Mezzi di trasporto'!C37,'Foglio Input_Pallet'!$I$26='menu tendina'!$A$7,'Foglio Input_Pallet'!$G$25*'Foglio Input_Pallet'!$G$26*'Mezzi di trasporto'!D37,'Foglio Input_Pallet'!$I$26='menu tendina'!$A$8,'Foglio Input_Pallet'!$G$25*'Foglio Input_Pallet'!$G$26*'Mezzi di trasporto'!E37,'Foglio Input_Pallet'!$I$26='menu tendina'!$A$9,'Foglio Input_Pallet'!$G$25*'Foglio Input_Pallet'!$G$26*'Mezzi di trasporto'!F37,'Foglio Input_Pallet'!$I$26='menu tendina'!$A$10,'Foglio Input_Pallet'!$G$25*'Foglio Input_Pallet'!$G$26*'Mezzi di trasporto'!G37))+_xlfn.IFS('Foglio Input_Pallet'!$I$29='menu tendina'!$A$6,('Foglio Input_Pallet'!$G$27+'Foglio Input_Pallet'!$G$28)*'Foglio Input_Pallet'!$G$29*'Mezzi di trasporto'!C37,'Foglio Input_Pallet'!$I$29='menu tendina'!$A$7,('Foglio Input_Pallet'!$G$27+'Foglio Input_Pallet'!$G$28)*'Foglio Input_Pallet'!$G$29*'Mezzi di trasporto'!D37,'Foglio Input_Pallet'!$I$26='menu tendina'!$A$8,('Foglio Input_Pallet'!$G$27+'Foglio Input_Pallet'!$G$28)*'Foglio Input_Pallet'!$G$29*'Mezzi di trasporto'!E37,'Foglio Input_Pallet'!$I$26='menu tendina'!$A$9,('Foglio Input_Pallet'!$G$27+'Foglio Input_Pallet'!$G$28)*'Foglio Input_Pallet'!$G$29*'Mezzi di trasporto'!F37,'Foglio Input_Pallet'!$I$26='menu tendina'!$A$10,('Foglio Input_Pallet'!$G$27+'Foglio Input_Pallet'!$G$28)*'Foglio Input_Pallet'!$G$29*'Mezzi di trasporto'!G37)+_xlfn.IFS('Foglio Input_Pallet'!$I$31='menu tendina'!$A$6,'Foglio Input_Pallet'!$G$30*'Foglio Input_Pallet'!$G$31*'Mezzi di trasporto'!C37,'Foglio Input_Pallet'!$I$31='menu tendina'!$A$7,'Foglio Input_Pallet'!$G$30*'Foglio Input_Pallet'!$G$31*'Mezzi di trasporto'!D37,'Foglio Input_Pallet'!$I$31='menu tendina'!$A$8,'Foglio Input_Pallet'!$G$30*'Foglio Input_Pallet'!$G$31*'Mezzi di trasporto'!E37,'Foglio Input_Pallet'!$I$31='menu tendina'!$A$9,'Foglio Input_Pallet'!$G$30*'Foglio Input_Pallet'!$G$31*'Mezzi di trasporto'!F37,'Foglio Input_Pallet'!$I$31='menu tendina'!$A$10,'Foglio Input_Pallet'!$G$30*'Foglio Input_Pallet'!$G$31*'Mezzi di trasporto'!G37) -> 4.224489927e-05
B26: Climate change - land use and transform. | C26: kg CO2 eq | D26: 0.001478443936 | E26: ='Foglio Input_Pallet'!$G$21*'Materie prime'!C38/'Foglio Input_Pallet'!$G$15 -> 0 | F26: ='Foglio Input_Pallet'!$G$23*'Materie prime'!D38/'Foglio Input_Pallet'!$G$15 -> 0.001093666168 | G26: ='Foglio Input_Pallet'!$G$25*'Materie prime'!E38/'Foglio Input_Pallet'!$G$15 -> 0.0003335117549 | H26: ='Foglio Input_Pallet'!$G$27*'Materie prime'!F38/'Foglio Input_Pallet'!$G$15 -> 1.6587405e-05 | I26: ='Foglio Input_Pallet'!$G$28*'Materie prime'!G38/'Foglio Input_Pallet'!$G$15 -> 0 | J26: ='Foglio Input_Pallet'!$G$30*'Materie prime'!H38/'Foglio Input_Pallet'!$G$15 -> 0 | K26: =(1000/'Foglio Input_Pallet'!$G$15)*(_xlfn.IFS('Foglio Input_Pallet'!$I$22='menu tendina'!$A$6,'Foglio Input_Pallet'!$G$21*'Foglio Input_Pallet'!$G$22*'Mezzi di trasporto'!C38,'Foglio Input_Pallet'!$I$22='menu tendina'!$A$7,'Foglio Input_Pallet'!$G$21*'Foglio Input_Pallet'!$G$22*'Mezzi di trasporto'!D38,'Foglio Input_Pallet'!$I$22='menu tendina'!$A$8,'Foglio Input_Pallet'!$G$21*'Foglio Input_Pallet'!$G$22*'Mezzi di trasporto'!E38,'Foglio Input_Pallet'!$I$22='menu tendina'!$A$9,'Foglio Input_Pallet'!$G$21*'Foglio Input_Pallet'!$G$22*'Mezzi di trasporto'!F38,'Foglio Input_Pallet'!$I$22='menu tendina'!$A$10,'Foglio Input_Pallet'!$G$21*'Foglio Input_Pallet'!$G$22*'Mezzi di trasporto'!G38)+_xlfn.IFS('Foglio Input_Pallet'!$I$24='menu tendina'!$A$6,'Foglio Input_Pallet'!$G$23*'Foglio Input_Pallet'!$G$24*'Mezzi di trasporto'!C38,'Foglio Input_Pallet'!$I$24='menu tendina'!$A$7,'Foglio Input_Pallet'!$G$23*'Foglio Input_Pallet'!$G$24*'Mezzi di trasporto'!D38,'Foglio Input_Pallet'!$I$24='menu tendina'!$A$8,'Foglio Input_Pallet'!$G$23*'Foglio Input_Pallet'!$G$24*'Mezzi di trasporto'!E38,'Foglio Input_Pallet'!$I$24='menu tendina'!$A$9,'Foglio Input_Pallet'!$G$23*'Foglio Input_Pallet'!$G$24*'Mezzi di trasporto'!F38,'Foglio Input_Pallet'!$I$24='menu tendina'!$A$10,'Foglio Input_Pallet'!$G$23*'Foglio Input_Pallet'!$CG$24*'Mezzi di trasporto'!G38)+_xlfn.IFS('Foglio Input_Pallet'!$I$26='menu tendina'!$A$6,'Foglio Input_Pallet'!$G$25*'Foglio Input_Pallet'!$G$26*'Mezzi di trasporto'!C38,'Foglio Input_Pallet'!$I$26='menu tendina'!$A$7,'Foglio Input_Pallet'!$G$25*'Foglio Input_Pallet'!$G$26*'Mezzi di trasporto'!D38,'Foglio Input_Pallet'!$I$26='menu tendina'!$A$8,'Foglio Input_Pallet'!$G$25*'Foglio Input_Pallet'!$G$26*'Mezzi di trasporto'!E38,'Foglio Input_Pallet'!$I$26='menu tendina'!$A$9,'Foglio Input_Pallet'!$G$25*'Foglio Input_Pallet'!$G$26*'Mezzi di trasporto'!F38,'Foglio Input_Pallet'!$I$26='menu tendina'!$A$10,'Foglio Input_Pallet'!$G$25*'Foglio Input_Pallet'!$G$26*'Mezzi di trasporto'!G38))+_xlfn.IFS('Foglio Input_Pallet'!$I$29='menu tendina'!$A$6,('Foglio Input_Pallet'!$G$27+'Foglio Input_Pallet'!$G$28)*'Foglio Input_Pallet'!$G$29*'Mezzi di trasporto'!C38,'Foglio Input_Pallet'!$I$29='menu tendina'!$A$7,('Foglio Input_Pallet'!$G$27+'Foglio Input_Pallet'!$G$28)*'Foglio Input_Pallet'!$G$29*'Mezzi di trasporto'!D38,'Foglio Input_Pallet'!$I$26='menu tendina'!$A$8,('Foglio Input_Pallet'!$G$27+'Foglio Input_Pallet'!$G$28)*'Foglio Input_Pallet'!$G$29*'Mezzi di trasporto'!E38,'Foglio Input_Pallet'!$I$26='menu tendina'!$A$9,('Foglio Input_Pallet'!$G$27+'Foglio Input_Pallet'!$G$28)*'Foglio Input_Pallet'!$G$29*'Mezzi di trasporto'!F38,'Foglio Input_Pallet'!$I$26='menu tendina'!$A$10,('Foglio Input_Pallet'!$G$27+'Foglio Input_Pallet'!$G$28)*'Foglio Input_Pallet'!$G$29*'Mezzi di trasporto'!G38)+_xlfn.IFS('Foglio Input_Pallet'!$I$31='menu tendina'!$A$6,'Foglio Input_Pallet'!$G$30*'Foglio Input_Pallet'!$G$31*'Mezzi di trasporto'!C38,'Foglio Input_Pallet'!$I$31='menu tendina'!$A$7,'Foglio Input_Pallet'!$G$30*'Foglio Input_Pallet'!$G$31*'Mezzi di trasporto'!D38,'Foglio Input_Pallet'!$I$31='menu tendina'!$A$8,'Foglio Input_Pallet'!$G$30*'Foglio Input_Pallet'!$G$31*'Mezzi di trasporto'!E38,'Foglio Input_Pallet'!$I$31='menu tendina'!$A$9,'Foglio Input_Pallet'!$G$30*'Foglio Input_Pallet'!$G$31*'Mezzi di trasporto'!F38,'Foglio Input_Pallet'!$I$31='menu tendina'!$A$10,'Foglio Input_Pallet'!$G$30*'Foglio Input_Pallet'!$G$31*'Mezzi di trasporto'!G38) -> 3.467860798e-05
B28: Produzione Pallet
B29: Categoria di impatto | C29: Unità di misura | D29: Totale Produzione | E29: Energia elettrica | F29: Energia termica | G29: Acqua | H29: Altri combustibili | I29: Emissioni | J29: Rifiuti
B30: Climate change | C30: kg CO2 eq | D30: =SUM(E30:J30) -> 0 | E30: ='Foglio Input_Pallet'!$H$40/'Foglio Input_Pallet'!$D$36*SUMPRODUCT('Energia elettrica'!$C$18:$F$18,'Energia elettrica'!C22:F22)/'Foglio Input_Pallet'!$G$15 -> 0 | F30: ='Foglio Input_Pallet'!$H$48/'Foglio Input_Pallet'!$D$36*SUMPRODUCT('Energia termica'!$C$18:$F$18,'Energia termica'!C22:F22)/'Foglio Input_Pallet'!$G$15 -> 0 | G30: ='Foglio Input_Pallet'!$H$56/'Foglio Input_Pallet'!$D$36*SUMPRODUCT('Acqua e altri combustibili'!$C$17:$E$17,'Acqua e altri combustibili'!C21:E21)/'Foglio Input_Pallet'!$G$15 -> 0 | H30: ='Foglio Input_Pallet'!$G$63/'Foglio Input_Pallet'!$D$36*'Foglio Input_Pallet'!$G$10*'Acqua e altri combustibili'!E55/'Foglio Input_Pallet'!$G$15 -> 0 | I30: =SUMPRODUCT('Emissioni aria'!$C$18:$E$18,'Emissioni aria'!C23:E23)/'Foglio Input_Pallet'!$G$15 -> 0 | J30: =SUM(Rifiuti!L48:T48)/'Foglio Input_Pallet'!$G$15 -> 0
B31: Ozone depletion | C31: kg CFC11 eq | D31: =SUM(E31:J31) -> 0 | E31: ='Foglio Input_Pallet'!$H$40/'Foglio Input_Pallet'!$D$36*SUMPRODUCT('Energia elettrica'!$C$18:$F$18,'Energia elettrica'!C23:F23)/'Foglio Input_Pallet'!$G$15 -> 0 | F31: ='Foglio Input_Pallet'!$H$48/'Foglio Input_Pallet'!$D$36*SUMPRODUCT('Energia termica'!$C$18:$F$18,'Energia termica'!C23:F23)/'Foglio Input_Pallet'!$G$15 -> 0 | G31: ='Foglio Input_Pallet'!$H$56/'Foglio Input_Pallet'!$D$36*SUMPRODUCT('Acqua e altri combustibili'!$C$17:$E$17,'Acqua e altri combustibili'!C22:E22)/'Foglio Input_Pallet'!$G$15 -> 0 | H31: ='Foglio Input_Pallet'!$G$63/'Foglio Input_Pallet'!$D$36*'Foglio Input_Pallet'!$G$10*'Acqua e altri combustibili'!E56/'Foglio Input_Pallet'!$G$15 -> 0 | I31: =SUMPRODUCT('Emissioni aria'!$C$18:$E$18,'Emissioni aria'!C24:E24)/'Foglio Input_Pallet'!$G$15 -> 0 | J31: =SUM(Rifiuti!L49:T49)/'Foglio Input_Pallet'!$G$15 -> 0
B32: Ionising radiation, HH | C32: kBq U-235 eq | D32: =SUM(E32:J32) -> 0 | E32: ='Foglio Input_Pallet'!$H$40/'Foglio Input_Pallet'!$D$36*SUMPRODUCT('Energia elettrica'!$C$18:$F$18,'Energia elettrica'!C24:F24)/'Foglio Input_Pallet'!$G$15 -> 0 | F32: ='Foglio Input_Pallet'!$H$48/'Foglio Input_Pallet'!$D$36*SUMPRODUCT('Energia termica'!$C$18:$F$18,'Energia termica'!C24:F24)/'Foglio Input_Pallet'!$G$15 -> 0 | G32: ='Foglio Input_Pallet'!$H$56/'Foglio Input_Pallet'!$D$36*SUMPRODUCT('Acqua e altri combustibili'!$C$17:$E$17,'Acqua e altri combustibili'!C23:E23)/'Foglio Input_Pallet'!$G$15 -> 0 | H32: ='Foglio Input_Pallet'!$G$63/'Foglio Input_Pallet'!$D$36*'Foglio Input_Pallet'!$G$10*'Acqua e altri combustibili'!E57/'Foglio Input_Pallet'!$G$15 -> 0 | I32: =SUMPRODUCT('Emissioni aria'!$C$18:$E$18,'Emissioni aria'!C25:E25)/'Foglio Input_Pallet'!$G$15 -> 0 | J32: =SUM(Rifiuti!L50:T50)/'Foglio Input_Pallet'!$G$15 -> 0
B33: Photochemical ozone formation, HH | C33: kg NMVOC eq | D33: 2.870525e-05 | E33: ='Foglio Input_Pallet'!$H$40/'Foglio Input_Pallet'!$D$36*SUMPRODUCT('Energia elettrica'!$C$18:$F$18,'Energia elettrica'!C25:F25)/'Foglio Input_Pallet'!$G$15 -> 0 | F33: ='Foglio Input_Pallet'!$H$48/'Foglio Input_Pallet'!$D$36*SUMPRODUCT('Energia termica'!$C$18:$F$18,'Energia termica'!C25:F25)/'Foglio Input_Pallet'!$G$15 -> 0 | G33: ='Foglio Input_Pallet'!$H$56/'Foglio Input_Pallet'!$D$36*SUMPRODUCT('Acqua e altri combustibili'!$C$17:$E$17,'Acqua e altri combustibili'!C24:E24)/'Foglio Input_Pallet'!$G$15 -> 0 | H33: ='Foglio Input_Pallet'!$G$63/'Foglio Input_Pallet'!$D$36*'Foglio Input_Pallet'!$G$10*'Acqua e altri combustibili'!E58/'Foglio Input_Pallet'!$G$15 -> 0 | I33: =SUMPRODUCT('Emissioni aria'!$C$18:$E$18,'Emissioni aria'!C26:E26)/'Foglio Input_Pallet'!$G$15 -> 2.870525e-05 | J33: =SUM(Rifiuti!L51:T51)/'Foglio Input_Pallet'!$G$15 -> 0
B34: Respiratory inorganics | C34: disease inc. | D34: 4.300709818e-10 | E34: ='Foglio Input_Pallet'!$H$40/'Foglio Input_Pallet'!$D$36*SUMPRODUCT('Energia elettrica'!$C$18:$F$18,'Energia elettrica'!C26:F26)/'Foglio Input_Pallet'!$G$15 -> 0 | F34: ='Foglio Input_Pallet'!$H$48/'Foglio Input_Pallet'!$D$36*SUMPRODUCT('Energia termica'!$C$18:$F$18,'Energia termica'!C26:F26)/'Foglio Input_Pallet'!$G$15 -> 0 | G34: ='Foglio Input_Pallet'!$H$56/'Foglio Input_Pallet'!$D$36*SUMPRODUCT('Acqua e altri combustibili'!$C$17:$E$17,'Acqua e altri combustibili'!C25:E25)/'Foglio Input_Pallet'!$G$15 -> 0 | H34: ='Foglio Input_Pallet'!$G$63/'Foglio Input_Pallet'!$D$36*'Foglio Input_Pallet'!$G$10*'Acqua e altri combustibili'!E59/'Foglio Input_Pallet'!$G$15 -> 0 | I34: =SUMPRODUCT('Emissioni aria'!$C$18:$E$18,'Emissioni aria'!C27:E27)/'Foglio Input_Pallet'!$G$15 -> 4.300709818e-10 | J34: =SUM(Rifiuti!L52:T52)/'Foglio Input_Pallet'!$G$15 -> 0
B35: Non-cancer human health effects | C35: CTUh | D35: 0 | E35: ='Foglio Input_Pallet'!$H$40/'Foglio Input_Pallet'!$D$36*SUMPRODUCT('Energia elettrica'!$C$18:$F$18,'Energia elettrica'!C27:F27)/'Foglio Input_Pallet'!$G$15 -> 0 | F35: ='Foglio Input_Pallet'!$H$48/'Foglio Input_Pallet'!$D$36*SUMPRODUCT('Energia termica'!$C$18:$F$18,'Energia termica'!C27:F27)/'Foglio Input_Pallet'!$G$15 -> 0 | G35: ='Foglio Input_Pallet'!$H$56/'Foglio Input_Pallet'!$D$36*SUMPRODUCT('Acqua e altri combustibili'!$C$17:$E$17,'Acqua e altri combustibili'!C26:E26)/'Foglio Input_Pallet'!$G$15 -> 0 | H35: ='Foglio Input_Pallet'!$G$63/'Foglio Input_Pallet'!$D$36*'Foglio Input_Pallet'!$G$10*'Acqua e altri combustibili'!E60/'Foglio Input_Pallet'!$G$15 -> 0 | I35: =SUMPRODUCT('Emissioni aria'!$C$18:$E$18,'Emissioni aria'!C28:E28)/'Foglio Input_Pallet'!$G$15 -> 0 | J35: =SUM(Rifiuti!L53:T53)/'Foglio Input_Pallet'!$G$15 -> 0
B36: Cancer human health effects | C36: CTUh | D36: 0 | E36: ='Foglio Input_Pallet'!$H$40/'Foglio Input_Pallet'!$D$36*SUMPRODUCT('Energia elettrica'!$C$18:$F$18,'Energia elettrica'!C28:F28)/'Foglio Input_Pallet'!$G$15 -> 0 | F36: ='Foglio Input_Pallet'!$H$48/'Foglio Input_Pallet'!$D$36*SUMPRODUCT('Energia termica'!$C$18:$F$18,'Energia termica'!C28:F28)/'Foglio Input_Pallet'!$G$15 -> 0 | G36: ='Foglio Input_Pallet'!$H$56/'Foglio Input_Pallet'!$D$36*SUMPRODUCT('Acqua e altri combustibili'!$C$17:$E$17,'Acqua e altri combustibili'!C27:E27)/'Foglio Input_Pallet'!$G$15 -> 0 | H36: ='Foglio Input_Pallet'!$G$63/'Foglio Input_Pallet'!$D$36*'Foglio Input_Pallet'!$G$10*'Acqua e altri combustibili'!E61/'Foglio Input_Pallet'!$G$15 -> 0 | I36: =SUMPRODUCT('Emissioni aria'!$C$18:$E$18,'Emissioni aria'!C29:E29)/'Foglio Input_Pallet'!$G$15 -> 0 | J36: =SUM(Rifiuti!L54:T54)/'Foglio Input_Pallet'!$G$15 -> 0
B37: Acidification terrestrial and freshwater | C37: mol H+ eq | D37: 2.720772727e-05 | E37: ='Foglio Input_Pallet'!$H$40/'Foglio Input_Pallet'!$D$36*SUMPRODUCT('Energia elettrica'!$C$18:$F$18,'Energia elettrica'!C29:F29)/'Foglio Input_Pallet'!$G$15 -> 0 | F37: ='Foglio Input_Pallet'!$H$48/'Foglio Input_Pallet'!$D$36*SUMPRODUCT('Energia termica'!$C$18:$F$18,'Energia termica'!C29:F29)/'Foglio Input_Pallet'!$G$15 -> 0 | G37: ='Foglio Input_Pallet'!$H$56/'Foglio Input_Pallet'!$D$36*SUMPRODUCT('Acqua e altri combustibili'!$C$17:$E$17,'Acqua e altri combustibili'!C28:E28)/'Foglio Input_Pallet'!$G$15 -> 0 | H37: ='Foglio Input_Pallet'!$G$63/'Foglio Input_Pallet'!$D$36*'Foglio Input_Pallet'!$G$10*'Acqua e altri combustibili'!E62/'Foglio Input_Pallet'!$G$15 -> 0 | I37: =SUMPRODUCT('Emissioni aria'!$C$18:$E$18,'Emissioni aria'!C30:E30)/'Foglio Input_Pallet'!$G$15 -> 2.720772727e-05 | J37: =SUM(Rifiuti!L55:T55)/'Foglio Input_Pallet'!$G$15 -> 0
B38: Eutrophication freshwater | C38: kg P eq | D38: 0 | E38: ='Foglio Input_Pallet'!$H$40/'Foglio Input_Pallet'!$D$36*SUMPRODUCT('Energia elettrica'!$C$18:$F$18,'Energia elettrica'!C30:F30)/'Foglio Input_Pallet'!$G$15 -> 0 | F38: ='Foglio Input_Pallet'!$H$48/'Foglio Input_Pallet'!$D$36*SUMPRODUCT('Energia termica'!$C$18:$F$18,'Energia termica'!C30:F30)/'Foglio Input_Pallet'!$G$15 -> 0 | G38: ='Foglio Input_Pallet'!$H$56/'Foglio Input_Pallet'!$D$36*SUMPRODUCT('Acqua e altri combustibili'!$C$17:$E$17,'Acqua e altri combustibili'!C29:E29)/'Foglio Input_Pallet'!$G$15 -> 0 | H38: ='Foglio Input_Pallet'!$G$63/'Foglio Input_Pallet'!$D$36*'Foglio Input_Pallet'!$G$10*'Acqua e altri combustibili'!E63/'Foglio Input_Pallet'!$G$15 -> 0 | I38: =SUMPRODUCT('Emissioni aria'!$C$18:$E$18,'Emissioni aria'!C31:E31)/'Foglio Input_Pallet'!$G$15 -> 0 | J38: =SUM(Rifiuti!L56:T56)/'Foglio Input_Pallet'!$G$15 -> 0
B39: Eutrophication marine | C39: kg N eq | D39: 1.101577273e-05 | E39: ='Foglio Input_Pallet'!$H$40/'Foglio Input_Pallet'!$D$36*SUMPRODUCT('Energia elettrica'!$C$18:$F$18,'Energia elettrica'!C31:F31)/'Foglio Input_Pallet'!$G$15 -> 0 | F39: ='Foglio Input_Pallet'!$H$48/'Foglio Input_Pallet'!$D$36*SUMPRODUCT('Energia termica'!$C$18:$F$18,'Energia termica'!C31:F31)/'Foglio Input_Pallet'!$G$15 -> 0 | G39: ='Foglio Input_Pallet'!$H$56/'Foglio Input_Pallet'!$D$36*SUMPRODUCT('Acqua e altri combustibili'!$C$17:$E$17,'Acqua e altri combustibili'!C30:E30)/'Foglio Input_Pallet'!$G$15 -> 0 | H39: ='Foglio Input_Pallet'!$G$63/'Foglio Input_Pallet'!$D$36*'Foglio Input_Pallet'!$G$10*'Acqua e altri combustibili'!E64/'Foglio Input_Pallet'!$G$15 -> 0 | I39: =SUMPRODUCT('Emissioni aria'!$C$18:$E$18,'Emissioni aria'!C32:E32)/'Foglio Input_Pallet'!$G$15 -> 1.101577273e-05 | J39: =SUM(Rifiuti!L57:T57)/'Foglio Input_Pallet'!$G$15 -> 0
B40: Eutrophication terrestrial | C40: mol N eq | D40: 0.0001206354545 | E40: ='Foglio Input_Pallet'!$H$40/'Foglio Input_Pallet'!$D$36*SUMPRODUCT('Energia elettrica'!$C$18:$F$18,'Energia elettrica'!C32:F32)/'Foglio Input_Pallet'!$G$15 -> 0 | F40: ='Foglio Input_Pallet'!$H$48/'Foglio Input_Pallet'!$D$36*SUMPRODUCT('Energia termica'!$C$18:$F$18,'Energia termica'!C32:F32)/'Foglio Input_Pallet'!$G$15 -> 0 | G40: ='Foglio Input_Pallet'!$H$56/'Foglio Input_Pallet'!$D$36*SUMPRODUCT('Acqua e altri combustibili'!$C$17:$E$17,'Acqua e altri combustibili'!C31:E31)/'Foglio Input_Pallet'!$G$15 -> 0 | H40: ='Foglio Input_Pallet'!$G$63/'Foglio Input_Pallet'!$D$36*'Foglio Input_Pallet'!$G$10*'Acqua e altri combustibili'!E65/'Foglio Input_Pallet'!$G$15 -> 0 | I40: =SUMPRODUCT('Emissioni aria'!$C$18:$E$18,'Emissioni aria'!C33:E33)/'Foglio Input_Pallet'!$G$15 -> 0.0001206354545 | J40: =SUM(Rifiuti!L58:T58)/'Foglio Input_Pallet'!$G$15 -> 0
B41: Ecotoxicity freshwater | C41: CTUe | D41: 0 | E41: ='Foglio Input_Pallet'!$H$40/'Foglio Input_Pallet'!$D$36*SUMPRODUCT('Energia elettrica'!$C$18:$F$18,'Energia elettrica'!C33:F33)/'Foglio Input_Pallet'!$G$15 -> 0 | F41: ='Foglio Input_Pallet'!$H$48/'Foglio Input_Pallet'!$D$36*SUMPRODUCT('Energia termica'!$C$18:$F$18,'Energia termica'!C33:F33)/'Foglio Input_Pallet'!$G$15 -> 0 | G41: ='Foglio Input_Pallet'!$H$56/'Foglio Input_Pallet'!$D$36*SUMPRODUCT('Acqua e altri combustibili'!$C$17:$E$17,'Acqua e altri combustibili'!C32:E32)/'Foglio Input_Pallet'!$G$15 -> 0 | H41: ='Foglio Input_Pallet'!$G$63/'Foglio Input_Pallet'!$D$36*'Foglio Input_Pallet'!$G$10*'Acqua e altri combustibili'!E66/'Foglio Input_Pallet'!$G$15 -> 0 | I41: =SUMPRODUCT('Emissioni aria'!$C$18:$E$18,'Emissioni aria'!C34:E34)/'Foglio Input_Pallet'!$G$15 -> 0 | J41: =SUM(Rifiuti!L59:T59)/'Foglio Input_Pallet'!$G$15 -> 0
B42: Land use | C42: Pt | D42: 0 | E42: ='Foglio Input_Pallet'!$H$40/'Foglio Input_Pallet'!$D$36*SUMPRODUCT('Energia elettrica'!$C$18:$F$18,'Energia elettrica'!C34:F34)/'Foglio Input_Pallet'!$G$15 -> 0 | F42: ='Foglio Input_Pallet'!$H$48/'Foglio Input_Pallet'!$D$36*SUMPRODUCT('Energia termica'!$C$18:$F$18,'Energia termica'!C34:F34)/'Foglio Input_Pallet'!$G$15 -> 0 | G42: ='Foglio Input_Pallet'!$H$56/'Foglio Input_Pallet'!$D$36*SUMPRODUCT('Acqua e altri combustibili'!$C$17:$E$17,'Acqua e altri combustibili'!C33:E33)/'Foglio Input_Pallet'!$G$15 -> 0 | H42: ='Foglio Input_Pallet'!$G$63/'Foglio Input_Pallet'!$D$36*'Foglio Input_Pallet'!$G$10*'Acqua e altri combustibili'!E67/'Foglio Input_Pallet'!$G$15 -> 0 | I42: =SUMPRODUCT('Emissioni aria'!$C$18:$E$18,'Emissioni aria'!C35:E35)/'Foglio Input_Pallet'!$G$15 -> 0 | J42: =SUM(Rifiuti!L60:T60)/'Foglio Input_Pallet'!$G$15 -> 0
B43: Water scarcity | C43: m3 depriv. | D43: 0 | E43: ='Foglio Input_Pallet'!$H$40/'Foglio Input_Pallet'!$D$36*SUMPRODUCT('Energia elettrica'!$C$18:$F$18,'Energia elettrica'!C35:F35)/'Foglio Input_Pallet'!$G$15 -> 0 | F43: ='Foglio Input_Pallet'!$H$48/'Foglio Input_Pallet'!$D$36*SUMPRODUCT('Energia termica'!$C$18:$F$18,'Energia termica'!C35:F35)/'Foglio Input_Pallet'!$G$15 -> 0 | G43: ='Foglio Input_Pallet'!$H$56/'Foglio Input_Pallet'!$D$36*SUMPRODUCT('Acqua e altri combustibili'!$C$17:$E$17,'Acqua e altri combustibili'!C34:E34)/'Foglio Input_Pallet'!$G$15 -> 0 | H43: ='Foglio Input_Pallet'!$G$63/'Foglio Input_Pallet'!$D$36*'Foglio Input_Pallet'!$G$10*'Acqua e altri combustibili'!E68/'Foglio Input_Pallet'!$G$15 -> 0 | I43: =SUMPRODUCT('Emissioni aria'!$C$18:$E$18,'Emissioni aria'!C36:E36)/'Foglio Input_Pallet'!$G$15 -> 0 | J43: =SUM(Rifiuti!L61:T61)/'Foglio Input_Pallet'!$G$15 -> 0
B44: Resource use, energy carriers | C44: MJ | D44: 0 | E44: ='Foglio Input_Pallet'!$H$40/'Foglio Input_Pallet'!$D$36*SUMPRODUCT('Energia elettrica'!$C$18:$F$18,'Energia elettrica'!C36:F36)/'Foglio Input_Pallet'!$G$15 -> 0 | F44: ='Foglio Input_Pallet'!$H$48/'Foglio Input_Pallet'!$D$36*SUMPRODUCT('Energia termica'!$C$18:$F$18,'Energia termica'!C36:F36)/'Foglio Input_Pallet'!$G$15 -> 0 | G44: ='Foglio Input_Pallet'!$H$56/'Foglio Input_Pallet'!$D$36*SUMPRODUCT('Acqua e altri combustibili'!$C$17:$E$17,'Acqua e altri combustibili'!C35:E35)/'Foglio Input_Pallet'!$G$15 -> 0 | H44: ='Foglio Input_Pallet'!$G$63/'Foglio Input_Pallet'!$D$36*'Foglio Input_Pallet'!$G$10*'Acqua e altri combustibili'!E69/'Foglio Input_Pallet'!$G$15 -> 0 | I44: =SUMPRODUCT('Emissioni aria'!$C$18:$E$18,'Emissioni aria'!C37:E37)/'Foglio Input_Pallet'!$G$15 -> 0 | J44: =SUM(Rifiuti!L62:T62)/'Foglio Input_Pallet'!$G$15 -> 0
B45: Resource use, mineral and metals | C45: kg Sb eq | D45: 0 | E45: ='Foglio Input_Pallet'!$H$40/'Foglio Input_Pallet'!$D$36*SUMPRODUCT('Energia elettrica'!$C$18:$F$18,'Energia elettrica'!C37:F37)/'Foglio Input_Pallet'!$G$15 -> 0 | F45: ='Foglio Input_Pallet'!$H$48/'Foglio Input_Pallet'!$D$36*SUMPRODUCT('Energia termica'!$C$18:$F$18,'Energia termica'!C37:F37)/'Foglio Input_Pallet'!$G$15 -> 0 | G45: ='Foglio Input_Pallet'!$H$56/'Foglio Input_Pallet'!$D$36*SUMPRODUCT('Acqua e altri combustibili'!$C$17:$E$17,'Acqua e altri combustibili'!C36:E36)/'Foglio Input_Pallet'!$G$15 -> 0 | H45: ='Foglio Input_Pallet'!$G$63/'Foglio Input_Pallet'!$D$36*'Foglio Input_Pallet'!$G$10*'Acqua e altri combustibili'!E70/'Foglio Input_Pallet'!$G$15 -> 0 | I45: =SUMPRODUCT('Emissioni aria'!$C$18:$E$18,'Emissioni aria'!C38:E38)/'Foglio Input_Pallet'!$G$15 -> 0 | J45: =SUM(Rifiuti!L63:T63)/'Foglio Input_Pallet'!$G$15 -> 0
B46: Climate change - fossil | C46: kg CO2 eq | D46: 0 | E46: ='Foglio Input_Pallet'!$H$40/'Foglio Input_Pallet'!$D$36*SUMPRODUCT('Energia elettrica'!$C$18:$F$18,'Energia elettrica'!C38:F38)/'Foglio Input_Pallet'!$G$15 -> 0 | F46: ='Foglio Input_Pallet'!$H$48/'Foglio Input_Pallet'!$D$36*SUMPRODUCT('Energia termica'!$C$18:$F$18,'Energia termica'!C38:F38)/'Foglio Input_Pallet'!$G$15 -> 0 | G46: ='Foglio Input_Pallet'!$H$56/'Foglio Input_Pallet'!$D$36*SUMPRODUCT('Acqua e altri combustibili'!$C$17:$E$17,'Acqua e altri combustibili'!C37:E37)/'Foglio Input_Pallet'!$G$15 -> 0 | H46: ='Foglio Input_Pallet'!$G$63/'Foglio Input_Pallet'!$D$36*'Foglio Input_Pallet'!$G$10*'Acqua e altri combustibili'!E71/'Foglio Input_Pallet'!$G$15 -> 0 | I46: =SUMPRODUCT('Emissioni aria'!$C$18:$E$18,'Emissioni aria'!C39:E39)/'Foglio Input_Pallet'!$G$15 -> 0 | J46: =SUM(Rifiuti!L64:T64)/'Foglio Input_Pallet'!$G$15 -> 0
B47: Climate change - biogenic | C47: kg CO2 eq | D47: 0 | E47: ='Foglio Input_Pallet'!$H$40/'Foglio Input_Pallet'!$D$36*SUMPRODUCT('Energia elettrica'!$C$18:$F$18,'Energia elettrica'!C39:F39)/'Foglio Input_Pallet'!$G$15 -> 0 | F47: ='Foglio Input_Pallet'!$H$48/'Foglio Input_Pallet'!$D$36*SUMPRODUCT('Energia termica'!$C$18:$F$18,'Energia termica'!C39:F39)/'Foglio Input_Pallet'!$G$15 -> 0 | G47: ='Foglio Input_Pallet'!$H$56/'Foglio Input_Pallet'!$D$36*SUMPRODUCT('Acqua e altri combustibili'!$C$17:$E$17,'Acqua e altri combustibili'!C38:E38)/'Foglio Input_Pallet'!$G$15 -> 0 | H47: ='Foglio Input_Pallet'!$G$63/'Foglio Input_Pallet'!$D$36*'Foglio Input_Pallet'!$G$10*'Acqua e altri combustibili'!E72/'Foglio Input_Pallet'!$G$15 -> 0 | I47: =SUMPRODUCT('Emissioni aria'!$C$18:$E$18,'Emissioni aria'!C40:E40)/'Foglio Input_Pallet'!$G$15 -> 0 | J47: =SUM(Rifiuti!L65:T65)/'Foglio Input_Pallet'!$G$15 -> 0
B48: Climate change - land use and transform. | C48: kg CO2 eq | D48: 0 | E48: ='Foglio Input_Pallet'!$H$40/'Foglio Input_Pallet'!$D$36*SUMPRODUCT('Energia elettrica'!$C$18:$F$18,'Energia elettrica'!C40:F40)/'Foglio Input_Pallet'!$G$15 -> 0 | F48: ='Foglio Input_Pallet'!$H$48/'Foglio Input_Pallet'!$D$36*SUMPRODUCT('Energia termica'!$C$18:$F$18,'Energia termica'!C40:F40)/'Foglio Input_Pallet'!$G$15 -> 0 | G48: ='Foglio Input_Pallet'!$H$56/'Foglio Input_Pallet'!$D$36*SUMPRODUCT('Acqua e altri combustibili'!$C$17:$E$17,'Acqua e altri combustibili'!C39:E39)/'Foglio Input_Pallet'!$G$15 -> 0 | H48: ='Foglio Input_Pallet'!$G$63/'Foglio Input_Pallet'!$D$36*'Foglio Input_Pallet'!$G$10*'Acqua e altri combustibili'!E73/'Foglio Input_Pallet'!$G$15 -> 0 | I48: =SUMPRODUCT('Emissioni aria'!$C$18:$E$18,'Emissioni aria'!C41:E41)/'Foglio Input_Pallet'!$G$15 -> 0 | J48: =SUM(Rifiuti!L66:T66)/'Foglio Input_Pallet'!$G$15 -> 0
B50: Distribuzione
B51: Categoria di impatto | C51: Unità di misura | D51: Totale Distribuzione
B52: Climate change | C52: kg CO2 eq | D52: =_xlfn.IFS('Foglio Input_Pallet'!$I$97='menu tendina'!$A$6,'Foglio Input_Pallet'!$G$97*'Foglio Input_Pallet'!$G$10*'Mezzi di trasporto'!C20,'Foglio Input_Pallet'!$I$97='menu tendina'!$A$7,'Foglio Input_Pallet'!$G$97*'Foglio Input_Pallet'!$G$10*'Mezzi di trasporto'!D20,'Foglio Input_Pallet'!$I$97='menu tendina'!$A$8,'Foglio Input_Pallet'!$G$97*'Foglio Input_Pallet'!$G$10*'Mezzi di trasporto'!E20,'Foglio Input_Pallet'!$I$97='menu tendina'!$A$9,'Foglio Input_Pallet'!$G$97*'Foglio Input_Pallet'!$G$10*'Mezzi di trasporto'!F20,'Foglio Input_Pallet'!$I$97='menu tendina'!$A$10,'Foglio Input_Pallet'!$G$97*'Foglio Input_Pallet'!$G$10*'Mezzi di trasporto'!G20,'Foglio Input_Pallet'!$I$97='menu tendina'!$A$11,'Foglio Input_Pallet'!$G$10*'Mezzi di trasporto'!E20*'Altri valori_default'!$B$5) -> 0.3413396094
B53: Ozone depletion | C53: kg CFC11 eq | D53: =_xlfn.IFS('Foglio Input_Pallet'!$I$97='menu tendina'!$A$6,'Foglio Input_Pallet'!$G$97*'Foglio Input_Pallet'!$G$10*'Mezzi di trasporto'!C21,'Foglio Input_Pallet'!$I$97='menu tendina'!$A$7,'Foglio Input_Pallet'!$G$97*'Foglio Input_Pallet'!$G$10*'Mezzi di trasporto'!D21,'Foglio Input_Pallet'!$I$97='menu tendina'!$A$8,'Foglio Input_Pallet'!$G$97*'Foglio Input_Pallet'!$G$10*'Mezzi di trasporto'!E21,'Foglio Input_Pallet'!$I$97='menu tendina'!$A$9,'Foglio Input_Pallet'!$G$97*'Foglio Input_Pallet'!$G$10*'Mezzi di trasporto'!F21,'Foglio Input_Pallet'!$I$97='menu tendina'!$A$10,'Foglio Input_Pallet'!$G$97*'Foglio Input_Pallet'!$G$10*'Mezzi di trasporto'!G21,'Foglio Input_Pallet'!$I$97='menu tendina'!$A$11,'Foglio Input_Pallet'!$G$10*'Mezzi di trasporto'!E21*'Altri valori_default'!$B$5) -> 8.07464052e-08
B54: Ionising radiation, HH | C54: kBq U-235 eq | D54: =_xlfn.IFS('Foglio Input_Pallet'!$I$97='menu tendina'!$A$6,'Foglio Input_Pallet'!$G$97*'Foglio Input_Pallet'!$G$10*'Mezzi di trasporto'!C22,'Foglio Input_Pallet'!$I$97='menu tendina'!$A$7,'Foglio Input_Pallet'!$G$97*'Foglio Input_Pallet'!$G$10*'Mezzi di trasporto'!D22,'Foglio Input_Pallet'!$I$97='menu tendina'!$A$8,'Foglio Input_Pallet'!$G$97*'Foglio Input_Pallet'!$G$10*'Mezzi di trasporto'!E22,'Foglio Input_Pallet'!$I$97='menu tendina'!$A$9,'Foglio Input_Pallet'!$G$97*'Foglio Input_Pallet'!$G$10*'Mezzi di trasporto'!F22,'Foglio Input_Pallet'!$I$97='menu tendina'!$A$10,'Foglio Input_Pallet'!$G$97*'Foglio Input_Pallet'!$G$10*'Mezzi di trasporto'!G22,'Foglio Input_Pallet'!$I$97='menu tendina'!$A$11,'Foglio Input_Pallet'!$G$10*'Mezzi di trasporto'!E22*'Altri valori_default'!$B$5) -> 0.02749305586
B55: Photochemical ozone formation, HH | C55: kg NMVOC eq | D55: =_xlfn.IFS('Foglio Input_Pallet'!$I$97='menu tendina'!$A$6,'Foglio Input_Pallet'!$G$97*'Foglio Input_Pallet'!$G$10*'Mezzi di trasporto'!C23,'Foglio Input_Pallet'!$I$97='menu tendina'!$A$7,'Foglio Input_Pallet'!$G$97*'Foglio Input_Pallet'!$G$10*'Mezzi di trasporto'!D23,'Foglio Input_Pallet'!$I$97='menu tendina'!$A$8,'Foglio Input_Pallet'!$G$97*'Foglio Input_Pallet'!$G$10*'Mezzi di trasporto'!E23,'Foglio Input_Pallet'!$I$97='menu tendina'!$A$9,'Foglio Input_Pallet'!$G$97*'Foglio Input_Pallet'!$G$10*'Mezzi di trasporto'!F23,'Foglio Input_Pallet'!$I$97='menu tendina'!$A$10,'Foglio Input_Pallet'!$G$97*'Foglio Input_Pallet'!$G$10*'Mezzi di trasporto'!G23,'Foglio Input_Pallet'!$I$97='menu tendina'!$A$11,'Foglio Input_Pallet'!$G$10*'Mezzi di trasporto'!E23*'Altri valori_default'!$B$5) -> 0.001946445386
B56: Respiratory inorganics | C56: disease inc. | D56: =_xlfn.IFS('Foglio Input_Pallet'!$I$97='menu tendina'!$A$6,'Foglio Input_Pallet'!$G$97*'Foglio Input_Pallet'!$G$10*'Mezzi di trasporto'!C24,'Foglio Input_Pallet'!$I$97='menu tendina'!$A$7,'Foglio Input_Pallet'!$G$97*'Foglio Input_Pallet'!$G$10*'Mezzi di trasporto'!D24,'Foglio Input_Pallet'!$I$97='menu tendina'!$A$8,'Foglio Input_Pallet'!$G$97*'Foglio Input_Pallet'!$G$10*'Mezzi di trasporto'!E24,'Foglio Input_Pallet'!$I$97='menu tendina'!$A$9,'Foglio Input_Pallet'!$G$97*'Foglio Input_Pallet'!$G$10*'Mezzi di trasporto'!F24,'Foglio Input_Pallet'!$I$97='menu tendina'!$A$10,'Foglio Input_Pallet'!$G$97*'Foglio Input_Pallet'!$G$10*'Mezzi di trasporto'!G24,'Foglio Input_Pallet'!$I$97='menu tendina'!$A$11,'Foglio Input_Pallet'!$G$10*'Mezzi di trasporto'!E24*'Altri valori_default'!$B$5) -> 3.16381635e-08
B57: Non-cancer human health effects | C57: CTUh | D57: =_xlfn.IFS('Foglio Input_Pallet'!$I$97='menu tendina'!$A$6,'Foglio Input_Pallet'!$G$97*'Foglio Input_Pallet'!$G$10*'Mezzi di trasporto'!C25,'Foglio Input_Pallet'!$I$97='menu tendina'!$A$7,'Foglio Input_Pallet'!$G$97*'Foglio Input_Pallet'!$G$10*'Mezzi di trasporto'!D25,'Foglio Input_Pallet'!$I$97='menu tendina'!$A$8,'Foglio Input_Pallet'!$G$97*'Foglio Input_Pallet'!$G$10*'Mezzi di trasporto'!E25,'Foglio Input_Pallet'!$I$97='menu tendina'!$A$9,'Foglio Input_Pallet'!$G$97*'Foglio Input_Pallet'!$G$10*'Mezzi di trasporto'!F25,'Foglio Input_Pallet'!$I$97='menu tendina'!$A$10,'Foglio Input_Pallet'!$G$97*'Foglio Input_Pallet'!$G$10*'Mezzi di trasporto'!G25,'Foglio Input_Pallet'!$I$97='menu tendina'!$A$11,'Foglio Input_Pallet'!$G$10*'Mezzi di trasporto'!E25*'Altri valori_default'!$B$5) -> 6.14010346e-08
B58: Cancer human health effects | C58: CTUh | D58: =_xlfn.IFS('Foglio Input_Pallet'!$I$97='menu tendina'!$A$6,'Foglio Input_Pallet'!$G$97*'Foglio Input_Pallet'!$G$10*'Mezzi di trasporto'!C26,'Foglio Input_Pallet'!$I$97='menu tendina'!$A$7,'Foglio Input_Pallet'!$G$97*'Foglio Input_Pallet'!$G$10*'Mezzi di trasporto'!D26,'Foglio Input_Pallet'!$I$97='menu tendina'!$A$8,'Foglio Input_Pallet'!$G$97*'Foglio Input_Pallet'!$G$10*'Mezzi di trasporto'!E26,'Foglio Input_Pallet'!$I$97='menu tendina'!$A$9,'Foglio Input_Pallet'!$G$97*'Foglio Input_Pallet'!$G$10*'Mezzi di trasporto'!F26,'Foglio Input_Pallet'!$I$97='menu tendina'!$A$10,'Foglio Input_Pallet'!$G$97*'Foglio Input_Pallet'!$G$10*'Mezzi di trasporto'!G26,'Foglio Input_Pallet'!$I$97='menu tendina'!$A$11,'Foglio Input_Pallet'!$G$10*'Mezzi di trasporto'!E26*'Altri valori_default'!$B$5) -> 6.12553046e-09
B59: Acidification terrestrial and freshwater | C59: mol H+ eq | D59: =_xlfn.IFS('Foglio Input_Pallet'!$I$97='menu tendina'!$A$6,'Foglio Input_Pallet'!$G$97*'Foglio Input_Pallet'!$G$10*'Mezzi di trasporto'!C27,'Foglio Input_Pallet'!$I$97='menu tendina'!$A$7,'Foglio Input_Pallet'!$G$97*'Foglio Input_Pallet'!$G$10*'Mezzi di trasporto'!D27,'Foglio Input_Pallet'!$I$97='menu tendina'!$A$8,'Foglio Input_Pallet'!$G$97*'Foglio Input_Pallet'!$G$10*'Mezzi di trasporto'!E27,'Foglio Input_Pallet'!$I$97='menu tendina'!$A$9,'Foglio Input_Pallet'!$G$97*'Foglio Input_Pallet'!$G$10*'Mezzi di trasporto'!F27,'Foglio Input_Pallet'!$I$97='menu tendina'!$A$10,'Foglio Input_Pallet'!$G$97*'Foglio Input_Pallet'!$G$10*'Mezzi di trasporto'!G27,'Foglio Input_Pallet'!$I$97='menu tendina'!$A$11,'Foglio Input_Pallet'!$G$10*'Mezzi di trasporto'!E27*'Altri valori_default'!$B$5) -> 0.001723779522
B60: Eutrophication freshwater | C60: kg P eq | D60: =_xlfn.IFS('Foglio Input_Pallet'!$I$97='menu tendina'!$A$6,'Foglio Input_Pallet'!$G$97*'Foglio Input_Pallet'!$G$10*'Mezzi di trasporto'!C28,'Foglio Input_Pallet'!$I$97='menu tendina'!$A$7,'Foglio Input_Pallet'!$G$97*'Foglio Input_Pallet'!$G$10*'Mezzi di trasporto'!D28,'Foglio Input_Pallet'!$I$97='menu tendina'!$A$8,'Foglio Input_Pallet'!$G$97*'Foglio Input_Pallet'!$G$10*'Mezzi di trasporto'!E28,'Foglio Input_Pallet'!$I$97='menu tendina'!$A$9,'Foglio Input_Pallet'!$G$97*'Foglio Input_Pallet'!$G$10*'Mezzi di trasporto'!F28,'Foglio Input_Pallet'!$I$97='menu tendina'!$A$10,'Foglio Input_Pallet'!$G$97*'Foglio Input_Pallet'!$G$10*'Mezzi di trasporto'!G28,'Foglio Input_Pallet'!$I$97='menu tendina'!$A$11,'Foglio Input_Pallet'!$G$10*'Mezzi di trasporto'!E28*'Altri valori_default'!$B$5) -> 2.238701258e-05
B61: Eutrophication marine | C61: kg N eq | D61: =_xlfn.IFS('Foglio Input_Pallet'!$I$97='menu tendina'!$A$6,'Foglio Input_Pallet'!$G$97*'Foglio Input_Pallet'!$G$10*'Mezzi di trasporto'!C29,'Foglio Input_Pallet'!$I$97='menu tendina'!$A$7,'Foglio Input_Pallet'!$G$97*'Foglio Input_Pallet'!$G$10*'Mezzi di trasporto'!D29,'Foglio Input_Pallet'!$I$97='menu tendina'!$A$8,'Foglio Input_Pallet'!$G$97*'Foglio Input_Pallet'!$G$10*'Mezzi di trasporto'!E29,'Foglio Input_Pallet'!$I$97='menu tendina'!$A$9,'Foglio Input_Pallet'!$G$97*'Foglio Input_Pallet'!$G$10*'Mezzi di trasporto'!F29,'Foglio Input_Pallet'!$I$97='menu tendina'!$A$10,'Foglio Input_Pallet'!$G$97*'Foglio Input_Pallet'!$G$10*'Mezzi di trasporto'!G29,'Foglio Input_Pallet'!$I$97='menu tendina'!$A$11,'Foglio Input_Pallet'!$G$10*'Mezzi di trasporto'!E29*'Altri valori_default'!$B$5) -> 0.000597088946
B62: Eutrophication terrestrial | C62: mol N eq | D62: =_xlfn.IFS('Foglio Input_Pallet'!$I$97='menu tendina'!$A$6,'Foglio Input_Pallet'!$G$97*'Foglio Input_Pallet'!$G$10*'Mezzi di trasporto'!C30,'Foglio Input_Pallet'!$I$97='menu tendina'!$A$7,'Foglio Input_Pallet'!$G$97*'Foglio Input_Pallet'!$G$10*'Mezzi di trasporto'!D30,'Foglio Input_Pallet'!$I$97='menu tendina'!$A$8,'Foglio Input_Pallet'!$G$97*'Foglio Input_Pallet'!$G$10*'Mezzi di trasporto'!E30,'Foglio Input_Pallet'!$I$97='menu tendina'!$A$9,'Foglio Input_Pallet'!$G$97*'Foglio Input_Pallet'!$G$10*'Mezzi di trasporto'!F30,'Foglio Input_Pallet'!$I$97='menu tendina'!$A$10,'Foglio Input_Pallet'!$G$97*'Foglio Input_Pallet'!$G$10*'Mezzi di trasporto'!G30,'Foglio Input_Pallet'!$I$97='menu tendina'!$A$11,'Foglio Input_Pallet'!$G$10*'Mezzi di trasporto'!E30*'Altri valori_default'!$B$5) -> 0.00652530452
B63: Ecotoxicity freshwater | C63: CTUe | D63: =_xlfn.IFS('Foglio Input_Pallet'!$I$97='menu tendina'!$A$6,'Foglio Input_Pallet'!$G$97*'Foglio Input_Pallet'!$G$10*'Mezzi di trasporto'!C31,'Foglio Input_Pallet'!$I$97='menu tendina'!$A$7,'Foglio Input_Pallet'!$G$97*'Foglio Input_Pallet'!$G$10*'Mezzi di trasporto'!D31,'Foglio Input_Pallet'!$I$97='menu tendina'!$A$8,'Foglio Input_Pallet'!$G$97*'Foglio Input_Pallet'!$G$10*'Mezzi di trasporto'!E31,'Foglio Input_Pallet'!$I$97='menu tendina'!$A$9,'Foglio Input_Pallet'!$G$97*'Foglio Input_Pallet'!$G$10*'Mezzi di trasporto'!F31,'Foglio Input_Pallet'!$I$97='menu tendina'!$A$10,'Foglio Input_Pallet'!$G$97*'Foglio Input_Pallet'!$G$10*'Mezzi di trasporto'!G31,'Foglio Input_Pallet'!$I$97='menu tendina'!$A$11,'Foglio Input_Pallet'!$G$10*'Mezzi di trasporto'!E31*'Altri valori_default'!$B$5) -> 1.214017882
B64: Land use | C64: Pt | D64: =_xlfn.IFS('Foglio Input_Pallet'!$I$97='menu tendina'!$A$6,'Foglio Input_Pallet'!$G$97*'Foglio Input_Pallet'!$G$10*'Mezzi di trasporto'!C32,'Foglio Input_Pallet'!$I$97='menu tendina'!$A$7,'Foglio Input_Pallet'!$G$97*'Foglio Input_Pallet'!$G$10*'Mezzi di trasporto'!D32,'Foglio Input_Pallet'!$I$97='menu tendina'!$A$8,'Foglio Input_Pallet'!$G$97*'Foglio Input_Pallet'!$G$10*'Mezzi di trasporto'!E32,'Foglio Input_Pallet'!$I$97='menu tendina'!$A$9,'Foglio Input_Pallet'!$G$97*'Foglio Input_Pallet'!$G$10*'Mezzi di trasporto'!F32,'Foglio Input_Pallet'!$I$97='menu tendina'!$A$10,'Foglio Input_Pallet'!$G$97*'Foglio Input_Pallet'!$G$10*'Mezzi di trasporto'!G32,'Foglio Input_Pallet'!$I$97='menu tendina'!$A$11,'Foglio Input_Pallet'!$G$10*'Mezzi di trasporto'!E32*'Altri valori_default'!$B$5) -> 9.49577174
B65: Water scarcity | C65: m3 depriv. | D65: =_xlfn.IFS('Foglio Input_Pallet'!$I$97='menu tendina'!$A$6,'Foglio Input_Pallet'!$G$97*'Foglio Input_Pallet'!$G$10*'Mezzi di trasporto'!C33,'Foglio Input_Pallet'!$I$97='menu tendina'!$A$7,'Foglio Input_Pallet'!$G$97*'Foglio Input_Pallet'!$G$10*'Mezzi di trasporto'!D33,'Foglio Input_Pallet'!$I$97='menu tendina'!$A$8,'Foglio Input_Pallet'!$G$97*'Foglio Input_Pallet'!$G$10*'Mezzi di trasporto'!E33,'Foglio Input_Pallet'!$I$97='menu tendina'!$A$9,'Foglio Input_Pallet'!$G$97*'Foglio Input_Pallet'!$G$10*'Mezzi di trasporto'!F33,'Foglio Input_Pallet'!$I$97='menu tendina'!$A$10,'Foglio Input_Pallet'!$G$97*'Foglio Input_Pallet'!$G$10*'Mezzi di trasporto'!G33,'Foglio Input_Pallet'!$I$97='menu tendina'!$A$11,'Foglio Input_Pallet'!$G$10*'Mezzi di trasporto'!E33*'Altri valori_default'!$B$5) -> 0.0176898303
B66: Resource use, energy carriers | C66: MJ | D66: =_xlfn.IFS('Foglio Input_Pallet'!$I$97='menu tendina'!$A$6,'Foglio Input_Pallet'!$G$97*'Foglio Input_Pallet'!$G$10*'Mezzi di trasporto'!C34,'Foglio Input_Pallet'!$I$97='menu tendina'!$A$7,'Foglio Input_Pallet'!$G$97*'Foglio Input_Pallet'!$G$10*'Mezzi di trasporto'!D34,'Foglio Input_Pallet'!$I$97='menu tendina'!$A$8,'Foglio Input_Pallet'!$G$97*'Foglio Input_Pallet'!$G$10*'Mezzi di trasporto'!E34,'Foglio Input_Pallet'!$I$97='menu tendina'!$A$9,'Foglio Input_Pallet'!$G$97*'Foglio Input_Pallet'!$G$10*'Mezzi di trasporto'!F34,'Foglio Input_Pallet'!$I$97='menu tendina'!$A$10,'Foglio Input_Pallet'!$G$97*'Foglio Input_Pallet'!$G$10*'Mezzi di trasporto'!G34,'Foglio Input_Pallet'!$I$97='menu tendina'!$A$11,'Foglio Input_Pallet'!$G$10*'Mezzi di trasporto'!E34*'Altri valori_default'!$B$5) -> 5.35877976
B67: Resource use, mineral and metals | C67: kg Sb eq | D67: =_xlfn.IFS('Foglio Input_Pallet'!$I$97='menu tendina'!$A$6,'Foglio Input_Pallet'!$G$97*'Foglio Input_Pallet'!$G$10*'Mezzi di trasporto'!C35,'Foglio Input_Pallet'!$I$97='menu tendina'!$A$7,'Foglio Input_Pallet'!$G$97*'Foglio Input_Pallet'!$G$10*'Mezzi di trasporto'!D35,'Foglio Input_Pallet'!$I$97='menu tendina'!$A$8,'Foglio Input_Pallet'!$G$97*'Foglio Input_Pallet'!$G$10*'Mezzi di trasporto'!E35,'Foglio Input_Pallet'!$I$97='menu tendina'!$A$9,'Foglio Input_Pallet'!$G$97*'Foglio Input_Pallet'!$G$10*'Mezzi di trasporto'!F35,'Foglio Input_Pallet'!$I$97='menu tendina'!$A$10,'Foglio Input_Pallet'!$G$97*'Foglio Input_Pallet'!$G$10*'Mezzi di trasporto'!G35,'Foglio Input_Pallet'!$I$97='menu tendina'!$A$11,'Foglio Input_Pallet'!$G$10*'Mezzi di trasporto'!E35*'Altri valori_default'!$B$5) -> 8.06556992e-07
B68: Climate change - fossil | C68: kg CO2 eq | D68: =_xlfn.IFS('Foglio Input_Pallet'!$I$97='menu tendina'!$A$6,'Foglio Input_Pallet'!$G$97*'Foglio Input_Pallet'!$G$10*'Mezzi di trasporto'!C36,'Foglio Input_Pallet'!$I$97='menu tendina'!$A$7,'Foglio Input_Pallet'!$G$97*'Foglio Input_Pallet'!$G$10*'Mezzi di trasporto'!D36,'Foglio Input_Pallet'!$I$97='menu tendina'!$A$8,'Foglio Input_Pallet'!$G$97*'Foglio Input_Pallet'!$G$10*'Mezzi di trasporto'!E36,'Foglio Input_Pallet'!$I$97='menu tendina'!$A$9,'Foglio Input_Pallet'!$G$97*'Foglio Input_Pallet'!$G$10*'Mezzi di trasporto'!F36,'Foglio Input_Pallet'!$I$97='menu tendina'!$A$10,'Foglio Input_Pallet'!$G$97*'Foglio Input_Pallet'!$G$10*'Mezzi di trasporto'!G36,'Foglio Input_Pallet'!$I$97='menu tendina'!$A$11,'Foglio Input_Pallet'!$G$10*'Mezzi di trasporto'!E36*'Altri valori_default'!$B$5) -> 0.3411268094
B69: Climate change - biogenic | C69: kg CO2 eq | D69: =_xlfn.IFS('Foglio Input_Pallet'!$I$97='menu tendina'!$A$6,'Foglio Input_Pallet'!$G$97*'Foglio Input_Pallet'!$G$10*'Mezzi di trasporto'!C37,'Foglio Input_Pallet'!$I$97='menu tendina'!$A$7,'Foglio Input_Pallet'!$G$97*'Foglio Input_Pallet'!$G$10*'Mezzi di trasporto'!D37,'Foglio Input_Pallet'!$I$97='menu tendina'!$A$8,'Foglio Input_Pallet'!$G$97*'Foglio Input_Pallet'!$G$10*'Mezzi di trasporto'!E37,'Foglio Input_Pallet'!$I$97='menu tendina'!$A$9,'Foglio Input_Pallet'!$G$97*'Foglio Input_Pallet'!$G$10*'Mezzi di trasporto'!F37,'Foglio Input_Pallet'!$I$97='menu tendina'!$A$10,'Foglio Input_Pallet'!$G$97*'Foglio Input_Pallet'!$G$10*'Mezzi di trasporto'!G37,'Foglio Input_Pallet'!$I$97='menu tendina'!$A$11,'Foglio Input_Pallet'!$G$10*'Mezzi di trasporto'!E37*'Altri valori_default'!$B$5) -> 0.0001168654394
B70: Climate change - land use and transform. | C70: kg CO2 eq | D70: =_xlfn.IFS('Foglio Input_Pallet'!$I$97='menu tendina'!$A$6,'Foglio Input_Pallet'!$G$97*'Foglio Input_Pallet'!$G$10*'Mezzi di trasporto'!C38,'Foglio Input_Pallet'!$I$97='menu tendina'!$A$7,'Foglio Input_Pallet'!$G$97*'Foglio Input_Pallet'!$G$10*'Mezzi di trasporto'!D38,'Foglio Input_Pallet'!$I$97='menu tendina'!$A$8,'Foglio Input_Pallet'!$G$97*'Foglio Input_Pallet'!$G$10*'Mezzi di trasporto'!E38,'Foglio Input_Pallet'!$I$97='menu tendina'!$A$9,'Foglio Input_Pallet'!$G$97*'Foglio Input_Pallet'!$G$10*'Mezzi di trasporto'!F38,'Foglio Input_Pallet'!$I$97='menu tendina'!$A$10,'Foglio Input_Pallet'!$G$97*'Foglio Input_Pallet'!$G$10*'Mezzi di trasporto'!G38,'Foglio Input_Pallet'!$I$97='menu tendina'!$A$11,'Foglio Input_Pallet'!$G$10*'Mezzi di trasporto'!E38*'Altri valori_default'!$B$5) -> 9.59342034e-05
B72: Fase d'uso (manutenzione)
B73: Categoria di impatto | C73: Unità di misura | D73: Totale Fase d'uso | E73: Trasporto a riparazione | F73: Materie prime riparazione | G73: Rifiuti riparazione | H73: Fitotrattamento
B74: Climate change | C74: kg CO2 eq | D74: =SUM(E74:H74)/22 -> 0.01000026499 | E74: =_xlfn.IFS('Foglio Input_Pallet'!$G$14='menu tendina'!$A$3,0,'Foglio Input_Pallet'!$G$14='menu tendina'!$A$2,'Mezzi di trasporto'!H20*'Altri valori_default'!$B$8) -> 0.016607419 | F74: =_xlfn.IFS('Foglio Input_Pallet'!$G$14='menu tendina'!$A$3,0,'Foglio Input_Pallet'!$G$14='menu tendina'!$A$2,SUM(Riparazione_default!C21+Riparazione_default!D21+Riparazione_default!E21+Riparazione_default!F21))/'Foglio Input_Pallet'!$G$15 -> 0.06956073917 | G74: =_xlfn.IFS('Foglio Input_Pallet'!$G$14='menu tendina'!$A$3,0,'Foglio Input_Pallet'!$G$14='menu tendina'!$A$2,SUM(Riparazione_default!D21+Riparazione_default!E21+Riparazione_default!F21+Riparazione_default!G21))/'Foglio Input_Pallet'!$G$15 -> 0.08933767826 | H74: =_xlfn.IFS('Foglio Input_Pallet'!$G$14='menu tendina'!$A$3,0,'Foglio Input_Pallet'!$G$14='menu tendina'!$A$2,SUM(Riparazione_default!E21+Riparazione_default!F21+Riparazione_default!G21+Riparazione_default!H21))/'Foglio Input_Pallet'!$G$15 -> 0.04449999326
B75: Ozone depletion | C75: kg CFC11 eq | D75: =SUM(E75:H75) -> 2.384467925e-08 | E75: =_xlfn.IFS('Foglio Input_Pallet'!$G$14='menu tendina'!$A$3,0,'Foglio Input_Pallet'!$G$14='menu tendina'!$A$2,'Mezzi di trasporto'!H21*'Altri valori_default'!$B$8) -> 3.7686715e-09 | F75: =_xlfn.IFS('Foglio Input_Pallet'!$G$14='menu tendina'!$A$3,0,'Foglio Input_Pallet'!$G$14='menu tendina'!$A$2,SUM(Riparazione_default!C22+Riparazione_default!D22+Riparazione_default!E22+Riparazione_default!F22))/'Foglio Input_Pallet'!$G$15 -> 5.783502795e-09 | G75: =_xlfn.IFS('Foglio Input_Pallet'!$G$14='menu tendina'!$A$3,0,'Foglio Input_Pallet'!$G$14='menu tendina'!$A$2,SUM(Riparazione_default!D22+Riparazione_default!E22+Riparazione_default!F22+Riparazione_default!G22))/'Foglio Input_Pallet'!$G$15 -> 8.285938022e-09 | H75: =_xlfn.IFS('Foglio Input_Pallet'!$G$14='menu tendina'!$A$3,0,'Foglio Input_Pallet'!$G$14='menu tendina'!$A$2,SUM(Riparazione_default!E22+Riparazione_default!F22+Riparazione_default!G22+Riparazione_default!H22))/'Foglio Input_Pallet'!$G$15 -> 6.006566931e-09
B76: Ionising radiation, HH | C76: kBq U-235 eq | D76: 0.02704528767 | E76: =_xlfn.IFS('Foglio Input_Pallet'!$G$14='menu tendina'!$A$3,0,'Foglio Input_Pallet'!$G$14='menu tendina'!$A$2,'Mezzi di trasporto'!H22*'Altri valori_default'!$B$8) -> 0.0013106348 | F76: =_xlfn.IFS('Foglio Input_Pallet'!$G$14='menu tendina'!$A$3,0,'Foglio Input_Pallet'!$G$14='menu tendina'!$A$2,SUM(Riparazione_default!C23+Riparazione_default!D23+Riparazione_default!E23+Riparazione_default!F23))/'Foglio Input_Pallet'!$G$15 -> 0.009419260031 | G76: =_xlfn.IFS('Foglio Input_Pallet'!$G$14='menu tendina'!$A$3,0,'Foglio Input_Pallet'!$G$14='menu tendina'!$A$2,SUM(Riparazione_default!D23+Riparazione_default!E23+Riparazione_default!F23+Riparazione_default!G23))/'Foglio Input_Pallet'!$G$15 -> 0.01205771653 | H76: =_xlfn.IFS('Foglio Input_Pallet'!$G$14='menu tendina'!$A$3,0,'Foglio Input_Pallet'!$G$14='menu tendina'!$A$2,SUM(Riparazione_default!E23+Riparazione_default!F23+Riparazione_default!G23+Riparazione_default!H23))/'Foglio Input_Pallet'!$G$15 -> 0.004257676304
B77: Photochemical ozone formation, HH | C77: kg NMVOC eq | D77: 0.00108257215 | E77: =_xlfn.IFS('Foglio Input_Pallet'!$G$14='menu tendina'!$A$3,0,'Foglio Input_Pallet'!$G$14='menu tendina'!$A$2,'Mezzi di trasporto'!H23*'Altri valori_default'!$B$8) -> 6.7849706e-05 | F77: =_xlfn.IFS('Foglio Input_Pallet'!$G$14='menu tendina'!$A$3,0,'Foglio Input_Pallet'!$G$14='menu tendina'!$A$2,SUM(Riparazione_default!C24+Riparazione_default!D24+Riparazione_default!E24+Riparazione_default!F24))/'Foglio Input_Pallet'!$G$15 -> 0.0004229932451 | G77: =_xlfn.IFS('Foglio Input_Pallet'!$G$14='menu tendina'!$A$3,0,'Foglio Input_Pallet'!$G$14='menu tendina'!$A$2,SUM(Riparazione_default!D24+Riparazione_default!E24+Riparazione_default!F24+Riparazione_default!G24))/'Foglio Input_Pallet'!$G$15 -> 0.0004225054451 | H77: =_xlfn.IFS('Foglio Input_Pallet'!$G$14='menu tendina'!$A$3,0,'Foglio Input_Pallet'!$G$14='menu tendina'!$A$2,SUM(Riparazione_default!E24+Riparazione_default!F24+Riparazione_default!G24+Riparazione_default!H24))/'Foglio Input_Pallet'!$G$15 -> 0.0001692237542
B78: Respiratory inorganics | C78: disease inc. | D78: 2.657284257e-08 | E78: =_xlfn.IFS('Foglio Input_Pallet'!$G$14='menu tendina'!$A$3,0,'Foglio Input_Pallet'!$G$14='menu tendina'!$A$2,'Mezzi di trasporto'!H24*'Altri valori_default'!$B$8) -> 1.149146e-09 | F78: =_xlfn.IFS('Foglio Input_Pallet'!$G$14='menu tendina'!$A$3,0,'Foglio Input_Pallet'!$G$14='menu tendina'!$A$2,SUM(Riparazione_default!C25+Riparazione_default!D25+Riparazione_default!E25+Riparazione_default!F25))/'Foglio Input_Pallet'!$G$15 -> 1.220437964e-08 | G78: =_xlfn.IFS('Foglio Input_Pallet'!$G$14='menu tendina'!$A$3,0,'Foglio Input_Pallet'!$G$14='menu tendina'!$A$2,SUM(Riparazione_default!D25+Riparazione_default!E25+Riparazione_default!F25+Riparazione_default!G25))/'Foglio Input_Pallet'!$G$15 -> 1.115204214e-08 | H78: =_xlfn.IFS('Foglio Input_Pallet'!$G$14='menu tendina'!$A$3,0,'Foglio Input_Pallet'!$G$14='menu tendina'!$A$2,SUM(Riparazione_default!E25+Riparazione_default!F25+Riparazione_default!G25+Riparazione_default!H25))/'Foglio Input_Pallet'!$G$15 -> 2.06727478e-09
B79: Non-cancer human health effects | C79: CTUh | D79: 3.731693821e-08 | E79: =_xlfn.IFS('Foglio Input_Pallet'!$G$14='menu tendina'!$A$3,0,'Foglio Input_Pallet'!$G$14='menu tendina'!$A$2,'Mezzi di trasporto'!H25*'Altri valori_default'!$B$8) -> 2.4034287e-09 | F79: =_xlfn.IFS('Foglio Input_Pallet'!$G$14='menu tendina'!$A$3,0,'Foglio Input_Pallet'!$G$14='menu tendina'!$A$2,SUM(Riparazione_default!C26+Riparazione_default!D26+Riparazione_default!E26+Riparazione_default!F26))/'Foglio Input_Pallet'!$G$15 -> 1.566210006e-08 | G79: =_xlfn.IFS('Foglio Input_Pallet'!$G$14='menu tendina'!$A$3,0,'Foglio Input_Pallet'!$G$14='menu tendina'!$A$2,SUM(Riparazione_default!D26+Riparazione_default!E26+Riparazione_default!F26+Riparazione_default!G26))/'Foglio Input_Pallet'!$G$15 -> 1.549253184e-08 | H79: =_xlfn.IFS('Foglio Input_Pallet'!$G$14='menu tendina'!$A$3,0,'Foglio Input_Pallet'!$G$14='menu tendina'!$A$2,SUM(Riparazione_default!E26+Riparazione_default!F26+Riparazione_default!G26+Riparazione_default!H26))/'Foglio Input_Pallet'!$G$15 -> 3.758877609e-09
B80: Cancer human health effects | C80: CTUh | D80: 3.251733762e-08 | E80: =_xlfn.IFS('Foglio Input_Pallet'!$G$14='menu tendina'!$A$3,0,'Foglio Input_Pallet'!$G$14='menu tendina'!$A$2,'Mezzi di trasporto'!H26*'Altri valori_default'!$B$8) -> 3.2664593e-10 | F80: =_xlfn.IFS('Foglio Input_Pallet'!$G$14='menu tendina'!$A$3,0,'Foglio Input_Pallet'!$G$14='menu tendina'!$A$2,SUM(Riparazione_default!C27+Riparazione_default!D27+Riparazione_default!E27+Riparazione_default!F27))/'Foglio Input_Pallet'!$G$15 -> 1.129740457e-08 | G80: =_xlfn.IFS('Foglio Input_Pallet'!$G$14='menu tendina'!$A$3,0,'Foglio Input_Pallet'!$G$14='menu tendina'!$A$2,SUM(Riparazione_default!D27+Riparazione_default!E27+Riparazione_default!F27+Riparazione_default!G27))/'Foglio Input_Pallet'!$G$15 -> 1.11935064e-08 | H80: =_xlfn.IFS('Foglio Input_Pallet'!$G$14='menu tendina'!$A$3,0,'Foglio Input_Pallet'!$G$14='menu tendina'!$A$2,SUM(Riparazione_default!E27+Riparazione_default!F27+Riparazione_default!G27+Riparazione_default!H27))/'Foglio Input_Pallet'!$G$15 -> 9.699780709e-09
B81: Acidification terrestrial and freshwater | C81: mol H+ eq | D81: 0.001096843568 | E81: =_xlfn.IFS('Foglio Input_Pallet'!$G$14='menu tendina'!$A$3,0,'Foglio Input_Pallet'!$G$14='menu tendina'!$A$2,'Mezzi di trasporto'!H27*'Altri valori_default'!$B$8) -> 6.6451457e-05 | F81: =_xlfn.IFS('Foglio Input_Pallet'!$G$14='menu tendina'!$A$3,0,'Foglio Input_Pallet'!$G$14='menu tendina'!$A$2,SUM(Riparazione_default!C28+Riparazione_default!D28+Riparazione_default!E28+Riparazione_default!F28))/'Foglio Input_Pallet'!$G$15 -> 0.0003797887871 | G81: =_xlfn.IFS('Foglio Input_Pallet'!$G$14='menu tendina'!$A$3,0,'Foglio Input_Pallet'!$G$14='menu tendina'!$A$2,SUM(Riparazione_default!D28+Riparazione_default!E28+Riparazione_default!F28+Riparazione_default!G28))/'Foglio Input_Pallet'!$G$15 -> 0.000446194219 | H81: =_xlfn.IFS('Foglio Input_Pallet'!$G$14='menu tendina'!$A$3,0,'Foglio Input_Pallet'!$G$14='menu tendina'!$A$2,SUM(Riparazione_default!E28+Riparazione_default!F28+Riparazione_default!G28+Riparazione_default!H28))/'Foglio Input_Pallet'!$G$15 -> 0.0002044091053
B82: Eutrophication freshwater | C82: kg P eq | D82: 6.940462513e-05 | E82: =_xlfn.IFS('Foglio Input_Pallet'!$G$14='menu tendina'!$A$3,0,'Foglio Input_Pallet'!$G$14='menu tendina'!$A$2,'Mezzi di trasporto'!H28*'Altri valori_default'!$B$8) -> 1.1146833e-06 | F82: =_xlfn.IFS('Foglio Input_Pallet'!$G$14='menu tendina'!$A$3,0,'Foglio Input_Pallet'!$G$14='menu tendina'!$A$2,SUM(Riparazione_default!C29+Riparazione_default!D29+Riparazione_default!E29+Riparazione_default!F29))/'Foglio Input_Pallet'!$G$15 -> 2.725825206e-05 | G82: =_xlfn.IFS('Foglio Input_Pallet'!$G$14='menu tendina'!$A$3,0,'Foglio Input_Pallet'!$G$14='menu tendina'!$A$2,SUM(Riparazione_default!D29+Riparazione_default!E29+Riparazione_default!F29+Riparazione_default!G29))/'Foglio Input_Pallet'!$G$15 -> 3.16916722e-05 | H82: =_xlfn.IFS('Foglio Input_Pallet'!$G$14='menu tendina'!$A$3,0,'Foglio Input_Pallet'!$G$14='menu tendina'!$A$2,SUM(Riparazione_default!E29+Riparazione_default!F29+Riparazione_default!G29+Riparazione_default!H29))/'Foglio Input_Pallet'!$G$15 -> 9.340017577e-06
B83: Eutrophication marine | C83: kg N eq | D83: 0.0002759419842 | E83: =_xlfn.IFS('Foglio Input_Pallet'!$G$14='menu tendina'!$A$3,0,'Foglio Input_Pallet'!$G$14='menu tendina'!$A$2,'Mezzi di trasporto'!H29*'Altri valori_default'!$B$8) -> 2.0347118e-05 | F83: =_xlfn.IFS('Foglio Input_Pallet'!$G$14='menu tendina'!$A$3,0,'Foglio Input_Pallet'!$G$14='menu tendina'!$A$2,SUM(Riparazione_default!C30+Riparazione_default!D30+Riparazione_default!E30+Riparazione_default!F30))/'Foglio Input_Pallet'!$G$15 -> 0.0001003068491 | G83: =_xlfn.IFS('Foglio Input_Pallet'!$G$14='menu tendina'!$A$3,0,'Foglio Input_Pallet'!$G$14='menu tendina'!$A$2,SUM(Riparazione_default!D30+Riparazione_default!E30+Riparazione_default!F30+Riparazione_default!G30))/'Foglio Input_Pallet'!$G$15 -> 0.0001002657936 | H83: =_xlfn.IFS('Foglio Input_Pallet'!$G$14='menu tendina'!$A$3,0,'Foglio Input_Pallet'!$G$14='menu tendina'!$A$2,SUM(Riparazione_default!E30+Riparazione_default!F30+Riparazione_default!G30+Riparazione_default!H30))/'Foglio Input_Pallet'!$G$15 -> 5.50222236e-05
B84: Eutrophication terrestrial | C84: mol N eq | D84: 0.002871942294 | E84: =_xlfn.IFS('Foglio Input_Pallet'!$G$14='menu tendina'!$A$3,0,'Foglio Input_Pallet'!$G$14='menu tendina'!$A$2,'Mezzi di trasporto'!H30*'Altri valori_default'!$B$8) -> 0.00022200957 | F84: =_xlfn.IFS('Foglio Input_Pallet'!$G$14='menu tendina'!$A$3,0,'Foglio Input_Pallet'!$G$14='menu tendina'!$A$2,SUM(Riparazione_default!C31+Riparazione_default!D31+Riparazione_default!E31+Riparazione_default!F31))/'Foglio Input_Pallet'!$G$15 -> 0.001063641126 | G84: =_xlfn.IFS('Foglio Input_Pallet'!$G$14='menu tendina'!$A$3,0,'Foglio Input_Pallet'!$G$14='menu tendina'!$A$2,SUM(Riparazione_default!D31+Riparazione_default!E31+Riparazione_default!F31+Riparazione_default!G31))/'Foglio Input_Pallet'!$G$15 -> 0.001064366272 | H84: =_xlfn.IFS('Foglio Input_Pallet'!$G$14='menu tendina'!$A$3,0,'Foglio Input_Pallet'!$G$14='menu tendina'!$A$2,SUM(Riparazione_default!E31+Riparazione_default!F31+Riparazione_default!G31+Riparazione_default!H31))/'Foglio Input_Pallet'!$G$15 -> 0.0005219253262
B85: Ecotoxicity freshwater | C85: CTUe | D85: 0.5360409967 | E85: =_xlfn.IFS('Foglio Input_Pallet'!$G$14='menu tendina'!$A$3,0,'Foglio Input_Pallet'!$G$14='menu tendina'!$A$2,'Mezzi di trasporto'!H31*'Altri valori_default'!$B$8) -> 0.044051207 | F85: =_xlfn.IFS('Foglio Input_Pallet'!$G$14='menu tendina'!$A$3,0,'Foglio Input_Pallet'!$G$14='menu tendina'!$A$2,SUM(Riparazione_default!C32+Riparazione_default!D32+Riparazione_default!E32+Riparazione_default!F32))/'Foglio Input_Pallet'!$G$15 -> 0.1960375841 | G85: =_xlfn.IFS('Foglio Input_Pallet'!$G$14='menu tendina'!$A$3,0,'Foglio Input_Pallet'!$G$14='menu tendina'!$A$2,SUM(Riparazione_default!D32+Riparazione_default!E32+Riparazione_default!F32+Riparazione_default!G32))/'Foglio Input_Pallet'!$G$15 -> 0.1871636328 | H85: =_xlfn.IFS('Foglio Input_Pallet'!$G$14='menu tendina'!$A$3,0,'Foglio Input_Pallet'!$G$14='menu tendina'!$A$2,SUM(Riparazione_default!E32+Riparazione_default!F32+Riparazione_default!G32+Riparazione_default!H32))/'Foglio Input_Pallet'!$G$15 -> 0.1087885728
B86: Land use | C86: Pt | D86: 47.70349746 | E86: =_xlfn.IFS('Foglio Input_Pallet'!$G$14='menu tendina'!$A$3,0,'Foglio Input_Pallet'!$G$14='menu tendina'!$A$2,'Mezzi di trasporto'!H32*'Altri valori_default'!$B$8) -> 0.25269623 | F86: =_xlfn.IFS('Foglio Input_Pallet'!$G$14='menu tendina'!$A$3,0,'Foglio Input_Pallet'!$G$14='menu tendina'!$A$2,SUM(Riparazione_default!C33+Riparazione_default!D33+Riparazione_default!E33+Riparazione_default!F33))/'Foglio Input_Pallet'!$G$15 -> 30.24873804 | G86: =_xlfn.IFS('Foglio Input_Pallet'!$G$14='menu tendina'!$A$3,0,'Foglio Input_Pallet'!$G$14='menu tendina'!$A$2,SUM(Riparazione_default!D33+Riparazione_default!E33+Riparazione_default!F33+Riparazione_default!G33))/'Foglio Input_Pallet'!$G$15 -> 16.9953812 | H86: =_xlfn.IFS('Foglio Input_Pallet'!$G$14='menu tendina'!$A$3,0,'Foglio Input_Pallet'!$G$14='menu tendina'!$A$2,SUM(Riparazione_default!E33+Riparazione_default!F33+Riparazione_default!G33+Riparazione_default!H33))/'Foglio Input_Pallet'!$G$15 -> 0.2066819887
B87: Water scarcity | C87: m3 depriv. | D87: 0.08698218839 | E87: =_xlfn.IFS('Foglio Input_Pallet'!$G$14='menu tendina'!$A$3,0,'Foglio Input_Pallet'!$G$14='menu tendina'!$A$2,'Mezzi di trasporto'!H33*'Altri valori_default'!$B$8) -> 0.00071368632 | F87: =_xlfn.IFS('Foglio Input_Pallet'!$G$14='menu tendina'!$A$3,0,'Foglio Input_Pallet'!$G$14='menu tendina'!$A$2,SUM(Riparazione_default!C34+Riparazione_default!D34+Riparazione_default!E34+Riparazione_default!F34))/'Foglio Input_Pallet'!$G$15 -> 0.0284984536 | G87: =_xlfn.IFS('Foglio Input_Pallet'!$G$14='menu tendina'!$A$3,0,'Foglio Input_Pallet'!$G$14='menu tendina'!$A$2,SUM(Riparazione_default!D34+Riparazione_default!E34+Riparazione_default!F34+Riparazione_default!G34))/'Foglio Input_Pallet'!$G$15 -> 0.04173237273 | H87: =_xlfn.IFS('Foglio Input_Pallet'!$G$14='menu tendina'!$A$3,0,'Foglio Input_Pallet'!$G$14='menu tendina'!$A$2,SUM(Riparazione_default!E34+Riparazione_default!F34+Riparazione_default!G34+Riparazione_default!H34))/'Foglio Input_Pallet'!$G$15 -> 0.01603767575
B88: Resource use, energy carriers | C88: MJ | D88: 4.03413741 | E88: =_xlfn.IFS('Foglio Input_Pallet'!$G$14='menu tendina'!$A$3,0,'Foglio Input_Pallet'!$G$14='menu tendina'!$A$2,'Mezzi di trasporto'!H34*'Altri valori_default'!$B$8) -> 0.25102711 | F88: =_xlfn.IFS('Foglio Input_Pallet'!$G$14='menu tendina'!$A$3,0,'Foglio Input_Pallet'!$G$14='menu tendina'!$A$2,SUM(Riparazione_default!C35+Riparazione_default!D35+Riparazione_default!E35+Riparazione_default!F35))/'Foglio Input_Pallet'!$G$15 -> 1.443242156 | G88: =_xlfn.IFS('Foglio Input_Pallet'!$G$14='menu tendina'!$A$3,0,'Foglio Input_Pallet'!$G$14='menu tendina'!$A$2,SUM(Riparazione_default!D35+Riparazione_default!E35+Riparazione_default!F35+Riparazione_default!G35))/'Foglio Input_Pallet'!$G$15 -> 1.744732992 | H88: =_xlfn.IFS('Foglio Input_Pallet'!$G$14='menu tendina'!$A$3,0,'Foglio Input_Pallet'!$G$14='menu tendina'!$A$2,SUM(Riparazione_default!E35+Riparazione_default!F35+Riparazione_default!G35+Riparazione_default!H35))/'Foglio Input_Pallet'!$G$15 -> 0.5951351514
B89: Resource use, mineral and metals | C89: kg Sb eq | D89: 1.322362039e-06 | E89: =_xlfn.IFS('Foglio Input_Pallet'!$G$14='menu tendina'!$A$3,0,'Foglio Input_Pallet'!$G$14='menu tendina'!$A$2,'Mezzi di trasporto'!H35*'Altri valori_default'!$B$8) -> 5.9775049e-08 | F89: =_xlfn.IFS('Foglio Input_Pallet'!$G$14='menu tendina'!$A$3,0,'Foglio Input_Pallet'!$G$14='menu tendina'!$A$2,SUM(Riparazione_default!C36+Riparazione_default!D36+Riparazione_default!E36+Riparazione_default!F36))/'Foglio Input_Pallet'!$G$15 -> 5.568848924e-07 | G89: =_xlfn.IFS('Foglio Input_Pallet'!$G$14='menu tendina'!$A$3,0,'Foglio Input_Pallet'!$G$14='menu tendina'!$A$2,SUM(Riparazione_default!D36+Riparazione_default!E36+Riparazione_default!F36+Riparazione_default!G36))/'Foglio Input_Pallet'!$G$15 -> 5.874828015e-07 | H89: =_xlfn.IFS('Foglio Input_Pallet'!$G$14='menu tendina'!$A$3,0,'Foglio Input_Pallet'!$G$14='menu tendina'!$A$2,SUM(Riparazione_default!E36+Riparazione_default!F36+Riparazione_default!G36+Riparazione_default!H36))/'Foglio Input_Pallet'!$G$15 -> 1.18219296e-07
B90: Climate change - fossil | C90: kg CO2 eq | D90: 0.2155344155 | E90: =_xlfn.IFS('Foglio Input_Pallet'!$G$14='menu tendina'!$A$3,0,'Foglio Input_Pallet'!$G$14='menu tendina'!$A$2,'Mezzi di trasporto'!H36*'Altri valori_default'!$B$8) -> 0.016596284 | F90: =_xlfn.IFS('Foglio Input_Pallet'!$G$14='menu tendina'!$A$3,0,'Foglio Input_Pallet'!$G$14='menu tendina'!$A$2,SUM(Riparazione_default!C37+Riparazione_default!D37+Riparazione_default!E37+Riparazione_default!F37))/'Foglio Input_Pallet'!$G$15 -> 0.06881241368 | G90: =_xlfn.IFS('Foglio Input_Pallet'!$G$14='menu tendina'!$A$3,0,'Foglio Input_Pallet'!$G$14='menu tendina'!$A$2,SUM(Riparazione_default!D37+Riparazione_default!E37+Riparazione_default!F37+Riparazione_default!G37))/'Foglio Input_Pallet'!$G$15 -> 0.08828812186 | H90: =_xlfn.IFS('Foglio Input_Pallet'!$G$14='menu tendina'!$A$3,0,'Foglio Input_Pallet'!$G$14='menu tendina'!$A$2,SUM(Riparazione_default!E37+Riparazione_default!F37+Riparazione_default!G37+Riparazione_default!H37))/'Foglio Input_Pallet'!$G$15 -> 0.04183759595
B91: Climate change - biogenic | C91: kg CO2 eq | D91: 0.004117897975 | E91: =_xlfn.IFS('Foglio Input_Pallet'!$G$14='menu tendina'!$A$3,0,'Foglio Input_Pallet'!$G$14='menu tendina'!$A$2,'Mezzi di trasporto'!H37*'Altri valori_default'!$B$8) -> 5.5502553e-06 | F91: =_xlfn.IFS('Foglio Input_Pallet'!$G$14='menu tendina'!$A$3,0,'Foglio Input_Pallet'!$G$14='menu tendina'!$A$2,SUM(Riparazione_default!C38+Riparazione_default!D38+Riparazione_default!E38+Riparazione_default!F38))/'Foglio Input_Pallet'!$G$15 -> 0.0005648806918 | G91: =_xlfn.IFS('Foglio Input_Pallet'!$G$14='menu tendina'!$A$3,0,'Foglio Input_Pallet'!$G$14='menu tendina'!$A$2,SUM(Riparazione_default!D38+Riparazione_default!E38+Riparazione_default!F38+Riparazione_default!G38))/'Foglio Input_Pallet'!$G$15 -> 0.0008949877413 | H91: =_xlfn.IFS('Foglio Input_Pallet'!$G$14='menu tendina'!$A$3,0,'Foglio Input_Pallet'!$G$14='menu tendina'!$A$2,SUM(Riparazione_default!E38+Riparazione_default!F38+Riparazione_default!G38+Riparazione_default!H38))/'Foglio Input_Pallet'!$G$15 -> 0.002652479287
B92: Climate change - land use and transform. | C92: kg CO2 eq | D92: 0.0003535083461 | E92: =_xlfn.IFS('Foglio Input_Pallet'!$G$14='menu tendina'!$A$3,0,'Foglio Input_Pallet'!$G$14='menu tendina'!$A$2,'Mezzi di trasporto'!H38*'Altri valori_default'!$B$8) -> 5.5846328e-06 | F92: =_xlfn.IFS('Foglio Input_Pallet'!$G$14='menu tendina'!$A$3,0,'Foglio Input_Pallet'!$G$14='menu tendina'!$A$2,SUM(Riparazione_default!C39+Riparazione_default!D39+Riparazione_default!E39+Riparazione_default!F39))/'Foglio Input_Pallet'!$G$15 -> 0.0001834408214 | G92: =_xlfn.IFS('Foglio Input_Pallet'!$G$14='menu tendina'!$A$3,0,'Foglio Input_Pallet'!$G$14='menu tendina'!$A$2,SUM(Riparazione_default!D39+Riparazione_default!E39+Riparazione_default!F39+Riparazione_default!G39))/'Foglio Input_Pallet'!$G$15 -> 0.0001545646426 | H92: =_xlfn.IFS('Foglio Input_Pallet'!$G$14='menu tendina'!$A$3,0,'Foglio Input_Pallet'!$G$14='menu tendina'!$A$2,SUM(Riparazione_default!E39+Riparazione_default!F39+Riparazione_default!G39+Riparazione_default!H39))/'Foglio Input_Pallet'!$G$15 -> 9.91824925e-06
B94: Fine vita
B95: Categoria di impatto | C95: Unità di misura | D95: Totale fine vita | E95: Fine vita legno | F95: Fine vita metallo
B96: Climate change | C96: kg CO2 eq | D96: =SUM(E96:F96) -> -0.2405332541 | E96: ='Fine vita_default'!C16*'Foglio Input_Pallet'!$G$11/'Foglio Input_Pallet'!$G$15 -> -0.186145614 | F96: ='Fine vita_default'!D16*'Foglio Input_Pallet'!$G$11/'Foglio Input_Pallet'!$G$15 -> -0.05438764015
B97: Ozone depletion | C97: kg CFC11 eq | D97: =SUM(E97:F97) -> -3.205772365e-08 | E97: ='Fine vita_default'!C17*'Foglio Input_Pallet'!$G$11/'Foglio Input_Pallet'!$G$15 -> -2.841690505e-08 | F97: ='Fine vita_default'!D17*'Foglio Input_Pallet'!$G$11/'Foglio Input_Pallet'!$G$15 -> -3.6408186e-09
B98: Ionising radiation, HH | C98: kBq U-235 eq | D98: -0.009879299505 | E98: ='Fine vita_default'!C18*'Foglio Input_Pallet'!$G$11/'Foglio Input_Pallet'!$G$15 -> -0.008012400645 | F98: ='Fine vita_default'!D18*'Foglio Input_Pallet'!$G$11/'Foglio Input_Pallet'!$G$15 -> -0.00186689886
B99: Photochemical ozone formation, HH | C99: kg NMVOC eq | D99: -0.000837810762 | E99: ='Fine vita_default'!C19*'Foglio Input_Pallet'!$G$11/'Foglio Input_Pallet'!$G$15 -> -0.0003668906 | F99: ='Fine vita_default'!D19*'Foglio Input_Pallet'!$G$11/'Foglio Input_Pallet'!$G$15 -> -0.000470920162
B100: Respiratory inorganics | C100: disease inc. | D100: -1.721576001e-08 | E100: ='Fine vita_default'!C20*'Foglio Input_Pallet'!$G$11/'Foglio Input_Pallet'!$G$15 -> -2.593406355e-09 | F100: ='Fine vita_default'!D20*'Foglio Input_Pallet'!$G$11/'Foglio Input_Pallet'!$G$15 -> -1.462235365e-08
B101: Non-cancer human health effects | C101: CTUh | D101: -3.04643383e-08 | E101: ='Fine vita_default'!C21*'Foglio Input_Pallet'!$G$11/'Foglio Input_Pallet'!$G$15 -> -1.421958625e-08 | F101: ='Fine vita_default'!D21*'Foglio Input_Pallet'!$G$11/'Foglio Input_Pallet'!$G$15 -> -1.624475205e-08
B102: Cancer human health effects | C102: CTUh | D102: -4.24907333e-09 | E102: ='Fine vita_default'!C22*'Foglio Input_Pallet'!$G$11/'Foglio Input_Pallet'!$G$15 -> -3.083830855e-09 | F102: ='Fine vita_default'!D22*'Foglio Input_Pallet'!$G$11/'Foglio Input_Pallet'!$G$15 -> -1.165242475e-09
B103: Acidification terrestrial and freshwater | C103: mol H+ eq | D103: -0.001518654549 | E103: ='Fine vita_default'!C23*'Foglio Input_Pallet'!$G$11/'Foglio Input_Pallet'!$G$15 -> -0.00086223439 | F103: ='Fine vita_default'!D23*'Foglio Input_Pallet'!$G$11/'Foglio Input_Pallet'!$G$15 -> -0.0006564201585
B104: Eutrophication freshwater | C104: kg P eq | D104: -1.442984319e-05 | E104: ='Fine vita_default'!C24*'Foglio Input_Pallet'!$G$11/'Foglio Input_Pallet'!$G$15 -> -6.17660269e-06 | F104: ='Fine vita_default'!D24*'Foglio Input_Pallet'!$G$11/'Foglio Input_Pallet'!$G$15 -> -8.253240495e-06
B105: Eutrophication marine | C105: kg N eq | D105: -0.0003441476685 | E105: ='Fine vita_default'!C25*'Foglio Input_Pallet'!$G$11/'Foglio Input_Pallet'!$G$15 -> -9.2286285e-05 | F105: ='Fine vita_default'!D25*'Foglio Input_Pallet'!$G$11/'Foglio Input_Pallet'!$G$15 -> -0.0002518613835
B106: Eutrophication terrestrial | C106: mol N eq | D106: -0.00321537813 | E106: ='Fine vita_default'!C26*'Foglio Input_Pallet'!$G$11/'Foglio Input_Pallet'!$G$15 -> -0.00125101113 | F106: ='Fine vita_default'!D26*'Foglio Input_Pallet'!$G$11/'Foglio Input_Pallet'!$G$15 -> -0.001964367
B107: Ecotoxicity freshwater | C107: CTUe | D107: -0.1489832247 | E107: ='Fine vita_default'!C27*'Foglio Input_Pallet'!$G$11/'Foglio Input_Pallet'!$G$15 -> -0.074144922 | F107: ='Fine vita_default'!D27*'Foglio Input_Pallet'!$G$11/'Foglio Input_Pallet'!$G$15 -> -0.0748383027
B108: Land use | C108: Pt | D108: -11.22779751 | E108: ='Fine vita_default'!C28*'Foglio Input_Pallet'!$G$11/'Foglio Input_Pallet'!$G$15 -> -11.416469 | F108: ='Fine vita_default'!D28*'Foglio Input_Pallet'!$G$11/'Foglio Input_Pallet'!$G$15 -> 0.188671491
B109: Water scarcity | C109: m3 depriv. | D109: 0.0177600955 | E109: ='Fine vita_default'!C29*'Foglio Input_Pallet'!$G$11/'Foglio Input_Pallet'!$G$15 -> -0.1045683345 | F109: ='Fine vita_default'!D29*'Foglio Input_Pallet'!$G$11/'Foglio Input_Pallet'!$G$15 -> 0.12232843
B110: Resource use, energy carriers | C110: MJ | D110: -3.866551706 | E110: ='Fine vita_default'!C30*'Foglio Input_Pallet'!$G$11/'Foglio Input_Pallet'!$G$15 -> -3.162154445 | F110: ='Fine vita_default'!D30*'Foglio Input_Pallet'!$G$11/'Foglio Input_Pallet'!$G$15 -> -0.704397261
B111: Resource use, mineral and metals | C111: kg Sb eq | D111: -5.94673685e-07 | E111: ='Fine vita_default'!C31*'Foglio Input_Pallet'!$G$11/'Foglio Input_Pallet'!$G$15 -> -1.95705751e-06 | F111: ='Fine vita_default'!D31*'Foglio Input_Pallet'!$G$11/'Foglio Input_Pallet'!$G$15 -> 1.362383825e-06
B112: Climate change - fossil | C112: kg CO2 eq | D112: -0.2679882533 | E112: ='Fine vita_default'!C32*'Foglio Input_Pallet'!$G$11/'Foglio Input_Pallet'!$G$15 -> -0.213893082 | F112: ='Fine vita_default'!D32*'Foglio Input_Pallet'!$G$11/'Foglio Input_Pallet'!$G$15 -> -0.0540951713
B113: Climate change - biogenic | C113: kg CO2 eq | D113: 0.02766241343 | E113: ='Fine vita_default'!C33*'Foglio Input_Pallet'!$G$11/'Foglio Input_Pallet'!$G$15 -> 0.0278550066 | F113: ='Fine vita_default'!D33*'Foglio Input_Pallet'!$G$11/'Foglio Input_Pallet'!$G$15 -> -0.00019259317
B114: Climate change - land use and transform. | C114: kg CO2 eq | D114: -0.0002074101405 | E114: ='Fine vita_default'!C34*'Foglio Input_Pallet'!$G$11/'Foglio Input_Pallet'!$G$15 -> -0.0001075342225 | F114: ='Fine vita_default'!D34*'Foglio Input_Pallet'!$G$11/'Foglio Input_Pallet'!$G$15 -> -9.9875918e-05
B117: Risultati di potenziale impatto ambientale per fase del ciclo di vita per le categorie rilevanti
B118: Categoria di impatto | C118: Unità di misura | D118: Totale impatto del ciclo di vita | E118: Materie prime | F118: Produzione | G118: Distribuzione | H118: Manutenzione | I118: Fine vita
B119: Climate change | C119: kg CO2 eq | D119: =SUM(E119:I119) -> 0.5143162303 | E119: =(D8) -> 0.40350961 | F119: =(D30) -> 0 | G119: =(D52) -> 0.3413396094 | H119: =(D74) -> 0.01000026499 | I119: =(D96) -> -0.2405332541
C120: % | D120: =D119/$D$119 -> 1 | E120: =(E119/(ABS($D$119))) -> 0.7845554666 | F120: =(F119/(ABS($D$119))) -> 0 | G120: 0.6636765268 | H120: 0.01944380597 | I120: -0.4676757994
B121: Photochemical ozone formation, HH | C121: kg NMVOC eq | D121: =SUM(E121:I121) -> 0.004819048486 | E121: =D11 -> 0.002599136462 | F121: =D33 -> 2.870525e-05 | G121: =D55 -> 0.001946445386 | H121: =D77 -> 0.00108257215 | I121: =(D99) -> -0.000837810762
C122: % | D122: =D121/$D$121 -> 1 | E122: =E121/(ABS($D$121)) -> 0.5393464019 | F122: =F121/(ABS($D$121)) -> 0.005956621952 | G122: 0.4039065786 | H122: 0.2246443782 | I122: -0.1738539806
B123: Respiratory inorganics | C123: disease inc. | D123: =SUM(E123:I123) -> 1.16315759e-07 | E123: =D12 -> 7.489044196e-08 | F123: =D34 -> 4.300709818e-10 | G123: =D56 -> 3.16381635e-08 | H123: =D78 -> 2.657284257e-08 | I123: =(D100) -> -1.721576001e-08
C124: % | D124: =D123/$D$123 -> 1 | E124: =E123/(ABS($D$123)) -> 0.643854647 | F124: =F123/(ABS($D$123)) -> 0.003697443799 | G124: 0.2720023819 | H124: 0.2284543625 | I124: -0.1480088352
B125: Land use | C125: Pt | D125: =SUM(E125:I125) -> 553.8089328 | E125: =D20 -> 507.8374611 | F125: =D42 -> 0 | G125: =D64 -> 9.49577174 | H125: =D86 -> 47.70349746 | I125: =(D108) -> -11.22779751
C126: % | D126: =D125/$D$125 -> 1 | E126: =E125/(ABS($D$125)) -> 0.9169903753 | F126: =F125/(ABS($D$125)) -> 0 | G126: =G125/(ABS($D$125)) -> 0.01714629573 | H126: =H125/(ABS($D$125)) -> 0.08613710368 | I126: =I125/(ABS($D$125)) -> -0.02027377466
B127: Resource use, energy carriers | C127: MJ | D127: =SUM(E127:I127) -> 12.21445378 | E127: =D22 -> 6.688088321 | F127: =D44 -> 0 | G127: =D66 -> 5.35877976 | H127: =D88 -> 4.03413741 | I127: =(D110) -> -3.866551706
C128: % | D128: =D127/$D$127 -> 1 | E128: =E127/(ABS($D$127)) -> 0.5475552521 | F128: =F127/(ABS($D$127)) -> 0 | G128: 0.4387244698 | H128: 0.3302757111 | I128: -0.3165554329
B129: Resource use, mineral and metals | C129: kg Sb eq | D129: =SUM(E129:I129) -> 3.487557791e-06 | E129: =D23 -> 1.953312445e-06 | F129: =D45 -> 0 | G129: =D67 -> 8.06556992e-07 | H129: =D89 -> 1.322362039e-06 | I129: =(D111) -> -5.94673685e-07
C130: % | D130: =D129/$D$129 -> 1 | E130: =E129/(ABS($D$129)) -> 0.560080309 | F130: =F129/(ABS($D$129)) -> 0 | G130: 0.2312669898 | H130: 0.3791656277 | I130: =I129/(ABS($D$129)) -> -0.1705129264

Sheet Risultati_Confronto versioni
B2: CONFRONTO PRODOTTI PER LE CATEGORIE D'IMPATTO PIU' RILEVANTI
B4: =Risultati_P1!B2 -> Prodotto 1: Pallet "tipo A"
B5: =Risultati_P2!B2 -> Prodotto 2: Pallet "tipo B"
C28: Categorie di impatto | E28: Totale | F28: Materie prime | G28: Produzione | H28: Distribuzione | I28: Manutenzione | J28: Fine vita
C29: =Risultati_P1!B119 -> Climate change | D29: prodotto 1 in kg CO2 eq | E29: =SUM(F29:J29) -> 0.341442919 | F29: =Risultati_P1!D8 -> 0.2306362988 | G29: =Risultati_P1!D30 -> 0 | H29: =Risultati_P1!D52 -> 0.3413396094 | I29: =Risultati_P1!D74 -> 0.01000026499 | J29: =Risultati_P1!D96 -> -0.2405332541
D30: prodotto 2 in kg CO2 eq | E30: =SUM(F30:J30) -> 0.5143162303 | F30: =Risultati_P2!D8 -> 0.40350961 | G30: =Risultati_P2!D30 -> 0 | H30: =Risultati_P2!D52 -> 0.3413396094 | I30: =Risultati_P2!D74 -> 0.01000026499 | J30: =Risultati_P2!D96 -> -0.2405332541
D31: differenza % tra p1 e p2 | E31: =(MAX(E29:E30)-MIN(E29:E30))/MAX(E29:E30) -> 0.3361226053 | F31: =(MAX(F29:F30)-MIN(F29:F30))/MAX(F29:F30) -> 0.4284242728 | G31: =(MAX(G29:G30)-MIN(G29:G30))/MAX(G29:G30) ->  | H31: =(MAX(H29:H30)-MIN(H29:H30))/MAX(H29:H30) -> 0 | I31: 0 | J31: =(MAX(J29:J30)-MIN(J29:J30))/MAX(J29:J30) -> 0
C32: =Risultati_P1!B121 -> Photochemical ozone formation, HH | D32: prodotto 1 in kg NMVOC eq | E32: =SUM(F32:J32) -> 0.00367141314 | F32: =Risultati_P1!D11 -> 0.001451501115 | G32: =Risultati_P1!D33 -> 2.870525e-05 | H32: =Risultati_P1!D55 -> 0.001946445386 | I32: =Risultati_P1!D77 -> 0.00108257215 | J32: =Risultati_P1!D99 -> -0.000837810762
D33: prodotto 2 kg NMVOC eq | E33: =SUM(F33:J33) -> 0.004819048486 | F33: =Risultati_P2!D11 -> 0.002599136462 | G33: =Risultati_P2!D33 -> 2.870525e-05 | H33: =Risultati_P2!D55 -> 0.001946445386 | I33: =Risultati_P2!D77 -> 0.00108257215 | J33: =Risultati_P2!D99 -> -0.000837810762
D34: differenza % tra p1 e p2 | E34: =(MAX(E32:E33)-MIN(E32:E33))/MAX(E32:E33) -> 0.2381456318 | F34: =(MAX(F32:F33)-MIN(F32:F33))/MAX(F32:F33) -> 0.4415448605 | G34: 0 | H34: 0 | I34: 0 | J34: 0
C35: =Risultati_P1!B123 -> Respiratory inorganics | D35: prodotto 1 in disease inc. | E35: =SUM(F35:J35) -> 7.353645161e-08 | F35: =Risultati_P1!D12 -> 3.211113457e-08 | G35: =Risultati_P1!D34 -> 4.300709818e-10 | H35: =Risultati_P1!D56 -> 3.16381635e-08 | I35: =Risultati_P1!D78 -> 2.657284257e-08 | J35: =Risultati_P1!D100 -> -1.721576001e-08
D36: prodotto 2 in disease inc. | E36: =SUM(F36:J36) -> 1.16315759e-07 | F36: =Risultati_P2!D12 -> 7.489044196e-08 | G36: =Risultati_P2!D34 -> 4.300709818e-10 | H36: =Risultati_P2!D56 -> 3.16381635e-08 | I36: =Risultati_P2!D78 -> 2.657284257e-08 | J36: =Risultati_P2!D100 -> -1.721576001e-08
D37: differenza % tra p1 e p2 | E37: =(MAX(E35:E36)-MIN(E35:E36))/MAX(E35:E36) -> 0.367785997 | F37: =(MAX(F35:F36)-MIN(F35:F36))/MAX(F35:F36) -> 0.5712251961 | G37: 0 | H37: 0 | I37: 0 | J37: 0
C38: =Risultati_P1!B125 -> Land use | D38: prodotto 1 in Pt | E38: =SUM(F38:J38) -> 367.8986478 | F38: =Risultati_P1!D20 -> 321.9271761 | G38: =Risultati_P1!D42 -> 0 | H38: =Risultati_P1!D64 -> 9.49577174 | I38: =Risultati_P1!D86 -> 47.70349746 | J38: =Risultati_P1!D108 -> -11.22779751
D39: prodotto 2 in Pt | E39: =SUM(F39:J39) -> 553.8089328 | F39: =Risultati_P2!D20 -> 507.8374611 | G39: =Risultati_P2!D42 -> 0 | H39: =Risultati_P2!D64 -> 9.49577174 | I39: =Risultati_P2!D86 -> 47.70349746 | J39: =Risultati_P2!D108 -> -11.22779751
